Workbook

Sheet 1 hasch_validation_samples
A1: Supplementary file 1. HASCH validation samples
A2: sampleid | B2: scu accession | C2: name | D2: other_name | E2: origin_country | F2: comment | G2: SRA
A3: AK2000001_R2 | B3: AK2000001 | C3: Yellow River | D3: Indian Hemp Yellow River (2) AQIS N030025385 | E3: Australian private collection
A4: AK2000002_R1 | B4: AK2000002 | C4: Kompolti | D4: Kompolti Original | E4: Australian private collection
A5: AK2000003_R1 | B5: AK2000003 | C5: Yellow River | D5: Yellow River 1 Original | E5: Australian private collection
A6: AK2000004_R2 | B6: AK2000004 | C6: Lu-Lu | D6: Lu-Lu Shed | E6: Australian private collection
A7: AK2000007_R1 | B7: AK2000007 | C7: Shanxi | D7: Shanxi Shed | E7: Australian private collection
A8: AK2000012_R1 | B8: AK2000012 | C8: Eltham Dio Australis | D8: Eltham Dio Australis | E8: Australian private collection
A9: AK2000018_R2 | B9: AK2000018 | C9: Yellow River | D9: Yellow river x NR1 chinese second pick | E9: Australian private collection
A10: AK2000019_R1 | B10: AK2000019 | C10: Kompolti x chinese yellow river 2 | D10: Kompolti x chinese yellow river 2 | E10: Australian private collection
A11: AK2000020_R1 | B11: AK2000020 | C11: Lu-Lu | D11: Lu-Lu x YR2 B | E11: Australian private collection
A12: AK2000021_R2 | B12: AK2000021 | C12: Morpeth | D12: Morpeth late | E12: Australian private collection
A13: AK2000022_R1 | B13: AK2000022 | C13: Morpeth | D13: Morpeth early | E13: Australian private collection
A14: AK2000029_R2 | B14: AK2000029 | C14: E11 | D14: E11 (B) 23/3/11 (8) | E14: Australian private collection
A15: AK2000030_R1 | B15: AK2000030 | C15: YRxNR1 | D15: YR-NR1-B Big pick | E15: Australian private collection
A16: AK2000032_R1 | B16: AK2000032 | C16: Mel | D16: Dio 70% 13/14 MEL2 ?? triploid | E16: Australian private collection
A17: AK2000033_R2 | B17: AK2000033 | C17: Mel | D17: MEL 13 original 2017 (2) | E17: Australian private collection
A18: AK2000035_R2 | B18: AK2000035 | C18: USO 31 | D18: USO 31 original 2010 | E18: Australian private collection
A19: AK2000037_R2 | B19: AK2000037 | C19: T11 | D19: T11 A early pick 31/1/11 | E19: Australian private collection
A20: AK2000048_R2 | B20: AK2000048 | C20: Fedora | D20: Fedora lot no F1545 10/2016 (1) (2) | E20: Australian private collection
A21: AK2000051_R2 | B21: AK2000051 | C21: Sly | D21: Sly green bags 20/80/01 | E21: Australian private collection
A22: AK2000052_R1 | B22: AK2000052 | C22: Han NE | D22: Han NE - rockwool 1 seed | E22: Australian private collection
A23: AK2000053_R1 | B23: AK2000053 | C23: Yuma-2 | D23: Yuma 2 - rockwool 1 seed | E23: Australian private collection
A24: AK2000056_R1 | B24: AK2000056 | C24: Han NE | D24: Han NE | E24: Australian private collection
A25: AK2000058_R2 | B25: AK2000058 | C25: Northern Rivers | D25: NR 1 first pick B | E25: Australian private collection
A26: AK2000059_R1 | B26: AK2000059 | C26: Alice | D26: Alice 2017 profiled 1 | E26: Australian private collection
A27: AK2100030 | B27: AK2100030 | C27: Eltham_F1 | E27: Eltham Dio Australis
A28: AK2200007 | B28: AK2200007 | C28: Eltham_F2 | E28: Eltham Dio Australis
A29: AK2200018 | B29: AK2200018 | C29: Eltham_F3_Mo | E29: Eltham Dio Australis
A30: AK2200024 | B30: AK2200024 | C30: Eltham_F5_Mo | E30: Eltham Dio Australis
A31: Positive Control_3 | B31: SH2000016 | C31: Syrian | E31: Syrian
A32: Positive Control_1 | B32: SH2000016 | C32: Syrian | E32: Syrian
A33: Positive Control_2 | B33: SH2000016 | C33: Syrian | E33: Syrian
A34: SC1900002_R1 | B34: SC1900002 | C34: IPK_CAN_17 | E34: Ungarn | G34: SRR28271002
A35: SC1900002_R2 | B35: SC1900002 | C35: IPK_CAN_17 | E35: Ungarn | G35: SRR28271092
A36: SC1900004_R1 | B36: SC1900004 | C36: IPK_CAN_19 | E36: Italien | G36: SRR28271132
A37: SC1900004_R2 | B37: SC1900004 | C37: IPK_CAN_19 | E37: Italien | G37: SRR28271037
A38: SC1900004_R3 | B38: SC1900004 | C38: IPK_CAN_19 | E38: Italien | G38: SRR28271184
A39: SC1900006_R1 | B39: SC1900006 | C39: IPK_CAN_21 | E39: Rumänien | G39: SRR28271168
A40: SC1900006_R2 | B40: SC1900006 | C40: IPK_CAN_21 | E40: Rumänien | G40: SRR28271157
A41: SC1900009_R1 | B41: SC1900009 | C41: IPK_CAN_24 | E41: Italien | G41: SRR28271010
A42: SC1900009_R2 | B42: SC1900009 | C42: IPK_CAN_24 | E42: Italien | G42: SRR28271009
A43: SC1900009_R3 | B43: SC1900009 | C43: IPK_CAN_24 | E43: Italien | G43: SRR28271008
A44: SC1900013_R1* | B44: SC1900013 | C44: IPK_CAN_29 | E44: Rumänien | G44: SRR28271008
A45: SC1900013_R2 | B45: SC1900013 | C45: IPK_CAN_29 | E45: Rumänien | G45: SRR28271097
A46: SC1900013_R3 | B46: SC1900013 | C46: IPK_CAN_29 | E46: Rumänien | G46: SRR28271096
A47: SC1900015_R1 | B47: SC1900015 | C47: IPK_CAN_31 | E47: Rumänien | G47: SRR28271091
A48: SC1900015_R2 | B48: SC1900015 | C48: IPK_CAN_31 | E48: Rumänien | G48: SRR28271090
A49: SC1900016_R1 | B49: SC1900016 | C49: IPK_CAN_32 | E49: Rumänien | G49: SRR28271089
A50: SC1900016_R2 | B50: SC1900016 | C50: IPK_CAN_32 | E50: Rumänien | G50: SRR28271088
A51: SC1900016_R3 | B51: SC1900016 | C51: IPK_CAN_32 | E51: Rumänien | G51: SRR28271087
A52: SC1900017_R2 | B52: SC1900017 | C52: IPK_CAN_33 | E52: Rumänien | G52: SRR28271085
A53: SC1900018_R2 | B53: SC1900018 | C53: IPK_CAN_34 | E53: Rumänien | G53: SRR28271083
A54: SC1900018_R3 | B54: SC1900018 | C54: IPK_CAN_34 | E54: Rumänien | G54: SRR28271082
A55: SC1900019_R1 | B55: SC1900019 | C55: IPK_CAN_35 | E55: Rumänien | G55: SRR28271080
A56: SC1900023_R1 | B56: SC1900023 | C56: IPK_CAN_39 | E56: China | G56: SRR28271149
A57: SC1900023_R2 | B57: SC1900023 | C57: IPK_CAN_39 | E57: China | G57: SRR28271148
A58: SC1900024_R2 | B58: SC1900024 | C58: IPK_CAN_40 | E58: Italien | G58: SRR28271145
A59: SC1900026_R1 | B59: SC1900026 | C59: IPK_CAN_42 | E59: Kroatien | G59: SRR28271139
A60: SC1900026_R2 | B60: SC1900026 | C60: IPK_CAN_42 | E60: Kroatien | G60: SRR28271138
A61: SC1900026_R3 | B61: SC1900026 | C61: IPK_CAN_42 | E61: Kroatien | G61: SRR28271137
A62: SC1900026_R4 | B62: SC1900026 | C62: IPK_CAN_42 | E62: Kroatien | G62: SRR28271136
A63: SC1900027_R1 | B63: SC1900027 | C63: IPK_CAN_43 | D63: Hohenthürmer Gleichzeitig Reifender | E63: Deutschland | G63: SRR28271135
A64: SC1900027_R2 | B64: SC1900027 | C64: IPK_CAN_43 | D64: Hohenthürmer Gleichzeitig Reifender | E64: Deutschland | G64: SRR28271134
A65: SC1900027_R3 | B65: SC1900027 | C65: IPK_CAN_43 | D65: Hohenthürmer Gleichzeitig Reifender | E65: Deutschland | G65: SRR28271133
A66: SC1900027_R4 | B66: SC1900027 | C66: IPK_CAN_43 | D66: Hohenthürmer Gleichzeitig Reifender | E66: Deutschland | G66: SRR28271131
A67: SC1900028_R1 | B67: SC1900028 | C67: IPK_CAN_44 | D67: Fibrimon | E67: Deutschland | G67: SRR28271130
A68: SC1900028_R2 | B68: SC1900028 | C68: IPK_CAN_44 | D68: Fibrimon | E68: Deutschland | G68: SRR28271129
A69: SC1900028_R3 | B69: SC1900028 | C69: IPK_CAN_44 | D69: Fibrimon | E69: Deutschland | G69: SRR28271128
A70: SC1900029_R1 | B70: SC1900029 | C70: IPK_CAN_45 | D70: KRASNODARSKAYA | E70: unbekannt | G70: SRR28271043
A71: SC1900029_R2 | B71: SC1900029 | C71: IPK_CAN_45 | D71: KRASNODARSKAYA | E71: unbekannt | G71: SRR28271042
A72: SC1900029_R3 | B72: SC1900029 | C72: IPK_CAN_45 | D72: KRASNODARSKAYA | E72: unbekannt | G72: SRR28271041
A73: SC1900030_R1 | B73: SC1900030 | C73: IPK_CAN_46 | D73: FIBRIMON 56 | E73: unbekannt | G73: SRR28271040
A74: SC1900030_R2 | B74: SC1900030 | C74: IPK_CAN_46 | D74: FIBRIMON 56 | E74: unbekannt | G74: SRR28271039
A75: SC1900030_R3 | B75: SC1900030 | C75: IPK_CAN_46 | D75: FIBRIMON 56 | E75: unbekannt | G75: SRR28271038
A76: SC1900032_R1 | B76: SC1900032 | C76: IPK_CAN_48 | D76: ELETTA CAMPANA | E76: unbekannt | G76: SRR28271034
A77: SC1900032_R2 | B77: SC1900032 | C77: IPK_CAN_48 | D77: ELETTA CAMPANA | E77: unbekannt | G77: SRR28271033
A78: SC1900032_R3 | B78: SC1900032 | C78: IPK_CAN_48 | D78: ELETTA CAMPANA | E78: unbekannt | G78: SRR28271032
A79: SC1900033_R1 | B79: SC1900033 | C79: IPK_CAN_49 | D79: SUPERFIBRA | E79: unbekannt | G79: SRR28271031
A80: SC1900033_R2 | B80: SC1900033 | C80: IPK_CAN_49 | D80: SUPERFIBRA | E80: unbekannt | G80: SRR28271030
A81: SC1900033_R3 | B81: SC1900033 | C81: IPK_CAN_49 | D81: SUPERFIBRA | E81: unbekannt | G81: SRR28271029
A82: SC1900034_R1 | B82: SC1900034 | C82: IPK_CAN_50 | D82: FIBRIMON | E82: unbekannt | G82: SRR28271028
A83: SC1900034_R2 | B83: SC1900034 | C83: IPK_CAN_50 | D83: FIBRIMON | E83: unbekannt | G83: SRR28271026
A84: SC1900034_R3 | B84: SC1900034 | C84: IPK_CAN_50 | D84: FIBRIMON | E84: unbekannt | G84: SRR28271127
A85: SC1900034_R4 | B85: SC1900034 | C85: IPK_CAN_50 | D85: FIBRIMON | E85: unbekannt | G85: SRR28271126
A86: SC1900036_R1 | B86: SC1900036 | C86: IPK_CAN_52 | D86: Fibridia | E86: unbekannt | G86: SRR28271122
A87: SC1900036_R2 | B87: SC1900036 | C87: IPK_CAN_52 | D87: Fibridia | E87: unbekannt | G87: SRR28271121
A88: SC1900036_R3 | B88: SC1900036 | C88: IPK_CAN_52 | D88: Fibridia | E88: unbekannt | G88: SRR28271120
A89: SC1900037_R1 | B89: SC1900037 | C89: IPK_CAN_53 | D89: Fibrimon | E89: unbekannt | G89: SRR28271119
A90: SC1900037_R2 | B90: SC1900037 | C90: IPK_CAN_53 | D90: Fibrimon | E90: unbekannt | G90: SRR28271118
A91: SC1900037_R3 | B91: SC1900037 | C91: IPK_CAN_53 | D91: Fibrimon | E91: unbekannt | G91: SRR28271116
A92: SC1900038_R1 | B92: SC1900038 | C92: IPK_CAN_54 | D92: Fibrimon 21 | E92: unbekannt | G92: SRR28271115
A93: SC1900038_R2 | B93: SC1900038 | C93: IPK_CAN_54 | D93: Fibrimon 21 | E93: unbekannt | G93: SRR28271114
A94: SC1900038_R3 | B94: SC1900038 | C94: IPK_CAN_54 | D94: Fibrimon 21 | E94: unbekannt | G94: SRR28271113
A95: SC1900039_R2 | B95: SC1900039 | C95: IPK_CAN_55 | D95: Havelländer | E95: unbekannt | G95: SRR28271110
A96: SC1900039_R3 | B96: SC1900039 | C96: IPK_CAN_55 | D96: Havelländer | E96: unbekannt | G96: SRR28271109
A97: SC1900040_R1 | B97: SC1900040 | C97: IPK_CAN_56 | D97: Kompolti | E97: unbekannt | G97: SRR28271108
A98: SC1900040_R2 | B98: SC1900040 | C98: IPK_CAN_56 | D98: Kompolti | E98: unbekannt | G98: SRR28271107
A99: SC1900040_R3 | B99: SC1900040 | C99: IPK_CAN_56 | D99: Kompolti | E99: unbekannt | G99: SRR28271105
A100: SC1900040_R4 | B100: SC1900040 | C100: IPK_CAN_56 | D100: Kompolti | E100: unbekannt | G100: SRR28271104
A101: SC1900042_R1 | B101: SC1900042 | C101: IPK_CAN_58 | D101: Kongo Hanf | E101: Spanien | G101: SRR28271178
A102: SC1900042_R2 | B102: SC1900042 | C102: IPK_CAN_58 | D102: Kongo Hanf | E102: Spanien | G102: SRR28271177
A103: SC1900042_R3 | B103: SC1900042 | C103: IPK_CAN_58 | D103: Kongo Hanf | E103: Spanien | G103: SRR28271176
A104: SC1900042_R4 | B104: SC1900042 | C104: IPK_CAN_58 | D104: Kongo Hanf | E104: Spanien | G104: SRR28271175
A105: SC1900043_R2 | B105: SC1900043 | C105: IPK_CAN_59 | D105: Türken P 494 | E105: unbekannt | G105: SRR28271173
A106: SC1900043_R3 | B106: SC1900043 | C106: IPK_CAN_59 | D106: Türken P 494 | E106: unbekannt | G106: SRR28271172
A107: SC1900044_R1 | B107: SC1900044 | C107: IPK_CAN_60 | D107: Schurig | E107: unbekannt | G107: SRR28271171
A108: SC1900044_R2 | B108: SC1900044 | C108: IPK_CAN_60 | D108: Schurig | E108: unbekannt | G108: SRR28271170
A109: SC1900044_R3 | B109: SC1900044 | C109: IPK_CAN_60 | D109: Schurig | E109: unbekannt | G109: SRR28271169
A110: SC1900045_R1 | B110: SC1900045 | C110: IPK_CAN_61 | D110: Carmagnola in Selelione | E110: unbekannt | G110: SRR28271167
A111: SC1900045_R1* | B111: SC1900045 | C111: IPK_CAN_61 | D111: Carmagnola in Selelione | E111: unbekannt | G111: SRR28271167
A112: SC1900045_R2 | B112: SC1900045 | C112: IPK_CAN_61 | D112: Carmagnola in Selelione | E112: unbekannt | G112: SRR28271165
A113: SC1900046_R1 | B113: SC1900046 | C113: IPK_CAN_62 | D113: Bredemann P | E113: unbekannt | G113: SRR28271163
A114: SC1900046_R2 | B114: SC1900046 | C114: IPK_CAN_62 | D114: Bredemann P | E114: unbekannt | G114: SRR28271162
A115: SC1900046_R3 | B115: SC1900046 | C115: IPK_CAN_62 | D115: Bredemann P | E115: unbekannt | G115: SRR28271161
A116: SC1900047_R1 | B116: SC1900047 | C116: IPK_CAN_63 | D116: RAMO | E116: Deutschland | G116: SRR28271160
A117: SC1900047_R2 | B117: SC1900047 | C117: IPK_CAN_63 | D117: RAMO | E117: Deutschland | G117: SRR28271159
A118: SC1900047_R3 | B118: SC1900047 | C118: IPK_CAN_63 | D118: RAMO | E118: Deutschland | G118: SRR28271158
A119: SC1900048_R1 | B119: SC1900048 | C119: IPK_CAN_64 | E119: Türkei | G119: SRR28271156
A120: SC1900048_R2 | B120: SC1900048 | C120: IPK_CAN_64 | E120: Türkei | G120: SRR28271071
A121: SC1900048_R3 | B121: SC1900048 | C121: IPK_CAN_64 | E121: Türkei | G121: SRR28271070
A122: SC1900049_R1 | B122: SC1900049 | C122: IPK_CAN_65 | D122: Juso 14 | E122: Deutschland | G122: SRR28271069
A123: SC1900049_R2 | B123: SC1900049 | C123: IPK_CAN_65 | D123: Juso 14 | E123: Deutschland | G123: SRR28271068
A124: SC1900049_R3 | B124: SC1900049 | C124: IPK_CAN_65 | D124: Juso 14 | E124: Deutschland | G124: SRR28271067
A125: SC1900049_R4 | B125: SC1900049 | C125: IPK_CAN_65 | D125: Juso 14 | E125: Deutschland | G125: SRR28271066
A126: SC1900050_R1 | B126: SC1900050 | C126: IPK_CAN_66 | D126: Lovrin 110 | E126: Deutschland | G126: SRR28271065
A127: SC1900051_R1 | B127: SC1900051 | C127: IPK_CAN_67 | D127: Fasamo | E127: Deutschland | G127: SRR28271064
A128: SC1900051_R2 | B128: SC1900051 | C128: IPK_CAN_67 | D128: Fasamo | E128: Deutschland | G128: SRR28271063
A129: SC1900051_R3 | B129: SC1900051 | C129: IPK_CAN_67 | D129: Fasamo | E129: Deutschland | G129: SRR28271061
A130: SC1900052_R2 | B130: SC1900052 | C130: IPK_CAN_68 | D130: Kompolti | E130: Deutschland | G130: SRR28271058
A131: SC1900052_R3 | B131: SC1900052 | C131: IPK_CAN_68 | D131: Kompolti | E131: Deutschland | G131: SRR28271057
A132: SC1900053_R1 | B132: SC1900053 | C132: IPK_CAN_69 | D132: Futura | E132: Deutschland | G132: SRR28271055
A133: SC1900053_R2 | B133: SC1900053 | C133: IPK_CAN_69 | D133: Futura | E133: Deutschland | G133: SRR28271054
A134: SC1900053_R3 | B134: SC1900053 | C134: IPK_CAN_69 | D134: Futura | E134: Deutschland | G134: SRR28271053
A135: SC1900054_R1 | B135: SC1900054 | C135: IPK_CAN_70 | D135: Kompolti | E135: Deutschland | G135: SRR28271052
A136: SC1900054_R2 | B136: SC1900054 | C136: IPK_CAN_70 | D136: Kompolti | E136: Deutschland | G136: SRR28271050
A137: SC1900054_R3 | B137: SC1900054 | C137: IPK_CAN_70 | D137: Kompolti | E137: Deutschland | G137: SRR28271049
A138: SC1900055_R1 | B138: SC1900055 | C138: IPK_CAN_100 | D138: Gelb | E138: unbekannt | G138: SRR28271048
A139: SC1900055_R2 | B139: SC1900055 | C139: IPK_CAN_100 | D139: Gelb | E139: unbekannt | G139: SRR28271047
A140: SC1900055_R4 | B140: SC1900055 | C140: IPK_CAN_100 | D140: Gelb | E140: unbekannt | G140: SRR28271045
A141: SC1900059_R1 | B141: SC1900059 | C141: IPK_CAN_23 | E141: Koreanische DVR | G141: SRR28271023
A142: SC1900059_R3 | B142: SC1900059 | C142: IPK_CAN_23 | E142: Koreanische DVR | G142: SRR28271012
A143: SC1900059_R4 | B143: SC1900059 | C143: IPK_CAN_23 | E143: Koreanische DVR | G143: SRR28271011
A144: SC1900060_P9_R1 | B144: SC1900060 | C144: IPK_CAN_57 | E144: Syrien | G144: SRR28271103
A145: SC1900060_P9_R2 | B145: SC1900060 | C145: IPK_CAN_57 | E145: Syrien | G145: SRR28271101
A146: SC1900060_P9_R3 | B146: SC1900060 | C146: IPK_CAN_57 | E146: Syrien | G146: SRR28271100
A147: SC1900060_R1 | B147: SC1900060 | C147: IPK_CAN_57 | E147: Syrien | G147: SRR28271102
A148: SC1900060_R3 | B148: SC1900060 | C148: IPK_CAN_57 | E148: Syrien | G148: SRR28271183
A149: SC1900060_R4 | B149: SC1900060 | C149: IPK_CAN_57 | E149: Syrien | G149: SRR28271182
A150: SC1900060_R5 | B150: SC1900060 | C150: IPK_CAN_57 | E150: Syrien | G150: SRR28271181
A151: SC1900061_R1 | B151: SC1900061 | C151: IPK_CAN_47 | E151: Türkei | G151: SRR28271036
A152: SC1900061_R2 | B152: SC1900061 | C152: IPK_CAN_47 | E152: Türkei | G152: SRR28271035
A153: SC1900062_R1 | B153: SC1900062 | C153: IPK_CAN_26 | E153: Türkei | G153: SRR28271007
A154: SC1900062_R2 | B154: SC1900062 | C154: IPK_CAN_26 | E154: Türkei | G154: SRR28271006
A155: SC1900062_R3 | B155: SC1900062 | C155: IPK_CAN_26 | E155: Türkei | G155: SRR28271005
A156: SC1900063_R1 | B156: SC1900063 | C156: IPK_CAN_20 | E156: Koreanische DVR | G156: SRR28271117
A157: SC1900063_R2 | B157: SC1900063 | C157: IPK_CAN_20 | E157: Koreanische DVR | G157: SRR28271106
A158: SC1900063_R3 | B158: SC1900063 | C158: IPK_CAN_20 | E158: Koreanische DVR | G158: SRR28271179
A159: SC1900064_R1 | B159: SC1900064 | C159: IPK_CAN_51 | E159: Argentinien | G159: SRR28271125
A160: SC1900064_R2 | B160: SC1900064 | C160: IPK_CAN_51 | E160: Argentinien | G160: SRR28271124
A161: SC1900064_R3 | B161: SC1900064 | C161: IPK_CAN_51 | E161: Argentinien | G161: SRR28271123
A162: SC1900065_R1 | B162: SC1900065 | C162: IPK_CAN_18 | E162: Deutschland | G162: SRR28271154
A163: SC1900065_R2 | B163: SC1900065 | C163: IPK_CAN_18 | E163: Deutschland | G163: SRR28271143
A164: SC1900066_R1 | B164: SC1900066 | C164: IPK_CAN_36 | E164: unbekannt | G164: SRR28271076
A165: SC1900066_R2 | B165: SC1900066 | C165: IPK_CAN_36 | E165: unbekannt | G165: SRR28271075
A166: SC2000001_R1 | B166: SC2000001 | C166: IPK_CAN_27 | E166: unbekannt | G166: SRR28271004
A167: SC2000001_R2 | B167: SC2000001 | C167: IPK_CAN_27 | E167: unbekannt | G167: SRR28271003
A168: SC2000001_R3 | B168: SC2000001 | C168: IPK_CAN_27 | E168: unbekannt | G168: SRR28271001
A169: SC2000002_R1 | B169: SC2000002 | C169: IPK_CAN_16 | E169: Slowakei | G169: SRR28271186
A170: SC2000002_R2 | B170: SC2000002 | C170: IPK_CAN_16 | E170: Slowakei | G170: SRR28271185
A171: SC2000002_R3 | B171: SC2000002 | C171: IPK_CAN_16 | E171: Slowakei | G171: SRR28271013
A172: SC2000003_R1 | B172: SC2000003 | C172: IPK_CAN_41 | E172: unbekannt | G172: SRR28271142
A173: SC2000003_R2 | B173: SC2000003 | C173: IPK_CAN_41 | E173: unbekannt | G173: SRR28271141
A174: SC2000003_R3 | B174: SC2000003 | C174: IPK_CAN_41 | E174: unbekannt | G174: SRR28271140
A175: SC2000013_R1 | B175: SC2000013 | C175: IPK_CAN_28 | D175: Forose | E175: unbekannt | G175: SRR28271000
A176: SC2000013_R2 | B176: SC2000013 | C176: IPK_CAN_28 | D176: Forose | E176: unbekannt | G176: SRR28270999
A177: SC2000013_R3 | B177: SC2000013 | C177: IPK_CAN_28 | D177: Forose | E177: unbekannt | G177: SRR28271099
A178: SC2000014_R1 | B178: SC2000014 | C178: IPK_CAN_30 | D178: Bernburger | E178: Deutschland | G178: SRR28271095
A179: SC2000014_R2 | B179: SC2000014 | C179: IPK_CAN_30 | D179: Bernburger | E179: Deutschland | G179: SRR28271094
A180: SC2000014_R3 | B180: SC2000014 | C180: IPK_CAN_30 | D180: Bernburger | E180: Deutschland | G180: SRR28271093
A181: SC2000016_R1 | B181: SC2000016 | C181: IPK_CAN_35 | E181: Rumänien | G181: SRR28271079
A182: SC2000016_R2 | B182: SC2000016 | C182: IPK_CAN_35 | E182: Rumänien | G182: SRR28271078
A183: SC2000016_R3 | B183: SC2000016 | C183: IPK_CAN_35 | E183: Rumänien | G183: SRR28271077
A184: SC2000017_R2 | B184: SC2000017 | C184: IPK_CAN_37 | E184: Frankreich | G184: SRR28271155
A185: SC2000017_R3 | B185: SC2000017 | C185: IPK_CAN_37 | E185: Frankreich | G185: SRR28271153
A186: SC2000018_R1 | B186: SC2000018 | C186: IPK_CAN_38 | E186: Rumänien | G186: SRR28271072
A187: SC2000018_R2 | B187: SC2000018 | C187: IPK_CAN_38 | E187: Rumänien | G187: SRR28271072
A188: SC2000018_R3 | B188: SC2000018 | C188: IPK_CAN_38 | E188: Rumänien | G188: SRR28271151
A189: SC2000018_R4 | B189: SC2000018 | C189: IPK_CAN_38 | E189: Rumänien | G189: SRR28271150
A190: SC2100011 | B190: SC2100011 | C190: IPK_36_F1_Mo
A191: SC2100020 | B191: SC2100020 | C191: IPK_36_F2_Mo
A192: SC2200014_P1 | B192: SC2200014 | C192: SyrianxIPK36_selfed | F192: F2 mapping population
A193: SC2200014_P10 | B193: SC2200015 | C193: SyrianxIPK36_selfed | F193: F2 mapping population
A194: SC2200014_P100 | B194: SC2200016 | C194: SyrianxIPK36_selfed | F194: F2 mapping population
A195: SC2200014_P101 | B195: SC2200017 | C195: SyrianxIPK36_selfed | F195: F2 mapping population
A196: SC2200014_P102 | B196: SC2200018 | C196: SyrianxIPK36_selfed | F196: F2 mapping population
A197: SC2200014_P103 | B197: SC2200019 | C197: SyrianxIPK36_selfed | F197: F2 mapping population
A198: SC2200014_P104 | B198: SC2200020 | C198: SyrianxIPK36_selfed | F198: F2 mapping population
A199: SC2200014_P105 | B199: SC2200021 | C199: SyrianxIPK36_selfed | F199: F2 mapping population
A200: SC2200014_P106 | B200: SC2200022 | C200: SyrianxIPK36_selfed | F200: F2 mapping population
... 178 more rows

Sheet 2 gbs_samples
A1: Supplementary file 2. GBS Samples
A2: sampleid | B2: name | C2: NCBI BioProject | D2: BioSample | E2: SRA
A3: SC2000002_R1 | B3: IPK_CAN_16_R1 | C3: PRJNA1085665 | D3: SAMN40316099 | E3: SRR28271186
A4: SC2000002_R2 | B4: IPK_CAN_16_R2 | C4: PRJNA1085665 | D4: SAMN40316100 | E4: SRR28271185
A5: SC2000002_R3 | B5: IPK_CAN_16_R3 | C5: PRJNA1085665 | D5: SAMN40316101 | E5: SRR28271013
A6: SC1900002_R1 | B6: IPK_CAN_17_R1 | C6: PRJNA1085665 | D6: SAMN40316102 | E6: SRR28271002
A7: SC1900002_R2 | B7: IPK_CAN_17_R2 | C7: PRJNA1085665 | D7: SAMN40316103 | E7: SRR28271092
A8: SC1900002_R3 | B8: IPK_CAN_17_R3 | C8: PRJNA1085665 | D8: SAMN40316104 | E8: SRR28271081
A9: SC1900065_R1 | B9: IPK_CAN_18_R1 | C9: PRJNA1085665 | D9: SAMN40316105 | E9: SRR28271154
A10: SC1900065_R2 | B10: IPK_CAN_18_R2 | C10: PRJNA1085665 | D10: SAMN40316106 | E10: SRR28271143
A11: SC1900004_R1 | B11: IPK_CAN_19_R1 | C11: PRJNA1085665 | D11: SAMN40316107 | E11: SRR28271132
A12: SC1900004_R2 | B12: IPK_CAN_19_R2 | C12: PRJNA1085665 | D12: SAMN40316108 | E12: SRR28271037
A13: SC1900004_R3 | B13: IPK_CAN_19_R3 | C13: PRJNA1085665 | D13: SAMN40316109 | E13: SRR28271184
A14: SC1900063_R1 | B14: IPK_CAN_20_R1 | C14: PRJNA1085665 | D14: SAMN40316110 | E14: SRR28271117
A15: SC1900063_R2 | B15: IPK_CAN_20_R2 | C15: PRJNA1085665 | D15: SAMN40316111 | E15: SRR28271106
A16: SC1900063_R3 | B16: IPK_CAN_20_R3 | C16: PRJNA1085665 | D16: SAMN40316112 | E16: SRR28271179
A17: SC1900006_R1 | B17: IPK_CAN_21_R1 | C17: PRJNA1085665 | D17: SAMN40316113 | E17: SRR28271168
A18: SC1900006_R2 | B18: IPK_CAN_21_R2 | C18: PRJNA1085665 | D18: SAMN40316114 | E18: SRR28271157
A19: SC1900006_R3 | B19: IPK_CAN_21_R3 | C19: PRJNA1085665 | D19: SAMN40316115 | E19: SRR28271062
A20: SC1900058_R1 | B20: IPK_CAN_22_R1 | C20: PRJNA1085665 | D20: SAMN40316116 | E20: SRR28271051
A21: SC1900059_R1 | B21: IPK_CAN_23_R1 | C21: PRJNA1085665 | D21: SAMN40316117 | E21: SRR28271023
A22: SC1900059_R2 | B22: IPK_CAN_23_R2 | C22: PRJNA1085665 | D22: SAMN40316118 | E22: SRR28271014
A23: SC1900059_R3 | B23: IPK_CAN_23_R3 | C23: PRJNA1085665 | D23: SAMN40316119 | E23: SRR28271012
A24: SC1900059_R4 | B24: IPK_CAN_23_R4 | C24: PRJNA1085665 | D24: SAMN40316120 | E24: SRR28271011
A25: SC1900009_R1 | B25: IPK_CAN_24_R1 | C25: PRJNA1085665 | D25: SAMN40316121 | E25: SRR28271010
A26: SC1900009_R2 | B26: IPK_CAN_24_R2 | C26: PRJNA1085665 | D26: SAMN40316122 | E26: SRR28271009
A27: SC1900009_R3 | B27: IPK_CAN_24_R3 | C27: PRJNA1085665 | D27: SAMN40316123 | E27: SRR28271008
A28: SC1900062_R1 | B28: IPK_CAN_26_R1 | C28: PRJNA1085665 | D28: SAMN40316124 | E28: SRR28271007
A29: SC1900062_R2 | B29: IPK_CAN_26_R2 | C29: PRJNA1085665 | D29: SAMN40316125 | E29: SRR28271006
A30: SC1900062_R3 | B30: IPK_CAN_26_R3 | C30: PRJNA1085665 | D30: SAMN40316126 | E30: SRR28271005
A31: SC2000001_R1 | B31: IPK_CAN_27_R1 | C31: PRJNA1085665 | D31: SAMN40316127 | E31: SRR28271004
A32: SC2000001_R2 | B32: IPK_CAN_27_R2 | C32: PRJNA1085665 | D32: SAMN40316128 | E32: SRR28271003
A33: SC2000001_R3 | B33: IPK_CAN_27_R3 | C33: PRJNA1085665 | D33: SAMN40316129 | E33: SRR28271001
A34: SC2000013_R1 | B34: IPK_CAN_28_R1 | C34: PRJNA1085665 | D34: SAMN40316130 | E34: SRR28271000
A35: SC2000013_R2 | B35: IPK_CAN_28_R2 | C35: PRJNA1085665 | D35: SAMN40316131 | E35: SRR28270999
A36: SC2000013_R3 | B36: IPK_CAN_28_R3 | C36: PRJNA1085665 | D36: SAMN40316132 | E36: SRR28271099
A37: SC1900013_R1b | B37: IPK_CAN_29_R1b | C37: PRJNA1085665 | D37: SAMN40316133 | E37: SRR28271098
A38: SC1900013_R2 | B38: IPK_CAN_29_R2 | C38: PRJNA1085665 | D38: SAMN40316134 | E38: SRR28271097
A39: SC1900013_R3 | B39: IPK_CAN_29_R3 | C39: PRJNA1085665 | D39: SAMN40316135 | E39: SRR28271096
A40: SC2000014_R1 | B40: IPK_CAN_30_R1 | C40: PRJNA1085665 | D40: SAMN40316136 | E40: SRR28271095
A41: SC2000014_R2 | B41: IPK_CAN_30_R2 | C41: PRJNA1085665 | D41: SAMN40316137 | E41: SRR28271094
A42: SC2000014_R3 | B42: IPK_CAN_30_R3 | C42: PRJNA1085665 | D42: SAMN40316138 | E42: SRR28271093
A43: SC1900015_R1 | B43: IPK_CAN_31_R1 | C43: PRJNA1085665 | D43: SAMN40316139 | E43: SRR28271091
A44: SC1900015_R2 | B44: IPK_CAN_31_R2 | C44: PRJNA1085665 | D44: SAMN40316140 | E44: SRR28271090
A45: SC1900016_R1 | B45: IPK_CAN_32_R1 | C45: PRJNA1085665 | D45: SAMN40316141 | E45: SRR28271089
A46: SC1900016_R2 | B46: IPK_CAN_32_R2 | C46: PRJNA1085665 | D46: SAMN40316142 | E46: SRR28271088
A47: SC1900016_R3 | B47: IPK_CAN_32_R3 | C47: PRJNA1085665 | D47: SAMN40316143 | E47: SRR28271087
A48: SC1900017_R1 | B48: IPK_CAN_33_R1 | C48: PRJNA1085665 | D48: SAMN40316144 | E48: SRR28271086
A49: SC1900017_R2 | B49: IPK_CAN_33_R2 | C49: PRJNA1085665 | D49: SAMN40316145 | E49: SRR28271085
A50: SC1900018_R1 | B50: IPK_CAN_34_R1 | C50: PRJNA1085665 | D50: SAMN40316146 | E50: SRR28271084
A51: SC1900018_R2 | B51: IPK_CAN_34_R2 | C51: PRJNA1085665 | D51: SAMN40316147 | E51: SRR28271083
A52: SC1900018_R3 | B52: IPK_CAN_34_R3 | C52: PRJNA1085665 | D52: SAMN40316148 | E52: SRR28271082
A53: SC1900019_R1 | B53: IPK_CAN_35_R1b | C53: PRJNA1085665 | D53: SAMN40316149 | E53: SRR28271080
A54: SC2000016_R1 | B54: IPK_CAN_35_R1 | C54: PRJNA1085665 | D54: SAMN40316150 | E54: SRR28271079
A55: SC2000016_R2 | B55: IPK_CAN_35_R2 | C55: PRJNA1085665 | D55: SAMN40316151 | E55: SRR28271078
A56: SC2000016_R3 | B56: IPK_CAN_35_R3 | C56: PRJNA1085665 | D56: SAMN40316152 | E56: SRR28271077
A57: SC1900066_R1 | B57: IPK_CAN_36_R1 | C57: PRJNA1085665 | D57: SAMN40316153 | E57: SRR28271076
A58: SC1900066_R2 | B58: IPK_CAN_36_R2 | C58: PRJNA1085665 | D58: SAMN40316154 | E58: SRR28271075
A59: SC1900066_R3 | B59: IPK_CAN_36_R3 | C59: PRJNA1085665 | D59: SAMN40316155 | E59: SRR28271074
A60: SC2000017_R1 | B60: IPK_CAN_37_R1 | C60: PRJNA1085665 | D60: SAMN40316156 | E60: SRR28271073
A61: SC2000018_R1 | B61: IPK_CAN_38_R1 | C61: PRJNA1085665 | D61: SAMN40316157 | E61: SRR28271072
A62: SC2000017_R2 | B62: IPK_CAN_37_R2 | C62: PRJNA1085665 | D62: SAMN40316158 | E62: SRR28271155
A63: SC2000017_R3 | B63: IPK_CAN_37_R3 | C63: PRJNA1085665 | D63: SAMN40316159 | E63: SRR28271153
A64: SC1900045_R4 | B64: IPK_CAN_61_R4 | C64: PRJNA1085665 | D64: SAMN40316160 | E64: SRR28271152
A65: SC2000018_R3 | B65: IPK_CAN_38_R3 | C65: PRJNA1085665 | D65: SAMN40316161 | E65: SRR28271151
A66: SC2000018_R4 | B66: IPK_CAN_38_R4 | C66: PRJNA1085665 | D66: SAMN40316162 | E66: SRR28271150
A67: SC1900023_R1 | B67: IPK_CAN_39_R1 | C67: PRJNA1085665 | D67: SAMN40316163 | E67: SRR28271149
A68: SC1900023_R2 | B68: IPK_CAN_39_R2 | C68: PRJNA1085665 | D68: SAMN40316164 | E68: SRR28271148
A69: SC1900023_R3 | B69: IPK_CAN_39_R3 | C69: PRJNA1085665 | D69: SAMN40316165 | E69: SRR28271147
A70: SC1900024_R1 | B70: IPK_CAN_40_R1 | C70: PRJNA1085665 | D70: SAMN40316166 | E70: SRR28271146
A71: SC1900024_R2 | B71: IPK_CAN_40_R2 | C71: PRJNA1085665 | D71: SAMN40316167 | E71: SRR28271145
A72: SC1900024_R3 | B72: IPK_CAN_40_R3 | C72: PRJNA1085665 | D72: SAMN40316168 | E72: SRR28271144
A73: SC2000003_R1 | B73: IPK_CAN_41_R1 | C73: PRJNA1085665 | D73: SAMN40316169 | E73: SRR28271142
A74: SC2000003_R2 | B74: IPK_CAN_41_R2 | C74: PRJNA1085665 | D74: SAMN40316170 | E74: SRR28271141
A75: SC2000003_R3 | B75: IPK_CAN_41_R3 | C75: PRJNA1085665 | D75: SAMN40316171 | E75: SRR28271140
A76: SC1900026_R1 | B76: IPK_CAN_42_R1 | C76: PRJNA1085665 | D76: SAMN40316172 | E76: SRR28271139
A77: SC1900026_R2 | B77: IPK_CAN_42_R2 | C77: PRJNA1085665 | D77: SAMN40316173 | E77: SRR28271138
A78: SC1900026_R3 | B78: IPK_CAN_42_R3 | C78: PRJNA1085665 | D78: SAMN40316174 | E78: SRR28271137
A79: SC1900026_R4 | B79: IPK_CAN_42_R4 | C79: PRJNA1085665 | D79: SAMN40316175 | E79: SRR28271136
A80: SC1900027_R1 | B80: IPK_CAN_43_R1 | C80: PRJNA1085665 | D80: SAMN40316176 | E80: SRR28271135
A81: SC1900027_R2 | B81: IPK_CAN_43_R2 | C81: PRJNA1085665 | D81: SAMN40316177 | E81: SRR28271134
A82: SC1900027_R3 | B82: IPK_CAN_43_R3 | C82: PRJNA1085665 | D82: SAMN40316178 | E82: SRR28271133
A83: SC1900027_R4 | B83: IPK_CAN_43_R4 | C83: PRJNA1085665 | D83: SAMN40316179 | E83: SRR28271131
A84: SC1900028_R1 | B84: IPK_CAN_44_R1 | C84: PRJNA1085665 | D84: SAMN40316180 | E84: SRR28271130
A85: SC1900028_R2 | B85: IPK_CAN_44_R2 | C85: PRJNA1085665 | D85: SAMN40316181 | E85: SRR28271129
A86: SC1900028_R3 | B86: IPK_CAN_44_R3 | C86: PRJNA1085665 | D86: SAMN40316182 | E86: SRR28271128
A87: SC1900029_R1 | B87: IPK_CAN_45_R1 | C87: PRJNA1085665 | D87: SAMN40316183 | E87: SRR28271043
A88: SC1900029_R2 | B88: IPK_CAN_45_R2 | C88: PRJNA1085665 | D88: SAMN40316184 | E88: SRR28271042
A89: SC1900029_R3 | B89: IPK_CAN_45_R3 | C89: PRJNA1085665 | D89: SAMN40316185 | E89: SRR28271041
A90: SC1900030_R1 | B90: IPK_CAN_46_R1 | C90: PRJNA1085665 | D90: SAMN40316186 | E90: SRR28271040
A91: SC1900030_R2 | B91: IPK_CAN_46_R2 | C91: PRJNA1085665 | D91: SAMN40316187 | E91: SRR28271039
A92: SC1900030_R3 | B92: IPK_CAN_46_R3 | C92: PRJNA1085665 | D92: SAMN40316188 | E92: SRR28271038
A93: SC1900061_R1 | B93: IPK_CAN_47_R1 | C93: PRJNA1085665 | D93: SAMN40316189 | E93: SRR28271036
A94: SC1900061_R2 | B94: IPK_CAN_47_R2 | C94: PRJNA1085665 | D94: SAMN40316190 | E94: SRR28271035
A95: SC1900032_R1 | B95: IPK_CAN_48_R1 | C95: PRJNA1085665 | D95: SAMN40316191 | E95: SRR28271034
A96: SC1900032_R2 | B96: IPK_CAN_48_R2 | C96: PRJNA1085665 | D96: SAMN40316192 | E96: SRR28271033
A97: SC1900032_R3 | B97: IPK_CAN_48_R3 | C97: PRJNA1085665 | D97: SAMN40316193 | E97: SRR28271032
A98: SC1900033_R1 | B98: IPK_CAN_49_R1 | C98: PRJNA1085665 | D98: SAMN40316194 | E98: SRR28271031
A99: SC1900033_R2 | B99: IPK_CAN_49_R2 | C99: PRJNA1085665 | D99: SAMN40316195 | E99: SRR28271030
A100: SC1900033_R3 | B100: IPK_CAN_49_R3 | C100: PRJNA1085665 | D100: SAMN40316196 | E100: SRR28271029
A101: SC1900034_R1 | B101: IPK_CAN_50_R1 | C101: PRJNA1085665 | D101: SAMN40316197 | E101: SRR28271028
A102: SC1900034_R2 | B102: IPK_CAN_50_R2 | C102: PRJNA1085665 | D102: SAMN40316198 | E102: SRR28271026
A103: SC1900034_R3 | B103: IPK_CAN_50_R3 | C103: PRJNA1085665 | D103: SAMN40316199 | E103: SRR28271127
A104: SC1900034_R4 | B104: IPK_CAN_50_R4 | C104: PRJNA1085665 | D104: SAMN40316200 | E104: SRR28271126
A105: SC1900064_R1 | B105: IPK_CAN_51_R1 | C105: PRJNA1085665 | D105: SAMN40316201 | E105: SRR28271125
A106: SC1900064_R2 | B106: IPK_CAN_51_R2 | C106: PRJNA1085665 | D106: SAMN40316202 | E106: SRR28271124
A107: SC1900064_R3 | B107: IPK_CAN_51_R3 | C107: PRJNA1085665 | D107: SAMN40316203 | E107: SRR28271123
A108: SC1900036_R1 | B108: IPK_CAN_52_R1 | C108: PRJNA1085665 | D108: SAMN40316204 | E108: SRR28271122
A109: SC1900036_R2 | B109: IPK_CAN_52_R2 | C109: PRJNA1085665 | D109: SAMN40316205 | E109: SRR28271121
A110: SC1900036_R3 | B110: IPK_CAN_52_R3 | C110: PRJNA1085665 | D110: SAMN40316206 | E110: SRR28271120
A111: SC1900037_R1 | B111: IPK_CAN_53_R1 | C111: PRJNA1085665 | D111: SAMN40316207 | E111: SRR28271119
A112: SC1900037_R2 | B112: IPK_CAN_53_R2 | C112: PRJNA1085665 | D112: SAMN40316208 | E112: SRR28271118
A113: SC1900037_R3 | B113: IPK_CAN_53_R3 | C113: PRJNA1085665 | D113: SAMN40316209 | E113: SRR28271116
A114: SC1900038_R1 | B114: IPK_CAN_54_R1 | C114: PRJNA1085665 | D114: SAMN40316210 | E114: SRR28271115
A115: SC1900038_R2 | B115: IPK_CAN_54_R2 | C115: PRJNA1085665 | D115: SAMN40316211 | E115: SRR28271114
A116: SC1900038_R3 | B116: IPK_CAN_54_R3 | C116: PRJNA1085665 | D116: SAMN40316212 | E116: SRR28271113
A117: SC1900038_R4 | B117: IPK_CAN_54_R4 | C117: PRJNA1085665 | D117: SAMN40316213 | E117: SRR28271112
A118: SC1900039_R1 | B118: IPK_CAN_55_R1 | C118: PRJNA1085665 | D118: SAMN40316214 | E118: SRR28271111
A119: SC1900039_R2 | B119: IPK_CAN_55_R2 | C119: PRJNA1085665 | D119: SAMN40316215 | E119: SRR28271110
A120: SC1900039_R3 | B120: IPK_CAN_55_R3 | C120: PRJNA1085665 | D120: SAMN40316216 | E120: SRR28271109
A121: SC1900040_R1 | B121: IPK_CAN_56_R1 | C121: PRJNA1085665 | D121: SAMN40316217 | E121: SRR28271108
A122: SC1900040_R2 | B122: IPK_CAN_56_R2 | C122: PRJNA1085665 | D122: SAMN40316218 | E122: SRR28271107
A123: SC1900040_R3 | B123: IPK_CAN_56_R3 | C123: PRJNA1085665 | D123: SAMN40316219 | E123: SRR28271105
A124: SC1900040_R4 | B124: IPK_CAN_56_R4 | C124: PRJNA1085665 | D124: SAMN40316220 | E124: SRR28271104
A125: SC1900060_P9_R1 | B125: IPK_CAN_57_P9_R1 | C125: PRJNA1085665 | D125: SAMN40316221 | E125: SRR28271103
A126: SC1900060_R1 | B126: IPK_CAN_57_R1 | C126: PRJNA1085665 | D126: SAMN40316222 | E126: SRR28271102
A127: SC1900060_P9_R2 | B127: IPK_CAN_57_P9_R2 | C127: PRJNA1085665 | D127: SAMN40316223 | E127: SRR28271101
A128: SC1900060_P9_R3 | B128: IPK_CAN_57_P9_R3 | C128: PRJNA1085665 | D128: SAMN40316224 | E128: SRR28271100
A129: SC1900060_R3 | B129: IPK_CAN_57_R3 | C129: PRJNA1085665 | D129: SAMN40316225 | E129: SRR28271183
A130: SC1900060_R4 | B130: IPK_CAN_57_R4 | C130: PRJNA1085665 | D130: SAMN40316226 | E130: SRR28271182
A131: SC1900060_R5 | B131: IPK_CAN_57_R5 | C131: PRJNA1085665 | D131: SAMN40316227 | E131: SRR28271181
A132: SC1900060_R6 | B132: IPK_CAN_57_R6 | C132: PRJNA1085665 | D132: SAMN40316228 | E132: SRR28271180
A133: SC1900042_R1 | B133: IPK_CAN_58_R1 | C133: PRJNA1085665 | D133: SAMN40316229 | E133: SRR28271178
A134: SC1900042_R2 | B134: IPK_CAN_58_R2 | C134: PRJNA1085665 | D134: SAMN40316230 | E134: SRR28271177
A135: SC1900042_R3 | B135: IPK_CAN_58_R3 | C135: PRJNA1085665 | D135: SAMN40316231 | E135: SRR28271176
A136: SC1900042_R4 | B136: IPK_CAN_58_R4 | C136: PRJNA1085665 | D136: SAMN40316232 | E136: SRR28271175
A137: SC1900043_R1 | B137: IPK_CAN_59_R1 | C137: PRJNA1085665 | D137: SAMN40316233 | E137: SRR28271174
A138: SC1900043_R2 | B138: IPK_CAN_59_R2 | C138: PRJNA1085665 | D138: SAMN40316234 | E138: SRR28271173
A139: SC1900043_R3 | B139: IPK_CAN_59_R3 | C139: PRJNA1085665 | D139: SAMN40316235 | E139: SRR28271172
A140: SC1900044_R1 | B140: IPK_CAN_60_R1 | C140: PRJNA1085665 | D140: SAMN40316236 | E140: SRR28271171
A141: SC1900044_R2 | B141: IPK_CAN_60_R2 | C141: PRJNA1085665 | D141: SAMN40316237 | E141: SRR28271170
A142: SC1900044_R3 | B142: IPK_CAN_60_R3 | C142: PRJNA1085665 | D142: SAMN40316238 | E142: SRR28271169
A143: SC1900045_R1 | B143: IPK_CAN_61_R1 | C143: PRJNA1085665 | D143: SAMN40316239 | E143: SRR28271167
A144: SC1900045_R1b | B144: IPK_CAN_61_R1b | C144: PRJNA1085665 | D144: SAMN40316240 | E144: SRR28271166
A145: SC1900045_R2 | B145: IPK_CAN_61_R2 | C145: PRJNA1085665 | D145: SAMN40316241 | E145: SRR28271165
A146: SC1900045_R3 | B146: IPK_CAN_61_R3 | C146: PRJNA1085665 | D146: SAMN40316242 | E146: SRR28271164
A147: SC1900046_R1 | B147: IPK_CAN_62_R1 | C147: PRJNA1085665 | D147: SAMN40316243 | E147: SRR28271163
A148: SC1900046_R2 | B148: IPK_CAN_62_R2 | C148: PRJNA1085665 | D148: SAMN40316244 | E148: SRR28271162
A149: SC1900046_R3 | B149: IPK_CAN_62_R3 | C149: PRJNA1085665 | D149: SAMN40316245 | E149: SRR28271161
A150: SC1900047_R1 | B150: IPK_CAN_63_R1 | C150: PRJNA1085665 | D150: SAMN40316246 | E150: SRR28271160
A151: SC1900047_R2 | B151: IPK_CAN_63_R2 | C151: PRJNA1085665 | D151: SAMN40316247 | E151: SRR28271159
A152: SC1900047_R3 | B152: IPK_CAN_63_R3 | C152: PRJNA1085665 | D152: SAMN40316248 | E152: SRR28271158
A153: SC1900048_R1 | B153: IPK_CAN_64_R1 | C153: PRJNA1085665 | D153: SAMN40316249 | E153: SRR28271156
A154: SC1900048_R2 | B154: IPK_CAN_64_R2 | C154: PRJNA1085665 | D154: SAMN40316250 | E154: SRR28271071
A155: SC1900048_R3 | B155: IPK_CAN_64_R3 | C155: PRJNA1085665 | D155: SAMN40316251 | E155: SRR28271070
A156: SC1900049_R1 | B156: IPK_CAN_65_R1 | C156: PRJNA1085665 | D156: SAMN40316252 | E156: SRR28271069
A157: SC1900049_R2 | B157: IPK_CAN_65_R2 | C157: PRJNA1085665 | D157: SAMN40316253 | E157: SRR28271068
A158: SC1900049_R3 | B158: IPK_CAN_65_R3 | C158: PRJNA1085665 | D158: SAMN40316254 | E158: SRR28271067
A159: SC1900049_R4 | B159: IPK_CAN_65_R4 | C159: PRJNA1085665 | D159: SAMN40316255 | E159: SRR28271066
A160: SC1900050_R1 | B160: IPK_CAN_66_R1 | C160: PRJNA1085665 | D160: SAMN40316256 | E160: SRR28271065
A161: SC1900051_R1 | B161: IPK_CAN_67_R1 | C161: PRJNA1085665 | D161: SAMN40316257 | E161: SRR28271064
A162: SC1900051_R2 | B162: IPK_CAN_67_R2 | C162: PRJNA1085665 | D162: SAMN40316258 | E162: SRR28271063
A163: SC1900051_R3 | B163: IPK_CAN_67_R3 | C163: PRJNA1085665 | D163: SAMN40316259 | E163: SRR28271061
A164: SC1900051_R4 | B164: IPK_CAN_67_R4 | C164: PRJNA1085665 | D164: SAMN40316260 | E164: SRR28271060
A165: SC1900052_R1 | B165: IPK_CAN_68_R1 | C165: PRJNA1085665 | D165: SAMN40316261 | E165: SRR28271059
A166: SC1900052_R2 | B166: IPK_CAN_68_R2 | C166: PRJNA1085665 | D166: SAMN40316262 | E166: SRR28271058
A167: SC1900052_R3 | B167: IPK_CAN_68_R3 | C167: PRJNA1085665 | D167: SAMN40316263 | E167: SRR28271057
A168: SC1900052_R4 | B168: IPK_CAN_68_R4 | C168: PRJNA1085665 | D168: SAMN40316264 | E168: SRR28271056
A169: SC1900053_R1 | B169: IPK_CAN_69_R1 | C169: PRJNA1085665 | D169: SAMN40316265 | E169: SRR28271055
A170: SC1900053_R2 | B170: IPK_CAN_69_R2 | C170: PRJNA1085665 | D170: SAMN40316266 | E170: SRR28271054
A171: SC1900053_R3 | B171: IPK_CAN_69_R3 | C171: PRJNA1085665 | D171: SAMN40316267 | E171: SRR28271053
A172: SC1900054_R1 | B172: IPK_CAN_70_R1 | C172: PRJNA1085665 | D172: SAMN40316268 | E172: SRR28271052
A173: SC1900054_R2 | B173: IPK_CAN_70_R2 | C173: PRJNA1085665 | D173: SAMN40316269 | E173: SRR28271050
A174: SC1900054_R3 | B174: IPK_CAN_70_R3 | C174: PRJNA1085665 | D174: SAMN40316270 | E174: SRR28271049
A175: SC1900055_R1 | B175: IPK_CAN_100_R1 | C175: PRJNA1085665 | D175: SAMN40316271 | E175: SRR28271048
A176: SC1900055_R2 | B176: IPK_CAN_100_R2 | C176: PRJNA1085665 | D176: SAMN40316272 | E176: SRR28271047
A177: SC1900055_R3 | B177: IPK_CAN_100_R3 | C177: PRJNA1085665 | D177: SAMN40316273 | E177: SRR28271046
A178: SC1900055_R4 | B178: IPK_CAN_100_R4 | C178: PRJNA1085665 | D178: SAMN40316274 | E178: SRR28271045
A179: SH1800001_R1 | B179: No.8_R1 | C179: PRJNA1085665 | D179: SAMN40316275 | E179: SRR28271044
A180: SH1800001_R2 | B180: No.8_R2 | C180: PRJNA1085665 | D180: SAMN40316276 | E180: SRR28271027
A181: SH1800001_R3 | B181: No.8_R3 | C181: PRJNA1085665 | D181: SAMN40316277 | E181: SRR28271025
A182: SH1800001_R4 | B182: No.8_R4 | C182: PRJNA1085665 | D182: SAMN40316278 | E182: SRR28271024
A183: SH1800002_R1 | B183: Futura_R1 | C183: PRJNA1085665 | D183: SAMN40316279 | E183: SRR28271022
A184: SH1800002_R2 | B184: Futura_R2 | C184: PRJNA1085665 | D184: SAMN40316280 | E184: SRR28271021
A185: SH1800002_R3 | B185: Futura_R3 | C185: PRJNA1085665 | D185: SAMN40316281 | E185: SRR28271020
A186: SH1800002_R4 | B186: Futura_R4 | C186: PRJNA1085665 | D186: SAMN40316282 | E186: SRR28271019
A187: SH1900036_R1 | B187: Futura_3rd_SSD_R1 | C187: PRJNA1085665 | D187: SAMN40316283 | E187: SRR28271018
A188: SH1900036_R2 | B188: Futura_3rd_SSD_R2 | C188: PRJNA1085665 | D188: SAMN40316284 | E188: SRR28271017
A189: SH1900036_R3 | B189: Futura_3rd_SSD_R3 | C189: PRJNA1085665 | D189: SAMN40316285 | E189: SRR28271016
A190: SH1900036_R4 | B190: Futura_3rd_SSD_R4 | C190: PRJNA1085665 | D190: SAMN40316286 | E190: SRR28271015

Sheet 3 wgs_rnaseq_samples
A1: Supplementary file 3. WGS7DS whole genome sequencing and 21TRICH RNA-Seq samples
F2: * grouping based on McKennan 2020 figure 3
A3: WGS7DS whole genome sequencing | F3: + grouping based on Gloerfelt-Tarp 2023 THC THCA CBD CBDA measurements
A4: sampleid | B4: name | C4: source | D4: grouping assigned by source | E4: grouping | F4: notes *+ | G4: NCBI BioProject | H4: BioSample | I4: SRA/url
A5: AfghanKush_CGATGT | B5: AfghanKush_CGATGT | C5: Kannapedia | E5: unknown | I5: https://medicinalgenomics.com/kannapedia-fastq/
A6: Afgooey_ACTTGA | B6: Afgooey_ACTTGA | C6: Kannapedia | E6: unknown | I6: https://medicinalgenomics.com/kannapedia-fastq/
A7: AK47_TGACCA | B7: AK47_TGACCA | C7: Kannapedia | E7: unknown | I7: https://medicinalgenomics.com/kannapedia-fastq/
A8: AlaskanIce_TTAGGC | B8: AlaskanIce_TTAGGC | C8: Kannapedia | E8: unknown | I8: https://medicinalgenomics.com/kannapedia-fastq/
A9: ArcataTrainWreck_ACAGTG | B9: ArcataTrainWreck_ACAGTG | C9: Kannapedia | E9: unknown | I9: https://medicinalgenomics.com/kannapedia-fastq/
A10: ArjanUltraHaze2_GCCAAT | B10: ArjanUltraHaze2_GCCAAT | C10: Kannapedia | E10: unknown | I10: https://medicinalgenomics.com/kannapedia-fastq/
A11: AustralianBastard_TTAGGC | B11: AustralianBastard_TTAGGC | C11: Kannapedia | E11: unknown | I11: https://medicinalgenomics.com/kannapedia-fastq/
A12: BlueBerryCheeseCakeBC2Fem_TAGCTT | B12: BlueBerryCheeseCakeBC2Fem_TAGCTT | C12: Kannapedia | E12: unknown | I12: https://medicinalgenomics.com/kannapedia-fastq/
A13: BlueBerryEssense_CAGATC | B13: BlueBerryEssense_CAGATC | C13: Kannapedia | E13: unknown | I13: https://medicinalgenomics.com/kannapedia-fastq/
A14: BlueDreamSCC_CAGATC | B14: BlueDreamSCC_CAGATC | C14: Kannapedia | E14: unknown | I14: https://medicinalgenomics.com/kannapedia-fastq/
A15: Breakthrough_CTTGTA | B15: Breakthrough_CTTGTA | C15: Kannapedia | E15: unknown | I15: https://medicinalgenomics.com/kannapedia-fastq/
A16: C4XCanatsuSCC_Pooled | B16: C4XCanatsuSCC_Pooled | C16: Kannapedia | E16: unknown | I16: https://medicinalgenomics.com/kannapedia-fastq/
A17: CanaTsuSCC_GATCAG | B17: CanaTsuSCC_GATCAG | C17: Kannapedia | E17: unknown | I17: https://medicinalgenomics.com/kannapedia-fastq/
A18: CARMAGNOLA | B18: CARMAGNOLA | C18: Woods 2021 | E18: unknown | G18: PRJNA723060 | H18: SAMN18804158,SAMN18804159,SAMN18804160,SAMN18804161,SAMN18804162 | I18: SRR14419917,SRR14419916,SRR14419536,SRR14419806,SRR14419711
A19: CaseyJones_ACAGTG | B19: CaseyJones_ACAGTG | C19: Kannapedia | E19: unknown | I19: https://medicinalgenomics.com/kannapedia-fastq/
A20: CBDMangoHaze_CAGATC | B20: CBDMangoHaze_CAGATC | C20: Kannapedia | E20: unknown | I20: https://medicinalgenomics.com/kannapedia-fastq/
A21: CBDRX-MJ | B21: CBDRX-MJ cs10 | C21: Grassa 2021 | E21: Type II | G21: PRJEB29284 | H21: SAMEA5040675 | I21: ERR3850862,ERR3850903
A22: CheeseGHS_AGTTCC | B22: CheeseGHS_AGTTCC | C22: Kannapedia | E22: unknown | I22: https://medicinalgenomics.com/kannapedia-fastq/
A23: ChemDawg_ATCACG | B23: ChemDawg_ATCACG | C23: Kannapedia | E23: unknown | I23: https://medicinalgenomics.com/kannapedia-fastq/
A24: ChemDawg91_GCCAAT | B24: ChemDawg91_GCCAAT | C24: Kannapedia | E24: unknown | I24: https://medicinalgenomics.com/kannapedia-fastq/
A25: ChemDog_TTAGGC | B25: ChemDog_TTAGGC | C25: Kannapedia | E25: unknown | I25: https://medicinalgenomics.com/kannapedia-fastq/
A26: ChemDog18cycles_ATCACG | B26: ChemDog18cycles_ATCACG | C26: Kannapedia | E26: unknown | I26: https://medicinalgenomics.com/kannapedia-fastq/
A27: ChemdogXCherryPieSCC_TTAGGC | B27: ChemdogXCherryPieSCC_TTAGGC | C27: Kannapedia | E27: unknown | I27: https://medicinalgenomics.com/kannapedia-fastq/
A28: Cinex_CTTGTA | B28: Cinex_CTTGTA | C28: Kannapedia | E28: unknown | I28: https://medicinalgenomics.com/kannapedia-fastq/
A29: DakiniKushMale_TAGCTT | B29: DakiniKushMale_TAGCTT | C29: Kannapedia | E29: unknown | I29: https://medicinalgenomics.com/kannapedia-fastq/
A30: DeepPurpleHaze_GGCTAC | B30: DeepPurpleHaze_GGCTAC | C30: Kannapedia | E30: unknown | I30: https://medicinalgenomics.com/kannapedia-fastq/
A31: DiamondGirl_AGTCAA | B31: DiamondGirl_AGTCAA | C31: Kannapedia | E31: unknown | I31: https://medicinalgenomics.com/kannapedia-fastq/
A32: EastCoastSourDiesel_TTAGGC | B32: EastCoastSourDiesel_TTAGGC | C32: Kannapedia | E32: unknown | I32: https://medicinalgenomics.com/kannapedia-fastq/
A33: G4XSFMSCC_Pooled | B33: G4XSFMSCC_Pooled | C33: Kannapedia | E33: unknown | I33: https://medicinalgenomics.com/kannapedia-fastq/
A34: GirlScoutCookie_CTTGTA | B34: GirlScoutCookie_CTTGTA | C34: Kannapedia | E34: unknown | I34: https://medicinalgenomics.com/kannapedia-fastq/
A35: GrapeStomper_GATCAG | B35: GrapeStomper_GATCAG | C35: Kannapedia | E35: unknown | I35: https://medicinalgenomics.com/kannapedia-fastq/
A36: GreenCrackSCC_TGACCA | B36: GreenCrackSCC_TGACCA | C36: Kannapedia | E36: unknown | I36: https://medicinalgenomics.com/kannapedia-fastq/
A37: Haleys_CGATGT | B37: Haleys_CGATGT | C37: Kannapedia | E37: unknown | I37: https://medicinalgenomics.com/kannapedia-fastq/
A38: JackHerer_CAGATC | B38: JackHerer_CAGATC | C38: Kannapedia | E38: unknown | I38: https://medicinalgenomics.com/kannapedia-fastq/
A39: KushITSCC_TAGCTT | B39: KushITSCC_TAGCTT | C39: Kannapedia | E39: unknown | I39: https://medicinalgenomics.com/kannapedia-fastq/
A40: LuckyCharms_GGCTAC | B40: LuckyCharms_GGCTAC | C40: Kannapedia | E40: unknown | I40: https://medicinalgenomics.com/kannapedia-fastq/
A41: MicheNepalMale_ACTTGA | B41: MicheNepalMale_ACTTGA | C41: Kannapedia | E41: unknown | I41: https://medicinalgenomics.com/kannapedia-fastq/
A42: MoonshineHaze2_ATCACG | B42: MoonshineHaze2_ATCACG | C42: Kannapedia | E42: unknown | I42: https://medicinalgenomics.com/kannapedia-fastq/
A43: OGKushSCC_ACAGTG | B43: OGKushSCC_ACAGTG | C43: Kannapedia | E43: unknown | I43: https://medicinalgenomics.com/kannapedia-fastq/
A44: OGKushTest1_GCCAAT | B44: OGKushTest1_GCCAAT | C44: Kannapedia | E44: unknown | I44: https://medicinalgenomics.com/kannapedia-fastq/
A45: OGXPKSCC_Pooled | B45: OGXPKSCC_Pooled | C45: Kannapedia | E45: unknown | I45: https://medicinalgenomics.com/kannapedia-fastq/
A46: PK_SIL | B46: Purple kush | C46: Van Bakel 2011 | E46: Drug-type | G46: PRJNA73819 | H46: SAMN00738592 | I46: SRR352161.2,SRR352162.2,SRR352163.2,SRR352164.2,SRR352165.2,SRR352166.2,SRR352168.2,SRR352169.2
A47: PKX808OGSCC_Pooled | B47: PKX808OGSCC_Pooled | C47: Kannapedia | E47: unknown | I47: https://medicinalgenomics.com/kannapedia-fastq/
A48: PureKush_GATCAG | B48: PureKush_GATCAG | C48: Kannapedia | E48: unknown | I48: https://medicinalgenomics.com/kannapedia-fastq/
A49: RedDevil_TAGCTT | B49: RedDevil_TAGCTT | C49: Kannapedia | E49: unknown | I49: https://medicinalgenomics.com/kannapedia-fastq/
A50: Ringo_ACAGTG | B50: Ringo_ACAGTG | C50: Kannapedia | E50: unknown | I50: https://medicinalgenomics.com/kannapedia-fastq/
A51: RioNegraMale_GGCTAC | B51: RioNegraMale_GGCTAC | C51: Kannapedia | E51: unknown | I51: https://medicinalgenomics.com/kannapedia-fastq/
A52: RollexKush_ATCACG | B52: RollexKush_ATCACG | C52: Kannapedia | E52: unknown | I52: https://medicinalgenomics.com/kannapedia-fastq/
A53: RSP10082_TGCAT | B53: RSP10082_TGCAT | C53: Kannapedia | E53: unknown | I53: https://medicinalgenomics.com/kannapedia-fastq/
A54: RSP11074 | B54: Jamaican Lion^3 DASH | C54: Kannapedia | E54: unknown | I54: https://medicinalgenomics.com/crypto-funded-public-genomics/
A55: RSP11349 | B55: Cannatonic | C55: Kannapedia | E55: unknown | I55: https://www.kannapedia.net/strains/RSP11349
A56: SecretOG_CAGATC | B56: SecretOG_CAGATC | C56: Kannapedia | E56: unknown | I56: https://medicinalgenomics.com/kannapedia-fastq/
A57: SensiStarXSFMSCC_Pooled | B57: SensiStarXSFMSCC_Pooled | C57: Kannapedia | E57: unknown | I57: https://medicinalgenomics.com/kannapedia-fastq/
A58: SnoopDream_GATCAG | B58: SnoopDream_GATCAG | C58: Kannapedia | E58: unknown | I58: https://medicinalgenomics.com/kannapedia-fastq/
A59: SourTsunami_TAGCTT | B59: SourTsunami_TAGCTT | C59: Kannapedia | E59: unknown | I59: https://medicinalgenomics.com/kannapedia-fastq/
A60: SRR10019825 | B60: JL | C60: Gao 2020 | E60: unknown | G60: PRJNA562042 | H60: SAMN12606152 | I60: SRR10019825
A61: SRR10578250 | B61: Jamaican Lion Mother | C61: McKernan 2020 | E61: unknown | G61: PRJNA575581 | H61: SAMN12904853 | I61: SRR10578250
A62: SRR10578251.1 | B62: Sour Tsunami x Cataract Kush SRR10578251 | C62: McKernan 2020 | E62: Type I | F62: * | G62: PRJNA575581 | H62: SAMN12904853 | I62: SRR10578251
A63: SRR10578252 | B63: Master Kush SRR10578252 | C63: McKernan 2020 | E63: Type I | F63: * | G63: PRJNA575581 | H63: SAMN12904853 | I63: SRR10578252
A64: SRR10578253 | B64: Herijuana SRR10578253 | C64: McKernan 2020 | E64: Type I | F64: * | G64: PRJNA575581 | H64: SAMN12904853 | I64: SRR10578253
A65: SRR10578254 | B65: Grape Stomper SRR10578254 | C65: McKernan 2020 | E65: Type I | F65: * | G65: PRJNA575581 | H65: SAMN12904853 | I65: SRR10578254
A66: SRR10578255 | B66: Saint Jack SRR10578255 | C66: McKernan 2020 | E66: Type I | F66: * | G66: PRJNA575581 | H66: SAMN12904853 | I66: SRR10578255
A67: SRR10578256 | B67: Jamaican Lion^3 Mother PCR SRR10578256 | C67: McKernan 2020 | E67: Type II | F67: * | G67: PRJNA575581 | H67: SAMN12904853 | I67: SRR10578256
A68: SRR10578257 | B68: 80 E-3 SRR10578257 | C68: McKernan 2020 | E68: Type I | F68: * | G68: PRJNA575581 | H68: SAMN12904853 | I68: SRR10578257
A69: SRR10578258.1 | B69: 80 E-2 SRR10578258 | C69: McKernan 2020 | E69: Type I | F69: * | G69: PRJNA575581 | H69: SAMN12904853 | I69: SRR10578258
A70: SRR10578259 | B70: 80 E-1 SRR10578259 | C70: McKernan 2020 | E70: Type I | F70: * | G70: PRJNA575581 | H70: SAMN12904853 | I70: SRR10578259
A71: SRR10578260 | B71: Tiborszallasi SRR10578260 | C71: McKernan 2020 | E71: Type II | F71: * | G71: PRJNA575581 | H71: SAMN12904853 | I71: SRR10578260
A72: SRR10578261 | B72: Eletta Campana SRR10578261 | C72: McKernan 2020 | E72: Type III | F72: * | G72: PRJNA575581 | H72: SAMN12904853 | I72: SRR10578261
A73: SRR10578262 | B73: CS_1_2016_CSU SRR10578262 | C73: McKernan 2020 | E73: Type III | F73: * | G73: PRJNA575581 | H73: SAMN12904853 | I73: SRR10578262
A74: SRR10578263 | B74: Carmaleonte SRR10578263 | C74: McKernan 2020 | E74: Type III | F74: * | G74: PRJNA575581 | H74: SAMN12904853 | I74: SRR10578263
A75: SRR10578264 | B75: IdaliaFT_1_CSU SRR10578264 | C75: McKernan 2020 | E75: Type III | F75: * | G75: PRJNA575581 | H75: SAMN12904853 | I75: SRR10578264
A76: SRR10578265 | B76: Merino_S_1_CSU SRR10578265 | C76: McKernan 2020 | E76: Type III | F76: * | G76: PRJNA575581 | H76: SAMN12904853 | I76: SRR10578265
A77: SRR10578266 | B77: Harlox SRR10578266 | C77: McKernan 2020 | E77: Type I | F77: * | G77: PRJNA575581 | H77: SAMN12904853 | I77: SRR10578266
A78: SRR10578267 | B78: C3/USO-1_F1_15_CSU SRR10578267 | C78: McKernan 2020 | E78: Type III | F78: * | G78: PRJNA575581 | H78: SAMN12904853 | I78: SRR10578267
A79: SRR10578268 | B79: Fedora17_6_1_CSU SRR10578268 | C79: McKernan 2020 | E79: Type III | F79: * | G79: PRJNA575581 | H79: SAMN12904853 | I79: SRR10578268
A80: SRR10578269 | B80: Carmagnola_3 SRR10578269 | C80: McKernan 2020 | E80: Type III | F80: * | G80: PRJNA575581 | H80: SAMN12904853 | I80: SRR10578269
A81: SRR10578270 | B81: BlueBerry Cheesecake X JL Male SRR10578270 | C81: McKernan 2020 | E81: Type III | F81: * | G81: PRJNA575581 | H81: SAMN12904853 | I81: SRR10578270
A82: SRR10578271 | B82: Jamaican Lion ^4 #6 SRR10578271 | C82: McKernan 2020 | E82: Type II | F82: * | G82: PRJNA575581 | H82: SAMN12904853 | I82: SRR10578271
A83: SRR10578272 | B83: Jamaican Lion ^4 #5 SRR10578272 | C83: McKernan 2020 | E83: Type II | F83: * | G83: PRJNA575581 | H83: SAMN12904853 | I83: SRR10578272
A84: SRR10578273.1 | B84: Jamaican Lion ^4 #4 SRR10578273 | C84: McKernan 2020 | E84: Type II | F84: * | G84: PRJNA575581 | H84: SAMN12904853 | I84: SRR10578273
A85: SRR10578274 | B85: Jamaican Lion^3 Mother SRR10578274 | C85: McKernan 2020 | E85: Type II | F85: * | G85: PRJNA575581 | H85: SAMN12904853 | I85: SRR10578274
A86: SRR10578275 | B86: Jamaican Lion^3 Father SRR10578275 | C86: McKernan 2020 | E86: Type II | F86: * | G86: PRJNA575581 | H86: SAMN12904853 | I86: SRR10578275
A87: SRR10578276 | B87: Jamaican Lion ^4 #3 SRR10578276 | C87: McKernan 2020 | E87: Type II | F87: * | G87: PRJNA575581 | H87: SAMN12904853 | I87: SRR10578276
A88: SRR10578277 | B88: Citrix SRR10578277 | C88: McKernan 2020 | E88: Type I | F88: * | G88: PRJNA575581 | H88: SAMN12904853 | I88: SRR10578277
A89: SRR10578278 | B89: Jamaican Lion ^4 #2 SRR10578278 | C89: McKernan 2020 | E89: Type II | F89: * | G89: PRJNA575581 | H89: SAMN12904853 | I89: SRR10578278
A90: SRR10578279 | B90: Jamaican Lion ^4 #1 SRR10578279 | C90: McKernan 2020 | E90: Type II | F90: * | G90: PRJNA575581 | H90: SAMN12904853 | I90: SRR10578279
A91: SRR10578280 | B91: Headcheese SRR10578280 | C91: McKernan 2020 | E91: Type I | F91: * | G91: PRJNA575581 | H91: SAMN12904853 | I91: SRR10578280
A92: SRR10578281 | B92: Sour Diesel SRR10578281 | C92: McKernan 2020 | E92: Type I | F92: * | G92: PRJNA575581 | H92: SAMN12904853 | I92: SRR10578281
A93: SRR10578282 | B93: Red Eye OG SRR10578282 | C93: McKernan 2020 | E93: Type I | F93: * | G93: PRJNA575581 | H93: SAMN12904853 | I93: SRR10578282
A94: SRR10578283 | B94: Tahoe OG SRR10578283 | C94: McKernan 2020 | E94: Type I | F94: * | G94: PRJNA575581 | H94: SAMN12904853 | I94: SRR10578283
A95: SRR10578284 | B95: Black 84 SRR10578284 | C95: McKernan 2020 | E95: Type I | F95: * | G95: PRJNA575581 | H95: SAMN12904853 | I95: SRR10578284
A96: SRR10578285 | B96: Sour Tsunami SRR10578285 | C96: McKernan 2020 | E96: Type I | F96: * | G96: PRJNA575581 | H96: SAMN12904853 | I96: SRR10578285
A97: SRR10578286 | B97: Mothers Milk #5 SRR10578286 | C97: McKernan 2020 | E97: Type I | F97: * | G97: PRJNA575581 | H97: SAMN12904853 | I97: SRR10578286
A98: SRR10578287 | B98: Chem 91 SRR10578287 | C98: McKernan 2020 | E98: Type I | F98: * | G98: PRJNA575581 | H98: SAMN12904853 | I98: SRR10578287
A99: SRR10578288 | B99: Arcata Trainwreck SRR10578288 | C99: McKernan 2020 | E99: Type I | F99: * | G99: PRJNA575581 | H99: SAMN12904853 | I99: SRR10578288
A100: SRR10578289 | B100: Black Beauty SRR10578289 | C100: McKernan 2020 | E100: Type I | F100: * | G100: PRJNA575581 | H100: SAMN12904853 | I100: SRR10578289
A101: SRR12845227 | B101: CCB91ANXX_THCVXB02 | C101: Welling 2020 | E101: unknown | G101: PRJNA669610 | H101: SAMN16480524 | I101: SRR12845227
A102: SRR12845228 | B102: CCADVANXX_CBDAXB01 | C102: Welling 2020 | E102: unknown | G102: PRJNA669610 | H102: SAMN16480525 | I102: SRR12845228
A103: SRR14708197 | B103: Chamaeleon NCN SRR14708197 | C103: Ren 2021 | D103: Hemp-type | E103: Hemp-type | G103: PRJNA734114 | H103: SAMN19471741 | I103: SRR14708197
A104: SRR14708198 | B104: GXI SRR14708198 | C104: Ren 2021 | D104: Drug_type feral | E104: Drug type feral | G104: PRJNA734114 | H104: SAMN19471813 | I104: SRR14708198
A105: SRR14708199 | B105: YNN SRR14708199 | C105: Ren 2021 | D105: Drug_type feral | E105: Drug type feral | G105: PRJNA734114 | H105: SAMN19471812 | I105: SRR14708199
A106: SRR14708200 | B106: Carmagnola 1 ICA1 SRR14708200 | C106: Ren 2021 | D106: Hemp-type | E106: Hemp-type | G106: PRJNA734114 | H106: SAMN19471740 | I106: SRR14708200
A107: SRR14708201 | B107: SCN SRR14708201 | C107: Ren 2021 | D107: Drug_type feral | E107: Drug type feral | G107: PRJNA734114 | H107: SAMN19471811 | I107: SRR14708201
A108: SRR14708202 | B108: QHI SRR14708202 | C108: Ren 2021 | D108: Basal cannabis | E108: Basal cannabis | G108: PRJNA734114 | H108: SAMN19471810 | I108: SRR14708202
A109: SRR14708203 | B109: IMA SRR14708203 | C109: Ren 2021 | D109: Basal cannabis | E109: Basal cannabis | G109: PRJNA734114 | H109: SAMN19471809 | I109: SRR14708203
A110: SRR14708204 | B110: XUM2 SRR14708204 | C110: Ren 2021 | D110: Basal cannabis | E110: Basal cannabis | G110: PRJNA734114 | H110: SAMN19471808 | I110: SRR14708204
A111: SRR14708205 | B111: XUM1 SRR14708205 | C111: Ren 2021 | D111: Basal cannabis | E111: Basal cannabis | G111: PRJNA734114 | H111: SAMN19471807 | I111: SRR14708205
A112: SRR14708206 | B112: XBL2 SRR14708206 | C112: Ren 2021 | D112: Basal cannabis | E112: Basal cannabis | G112: PRJNA734114 | H112: SAMN19471806 | I112: SRR14708206
A113: SRR14708207 | B113: XBL1 SRR14708207 | C113: Ren 2021 | D113: Basal cannabis | E113: Basal cannabis | G113: PRJNA734114 | H113: SAMN19471805 | I113: SRR14708207
A114: SRR14708208 | B114: XGL2 SRR14708208 | C114: Ren 2021 | D114: Basal cannabis | E114: Basal cannabis | G114: PRJNA734114 | H114: SAMN19471804 | I114: SRR14708208
A115: SRR14708209 | B115: XGL1 SRR14708209 | C115: Ren 2021 | D115: Basal cannabis | E115: Basal cannabis | G115: PRJNA734114 | H115: SAMN19471803 | I115: SRR14708209
A116: SRR14708210 | B116: XHC2 SRR14708210 | C116: Ren 2021 | D116: Basal cannabis | E116: Basal cannabis | G116: PRJNA734114 | H116: SAMN19471802 | I116: SRR14708210
A117: SRR14708211 | B117: Santhica 27 FSA SRR14708211 | C117: Ren 2021 | D117: Hemp-type | E117: Hemp-type | G117: PRJNA734114 | H117: SAMN19471739 | I117: SRR14708211
A118: SRR14708212 | B118: XHC1 SRR14708212 | C118: Ren 2021 | D118: Basal cannabis | E118: Basal cannabis | G118: PRJNA734114 | H118: SAMN19471801 | I118: SRR14708212
A119: SRR14708213 | B119: VIR 449, Szegedi 9 HIS SRR14708213 | C119: Ren 2021 | D119: Hemp-type | E119: Hemp-type | G119: PRJNA734114 | H119: SAMN19471800 | I119: SRR14708213
A120: SRR14708214 | B120: Colombian 8 COA SRR14708214 | C120: Ren 2021 | D120: Drug-type | E120: Drug-type | G120: PRJNA734114 | H120: SAMN19471799 | I120: SRR14708214
A121: SRR14708215 | B121: missing PEU SRR14708215 | C121: Ren 2021 | D121: Drug-type | E121: Drug-type | G121: PRJNA734114 | H121: SAMN19471798 | I121: SRR14708215
A122: SRR14708216 | B122: Wild Thailand THD SRR14708216 | C122: Ren 2021 | D122: Drug-type | E122: Drug-type | G122: PRJNA734114 | H122: SAMN19471797 | I122: SRR14708216
A123: SRR14708217 | B123: VIR 223, Bernburgskaya Odnodomnaya, bm GBA SRR14708217 | C123: Ren 2021 | D123: Hemp-type | E123: Hemp-type | G123: PRJNA734114 | H123: SAMN19471796 | I123: SRR14708217
A124: SRR14708218 | B124: R3in134-4 NEB4 SRR14708218 | C124: Ren 2021 | D124: Basal cannabis | E124: Basal cannabis | G124: PRJNA734114 | H124: SAMN19471795 | I124: SRR14708218
A125: SRR14708219 | B125: R3in134-3 NEB3 SRR14708219 | C125: Ren 2021 | D125: Basal cannabis | E125: Basal cannabis | G125: PRJNA734114 | H125: SAMN19471794 | I125: SRR14708219
A126: SRR14708220 | B126: R3in134-2 NEB2 SRR14708220 | C126: Ren 2021 | D126: Basal cannabis | E126: Basal cannabis | G126: PRJNA734114 | H126: SAMN19471793 | I126: SRR14708220
A127: SRR14708221 | B127: R2in135-4 NER4 SRR14708221 | C127: Ren 2021 | D127: Hemp-type | E127: Hemp-type | G127: PRJNA734114 | H127: SAMN19471792 | I127: SRR14708221
A128: SRR14708222 | B128: Fedora 17 FFA SRR14708222 | C128: Ren 2021 | D128: Hemp-type | E128: Hemp-type | G128: PRJNA734114 | H128: SAMN19471738 | I128: SRR14708222
A129: SRR14708223 | B129: R2in135-3 NER3 SRR14708223 | C129: Ren 2021 | D129: Hemp-type | E129: Hemp-type | G129: PRJNA734114 | H129: SAMN19471791 | I129: SRR14708223
A130: SRR14708224 | B130: R2in135-2 NER2 SRR14708224 | C130: Ren 2021 | D130: Hemp-type | E130: Hemp-type | G130: PRJNA734114 | H130: SAMN19471790 | I130: SRR14708224
A131: SRR14708225 | B131: R1in136-4 ERM4 SRR14708225 | C131: Ren 2021 | D131: Hemp-type | E131: Hemp-type | G131: PRJNA734114 | H131: SAMN19471789 | I131: SRR14708225
A132: SRR14708226 | B132: R1in136-3 ERM3 SRR14708226 | C132: Ren 2021 | D132: Hemp-type | E132: Hemp-type | G132: PRJNA734114 | H132: SAMN19471788 | I132: SRR14708226
A133: SRR14708227 | B133: R1in136-2 ERM2 SRR14708227 | C133: Ren 2021 | D133: Hemp-type | E133: Hemp-type | G133: PRJNA734114 | H133: SAMN19471787 | I133: SRR14708227
A134: SRR14708228 | B134: IBE SRR14708228 | C134: Ren 2021 | D134: Drug type feral | E134: Drug type feral | G134: PRJNA734114 | H134: SAMN19471786 | I134: SRR14708228
A135: SRR14708229 | B135: VIR 507, Krasnodarsky 10 FB RKY SRR14708229 | C135: Ren 2021 | D135: Hemp-type | E135: Hemp-type | G135: PRJNA734114 | H135: SAMN19471785 | I135: SRR14708229
A136: SRR14708230 | B136: VIR 493, Glukhovskaja 10 Zheltostebel'naja UGA SRR14708230 | C136: Ren 2021 | D136: Hemp-type | E136: Hemp-type | G136: PRJNA734114 | H136: SAMN19471784 | I136: SRR14708230
A137: SRR14708231 | B137: VIR 369 BUA SRR14708231 | C137: Ren 2021 | D137: Hemp-type | E137: Hemp-type | G137: PRJNA734114 | H137: SAMN19471783 | I137: SRR14708231
A138: SRR14708232 | B138: VIR 201 UKE SRR14708232 | C138: Ren 2021 | D138: Hemp-type | E138: Hemp-type | G138: PRJNA734114 | H138: SAMN19471782 | I138: SRR14708232
A139: SRR14708233 | B139: Ferimon 12 FFN SRR14708233 | C139: Ren 2021 | D139: Hemp-type | E139: Hemp-type | G139: PRJNA734114 | H139: SAMN19471737 | I139: SRR14708233
A140: SRR14708234 | B140: VIR 37, Novgorod-Seversky, cv UNS SRR14708234 | C140: Ren 2021 | D140: Hemp-type | E140: Hemp-type | G140: PRJNA734114 | H140: SAMN19471781 | I140: SRR14708234
A141: SRR14708235 | B141: R3in134-1 NEB1 SRR14708235 | C141: Ren 2021 | D141: Basal cannabis | E141: Basal cannabis | G141: PRJNA734114 | H141: SAMN19471780 | I141: SRR14708235
A142: SRR14708236 | B142: R2in135-1 NER1 SRR14708236 | C142: Ren 2021 | D142: Hemp-type | E142: Hemp-type | G142: PRJNA734114 | H142: SAMN19471779 | I142: SRR14708236
A143: SRR14708237 | B143: R1in136-1 ERM1 SRR14708237 | C143: Ren 2021 | D143: Hemp-type | E143: Hemp-type | G143: PRJNA734114 | H143: SAMN19471778 | I143: SRR14708237
A144: SRR14708238 | B144: VIR 483-3 UTT3 SRR14708238 | C144: Ren 2021 | D144: Hemp-type | E144: Hemp-type | G144: PRJNA734114 | H144: SAMN19471777 | I144: SRR14708238
A145: SRR14708239 | B145: VIR 483-2 UTT2 SRR14708239 | C145: Ren 2021 | D145: Hemp-type | E145: Hemp-type | G145: PRJNA734114 | H145: SAMN19471776 | I145: SRR14708239
A146: SRR14708240 | B146: VIR 483-1 UTT1 SRR14708240 | C146: Ren 2021 | D146: Hemp-type | E146: Hemp-type | G146: PRJNA734114 | H146: SAMN19471775 | I146: SRR14708240
A147: SRR14708241 | B147: VIR 469-3 KAK3 SRR14708241 | C147: Ren 2021 | D147: Hemp-type | E147: Hemp-type | G147: PRJNA734114 | H147: SAMN19471774 | I147: SRR14708241
A148: SRR14708242 | B148: VIR 469-2 KAK2 SRR14708242 | C148: Ren 2021 | D148: Hemp-type | E148: Hemp-type | G148: PRJNA734114 | H148: SAMN19471773 | I148: SRR14708242
A149: SRR14708243 | B149: VIR 469-1 KAK1 SRR14708243 | C149: Ren 2021 | D149: Hemp-type | E149: Hemp-type | G149: PRJNA734114 | H149: SAMN19471772 | I149: SRR14708243
A150: SRR14708244 | B150: Bialobrzeskie PBE SRR14708244 | C150: Ren 2021 | D150: Hemp-type | E150: Hemp-type | G150: PRJNA734114 | H150: SAMN19471736 | I150: SRR14708244
A151: SRR14708245 | B151: PCL2 SRR14708245 | C151: Ren 2021 | D151: Drug_type feral | E151: Drug type feral | G151: PRJNA734114 | H151: SAMN19471771 | I151: SRR14708245
A152: SRR14708246 | B152: PCL1 SRR14708246 | C152: Ren 2021 | D152: Drug_type feral | E152: Drug type feral | G152: PRJNA734114 | H152: SAMN19471770 | I152: SRR14708246
A153: SRR14708247 | B153: PID2 SRR14708247 | C153: Ren 2021 | D153: Drug_type feral | E153: Drug type feral | G153: PRJNA734114 | H153: SAMN19471769 | I153: SRR14708247
A154: SRR14708248 | B154: PID1 SRR14708248 | C154: Ren 2021 | D154: Drug_type feral | E154: Drug type feral | G154: PRJNA734114 | H154: SAMN19471768 | I154: SRR14708248
A155: SRR14708249 | B155: IBR3 SRR14708249 | C155: Ren 2021 | D155: Drug_type feral | E155: Drug type feral | G155: PRJNA734114 | H155: SAMN19471767 | I155: SRR14708249
A156: SRR14708250 | B156: IBR2 SRR14708250 | C156: Ren 2021 | D156: Drug_type feral | E156: Drug type feral | G156: PRJNA734114 | H156: SAMN19471766 | I156: SRR14708250
A157: SRR14708251 | B157: IBR1 SRR14708251 | C157: Ren 2021 | D157: Drug_type feral | E157: Drug type feral | G157: PRJNA734114 | H157: SAMN19471765 | I157: SRR14708251
A158: SRR14708252 | B158: IUL3 SRR14708252 | C158: Ren 2021 | D158: Drug_type feral | E158: Drug type feral | G158: PRJNA734114 | H158: SAMN19471764 | I158: SRR14708252
A159: SRR14708253 | B159: IUL2 SRR14708253 | C159: Ren 2021 | D159: Drug_type feral | E159: Drug type feral | G159: PRJNA734114 | H159: SAMN19471763 | I159: SRR14708253
A160: SRR14708254 | B160: IUL1 SRR14708254 | C160: Ren 2021 | D160: Drug_type feral | E160: Drug type feral | G160: PRJNA734114 | H160: SAMN19471762 | I160: SRR14708254
A161: SRR14708255 | B161: B52 SRR14708255 | C161: Ren 2021 | D161: Drug-type | E161: Drug-type | G161: PRJNA734114 | H161: SAMN19471735 | I161: SRR14708255
A162: SRR14708256 | B162: IUP3 SRR14708256 | C162: Ren 2021 | D162: Drug_type feral | E162: Drug type feral | G162: PRJNA734114 | H162: SAMN19471761 | I162: SRR14708256
A163: SRR14708257 | B163: IUP2 SRR14708257 | C163: Ren 2021 | D163: Drug_type feral | E163: Drug type feral | G163: PRJNA734114 | H163: SAMN19471760 | I163: SRR14708257
A164: SRR14708258 | B164: IUP1 SRR14708258 | C164: Ren 2021 | D164: Drug_type feral | E164: Drug type feral | G164: PRJNA734114 | H164: SAMN19471759 | I164: SRR14708258
A165: SRR14708259 | B165: Juso14 UJO SRR14708259 | C165: Ren 2021 | D165: Hemp-type | E165: Hemp-type | G165: PRJNA734114 | H165: SAMN19471758 | I165: SRR14708259
A166: SRR14708260 | B166: PP9 SRR14708260 | C166: Ren 2021 | D166: Drug-type | E166: Drug-type | G166: PRJNA734114 | H166: SAMN19471757 | I166: SRR14708260
A167: SRR14708261 | B167: Hindu Kush HKH SRR14708261 | C167: Ren 2021 | D167: Drug-type | E167: Drug-type | G167: PRJNA734114 | H167: SAMN19471756 | I167: SRR14708261
A168: SRR14708262 | B168: Hawaii Maui Waui HMW SRR14708262 | C168: Ren 2021 | D168: Drug-type | E168: Drug-type | G168: PRJNA734114 | H168: SAMN19471755 | I168: SRR14708262
A169: SRR14708263 | B169: Mexican Sativa MSA SRR14708263 | C169: Ren 2021 | D169: Drug-type | E169: Drug-type | G169: PRJNA734114 | H169: SAMN19471754 | I169: SRR14708263
A170: SRR14708264 | B170: Haze HAE SRR14708264 | C170: Ren 2021 | D170: Drug-type | E170: Drug-type | G170: PRJNA734114 | H170: SAMN19471753 | I170: SRR14708264
A171: SRR14708265 | B171: Northern Light NLT SRR14708265 | C171: Ren 2021 | D171: Drug-type | E171: Drug-type | G171: PRJNA734114 | H171: SAMN19471752 | I171: SRR14708265
A172: SRR14708266 | B172: Alpine Rocket ART SRR14708266 | C172: Ren 2021 | D172: Drug-type | E172: Drug-type | G172: PRJNA734114 | H172: SAMN19471734 | I172: SRR14708266
A173: SRR14708267 | B173: Ruderalis Indica RIA SRR14708267 | C173: Ren 2021 | D173: Drug-type | E173: Drug-type | G173: PRJNA734114 | H173: SAMN19471751 | I173: SRR14708267
A174: SRR14708268 | B174: Top 44 TOP SRR14708268 | C174: Ren 2021 | D174: Drug-type | E174: Drug-type | G174: PRJNA734114 | H174: SAMN19471750 | I174: SRR14708268
A175: SRR14708269 | B175: Big Skunk BSK SRR14708269 | C175: Ren 2021 | D175: Drug-type | E175: Drug-type | G175: PRJNA734114 | H175: SAMN19471749 | I175: SRR14708269
A176: SRR14708270 | B176: Big Bud BBD SRR14708270 | C176: Ren 2021 | D176: Drug-type | E176: Drug-type | G176: PRJNA734114 | H176: SAMN19471748 | I176: SRR14708270
A177: SRR14708271 | B177: Swaziland SWD SRR14708271 | C177: Ren 2021 | D177: Drug-type | E177: Drug-type | G177: PRJNA734114 | H177: SAMN19471747 | I177: SRR14708271
A178: SRR14708272 | B178: Delta-llosa SDA SRR14708272 | C178: Ren 2021 | D178: Hemp-type | E178: Hemp-type | G178: PRJNA734114 | H178: SAMN19471746 | I178: SRR14708272
A179: SRR14708273 | B179: Tiborszallasi HTI SRR14708273 | C179: Ren 2021 | D179: Hemp-type | E179: Hemp-type | G179: PRJNA734114 | H179: SAMN19471745 | I179: SRR14708273
A180: SRR14708274 | B180: Carmagnola 2 ICA2 SRR14708274 | C180: Ren 2021 | D180: Hemp-type | E180: Hemp-type | G180: PRJNA734114 | H180: SAMN19471744 | I180: SRR14708274
A181: SRR14708275 | B181: Beniko PBO SRR14708275 | C181: Ren 2021 | D181: Hemp-type | E181: Hemp-type | G181: PRJNA734114 | H181: SAMN19471743 | I181: SRR14708275
A182: SRR14708276 | B182: Fibranova IFA SRR14708276 | C182: Ren 2021 | D182: Hemp-type | E182: Hemp-type | G182: PRJNA734114 | H182: SAMN19471742 | I182: SRR14708276
A183: SRR14708277 | B183: Kompolti HKI SRR14708277 | C183: Ren 2021 | D183: Hemp-type | E183: Hemp-type | G183: PRJNA734114 | H183: SAMN19471733 | I183: SRR14708277
A184: SRR14708278 | B184: Uniko B HUO SRR14708278 | C184: Ren 2021 | D184: Hemp-type | E184: Hemp-type | G184: PRJNA734114 | H184: SAMN19471732 | I184: SRR14708278
A185: SRR20856258 | B185: IPK_38_1 | C185: Woods 2022 | D185: European | E185: Hemp | F185: + | G185: PRJNA866500 | H185: SAMN30166901 | I185: SRR20856258
A186: SRR20856259 | B186: IPK_18_2 | C186: Woods 2022 | D186: European | E186: Hemp | F186: + | G186: PRJNA866500 | H186: SAMN30166829 | I186: SRR20856259
A187: SRR20856260 | B187: IPK_36_2 | C187: Woods 2022 | D187: NA | E187: Type I | F187: + | G187: PRJNA866500 | H187: SAMN30166900 | I187: SRR20856260
A188: SRR20856261 | B188: IPK_36_1 | C188: Woods 2022 | D188: NA | E188: Type I | F188: + | G188: PRJNA866500 | H188: SAMN30166899 | I188: SRR20856261
A189: SRR20856262 | B189: IPK_45_2 | C189: Woods 2022 | D189: NA | E189: Hemp | F189: + | G189: PRJNA866500 | H189: SAMN30166898 | I189: SRR20856262
A190: SRR20856263 | B190: IPK_45_1 | C190: Woods 2022 | D190: NA | E190: Hemp | F190: + | G190: PRJNA866500 | H190: SAMN30166897 | I190: SRR20856263
A191: SRR20856264 | B191: IPK_42_2 | C191: Woods 2022 | D191: European | E191: Hemp | F191: + | G191: PRJNA866500 | H191: SAMN30166896 | I191: SRR20856264
A192: SRR20856265 | B192: IPK_34_1 | C192: Woods 2022 | D192: European | E192: Hemp | F192: + | G192: PRJNA866500 | H192: SAMN30166895 | I192: SRR20856265
A193: SRR20856266 | B193: IPK_33_2 | C193: Woods 2022 | D193: European | E193: Hemp | F193: + | G193: PRJNA866500 | H193: SAMN30166894 | I193: SRR20856266
A194: SRR20856267 | B194: IPK_33_1 | C194: Woods 2022 | D194: European | E194: Hemp | F194: + | G194: PRJNA866500 | H194: SAMN30166893 | I194: SRR20856267
A195: SRR20856268 | B195: IPK_32_2 | C195: Woods 2022 | D195: European | E195: Hemp | F195: + | G195: PRJNA866500 | H195: SAMN30166892 | I195: SRR20856268
A196: SRR20856269 | B196: IPK_32_1 | C196: Woods 2022 | D196: European | E196: Hemp | F196: + | G196: PRJNA866500 | H196: SAMN30166891 | I196: SRR20856269
A197: SRR20856270 | B197: IPK_18_1 | C197: Woods 2022 | D197: European | E197: Hemp | F197: + | G197: PRJNA866500 | H197: SAMN30166828 | I197: SRR20856270
A198: SRR20856271 | B198: IPK_31_2 | C198: Woods 2022 | D198: European | E198: Hemp | F198: + | G198: PRJNA866500 | H198: SAMN30166890 | I198: SRR20856271
A199: SRR20856272 | B199: IPK_31_1 | C199: Woods 2022 | D199: European | E199: Hemp | F199: + | G199: PRJNA866500 | H199: SAMN30166889 | I199: SRR20856272
A200: SRR20856273 | B200: IPK_29_2 | C200: Woods 2022 | D200: European | E200: Hemp | F200: + | G200: PRJNA866500 | H200: SAMN30166888 | I200: SRR20856273
... 209 more rows

Sheet 4 gbs_hasch_concordance_samples
A1: Supplementary file 4. GBS and HASCH samples used for concordance analyses
A2: sampleid | B2: name | C2: SRA
A3: SC2000013_R2 | B3: IPK_CAN_100 | C3: SRR28270999
A4: SC2000013_R1 | B4: IPK_CAN_100 | C4: SRR28271000
A5: SC2000001_R3 | B5: IPK_CAN_100 | C5: SRR28271001
A6: SC1900002_R1 | B6: IPK_CAN_17 | C6: SRR28271002
A7: SC2000001_R2 | B7: IPK_CAN_100 | C7: SRR28271003
A8: SC2000001_R1 | B8: IPK_CAN_100 | C8: SRR28271004
A9: SC1900062_R3 | B9: IPK_CAN_100 | C9: SRR28271005
A10: SC1900062_R2 | B10: IPK_CAN_100 | C10: SRR28271006
A11: SC1900062_R1 | B11: IPK_CAN_100 | C11: SRR28271007
A12: SC1900013_R1* | B12: IPK_CAN_29 | C12: SRR28271008
A13: SC1900009_R3 | B13: IPK_CAN_24 | C13: SRR28271008
A14: SC1900009_R2 | B14: IPK_CAN_24 | C14: SRR28271009
A15: SC1900009_R1 | B15: IPK_CAN_24 | C15: SRR28271010
A16: SC1900059_R4 | B16: IPK_CAN_100 | C16: SRR28271011
A17: SC1900059_R3 | B17: IPK_CAN_100 | C17: SRR28271012
A18: SC2000002_R3 | B18: IPK_CAN_100 | C18: SRR28271013
A19: SH1800002_R4 | B19: Futura | C19: SRR28271019
A20: SH1800002_R3 | B20: Futura | C20: SRR28271020
A21: SH1800002_R2 | B21: Futura | C21: SRR28271021
A22: SH1800002_R1 | B22: Futura | C22: SRR28271022
A23: SC1900059_R1 | B23: IPK_CAN_100 | C23: SRR28271023
A24: SH1800001_R4 | B24: No.8 | C24: SRR28271024
A25: SH1800001_R3 | B25: No.8 | C25: SRR28271025
A26: SC1900034_R2 | B26: IPK_CAN_50 | C26: SRR28271026
A27: SH1800001_R2 | B27: No.8 | C27: SRR28271027
A28: SC1900034_R1 | B28: IPK_CAN_50 | C28: SRR28271028
A29: SC1900033_R3 | B29: IPK_CAN_49 | C29: SRR28271029
A30: SC1900033_R2 | B30: IPK_CAN_49 | C30: SRR28271030
A31: SC1900033_R1 | B31: IPK_CAN_49 | C31: SRR28271031
A32: SC1900032_R3 | B32: IPK_CAN_48 | C32: SRR28271032
A33: SC1900032_R2 | B33: IPK_CAN_48 | C33: SRR28271033
A34: SC1900032_R1 | B34: IPK_CAN_46 | C34: SRR28271034
A35: SC1900061_R2 | B35: IPK_CAN_100 | C35: SRR28271035
A36: SC1900061_R1 | B36: IPK_CAN_100 | C36: SRR28271036
A37: SC1900004_R2 | B37: IPK_CAN_17 | C37: SRR28271037
A38: SC1900030_R3 | B38: IPK_CAN_46 | C38: SRR28271038
A39: SC1900030_R2 | B39: IPK_CAN_46 | C39: SRR28271039
A40: SC1900030_R1 | B40: IPK_CAN_46 | C40: SRR28271040
A41: SC1900029_R3 | B41: IPK_CAN_45 | C41: SRR28271041
A42: SC1900029_R2 | B42: IPK_CAN_45 | C42: SRR28271042
A43: SC1900029_R1 | B43: IPK_CAN_45 | C43: SRR28271043
A44: SH1800001_R1 | B44: No.8 | C44: SRR28271044
A45: SC1900055_R4 | B45: IPK_CAN_100 | C45: SRR28271045
A46: SC1900055_R2 | B46: IPK_CAN_100 | C46: SRR28271047
A47: SC1900055_R1 | B47: IPK_CAN_100 | C47: SRR28271048
A48: SC1900054_R3 | B48: IPK_CAN_70 | C48: SRR28271049
A49: SC1900054_R2 | B49: IPK_CAN_70 | C49: SRR28271050
A50: SC1900054_R1 | B50: IPK_CAN_70 | C50: SRR28271052
A51: SC1900053_R3 | B51: IPK_CAN_69 | C51: SRR28271053
A52: SC1900053_R2 | B52: IPK_CAN_69 | C52: SRR28271054
A53: SC1900053_R1 | B53: IPK_CAN_69 | C53: SRR28271055
A54: SC1900052_R3 | B54: IPK_CAN_68 | C54: SRR28271057
A55: SC1900052_R2 | B55: IPK_CAN_68 | C55: SRR28271058
A56: SC1900051_R3 | B56: IPK_CAN_67 | C56: SRR28271061
A57: SC1900051_R2 | B57: IPK_CAN_67 | C57: SRR28271063
A58: SC1900051_R1 | B58: IPK_CAN_67 | C58: SRR28271064
A59: SC1900050_R1 | B59: IPK_CAN_66 | C59: SRR28271065
A60: SC1900049_R4 | B60: IPK_CAN_65 | C60: SRR28271066
A61: SC1900049_R3 | B61: IPK_CAN_65 | C61: SRR28271067
A62: SC1900049_R2 | B62: IPK_CAN_65 | C62: SRR28271068
A63: SC1900049_R1 | B63: IPK_CAN_65 | C63: SRR28271069
A64: SC1900048_R3 | B64: IPK_CAN_64 | C64: SRR28271070
A65: SC1900048_R2 | B65: IPK_CAN_64 | C65: SRR28271071
A66: SC2000018_R1 | B66: IPK_CAN_100 | C66: SRR28271072
A67: SC1900066_R2 | B67: IPK_CAN_100 | C67: SRR28271075
A68: SC1900066_R1 | B68: IPK_CAN_100 | C68: SRR28271076
A69: SC2000016_R3 | B69: IPK_CAN_100 | C69: SRR28271077
A70: SC2000016_R2 | B70: IPK_CAN_100 | C70: SRR28271078
A71: SC2000016_R1 | B71: IPK_CAN_100 | C71: SRR28271079
A72: SC1900019_R1 | B72: IPK_CAN_35 | C72: SRR28271080
A73: SC1900018_R3 | B73: IPK_CAN_34 | C73: SRR28271082
A74: SC1900018_R2 | B74: IPK_CAN_34 | C74: SRR28271083
A75: SC1900017_R2 | B75: IPK_CAN_33 | C75: SRR28271085
A76: SC1900016_R3 | B76: IPK_CAN_32 | C76: SRR28271087
A77: SC1900016_R2 | B77: IPK_CAN_32 | C77: SRR28271088
A78: SC1900016_R1 | B78: IPK_CAN_32 | C78: SRR28271089
A79: SC1900015_R2 | B79: IPK_CAN_31 | C79: SRR28271090
A80: SC1900015_R1 | B80: IPK_CAN_31 | C80: SRR28271091
A81: SC1900002_R2 | B81: IPK_CAN_17 | C81: SRR28271092
A82: SC2000014_R3 | B82: IPK_CAN_100 | C82: SRR28271093
A83: SC2000014_R2 | B83: IPK_CAN_100 | C83: SRR28271094
A84: SC2000014_R1 | B84: IPK_CAN_100 | C84: SRR28271095
A85: SC1900013_R3 | B85: IPK_CAN_29 | C85: SRR28271096
A86: SC1900013_R2 | B86: IPK_CAN_29 | C86: SRR28271097
A87: SC2000013_R3 | B87: IPK_CAN_100 | C87: SRR28271099
A88: SC1900060_P9_R3 | B88: IPK_CAN_100 | C88: SRR28271100
A89: SC1900060_P9_R2 | B89: IPK_CAN_100 | C89: SRR28271101
A90: SC1900060_R1 | B90: IPK_CAN_100 | C90: SRR28271102
A91: SC1900060_P9_R1 | B91: IPK_CAN_100 | C91: SRR28271103
A92: SC1900040_R4 | B92: IPK_CAN_56 | C92: SRR28271104
A93: SC1900040_R3 | B93: IPK_CAN_56 | C93: SRR28271105
A94: SC1900063_R2 | B94: IPK_CAN_100 | C94: SRR28271106
A95: SC1900040_R2 | B95: IPK_CAN_56 | C95: SRR28271107
A96: SC1900040_R1 | B96: IPK_CAN_56 | C96: SRR28271108
A97: SC1900039_R3 | B97: IPK_CAN_55 | C97: SRR28271109
A98: SC1900039_R2 | B98: IPK_CAN_55 | C98: SRR28271110
A99: SC1900038_R3 | B99: IPK_CAN_50 | C99: SRR28271113
A100: SC1900038_R2 | B100: IPK_CAN_50 | C100: SRR28271114
A101: SC1900038_R1 | B101: IPK_CAN_50 | C101: SRR28271115
A102: SC1900037_R3 | B102: IPK_CAN_50 | C102: SRR28271116
A103: SC1900063_R1 | B103: IPK_CAN_100 | C103: SRR28271117
A104: SC1900037_R2 | B104: IPK_CAN_50 | C104: SRR28271118
A105: SC1900037_R1 | B105: IPK_CAN_50 | C105: SRR28271119
A106: SC1900036_R3 | B106: IPK_CAN_50 | C106: SRR28271120
A107: SC1900036_R2 | B107: IPK_CAN_50 | C107: SRR28271121
A108: SC1900036_R1 | B108: IPK_CAN_50 | C108: SRR28271122
A109: SC1900064_R3 | B109: IPK_CAN_100 | C109: SRR28271123
A110: SC1900064_R2 | B110: IPK_CAN_100 | C110: SRR28271124
A111: SC1900064_R1 | B111: IPK_CAN_100 | C111: SRR28271125
A112: SC1900034_R4 | B112: IPK_CAN_50 | C112: SRR28271126
A113: SC1900034_R3 | B113: IPK_CAN_50 | C113: SRR28271127
A114: SC1900028_R3 | B114: IPK_CAN_44 | C114: SRR28271128
A115: SC1900028_R2 | B115: IPK_CAN_44 | C115: SRR28271129
A116: SC1900028_R1 | B116: IPK_CAN_44 | C116: SRR28271130
A117: SC1900027_R4 | B117: IPK_CAN_43 | C117: SRR28271131
A118: SC1900004_R1 | B118: IPK_CAN_17 | C118: SRR28271132
A119: SC1900027_R3 | B119: IPK_CAN_43 | C119: SRR28271133
A120: SC1900027_R2 | B120: IPK_CAN_43 | C120: SRR28271134
A121: SC1900027_R1 | B121: IPK_CAN_43 | C121: SRR28271135
A122: SC1900026_R4 | B122: IPK_CAN_42 | C122: SRR28271136
A123: SC1900026_R3 | B123: IPK_CAN_42 | C123: SRR28271137
A124: SC1900026_R2 | B124: IPK_CAN_40 | C124: SRR28271138
A125: SC1900026_R1 | B125: IPK_CAN_40 | C125: SRR28271139
A126: SC2000003_R3 | B126: IPK_CAN_100 | C126: SRR28271140
A127: SC2000003_R2 | B127: IPK_CAN_100 | C127: SRR28271141
A128: SC2000003_R1 | B128: IPK_CAN_100 | C128: SRR28271142
A129: SC1900065_R2 | B129: IPK_CAN_100 | C129: SRR28271143
A130: SC1900024_R2 | B130: IPK_CAN_35 | C130: SRR28271145
A131: SC1900023_R2 | B131: IPK_CAN_35 | C131: SRR28271148
A132: SC1900023_R1 | B132: IPK_CAN_35 | C132: SRR28271149
A133: SC2000018_R4 | B133: IPK_CAN_100 | C133: SRR28271150
A134: SC2000018_R3 | B134: IPK_CAN_100 | C134: SRR28271151
A135: SC2000017_R3 | B135: IPK_CAN_100 | C135: SRR28271153
A136: SC1900065_R1 | B136: IPK_CAN_100 | C136: SRR28271154
A137: SC2000017_R2 | B137: IPK_CAN_100 | C137: SRR28271155
A138: SC1900048_R1 | B138: IPK_CAN_64 | C138: SRR28271156
A139: SC1900006_R2 | B139: IPK_CAN_19 | C139: SRR28271157
A140: SC1900047_R3 | B140: IPK_CAN_63 | C140: SRR28271158
A141: SC1900047_R2 | B141: IPK_CAN_63 | C141: SRR28271159
A142: SC1900047_R1 | B142: IPK_CAN_63 | C142: SRR28271160
A143: SC1900046_R3 | B143: IPK_CAN_62 | C143: SRR28271161
A144: SC1900046_R2 | B144: IPK_CAN_62 | C144: SRR28271162
A145: SC1900046_R1 | B145: IPK_CAN_62 | C145: SRR28271163
A146: SC1900045_R2 | B146: IPK_CAN_61 | C146: SRR28271165
A147: SC1900045_R1 | B147: IPK_CAN_61 | C147: SRR28271167
A148: SC1900045_R1* | B148: IPK_CAN_61 | C148: SRR28271167
A149: SC1900006_R1 | B149: IPK_CAN_19 | C149: SRR28271168
A150: SC1900044_R3 | B150: IPK_CAN_56 | C150: SRR28271169
A151: SC1900044_R2 | B151: IPK_CAN_56 | C151: SRR28271170
A152: SC1900044_R1 | B152: IPK_CAN_56 | C152: SRR28271171
A153: SC1900043_R3 | B153: IPK_CAN_56 | C153: SRR28271172
A154: SC1900043_R2 | B154: IPK_CAN_56 | C154: SRR28271173
A155: SC1900042_R4 | B155: IPK_CAN_56 | C155: SRR28271175
A156: SC1900042_R3 | B156: IPK_CAN_56 | C156: SRR28271176
A157: SC1900042_R2 | B157: IPK_CAN_56 | C157: SRR28271177
A158: SC1900042_R1 | B158: IPK_CAN_56 | C158: SRR28271178
A159: SC1900063_R3 | B159: IPK_CAN_100 | C159: SRR28271179
A160: SC1900060_R5 | B160: IPK_CAN_100 | C160: SRR28271181
A161: SC1900060_R4 | B161: IPK_CAN_100 | C161: SRR28271182
A162: SC1900060_R3 | B162: IPK_CAN_100 | C162: SRR28271183
A163: SC1900004_R3 | B163: IPK_CAN_19 | C163: SRR28271184
A164: SC2000002_R2 | B164: IPK_CAN_100 | C164: SRR28271185
A165: SC2000002_R1 | B165: IPK_CAN_100 | C165: SRR28271186

Sheet 5 gbs_hasch_1rep_samples
A1: Supplementary file 5. GBS and HASCH samples (one replicate per accession) used for phylogeny comparison
A2: sampleid | B2: name | C2: SRA
A3: SC2000002_R1 | B3: IPK_CAN_16 | C3: SRR28271186
A4: SC1900002_R1 | B4: IPK_CAN_17 | C4: SRR28271002
A5: SC1900065_R1 | B5: IPK_CAN_18 | C5: SRR28271154
A6: SC1900004_R1 | B6: IPK_CAN_19 | C6: SRR28271132
A7: SC1900063_R1 | B7: IPK_CAN_20 | C7: SRR28271117
A8: SC1900006_R1 | B8: IPK_CAN_21 | C8: SRR28271168
A9: SC1900059_R1 | B9: IPK_CAN_23 | C9: SRR28271023
A10: SC1900009_R1 | B10: IPK_CAN_24 | C10: SRR28271010
A11: SC1900062_R1 | B11: IPK_CAN_26 | C11: SRR28271007
A12: SC2000001_R1 | B12: IPK_CAN_27 | C12: SRR28271004
A13: SC2000013_R1 | B13: IPK_CAN_28 | C13: SRR28271000
A14: SC1900013_R1b | B14: IPK_CAN_29 | C14: SRR28271098
A15: SC2000014_R1 | B15: IPK_CAN_30 | C15: SRR28271095
A16: SC1900015_R1 | B16: IPK_CAN_31 | C16: SRR28271091
A17: SC1900016_R1 | B17: IPK_CAN_32 | C17: SRR28271089
A18: SC1900017_R1 | B18: IPK_CAN_33 | C18: SRR28271086
A19: SC1900018_R2 | B19: IPK_CAN_34 | C19: SRR28271083
A20: SC1900019_R1 | B20: IPK_CAN_35 | C20: SRR28271080
A21: SC2000016_R1 | B21: IPK_CAN_35 | C21: SRR28271079
A22: SC1900066_R1 | B22: IPK_CAN_36 | C22: SRR28271076
A23: SC2000017_R2 | B23: IPK_CAN_37 | C23: SRR28271155
A24: SC2000018_R1 | B24: IPK_CAN_38 | C24: SRR28271072
A25: SC1900023_R1 | B25: IPK_CAN_39 | C25: SRR28271149
A26: SC1900024_R2 | B26: IPK_CAN_40 | C26: SRR28271145
A27: SC2000003_R1 | B27: IPK_CAN_41 | C27: SRR28271142
A28: SC1900026_R1 | B28: IPK_CAN_42 | C28: SRR28271139
A29: SC1900027_R1 | B29: IPK_CAN_43 | C29: SRR28271135
A30: SC1900028_R1 | B30: IPK_CAN_44 | C30: SRR28271130
A31: SC1900029_R1 | B31: IPK_CAN_45 | C31: SRR28271043
A32: SC1900030_R1 | B32: IPK_CAN_46 | C32: SRR28271040
A33: SC1900061_R1 | B33: IPK_CAN_47 | C33: SRR28271036
A34: SC1900032_R1 | B34: IPK_CAN_48 | C34: SRR28271034
A35: SC1900033_R1 | B35: IPK_CAN_49 | C35: SRR28271031
A36: SC1900034_R1 | B36: IPK_CAN_50 | C36: SRR28271028
A37: SC1900064_R1 | B37: IPK_CAN_51 | C37: SRR28271125
A38: SC1900036_R1 | B38: IPK_CAN_52 | C38: SRR28271122
A39: SC1900037_R1 | B39: IPK_CAN_53 | C39: SRR28271119
A40: SC1900038_R1 | B40: IPK_CAN_54 | C40: SRR28271115
A41: SC1900039_R2 | B41: IPK_CAN_55 | C41: SRR28271110
A42: SC1900040_R1 | B42: IPK_CAN_56 | C42: SRR28271108
A43: SC1900060_P9_R1 | B43: IPK_CAN_57 | C43: SRR28271103
A44: SC1900042_R1 | B44: IPK_CAN_58 | C44: SRR28271178
A45: SC1900043_R2 | B45: IPK_CAN_59 | C45: SRR28271173
A46: SC1900044_R1 | B46: IPK_CAN_60 | C46: SRR28271171
A47: SC1900045_R1 | B47: IPK_CAN_61 | C47: SRR28271167
A48: SC1900046_R1 | B48: IPK_CAN_62 | C48: SRR28271163
A49: SC1900047_R1 | B49: IPK_CAN_63 | C49: SRR28271160
A50: SC1900048_R1 | B50: IPK_CAN_64 | C50: SRR28271156
A51: SC1900049_R1 | B51: IPK_CAN_65 | C51: SRR28271069
A52: SC1900050_R1 | B52: IPK_CAN_66 | C52: SRR28271065
A53: SC1900051_R1 | B53: IPK_CAN_67 | C53: SRR28271064
A54: SC1900052_R2 | B54: IPK_CAN_68 | C54: SRR28271058
A55: SC1900053_R1 | B55: IPK_CAN_69 | C55: SRR28271055
A56: SC1900054_R1 | B56: IPK_CAN_70 | C56: SRR28271052
A57: SC1900055_R1 | B57: IPK_CAN_100 | C57: SRR28271048

Sheet 6 hasch_hemp_mismatch_samples
A1: Supplementary file 6. Subset of industrial hemp HASCH validation samples used for homozygous mismatch count
A2: sampleid | B2: name | C2: SRA
A3: SC2000002_R1 | B3: IPK_CAN_16 IPK16 | C3: SRR28271186
A4: SC2000001_R1 | B4: IPK_CAN_27 IPK27 | C4: SRR28271004
A5: SC1900066_R1 | B5: IPK_CAN_36 IPK36 | C5: SRR28271076
A6: SC1900023_R1 | B6: IPK_CAN_39 | C6: SRR28271149
A7: SC1900029_R1 | B7: IPK_CAN_45 KRASNODARSKAYA | C7: SRR28271043
A8: SC1900032_R1 | B8: IPK_CAN_48 ELETTA CAMPANA | C8: SRR28271034
A9: SC2000014_R1 | B9: IPK_CAN_30 Bernburger | C9: SRR28271095
A10: SC1900017_R2 | B10: IPK_CAN_33 | C10: SRR28271085
A11: SC1900063_R1 | B11: IPK_CAN_20 IPK20 | C11: SRR28271117
A12: SC1900009_R1 | B12: IPK_CAN_24 | C12: SRR28271010
A13: SC1900018_R2 | B13: IPK_CAN_34 | C13: SRR28271083
A14: SC2000018_R1 | B14: IPK_CAN_38 IPK38 | C14: SRR28271072
A15: SC1900024_R2 | B15: IPK_CAN_40 | C15: SRR28271145
A16: SC1900027_R1 | B16: IPK_CAN_43 Hohenthürmer Gleichzeitig Reifender | C16: SRR28271135
A17: SC1900002_R1 | B17: IPK_CAN_17 | C17: SRR28271002
A18: SC1900064_R1 | B18: IPK_CAN_51 IPK51 | C18: SRR28271125
A19: SC2000013_R1 | B19: IPK_CAN_28 Forose | C19: SRR28271000
A20: SC2000017_R2 | B20: IPK_CAN_37 IPK37 | C20: SRR28271155
A21: SC2000003_R1 | B21: IPK_CAN_41 IPK41 | C21: SRR28271142
A22: SC1900030_R1 | B22: IPK_CAN_46 FIBRIMON 56 | C22: SRR28271040
A23: SC1900033_R1 | B23: IPK_CAN_49 SUPERFIBRA | C23: SRR28271031
A24: SC1900015_R1 | B24: IPK_CAN_31 | C24: SRR28271091
A25: SC1900019_R1 | B25: IPK_CAN_35 | C25: SRR28271080
A26: SC1900065_R1 | B26: IPK_CAN_18 IPK18 | C26: SRR28271154
A27: SC1900006_R1 | B27: IPK_CAN_21 | C27: SRR28271168
A28: SC1900062_R1 | B28: IPK_CAN_26 IPK26 | C28: SRR28271007
A29: SC2000016_R1 | B29: IPK_CAN_35 IPK35 | C29: SRR28271079
A30: SC1900013_R1* | B30: IPK_CAN_29 | C30: SRR28271008
A31: SC1900016_R1 | B31: IPK_CAN_32 | C31: SRR28271089
A32: SC1900026_R1 | B32: IPK_CAN_42 | C32: SRR28271139
A33: SC1900028_R1 | B33: IPK_CAN_44 Fibrimon | C33: SRR28271130
A34: SC1900004_R1 | B34: IPK_CAN_19 | C34: SRR28271132
A35: SC1900061_R1 | B35: IPK_CAN_47 IPK47 | C35: SRR28271036
A36: SC1900034_R1 | B36: IPK_CAN_50 FIBRIMON | C36: SRR28271028
A37: SC1900059_R1 | B37: IPK_CAN_23 IPK23 | C37: SRR28271023
A38: SC1900036_R1 | B38: IPK_CAN_52 Fibridia | C38: SRR28271122
A39: AK2000012_R1 | B39: Eltham Dio Australis
A40: AK2000048_R2 | B40: Fedora
A41: SC1900060_R1 | B41: IPK_CAN_57 IPK57 | C41: SRR28271102
A42: SC1900045_R1* | B42: IPK_CAN_61 Carmagnola in Selelione | C42: SRR28271167
A43: SC1900048_R1 | B43: IPK_CAN_64 IPK64 | C43: SRR28271156
A44: SC1900054_R1 | B44: IPK_CAN_70 Kompolti | C44: SRR28271052
A45: AK2000033_R2 | B45: MEL 13
A46: AK2000051_R2 | B46: Sly
A47: SC1900039_R2 | B47: IPK_CAN_55 Havelländer | C47: SRR28271110
A48: Positive_Control_1 | B48: SH2000016 Syrian
A49: AK2000058_R2 | B49: Northern Rivers
A50: AK2000052_R1 | B50: Han NE - rockwool 1 seed
A51: SC1900043_R2 | B51: IPK_CAN_59 Türken P 494 | C51: SRR28271173
A52: SC1900046_R1 | B52: IPK_CAN_62 Bredemann P | C52: SRR28271163
A53: SH1800002_R1 | B53: Futura | C53: SRR28271022
A54: SC1900037_R1 | B54: IPK_CAN_53 Fibrimon | C54: SRR28271119
A55: AK2000021_R2 | B55: Morpeth late
A56: AK2000053_R1 | B56: Yuma-2
A57: SC1900040_R1 | B57: IPK_CAN_56 Kompolti | C57: SRR28271108
A58: SC1900049_R1 | B58: IPK_CAN_65 Juso 14 | C58: SRR28271069
A59: SC1900052_R2 | B59: IPK_CAN_68 Kompolti | C59: SRR28271058
A60: SC1900055_R1 | B60: IPK_CAN_100 Gelb | C60: SRR28271048
A61: AK2000001_R2 | B61: Yellow River AQIS N030025385
A62: AK2000029_R2 | B62: E11
A63: AK2000002_R1 | B63: Kompolti
A64: SC1900044_R1 | B64: IPK_CAN_60 Schurig | C64: SRR28271171
A65: AK2000003_R1 | B65: Yellow River
A66: AK2000032_R1 | B66: MEL2
A67: AK2000018_R2 | B67: Yellow river x NR1 chinese
A68: SC1900047_R1 | B68: IPK_CAN_63 RAMO | C68: SRR28271160
A69: SC1900053_R1 | B69: IPK_CAN_69 Futura | C69: SRR28271055
A70: SC1900038_R1 | B70: IPK_CAN_54 Fibrimon 21 | C70: SRR28271115
A71: AK2000004_R2 | B71: Lu-Lu Shed
A72: AK2000035_R2 | B72: USO 31
A73: SC1900042_R1 | B73: IPK_CAN_58 Kongo Hanf | C73: SRR28271178
A74: SH1800001_R1 | B74: No.8 | C74: SRR28271044
A75: SH1800036_R1 | B75: Futura | C75: SRR28271018
A76: AK2000007_R1 | B76: Shanxi
A77: AK2000037_R2 | B77: T11
A78: SC1900060_P9_R1 | B78: IPK_CAN_57 IPK57 | C78: SRR28271103
A79: SC1900050_R1 | B79: IPK_CAN_66 Lovrin 110 | C79: SRR28271065
A80: AK2000059_R1 | B80: Alice
A81: AK2000019_R1 | B81: Kompolti x chinese yellow river 2
A82: AK2000030_R1 | B82: YR-NR1-B Big pick
A83: AK2000020_R1 | B83: Lu-Lu x YR2 B
A84: SH1900005_R1 | B84: HAN COLD | C84: SRR28271015
A85: AK2000056_R1 | B85: Han NE
A86: SH1900010_R1 | B86: PUMA-3 | C86: SRR28271015
A87: AK2000022_R1 | B87: Morpeth early
A88: SH1900014_R1 | B88: SI-1 | C88: SRR28271015
A89: SH1900015_R1 | B89: YUMA | C89: SRR28271015

Sheet 7 wgs7ds_drug_mismatch_samples
A1: Supplementary file 7. Subset of WGS7DS samples with Drug annotation used for homozygous mismatch count
A2: sampleid | B2: name | C2: source | D2: grouping (from suppl data 3)
A3: SRR10578251 | B3: Sour Tsunami x Cataract Kush SRR10578251 | C3: McKernan 2020 | D3: Type I
A4: SRR10578252 | B4: Master Kush SRR10578252 | C4: McKernan 2020 | D4: Type I
A5: SRR10578253 | B5: Herijuana SRR10578253 | C5: McKernan 2020 | D5: Type I
A6: SRR10578254 | B6: Grape Stomper SRR10578254 | C6: McKernan 2020 | D6: Type I
A7: SRR10578255 | B7: Saint Jack SRR10578255 | C7: McKernan 2020 | D7: Type I
A8: SRR10578256 | B8: Jamaican Lion^3 Mother PCR SRR10578256 | C8: McKernan 2020 | D8: Type II
A9: SRR10578257 | B9: 80 E-3 SRR10578257 | C9: McKernan 2020 | D9: Type I
A10: SRR10578258.1 | B10: 80 E-2 SRR10578258 | C10: McKernan 2020 | D10: Type I
A11: SRR10578259 | B11: 80 E-1 SRR10578259 | C11: McKernan 2020 | D11: Type I
A12: SRR10578260 | B12: Tiborszallasi SRR10578260 | C12: McKernan 2020 | D12: Type II
A13: SRR10578266 | B13: Harlox SRR10578266 | C13: McKernan 2020 | D13: Type I
A14: SRR10578271 | B14: Jamaican Lion ^4 #6 SRR10578271 | C14: McKernan 2020 | D14: Type III
A15: SRR10578272 | B15: Jamaican Lion ^4 #5 SRR10578272 | C15: McKernan 2020 | D15: Type III
A16: SRR10578273.1 | B16: Jamaican Lion ^4 #4 SRR10578273 | C16: McKernan 2020 | D16: Type II
A17: SRR10578274 | B17: Jamaican Lion^3 Mother SRR10578274 | C17: McKernan 2020 | D17: Type II
A18: SRR10578275 | B18: Jamaican Lion^3 Father SRR10578275 | C18: McKernan 2020 | D18: Type II
A19: SRR10578276 | B19: Jamaican Lion ^4 #3 SRR10578276 | C19: McKernan 2020 | D19: Type II
A20: SRR10578277 | B20: Citrix SRR10578277 | C20: McKernan 2020 | D20: Type I
A21: SRR10578278 | B21: Jamaican Lion ^4 #2 SRR10578278 | C21: McKernan 2020 | D21: Type II
A22: SRR10578279 | B22: Jamaican Lion ^4 #1 SRR10578279 | C22: McKernan 2020 | D22: Type II
A23: SRR10578280 | B23: Headcheese SRR10578280 | C23: McKernan 2020 | D23: Type I
A24: SRR10578281 | B24: Sour Diesel SRR10578281 | C24: McKernan 2020 | D24: Type I
A25: SRR10578282 | B25: Red Eye OG SRR10578282 | C25: McKernan 2020 | D25: Type I
A26: SRR10578283 | B26: Tahoe OG SRR10578283 | C26: McKernan 2020 | D26: Type I
A27: SRR10578284 | B27: Black 84 SRR10578284 | C27: McKernan 2020 | D27: Type I
A28: SRR10578285 | B28: Sour Tsunami SRR10578285 | C28: McKernan 2020 | D28: Type I
A29: SRR10578286 | B29: Mothers Milk #5 SRR10578286 | C29: McKernan 2020 | D29: Type I
A30: SRR10578287 | B30: Chem 91 SRR10578287 | C30: McKernan 2020 | D30: Type I
A31: SRR10578288 | B31: Arcata Trainwreck SRR10578288 | C31: McKernan 2020 | D31: Type I
A32: SRR10578289 | B32: Black Beauty SRR10578289 | C32: McKernan 2020 | D32: Type I
A33: SRR14708198 | B33: GXI SRR14708198 | C33: Ren 2021 | D33: Drug_type feral
A34: SRR14708199 | B34: YNN SRR14708199 | C34: Ren 2021 | D34: Drug_type feral
A35: SRR14708201 | B35: SCN SRR14708201 | C35: Ren 2021 | D35: Drug_type feral
A36: SRR14708214 | B36: Colombian 8 COA SRR14708214 | C36: Ren 2021 | D36: Drug-type
A37: SRR14708215 | B37: missing PEU SRR14708215 | C37: Ren 2021 | D37: Drug-type
A38: SRR14708216 | B38: Wild Thailand THD SRR14708216 | C38: Ren 2021 | D38: Drug-type
A39: SRR14708228 | B39: IBE SRR14708228 | C39: Ren 2021 | D39: Drug type feral
A40: SRR14708245 | B40: PCL2 SRR14708245 | C40: Ren 2021 | D40: Drug_type feral
A41: SRR14708246 | B41: PCL1 SRR14708246 | C41: Ren 2021 | D41: Drug_type feral
A42: SRR14708247 | B42: PID2 SRR14708247 | C42: Ren 2021 | D42: Drug_type feral
A43: SRR14708248 | B43: PID1 SRR14708248 | C43: Ren 2021 | D43: Drug_type feral
A44: SRR14708249 | B44: IBR3 SRR14708249 | C44: Ren 2021 | D44: Drug_type feral
A45: SRR14708250 | B45: IBR2 SRR14708250 | C45: Ren 2021 | D45: Drug_type feral
A46: SRR14708251 | B46: IBR1 SRR14708251 | C46: Ren 2021 | D46: Drug_type feral
A47: SRR14708252 | B47: IUL3 SRR14708252 | C47: Ren 2021 | D47: Drug_type feral
A48: SRR14708253 | B48: IUL2 SRR14708253 | C48: Ren 2021 | D48: Drug_type feral
A49: SRR14708254 | B49: IUL1 SRR14708254 | C49: Ren 2021 | D49: Drug_type feral
A50: SRR14708255 | B50: B52 SRR14708255 | C50: Ren 2021 | D50: Drug-type
A51: SRR14708256 | B51: IUP3 SRR14708256 | C51: Ren 2021 | D51: Drug_type feral
A52: SRR14708257 | B52: IUP2 SRR14708257 | C52: Ren 2021 | D52: Drug_type feral
A53: SRR14708258 | B53: IUP1 SRR14708258 | C53: Ren 2021 | D53: Drug_type feral
A54: SRR14708260 | B54: PP9 SRR14708260 | C54: Ren 2021 | D54: Drug-type
A55: SRR14708261 | B55: Hindu Kush HKH SRR14708261 | C55: Ren 2021 | D55: Drug-type
A56: SRR14708262 | B56: Hawaii Maui Waui HMW SRR14708262 | C56: Ren 2021 | D56: Drug-type
A57: SRR14708263 | B57: Mexican Sativa MSA SRR14708263 | C57: Ren 2021 | D57: Drug-type
A58: SRR14708264 | B58: Haze HAE SRR14708264 | C58: Ren 2021 | D58: Drug-type
A59: SRR14708265 | B59: Northern Light NLT SRR14708265 | C59: Ren 2021 | D59: Drug-type
A60: SRR14708266 | B60: Alpine Rocket ART SRR14708266 | C60: Ren 2021 | D60: Drug-type
A61: SRR14708267 | B61: Ruderalis Indica RIA SRR14708267 | C61: Ren 2021 | D61: Drug-type
A62: SRR14708268 | B62: Top 44 TOP SRR14708268 | C62: Ren 2021 | D62: Drug-type
A63: SRR14708269 | B63: Big Skunk BSK SRR14708269 | C63: Ren 2021 | D63: Drug-type
A64: SRR14708270 | B64: Big Bud BBD SRR14708270 | C64: Ren 2021 | D64: Drug-type
A65: SRR14708271 | B65: Swaziland SWD SRR14708271 | C65: Ren 2021 | D65: Drug-type
A66: SRR20856260 | B66: IPK_36_2 | C66: Woods 2022 | D66: Type I
A67: SRR20856261 | B67: IPK_36_1 | C67: Woods 2022 | D67: Type I
A68: SRR20856284 | B68: IPK_23_2 | C68: Woods 2022 | D68: Type I
A69: SRR20856285 | B69: IPK_23_1 | C69: Woods 2022 | D69: Type I
A70: SRR20856333 | B70: IPK_37_1 | C70: Woods 2022 | D70: Type I
A71: SRR20856338 | B71: IPK_70_2 | C71: Woods 2022 | D71: Type II
A72: SRR20856339 | B72: IPK_70_1 | C72: Woods 2022 | D72: Type II
A73: SRR20856343 | B73: IPK_51_1 | C73: Woods 2022 | D73: Type II
A74: SRR20856348 | B74: IPK_48_2 | C74: Woods 2022 | D74: Type II
A75: SRR20856349 | B75: IPK_48_1 | C75: Woods 2022 | D75: Type II
A76: SRR20856355 | B76: IPK_51_2 | C76: Woods 2022 | D76: Type II
A77: SRR20856357 | B77: IPK_41_2 | C77: Woods 2022 | D77: Type I
A78: SRR20856358 | B78: IPK_41_1 | C78: Woods 2022 | D78: Type I
A79: SRR20856388 | B79: IPK_58_2 | C79: Woods 2022 | D79: Type I
A80: SRR20856389 | B80: IPK_58_1 | C80: Woods 2022 | D80: Type I
A81: SRR3294429.1 | B81: White_Widow_1: A2 SRR3294429.1 | C81: Lynch 2016 | D81: NLDT
A82: SRR3294430.1 | B82: Afghan_Kush_1: C1 SRR3294430.1 | C82: Lynch 2016 | D82: BLDT
A83: SRR3294435.1 | B83: Chem91: C14 SRR3294435.1 | C83: Lynch 2016 | D83: BLDT
A84: SRR3294436.1 | B84: Original_Sour_Diesel: C15 SRR3294436.1 | C84: Lynch 2016 | D84: BLDT
A85: SRR3294437.1 | B85: Durban_Poison_1: C16 SRR3294437.1 | C85: Lynch 2016 | D85: NLDT
A86: SRR3294438.1 | B86: Hawaiian: C17 SRR3294438.1 | C86: Lynch 2016 | D86: NLDT
A87: SRR3294439.1 | B87: Lebanese: C18 SRR3294439.1 | C87: Lynch 2016 | D87: NLDT
A88: SRR3294440.1 | B88: Tora_Bora: C19 SRR3294440.1 | C88: Lynch 2016 | D88: BLDT
A89: SRR3294441.1 | B89: Afghan_Kush_2: C2 SRR3294441.1 | C89: Lynch 2016 | D89: BLDT
A90: SRR3294442.1 | B90: G13: C20 SRR3294442.1 | C90: Lynch 2016 | D90: NLDT
A91: SRR3294443.1 | B91: Harlequin: C21 SRR3294443.1 | C91: Lynch 2016 | D91: NLDT
A92: SRR3294444.1 | B92: Cannatonic: C22 SRR3294444.1 | C92: Lynch 2016 | D92: NLDT
A93: SRR3294445.1 | B93: Auto_AK47: C23 SRR3294445.1 | C93: Lynch 2016 | D93: NLDT
A94: SRR3294446.1 | B94: Low_Ryder: C24 SRR3294446.1 | C94: Lynch 2016 | D94: NLDT
A95: SRR3294447.1 | B95: Pre-98_Bubba_Kush: C25 SRR3294447.1 | C95: Lynch 2016 | D95: NLDT
A96: SRR3294448.1 | B96: Jack_Herer_1: C27 SRR3294448.1 | C96: Lynch 2016 | D96: NLDT
A97: SRR3294449.1 | B97: Maui_Waui: C28 SRR3294449.1 | C97: Lynch 2016 | D97: NLDT
A98: SRR3294450.1 | B98: Super_Lemon_Haze: C29 SRR3294450.1 | C98: Lynch 2016 | D98: NLDT
A99: SRR3294451.1 | B99: Afghan_Kush_3: C3 SRR3294451.1 | C99: Lynch 2016 | D99: BLDT
A100: SRR3294452.1 | B100: Hindu_Kush: C30 SRR3294452.1 | C100: Lynch 2016 | D100: BLDT
A101: SRR3294453.1 | B101: Somali_Taxi_Cab: C31 SRR3294453.1 | C101: Lynch 2016 | D101: NLDT
A102: SRR3294454.1 | B102: Durban_Poison_2: C32 SRR3294454.1 | C102: Lynch 2016 | D102: NLDT
A103: SRR3294455.1 | B103: Rocky_Mountain_Bluberry: C33 SRR3294455.1 | C103: Lynch 2016 | D103: NLDT
A104: SRR3294456.1 | B104: R4: C34 SRR3294456.1 | C104: Lynch 2016 | D104: BLDT
A105: SRR3294457.1 | B105: Kunduz: C35 SRR3294457.1 | C105: Lynch 2016 | D105: BLDT
A106: SRR3294466.1 | B106: Girl_Scout_Cookies_1: C43 SRR3294466.1 | C106: Lynch 2016 | D106: BLDT
A107: SRR3294467.1 | B107: Grape_Ape_1: C44 SRR3294467.1 | C107: Lynch 2016 | D107: NLDT
A108: SRR3294468.1 | B108: B-5: C45 SRR3294468.1 | C108: Lynch 2016 | D108: NLDT
A109: SRR3294469.1 | B109: Chocolope_1: C46 SRR3294469.1 | C109: Lynch 2016 | D109: NLDT
A110: SRR3294470.1 | B110: Alaskan_Thunderfuck: C47 SRR3294470.1 | C110: Lynch 2016 | D110: NLDT
A111: SRR3294471.1 | B111: Blueberry_DJ: C48 SRR3294471.1 | C111: Lynch 2016 | D111: NLDT
A112: SRR3294472.1 | B112: Blue_Dream_3: C49 SRR3294472.1 | C112: Lynch 2016 | D112: NLDT
A113: SRR3294473.1 | B113: Afghan_Kush_4: C5 SRR3294473.1 | C113: Lynch 2016 | D113: BLDT
A114: SRR3294474.1 | B114: Liberty_Haze: C50 SRR3294474.1 | C114: Lynch 2016 | D114: NLDT
A115: SRR3294475.1 | B115: Tangerine_Haze: C51 SRR3294475.1 | C115: Lynch 2016 | D115: NLDT
A116: SRR3294477.1 | B116: Skunk_#1: C53 SRR3294477.1 | C116: Lynch 2016 | D116: NLDT
A117: SRR3294479.1 | B117: Golden_Goat_2: C55 SRR3294479.1 | C117: Lynch 2016 | D117: NLDT
A118: SRR3294482.1 | B118: Afghan_Kush_5: C6 SRR3294482.1 | C118: Lynch 2016 | D118: BLDT

Sheet 8 hasch_all_markers
A1: Supplementary file 8. 1504 HASCH target SNP
A2: markerID | B2: alleles | C2: contig | D2: chrom | E2: bp pos | F2: Interval kb
A3: NC_044370.1_396958 | B3: G/C | C3: NC_044370.1 | D3: X | E3: 396958 | F3: =IF(EXACT(C2,C3),E3-E2,E3)/1000 -> 396.958
A4: NC_044370.1_446991 | B4: A/G | C4: NC_044370.1 | D4: X | E4: 446991 | F4: =IF(EXACT(C3,C4),E4-E3,E4)/1000 -> 50.033
A5: NC_044370.1_519926 | B5: A/C | C5: NC_044370.1 | D5: X | E5: 519926 | F5: 72.935
A6: NC_044370.1_1074464 | B6: C/T | C6: NC_044370.1 | D6: X | E6: 1074464 | F6: 554.538
A7: NC_044370.1_2295410 | B7: A/G | C7: NC_044370.1 | D7: X | E7: 2295410 | F7: 1220.946
A8: NC_044370.1_2797486 | B8: C/G | C8: NC_044370.1 | D8: X | E8: 2797486 | F8: 502.076
A9: NC_044370.1_3438403 | B9: A/G | C9: NC_044370.1 | D9: X | E9: 3438403 | F9: 640.917
A10: NC_044370.1_3615418 | B10: T/C | C10: NC_044370.1 | D10: X | E10: 3615418 | F10: 177.015
A11: NC_044370.1_5273823 | B11: C/A | C11: NC_044370.1 | D11: X | E11: 5273823 | F11: 1658.405
A12: NC_044370.1_5413812 | B12: A/G | C12: NC_044370.1 | D12: X | E12: 5413812 | F12: 139.989
A13: NC_044370.1_5998317 | B13: C/T | C13: NC_044370.1 | D13: X | E13: 5998317 | F13: 584.505
A14: NC_044370.1_6452596 | B14: T/C | C14: NC_044370.1 | D14: X | E14: 6452596 | F14: 454.279
A15: NC_044370.1_7092586 | B15: C/T | C15: NC_044370.1 | D15: X | E15: 7092586 | F15: 639.99
A16: NC_044370.1_7509972 | B16: T/C | C16: NC_044370.1 | D16: X | E16: 7509972 | F16: 417.386
A17: NC_044370.1_8248319 | B17: G/C | C17: NC_044370.1 | D17: X | E17: 8248319 | F17: 738.347
A18: NC_044370.1_8709171 | B18: T/C | C18: NC_044370.1 | D18: X | E18: 8709171 | F18: 460.852
A19: NC_044370.1_8903288 | B19: G/A | C19: NC_044370.1 | D19: X | E19: 8903288 | F19: 194.117
A20: NC_044370.1_9369004 | B20: G/T | C20: NC_044370.1 | D20: X | E20: 9369004 | F20: 465.716
A21: NC_044370.1_9433300 | B21: T/C | C21: NC_044370.1 | D21: X | E21: 9433300 | F21: 64.296
A22: NC_044370.1_10371709 | B22: G/A | C22: NC_044370.1 | D22: X | E22: 10371709 | F22: 938.409
A23: NC_044370.1_10571541 | B23: T/C | C23: NC_044370.1 | D23: X | E23: 10571541 | F23: 199.832
A24: NC_044370.1_10991908 | B24: T/G | C24: NC_044370.1 | D24: X | E24: 10991908 | F24: 420.367
A25: NC_044370.1_11034246 | B25: G/A | C25: NC_044370.1 | D25: X | E25: 11034246 | F25: 42.338
A26: NC_044370.1_11451945 | B26: C/T | C26: NC_044370.1 | D26: X | E26: 11451945 | F26: 417.699
A27: NC_044370.1_11539163 | B27: G/A | C27: NC_044370.1 | D27: X | E27: 11539163 | F27: 87.218
A28: NC_044370.1_12553907 | B28: T/C | C28: NC_044370.1 | D28: X | E28: 12553907 | F28: 1014.744
A29: NC_044370.1_13472981 | B29: T/A | C29: NC_044370.1 | D29: X | E29: 13472981 | F29: 919.074
A30: NC_044370.1_13473147 | B30: G/A | C30: NC_044370.1 | D30: X | E30: 13473147 | F30: 0.166
A31: NC_044370.1_13649304 | B31: A/G | C31: NC_044370.1 | D31: X | E31: 13649304 | F31: 176.157
A32: NC_044370.1_13923101 | B32: T/C | C32: NC_044370.1 | D32: X | E32: 13923101 | F32: 273.797
A33: NC_044370.1_14180551 | B33: A/G | C33: NC_044370.1 | D33: X | E33: 14180551 | F33: 257.45
A34: NC_044370.1_14313710 | B34: C/A | C34: NC_044370.1 | D34: X | E34: 14313710 | F34: 133.159
A35: NC_044370.1_14769857 | B35: G/A | C35: NC_044370.1 | D35: X | E35: 14769857 | F35: 456.147
A36: NC_044370.1_15485580 | B36: C/G | C36: NC_044370.1 | D36: X | E36: 15485580 | F36: 715.723
A37: NC_044370.1_15519124 | B37: T/C | C37: NC_044370.1 | D37: X | E37: 15519124 | F37: 33.544
A38: NC_044370.1_15898527 | B38: A/G | C38: NC_044370.1 | D38: X | E38: 15898527 | F38: 379.403
A39: NC_044370.1_16122357 | B39: G/A | C39: NC_044370.1 | D39: X | E39: 16122357 | F39: 223.83
A40: NC_044370.1_16568936 | B40: T/C | C40: NC_044370.1 | D40: X | E40: 16568936 | F40: 446.579
A41: NC_044370.1_17492595 | B41: C/T | C41: NC_044370.1 | D41: X | E41: 17492595 | F41: 923.659
A42: NC_044370.1_17549222 | B42: C/T | C42: NC_044370.1 | D42: X | E42: 17549222 | F42: 56.627
A43: NC_044370.1_18371550 | B43: C/G | C43: NC_044370.1 | D43: X | E43: 18371550 | F43: 822.328
A44: NC_044370.1_19457210 | B44: T/C | C44: NC_044370.1 | D44: X | E44: 19457210 | F44: 1085.66
A45: NC_044370.1_20251937 | B45: C/G | C45: NC_044370.1 | D45: X | E45: 20251937 | F45: 794.727
A46: NC_044370.1_20855747 | B46: T/C | C46: NC_044370.1 | D46: X | E46: 20855747 | F46: 603.81
A47: NC_044370.1_21312134 | B47: T/A | C47: NC_044370.1 | D47: X | E47: 21312134 | F47: 456.387
A48: NC_044370.1_21686290 | B48: C/T | C48: NC_044370.1 | D48: X | E48: 21686290 | F48: 374.156
A49: NC_044370.1_22130955 | B49: G/A | C49: NC_044370.1 | D49: X | E49: 22130955 | F49: 444.665
A50: NC_044370.1_22322770 | B50: C/A | C50: NC_044370.1 | D50: X | E50: 22322770 | F50: 191.815
A51: NC_044370.1_22322878 | B51: T/A | C51: NC_044370.1 | D51: X | E51: 22322878 | F51: 0.108
A52: NC_044370.1_22323046 | B52: A/G | C52: NC_044370.1 | D52: X | E52: 22323046 | F52: 0.168
A53: NC_044370.1_22999568 | B53: G/A | C53: NC_044370.1 | D53: X | E53: 22999568 | F53: 676.522
A54: NC_044370.1_24002032 | B54: C/T | C54: NC_044370.1 | D54: X | E54: 24002032 | F54: 1002.464
A55: NC_044370.1_25084277 | B55: T/A | C55: NC_044370.1 | D55: X | E55: 25084277 | F55: 1082.245
A56: NC_044370.1_25087578 | B56: A/T | C56: NC_044370.1 | D56: X | E56: 25087578 | F56: 3.301
A57: NC_044370.1_25087668 | B57: A/T | C57: NC_044370.1 | D57: X | E57: 25087668 | F57: 0.09
A58: NC_044370.1_25087794 | B58: A/T | C58: NC_044370.1 | D58: X | E58: 25087794 | F58: 0.126
A59: NC_044370.1_25089600 | B59: A/G | C59: NC_044370.1 | D59: X | E59: 25089600 | F59: 1.806
A60: NC_044370.1_25718237 | B60: G/A | C60: NC_044370.1 | D60: X | E60: 25718237 | F60: 628.637
A61: NC_044370.1_26403328 | B61: G/A | C61: NC_044370.1 | D61: X | E61: 26403328 | F61: 685.091
A62: NC_044370.1_26732616 | B62: G/A | C62: NC_044370.1 | D62: X | E62: 26732616 | F62: 329.288
A63: NC_044370.1_27534643 | B63: G/T | C63: NC_044370.1 | D63: X | E63: 27534643 | F63: 802.027
A64: NC_044370.1_27545967 | B64: A/T | C64: NC_044370.1 | D64: X | E64: 27545967 | F64: 11.324
A65: NC_044370.1_27549456 | B65: A/G | C65: NC_044370.1 | D65: X | E65: 27549456 | F65: 3.489
A66: NC_044370.1_28226830 | B66: A/G | C66: NC_044370.1 | D66: X | E66: 28226830 | F66: 677.374
A67: NC_044370.1_28845210 | B67: A/G | C67: NC_044370.1 | D67: X | E67: 28845210 | F67: 618.38
A68: NC_044370.1_29556216 | B68: C/T | C68: NC_044370.1 | D68: X | E68: 29556216 | F68: =IF(EXACT(C67,C68),E68-E67,E68)/1000 -> 711.006
A69: NC_044370.1_30234828 | B69: T/C | C69: NC_044370.1 | D69: X | E69: 30234828 | F69: 678.612
A70: NC_044370.1_30873923 | B70: G/T | C70: NC_044370.1 | D70: X | E70: 30873923 | F70: 639.095
A71: NC_044370.1_31417764 | B71: G/C | C71: NC_044370.1 | D71: X | E71: 31417764 | F71: 543.841
A72: NC_044370.1_31701701 | B72: A/G | C72: NC_044370.1 | D72: X | E72: 31701701 | F72: 283.937
A73: NC_044370.1_32490896 | B73: A/G | C73: NC_044370.1 | D73: X | E73: 32490896 | F73: 789.195
A74: NC_044370.1_32763516 | B74: G/A | C74: NC_044370.1 | D74: X | E74: 32763516 | F74: 272.62
A75: NC_044370.1_33135782 | B75: T/C | C75: NC_044370.1 | D75: X | E75: 33135782 | F75: 372.266
A76: NC_044370.1_34165458 | B76: T/A | C76: NC_044370.1 | D76: X | E76: 34165458 | F76: 1029.676
A77: NC_044370.1_34503697 | B77: A/T | C77: NC_044370.1 | D77: X | E77: 34503697 | F77: 338.239
A78: NC_044370.1_35127419 | B78: A/G | C78: NC_044370.1 | D78: X | E78: 35127419 | F78: 623.722
A79: NC_044370.1_35129158 | B79: G/C | C79: NC_044370.1 | D79: X | E79: 35129158 | F79: 1.739
A80: NC_044370.1_35929113 | B80: T/C | C80: NC_044370.1 | D80: X | E80: 35929113 | F80: 799.955
A81: NC_044370.1_37238787 | B81: T/C | C81: NC_044370.1 | D81: X | E81: 37238787 | F81: 1309.674
A82: NC_044370.1_40235348 | B82: C/T | C82: NC_044370.1 | D82: X | E82: 40235348 | F82: 2996.561
A83: NC_044370.1_40595221 | B83: T/C | C83: NC_044370.1 | D83: X | E83: 40595221 | F83: 359.873
A84: NC_044370.1_42251700 | B84: G/A | C84: NC_044370.1 | D84: X | E84: 42251700 | F84: 1656.479
A85: NC_044370.1_43240569 | B85: A/G | C85: NC_044370.1 | D85: X | E85: 43240569 | F85: 988.869
A86: NC_044370.1_44455539 | B86: G/A | C86: NC_044370.1 | D86: X | E86: 44455539 | F86: 1214.97
A87: NC_044370.1_44641382 | B87: T/G | C87: NC_044370.1 | D87: X | E87: 44641382 | F87: 185.843
A88: NC_044370.1_45164193 | B88: T/G | C88: NC_044370.1 | D88: X | E88: 45164193 | F88: 522.811
A89: NC_044370.1_48454358 | B89: G/A | C89: NC_044370.1 | D89: X | E89: 48454358 | F89: 3290.165
A90: NC_044370.1_49675760 | B90: A/G | C90: NC_044370.1 | D90: X | E90: 49675760 | F90: 1221.402
A91: NC_044370.1_50722753 | B91: G/A | C91: NC_044370.1 | D91: X | E91: 50722753 | F91: 1046.993
A92: NC_044370.1_51077011 | B92: G/A | C92: NC_044370.1 | D92: X | E92: 51077011 | F92: 354.258
A93: NC_044370.1_52533765 | B93: A/G | C93: NC_044370.1 | D93: X | E93: 52533765 | F93: 1456.754
A94: NC_044370.1_52534186 | B94: T/A | C94: NC_044370.1 | D94: X | E94: 52534186 | F94: 0.421
A95: NC_044370.1_52619653 | B95: G/T | C95: NC_044370.1 | D95: X | E95: 52619653 | F95: 85.467
A96: NC_044370.1_52619674 | B96: G/A | C96: NC_044370.1 | D96: X | E96: 52619674 | F96: 0.021
A97: NC_044370.1_53661678 | B97: T/C | C97: NC_044370.1 | D97: X | E97: 53661678 | F97: 1042.004
A98: NC_044370.1_54331412 | B98: T/A | C98: NC_044370.1 | D98: X | E98: 54331412 | F98: 669.734
A99: NC_044370.1_55411275 | B99: A/T | C99: NC_044370.1 | D99: X | E99: 55411275 | F99: 1079.863
A100: NC_044370.1_55696083 | B100: T/C | C100: NC_044370.1 | D100: X | E100: 55696083 | F100: 284.808
A101: NC_044370.1_56904236 | B101: A/T | C101: NC_044370.1 | D101: X | E101: 56904236 | F101: 1208.153
A102: NC_044370.1_57027645 | B102: C/T | C102: NC_044370.1 | D102: X | E102: 57027645 | F102: 123.409
A103: NC_044370.1_57851871 | B103: G/A | C103: NC_044370.1 | D103: X | E103: 57851871 | F103: 824.226
A104: NC_044370.1_58250453 | B104: G/A | C104: NC_044370.1 | D104: X | E104: 58250453 | F104: 398.582
A105: NC_044370.1_58924383 | B105: T/C | C105: NC_044370.1 | D105: X | E105: 58924383 | F105: 673.93
A106: NC_044370.1_59203675 | B106: C/T | C106: NC_044370.1 | D106: X | E106: 59203675 | F106: 279.292
A107: NC_044370.1_59580781 | B107: A/C | C107: NC_044370.1 | D107: X | E107: 59580781 | F107: 377.106
A108: NC_044370.1_62016761 | B108: T/A | C108: NC_044370.1 | D108: X | E108: 62016761 | F108: 2435.98
A109: NC_044370.1_62608915 | B109: C/T | C109: NC_044370.1 | D109: X | E109: 62608915 | F109: 592.154
A110: NC_044370.1_64267402 | B110: A/G | C110: NC_044370.1 | D110: X | E110: 64267402 | F110: 1658.487
A111: NC_044370.1_64452613 | B111: G/T | C111: NC_044370.1 | D111: X | E111: 64452613 | F111: 185.211
A112: NC_044370.1_64999455 | B112: T/A | C112: NC_044370.1 | D112: X | E112: 64999455 | F112: 546.842
A113: NC_044370.1_65341531 | B113: G/C | C113: NC_044370.1 | D113: X | E113: 65341531 | F113: 342.076
A114: NC_044370.1_65733987 | B114: G/A | C114: NC_044370.1 | D114: X | E114: 65733987 | F114: 392.456
A115: NC_044370.1_66415691 | B115: G/C | C115: NC_044370.1 | D115: X | E115: 66415691 | F115: 681.704
A116: NC_044370.1_66617923 | B116: A/G | C116: NC_044370.1 | D116: X | E116: 66617923 | F116: 202.232
A117: NC_044370.1_67087009 | B117: G/A | C117: NC_044370.1 | D117: X | E117: 67087009 | F117: 469.086
A118: NC_044370.1_67902724 | B118: C/A | C118: NC_044370.1 | D118: X | E118: 67902724 | F118: 815.715
A119: NC_044370.1_68254471 | B119: C/T | C119: NC_044370.1 | D119: X | E119: 68254471 | F119: 351.747
A120: NC_044370.1_69264299 | B120: A/G | C120: NC_044370.1 | D120: X | E120: 69264299 | F120: 1009.828
A121: NC_044370.1_69809587 | B121: T/A | C121: NC_044370.1 | D121: X | E121: 69809587 | F121: 545.288
A122: NC_044370.1_70407686 | B122: C/T | C122: NC_044370.1 | D122: X | E122: 70407686 | F122: 598.099
A123: NC_044370.1_70534574 | B123: A/G | C123: NC_044370.1 | D123: X | E123: 70534574 | F123: 126.888
A124: NC_044370.1_71240747 | B124: T/C | C124: NC_044370.1 | D124: X | E124: 71240747 | F124: 706.173
A125: NC_044370.1_71563833 | B125: G/A | C125: NC_044370.1 | D125: X | E125: 71563833 | F125: 323.086
A126: NC_044370.1_72275333 | B126: C/T | C126: NC_044370.1 | D126: X | E126: 72275333 | F126: 711.5
A127: NC_044370.1_73457402 | B127: T/C | C127: NC_044370.1 | D127: X | E127: 73457402 | F127: 1182.069
A128: NC_044370.1_73514260 | B128: C/T | C128: NC_044370.1 | D128: X | E128: 73514260 | F128: 56.858
A129: NC_044370.1_74520345 | B129: C/T | C129: NC_044370.1 | D129: X | E129: 74520345 | F129: 1006.085
A130: NC_044370.1_75046096 | B130: T/C | C130: NC_044370.1 | D130: X | E130: 75046096 | F130: 525.751
A131: NC_044370.1_75985318 | B131: A/T | C131: NC_044370.1 | D131: X | E131: 75985318 | F131: 939.222
A132: NC_044370.1_76057514 | B132: G/A | C132: NC_044370.1 | D132: X | E132: 76057514 | F132: =IF(EXACT(C131,C132),E132-E131,E132)/1000 -> 72.196
A133: NC_044370.1_76852799 | B133: T/G | C133: NC_044370.1 | D133: X | E133: 76852799 | F133: 795.285
A134: NC_044370.1_77425052 | B134: C/A | C134: NC_044370.1 | D134: X | E134: 77425052 | F134: 572.253
A135: NC_044370.1_77916383 | B135: T/G | C135: NC_044370.1 | D135: X | E135: 77916383 | F135: 491.331
A136: NC_044370.1_78306407 | B136: C/A | C136: NC_044370.1 | D136: X | E136: 78306407 | F136: 390.024
A137: NC_044370.1_78658719 | B137: C/T | C137: NC_044370.1 | D137: X | E137: 78658719 | F137: 352.312
A138: NC_044370.1_79324998 | B138: G/C | C138: NC_044370.1 | D138: X | E138: 79324998 | F138: 666.279
A139: NC_044370.1_80571380 | B139: G/A | C139: NC_044370.1 | D139: X | E139: 80571380 | F139: 1246.382
A140: NC_044370.1_81622846 | B140: C/G | C140: NC_044370.1 | D140: X | E140: 81622846 | F140: 1051.466
A141: NC_044370.1_81879501 | B141: T/A | C141: NC_044370.1 | D141: X | E141: 81879501 | F141: 256.655
A142: NC_044370.1_82666079 | B142: A/G | C142: NC_044370.1 | D142: X | E142: 82666079 | F142: 786.578
A143: NC_044370.1_84635508 | B143: A/G | C143: NC_044370.1 | D143: X | E143: 84635508 | F143: 1969.429
A144: NC_044370.1_85258291 | B144: G/A | C144: NC_044370.1 | D144: X | E144: 85258291 | F144: 622.783
A145: NC_044370.1_86187266 | B145: A/G | C145: NC_044370.1 | D145: X | E145: 86187266 | F145: 928.975
A146: NC_044370.1_86666193 | B146: C/T | C146: NC_044370.1 | D146: X | E146: 86666193 | F146: 478.927
A147: NC_044370.1_87349039 | B147: T/C | C147: NC_044370.1 | D147: X | E147: 87349039 | F147: 682.846
A148: NC_044370.1_87545890 | B148: T/C | C148: NC_044370.1 | D148: X | E148: 87545890 | F148: 196.851
A149: NC_044370.1_89380780 | B149: T/C | C149: NC_044370.1 | D149: X | E149: 89380780 | F149: 1834.89
A150: NC_044370.1_89476855 | B150: A/T | C150: NC_044370.1 | D150: X | E150: 89476855 | F150: 96.075
A151: NC_044370.1_89565597 | B151: C/T | C151: NC_044370.1 | D151: X | E151: 89565597 | F151: 88.742
A152: NC_044370.1_89565678 | B152: C/T | C152: NC_044370.1 | D152: X | E152: 89565678 | F152: 0.081
A153: NC_044370.1_89566903 | B153: A/G | C153: NC_044370.1 | D153: X | E153: 89566903 | F153: 1.225
A154: NC_044370.1_89807221 | B154: G/T | C154: NC_044370.1 | D154: X | E154: 89807221 | F154: 240.318
A155: NC_044370.1_90441772 | B155: T/C | C155: NC_044370.1 | D155: X | E155: 90441772 | F155: 634.551
A156: NC_044370.1_90895040 | B156: T/A | C156: NC_044370.1 | D156: X | E156: 90895040 | F156: 453.268
A157: NC_044370.1_91158997 | B157: C/T | C157: NC_044370.1 | D157: X | E157: 91158997 | F157: 263.957
A158: NC_044370.1_91991778 | B158: G/A | C158: NC_044370.1 | D158: X | E158: 91991778 | F158: 832.781
A159: NC_044370.1_92219695 | B159: T/C | C159: NC_044370.1 | D159: X | E159: 92219695 | F159: 227.917
A160: NC_044370.1_92651639 | B160: G/A | C160: NC_044370.1 | D160: X | E160: 92651639 | F160: 431.944
A161: NC_044370.1_93947554 | B161: A/G | C161: NC_044370.1 | D161: X | E161: 93947554 | F161: 1295.915
A162: NC_044370.1_94422496 | B162: T/C | C162: NC_044370.1 | D162: X | E162: 94422496 | F162: 474.942
A163: NC_044370.1_94523557 | B163: G/A | C163: NC_044370.1 | D163: X | E163: 94523557 | F163: 101.061
A164: NC_044370.1_95075888 | B164: A/G | C164: NC_044370.1 | D164: X | E164: 95075888 | F164: 552.331
A165: NC_044370.1_95476032 | B165: A/C | C165: NC_044370.1 | D165: X | E165: 95476032 | F165: 400.144
A166: NC_044370.1_96335127 | B166: A/T | C166: NC_044370.1 | D166: X | E166: 96335127 | F166: 859.095
A167: NC_044370.1_96985693 | B167: G/A | C167: NC_044370.1 | D167: X | E167: 96985693 | F167: 650.566
A168: NC_044370.1_97251951 | B168: T/C | C168: NC_044370.1 | D168: X | E168: 97251951 | F168: 266.258
A169: NC_044370.1_97999260 | B169: C/A | C169: NC_044370.1 | D169: X | E169: 97999260 | F169: 747.309
A170: NC_044370.1_98288328 | B170: A/G | C170: NC_044370.1 | D170: X | E170: 98288328 | F170: 289.068
A171: NC_044370.1_98535918 | B171: G/A | C171: NC_044370.1 | D171: X | E171: 98535918 | F171: 247.59
A172: NC_044370.1_99197475 | B172: C/G | C172: NC_044370.1 | D172: X | E172: 99197475 | F172: 661.557
A173: NC_044370.1_99509794 | B173: A/T | C173: NC_044370.1 | D173: X | E173: 99509794 | F173: 312.319
A174: NC_044370.1_99562132 | B174: T/C | C174: NC_044370.1 | D174: X | E174: 99562132 | F174: 52.338
A175: NC_044370.1_99759104 | B175: G/A | C175: NC_044370.1 | D175: X | E175: 99759104 | F175: 196.972
A176: NC_044370.1_99769315 | B176: A/G | C176: NC_044370.1 | D176: X | E176: 99769315 | F176: 10.211
A177: NC_044370.1_100090743 | B177: A/C | C177: NC_044370.1 | D177: X | E177: 100090743 | F177: 321.428
A178: NC_044370.1_100322157 | B178: A/G | C178: NC_044370.1 | D178: X | E178: 100322157 | F178: 231.414
A179: NC_044370.1_100619575 | B179: G/A | C179: NC_044370.1 | D179: X | E179: 100619575 | F179: 297.418
A180: NC_044370.1_100736342 | B180: A/G | C180: NC_044370.1 | D180: X | E180: 100736342 | F180: 116.767
A181: NC_044370.1_100779559 | B181: C/T | C181: NC_044370.1 | D181: X | E181: 100779559 | F181: 43.217
A182: NC_044370.1_100910696 | B182: A/G | C182: NC_044370.1 | D182: X | E182: 100910696 | F182: 131.137
A183: NC_044370.1_100912182 | B183: T/A | C183: NC_044370.1 | D183: X | E183: 100912182 | F183: 1.486
A184: NC_044370.1_100988859 | B184: T/G | C184: NC_044370.1 | D184: X | E184: 100988859 | F184: 76.677
A185: NC_044370.1_101243420 | B185: C/T | C185: NC_044370.1 | D185: X | E185: 101243420 | F185: 254.561
A186: NC_044370.1_101322485 | B186: C/T | C186: NC_044370.1 | D186: X | E186: 101322485 | F186: 79.065
A187: NC_044370.1_101322627 | B187: T/C | C187: NC_044370.1 | D187: X | E187: 101322627 | F187: 0.142
A188: NC_044370.1_101426997 | B188: T/C | C188: NC_044370.1 | D188: X | E188: 101426997 | F188: 104.37
A189: NC_044370.1_101726390 | B189: C/A | C189: NC_044370.1 | D189: X | E189: 101726390 | F189: 299.393
A190: NC_044370.1_102134961 | B190: A/G | C190: NC_044370.1 | D190: X | E190: 102134961 | F190: 408.571
A191: NC_044370.1_102993197 | B191: A/G | C191: NC_044370.1 | D191: X | E191: 102993197 | F191: 858.236
A192: NC_044370.1_103047052 | B192: C/A | C192: NC_044370.1 | D192: X | E192: 103047052 | F192: 53.855
A193: NC_044370.1_103380494 | B193: A/T | C193: NC_044370.1 | D193: X | E193: 103380494 | F193: 333.442
A194: NC_044370.1_103947734 | B194: A/T | C194: NC_044370.1 | D194: X | E194: 103947734 | F194: 567.24
A195: NC_044370.1_103947749 | B195: A/G | C195: NC_044370.1 | D195: X | E195: 103947749 | F195: 0.015
A196: NC_044370.1_103958591 | B196: A/G | C196: NC_044370.1 | D196: X | E196: 103958591 | F196: =IF(EXACT(C195,C196),E196-E195,E196)/1000 -> 10.842
A197: NC_044370.1_103958844 | B197: T/C | C197: NC_044370.1 | D197: X | E197: 103958844 | F197: 0.253
A198: NC_044370.1_103958864 | B198: G/A | C198: NC_044370.1 | D198: X | E198: 103958864 | F198: 0.02
A199: NC_044370.1_104263834 | B199: A/C | C199: NC_044370.1 | D199: X | E199: 104263834 | F199: 304.97
A200: NC_044370.1_104263979 | B200: T/C | C200: NC_044370.1 | D200: X | E200: 104263979 | F200: 0.145
... 1323 more rows

Sheet 9 hasch_genic_markers
A1: Supplementary file 9. HASCH probes in genic regions (cs10)
A2: NC_044370.1 | B2: 396958 | C2: LOC115702713 | D2: XP_030485997.1 | E2: protein IQ-DOMAIN 1
A3: NC_044370.1 | B3: 446991 | C3: LOC115702656 | D3: XP_030485939.1 | E3: MLO-like protein 4 isoform X3
A4: NC_044370.1 | B4: 519926 | C4: LOC115702673 | D4: XP_030485962.1 | E4: uncharacterized protein LOC115702673
A5: NC_044370.1 | B5: 1074464 | C5: LOC115702707 | D5: XP_030485991.1 | E5: kinesin-like protein KIN-4A
A6: NC_044370.1 | B6: 2295410 | C6: LOC115702839 | D6: XP_030486135.1 | E6: brefeldin A-inhibited guanine nucleotide-exchange protein 1 isoform X1
A7: NC_044370.1 | B7: 2797486 | C7: LOC115702907 | D7: XP_030486229.1 | E7: pentatricopeptide repeat-containing protein ELI1%2C chloroplastic
A8: NC_044370.1 | B8: 3438403 | C8: LOC115702951 | D8: XP_030486288.1 | E8: probable E3 ubiquitin ligase SUD1
A9: NC_044370.1 | B9: 3615418 | C9: LOC115702964 | D9: XP_030486300.1 | E9: LOW QUALITY PROTEIN: cyclin-D3-1
A10: NC_044370.1 | B10: 5273823 | C10: LOC115702395 | D10: XP_030485724.1 | E10: uncharacterized protein LOC115702395
A11: NC_044370.1 | B11: 5413812 | C11: LOC115703124 | D11: XP_030486483.1 | E11: exocyst complex component SEC15B
A12: NC_044370.1 | B12: 6452596 | C12: LOC115703174 | D12: XP_030486553.1 | E12: plastid division protein PDV2
A13: NC_044370.1 | B13: 7092586 | C13: LOC115703220 | D13: XP_030486594.1 | E13: probable 2-oxoglutarate-dependent dioxygenase At3g111800
A14: NC_044370.1 | B14: 7509972 | C14: LOC115709856 | D14: XP_030493989.1 | E14: sodium channel modifier 1 isoform X1
A15: NC_044370.1 | B15: 8709171 | C15: LOC115703927 | D15: XP_030487040.1 | E15: probable galacturonosyltransferase-like 7
A16: NC_044370.1 | B16: 8903288 | C16: LOC115704669 | D16: XP_030487762.1 | E16: uncharacterized protein LOC115704669
A17: NC_044370.1 | B17: 9369004 | C17: LOC115708091 | D17: XP_030492176.1 | E17: pentatricopeptide repeat-containing protein At1g02370%2C mitochondrial
A18: NC_044370.1 | B18: 9433300 | C18: LOC115709021 | D18: XP_030492942.1 | E18: pentatricopeptide repeat-containing protein At2g31400%2C chloroplastic
A19: NC_044370.1 | B19: 10371709 | C19: LOC115711544 | D19: XP_030495862.1 | E19: squamosa promoter-binding-like protein 1
A20: NC_044370.1 | B20: 10571541 | C20: LOC115703610 | D20: XP_030486709.1 | E20: acyl transferase 4
A21: NC_044370.1 | B21: 11034246 | C21: LOC115717585 | D21: XP_030502442.1 | E21: ammonium transporter 3 member 3-like
A22: NC_044370.1 | B22: 11451945 | C22: LOC115720151 | D22: XP_030505231.1 | E22: SOSS complex subunit B homolog
A23: NC_044370.1 | B23: 11539163 | C23: LOC115721072 | D23: XP_030506273.1 | E23: zerumbone synthase isoform X2
A24: NC_044370.1 | B24: 12553907 | C24: LOC115698519 | D24: XP_030481489.1 | E24: LOW QUALITY PROTEIN: DExH-box ATP-dependent RNA helicase DExH8
A25: NC_044370.1 | B25: 13649304 | C25: LOC115702843 | D25: XP_030486145.1 | E25: LEC14B protein isoform X1
A26: NC_044370.1 | B26: 13923101 | C26: LOC115703147 | D26: XP_030486511.1 | E26: BTB/POZ and MATH domain-containing protein 2
A27: NC_044370.1 | B27: 14180551 | C27: LOC115703501 | D27: XP_030486644.1 | E27: F-box protein At2g27310
A28: NC_044370.1 | B28: 14313710 | C28: LOC115703590 | D28: XP_030486679.1 | E28: basic helix-loop-helix protein A
A29: NC_044370.1 | B29: 15519124 | C29: LOC115704207 | D29: XP_030487286.1 | E29: receptor-like protein kinase 7
A30: NC_044370.1 | B30: 15898527 | C30: LOC115704357 | D30: XP_030487437.1 | E30: transcription factor bHLH121
A31: NC_044370.1 | B31: 16122357 | C31: LOC115704514 | D31: XP_030487580.1 | E31: RNA N6-adenosine-methyltransferase mettl16
A32: NC_044370.1 | B32: 16568936 | C32: LOC115704719 | D32: XP_030487783.1 | E32: myb-related protein 308
A33: NC_044370.1 | B33: 17549222 | C33: LOC115705038 | D33: XP_030488140.1 | E33: uncharacterized oxidoreductase At4g09670
A34: NC_044370.1 | B34: 18371550 | C34: LOC115705533 | D34: XP_030488758.1 | E34: VAN3-binding protein isoform X2
A35: NC_044370.1 | B35: 20251937 | C35: LOC115705692 | D35: XP_030488958.1 | E35: protein trichome berefringence-like 7
A36: NC_044370.1 | B36: 20855747 | C36: LOC115705938 | D36: XP_030489290.1 | E36: NADPH--cytochrome P450 reductase isoform X1
A37: NC_044370.1 | B37: 21312134 | C37: LOC115706203 | D37: XP_030489637.1 | E37: uncharacterized protein LOC115706203
A38: NC_044370.1 | B38: 21686290 | C38: LOC115706438 | D38: XP_030489959.1 | E38: PHD finger protein ALFIN-LIKE 4
A39: NC_044370.1 | B39: 22130955 | C39: LOC115706765 | D39: XP_030490368.1 | E39: eukaryotic initiation factor 4A-11
A40: NC_044370.1 | B40: 22322770 | C40: LOC115706944 | D40: XP_030490589.1 | E40: probable ADP%2CATP carrier protein At5g56450
A41: NC_044370.1 | B41: 22322878 | C41: LOC115706944 | D41: XP_030490589.1 | E41: probable ADP%2CATP carrier protein At5g56450
A42: NC_044370.1 | B42: 22323046 | C42: LOC115706944 | D42: XP_030490589.1 | E42: probable ADP%2CATP carrier protein At5g56450
A43: NC_044370.1 | B43: 22999568 | C43: LOC115707353 | D43: XP_030491147.1 | E43: F-box only protein 13
A44: NC_044370.1 | B44: 24002032 | C44: LOC115707744 | D44: XP_030491649.1 | E44: protein disulfide-isomerase
A45: NC_044370.1 | B45: 25084277 | C45: LOC115707991 | D45: XP_030491992.1 | E45: protein CELLULOSE SYNTHASE INTERACTIVE 3
A46: NC_044370.1 | B46: 25087578 | C46: LOC115707991 | D46: XP_030491992.1 | E46: protein CELLULOSE SYNTHASE INTERACTIVE 3
A47: NC_044370.1 | B47: 25087668 | C47: LOC115707991 | D47: XP_030491992.1 | E47: protein CELLULOSE SYNTHASE INTERACTIVE 3
A48: NC_044370.1 | B48: 25087794 | C48: LOC115707991 | D48: XP_030491992.1 | E48: protein CELLULOSE SYNTHASE INTERACTIVE 3
A49: NC_044370.1 | B49: 25089600 | C49: LOC115707991 | D49: XP_030491992.1 | E49: protein CELLULOSE SYNTHASE INTERACTIVE 3
A50: NC_044370.1 | B50: 25718237 | C50: LOC115708125 | D50: XP_030492187.1 | E50: uncharacterized protein LOC115708125
A51: NC_044370.1 | B51: 26403328 | C51: LOC115708556 | D51: XP_030492484.1 | E51: succinate dehydrogenase assembly factor 1%2C mitochondrial
A52: NC_044370.1 | B52: 27534643 | C52: LOC115708731 | D52: XP_030492597.1 | E52: UDP-rhamnose/UDP-galactose transporter 6
A53: NC_044370.1 | B53: 27545967 | C53: LOC115708742 | D53: XP_030492608.1 | E53: protein GIGANTEA
A54: NC_044370.1 | B54: 27549456 | C54: LOC115708742 | D54: XP_030492608.1 | E54: protein GIGANTEA
A55: NC_044370.1 | B55: 28226830 | C55: LOC115708964 | D55: XP_030492939.1 | E55: pentatricopeptide repeat-containing protein At3g49730
A56: NC_044370.1 | B56: 28845210 | C56: LOC115709308 | D56: XP_030493248.1 | E56: hyccin
A57: NC_044370.1 | B57: 29556216 | C57: LOC115709450 | D57: XP_030493430.1 | E57: tubby-like F-box protein 8
A58: NC_044370.1 | B58: 30234828 | C58: LOC115709665 | D58: XP_030493687.1 | E58: LOW QUALITY PROTEIN: DNA polymerase I B%2C chloroplastic/mitochondrial-like
A59: NC_044370.1 | B59: 30873923 | C59: LOC115709768 | D59: XP_030493838.1 | E59: uncharacterized protein LOC115709768
A60: NC_044370.1 | B60: 31417764 | C60: LOC115709841 | D60: XP_030493941.1 | E60: probable inactive receptor kinase At5g67200
A61: NC_044370.1 | B61: 32490896 | C61: LOC115709905 | D61: XP_030494021.1 | E61: protein NRT1/ PTR FAMILY 5.10
A62: NC_044370.1 | B62: 34165458 | C62: LOC115710247 | D62: XP_030494464.1 | E62: scarecrow-like protein 1
A63: NC_044370.1 | B63: 35127419 | C63: LOC115710391 | D63: XP_030494619.1 | E63: receptor-like protein kinase 7
A64: NC_044370.1 | B64: 35129158 | C64: LOC115710391 | D64: XP_030494619.1 | E64: receptor-like protein kinase 7
A65: NC_044370.1 | B65: 37238787 | C65: LOC115710561 | D65: XP_030494784.1 | E65: protein FAM135B
A66: NC_044370.1 | B66: 51077011 | C66: LOC115711963 | D66: XP_030496025.1 | E66: caffeoylshikimate esterase
A67: NC_044370.1 | B67: 52534186 | C67: LOC115712025 | D67: XP_030496092.1 | E67: non-lysosomal glucosylceramidase isoform X1
A68: NC_044370.1 | B68: 52619653 | C68: LOC115712056 | D68: XP_030496137.1 | E68: amino acid permease 6
A69: NC_044370.1 | B69: 52619674 | C69: LOC115712056 | D69: XP_030496137.1 | E69: amino acid permease 6
A70: NC_044370.1 | B70: 53661678 | C70: LOC115712094 | D70: XP_030496189.1 | E70: cytochrome P450 714C2
A71: NC_044370.1 | B71: 54331412 | C71: LOC115712112 | D71: XP_030496240.1 | E71: kinesin-like protein KIN-4A isoform X4
A72: NC_044370.1 | B72: 55696083 | C72: LOC115712485 | D72: XP_030496626.1 | E72: uncharacterized protein LOC115712485
A73: NC_044370.1 | B73: 56904236 | C73: LOC115712659 | D73: XP_030496871.1 | E73: uncharacterized protein LOC115712659
A74: NC_044370.1 | B74: 57027645 | C74: LOC115722157 | D74: XP_030507151.1 | E74: pentatricopeptide repeat-containing protein At3g62890
A75: NC_044370.1 | B75: 57851871 | C75: LOC115712832 | D75: XP_030497084.1 | E75: probable xyloglucan glycosyltransferase 12
A76: NC_044370.1 | B76: 58250453 | C76: LOC115712856 | D76: XP_030497127.1 | E76: transcription factor bHLH74
A77: NC_044370.1 | B77: 58924383 | C77: LOC115713017 | D77: XP_030497346.1 | E77: dihydrolipoyllysine-residue succinyltransferase component of 2-oxoglutarate dehydrogenase complex 1%2C mitochondrial
A78: NC_044370.1 | B78: 59203675 | C78: LOC115713077 | D78: XP_030497425.1 | E78: G-type lectin S-receptor-like serine/threonine-protein kinase LECRK3
A79: NC_044370.1 | B79: 59580781 | C79: LOC115713105 | D79: XP_030497455.1 | E79: butyrate--CoA ligase AAE11%2C peroxisomal
A80: NC_044370.1 | B80: 62016761 | C80: LOC115713135 | D80: XP_030497484.1 | E80: uncharacterized protein LOC115713135
A81: NC_044370.1 | B81: 62608915 | C81: LOC115713248 | D81: XP_030497593.1 | E81: receptor-like protein kinase 2
A82: NC_044370.1 | B82: 65341531 | C82: LOC115702527 | D82: XP_030485818.1 | E82: AT-hook motif nuclear-localized protein 23
A83: NC_044370.1 | B83: 66415691 | C83: LOC115713508 | D83: XP_030497852.1 | E83: LIM domain-containing protein WLIM1
A84: NC_044370.1 | B84: 66617923 | C84: LOC115713521 | D84: XP_030497864.1 | E84: uncharacterized protein LOC115713521 isoform X1
A85: NC_044370.1 | B85: 67087009 | C85: LOC115713556 | D85: XP_030497913.1 | E85: protein NPGR1
A86: NC_044370.1 | B86: 70407686 | C86: LOC115713792 | D86: XP_030498146.1 | E86: uncharacterized protein LOC115713792 isoform X2
A87: NC_044370.1 | B87: 72275333 | C87: LOC115714337 | D87: XP_030498867.1 | E87: probable BOI-related E3 ubiquitin-protein ligase 2
A88: NC_044370.1 | B88: 73457402 | C88: LOC115714372 | D88: XP_030498914.1 | E88: protein transport protein Sec61 subunit alpha
A89: NC_044370.1 | B89: 74520345 | C89: LOC115714431 | D89: XP_030498999.1 | E89: cytochrome P450 81Q32 isoform X1
A90: NC_044370.1 | B90: 75046096 | C90: LOC115714452 | D90: XP_030499032.1 | E90: aspartic proteinase CDR1 isoform X1
A91: NC_044370.1 | B91: 77425052 | C91: LOC115717510 | D91: XP_030502364.1 | E91: ubiquitin carboxyl-terminal hydrolase 16 isoform X2
A92: NC_044370.1 | B92: 77916383 | C92: LOC115717855 | D92: XP_030502686.1 | E92: pectinesterase
A93: NC_044370.1 | B93: 78306407 | C93: LOC115718690 | D93: XP_030503375.1 | E93: protein LYK5
A94: NC_044370.1 | B94: 81879501 | C94: LOC115722183 | D94: XP_030507181.1 | E94: thylakoid lumenal 29 kDa protein%2C chloroplastic
A95: NC_044370.1 | B95: 82666079 | C95: LOC115723574 | D95: XP_030508924.1 | E95: CO(2)-response secreted protease
A96: NC_044370.1 | B96: 84635508 | C96: LOC115724564 | D96: XP_030509730.1 | E96: uncharacterized protein LOC115724564
A97: NC_044370.1 | B97: 87349039 | C97: LOC115696003 | D97: XP_030478971.1 | E97: mucin-5AC
A98: NC_044370.1 | B98: 89380780 | C98: LOC115697260 | D98: XP_030480055.1 | E98: pathogenesis-related thaumatin-like protein 3.5
A99: NC_044370.1 | B99: 89476855 | C99: LOC115697319 | D99: XP_030480129.1 | E99: RNA polymerase sigma factor sigB
A100: NC_044370.1 | B100: 89565597 | C100: LOC115697356 | D100: XP_030480190.1 | E100: uncharacterized protein LOC115697356
A101: NC_044370.1 | B101: 89565678 | C101: LOC115697356 | D101: XP_030480190.1 | E101: uncharacterized protein LOC115697356
A102: NC_044370.1 | B102: 89566903 | C102: LOC115697350 | D102: XP_030480176.1 | E102: uncharacterized protein LOC115697350
A103: NC_044370.1 | B103: 89807221 | C103: LOC115697403 | D103: XP_030480248.1 | E103: glucan endo-1%2C3-beta-glucosidase 5
A104: NC_044370.1 | B104: 90895040 | C104: LOC115697670 | D104: XP_030480624.1 | E104: LOW QUALITY PROTEIN: E3 ubiquitin-protein ligase UPL2-like
A105: NC_044370.1 | B105: 92651639 | C105: LOC115698059 | D105: XP_030481104.1 | E105: mediator of RNA polymerase II transcription subunit 1
A106: NC_044370.1 | B106: 94422496 | C106: LOC115698167 | D106: XP_030481210.1 | E106: uncharacterized protein LOC115698167
A107: NC_044370.1 | B107: 95075888 | C107: LOC115698486 | D107: XP_030481429.1 | E107: uncharacterized protein LOC115698486
A108: NC_044370.1 | B108: 95476032 | C108: LOC115695674 | D108: XP_030478595.1 | E108: uncharacterized protein LOC115695674
A109: NC_044370.1 | B109: 96335127 | C109: LOC115698695 | D109: XP_030481700.1 | E109: uncharacterized protein At1g21580 isoform X1
A110: NC_044370.1 | B110: 97251951 | C110: LOC115699010 | D110: XP_030482083.1 | E110: serine hydroxymethyltransferase 7
A111: NC_044370.1 | B111: 98288328 | C111: LOC115699243 | D111: XP_030482409.1 | E111: signal peptidase complex-like protein DTM1
A112: NC_044370.1 | B112: 98535918 | C112: LOC115699331 | D112: XP_030482543.1 | E112: probable LRR receptor-like serine/threonine-protein kinase At5g37450
A113: NC_044370.1 | B113: 99509794 | C113: LOC115699576 | D113: XP_030482935.1 | E113: nuclear nucleic acid-binding protein C1D
A114: NC_044370.1 | B114: 99562132 | C114: LOC115699637 | D114: XP_030483004.1 | E114: 11-beta-hydroxysteroid dehydrogenase-like 5
A115: NC_044370.1 | B115: 99759104 | C115: LOC115699757 | D115: XP_030483169.1 | E115: endo-1%2C3%3B1%2C4-beta-D-glucanase-like isoform X2
A116: NC_044370.1 | B116: 99769315 | C116: LOC115699778 | D116: XP_030483187.1 | E116: SWI/SNF complex subunit SWI3C isoform X1
A117: NC_044370.1 | B117: 100090743 | C117: LOC115699885 | D117: XP_030483288.1 | E117: protein NRT1/ PTR FAMILY 4.5 isoform X1
A118: NC_044370.1 | B118: 100322157 | C118: LOC115699959 | D118: XP_030483366.1 | E118: inactive protein kinase SELMODRAFT_444075
A119: NC_044370.1 | B119: 100619575 | C119: LOC115700054 | D119: XP_030483469.1 | E119: cytoplasmic 60S subunit biogenesis factor REI1 homolog 2
A120: NC_044370.1 | B120: 100736342 | C120: LOC115700067 | D120: XP_030483484.1 | E120: plasma membrane ATPase 4
A121: NC_044370.1 | B121: 100910696 | C121: LOC115700150 | D121: XP_030483570.1 | E121: exocyst complex component EXO70A1
A122: NC_044370.1 | B122: 100912182 | C122: LOC115700150 | D122: XP_030483570.1 | E122: exocyst complex component EXO70A1
A123: NC_044370.1 | B123: 100988859 | C123: LOC115700158 | D123: XP_030483580.1 | E123: centrosome-associated protein CEP250 isoform X1
A124: NC_044370.1 | B124: 101243420 | C124: LOC115700273 | D124: XP_030483705.1 | E124: wall-associated receptor kinase-like 14
A125: NC_044370.1 | B125: 101322627 | C125: LOC115700312 | D125: XP_030483753.1 | E125: protein DA1 isoform X3
A126: NC_044370.1 | B126: 101426997 | C126: LOC115700360 | D126: XP_030483798.1 | E126: E3 ubiquitin-protein ligase RNF185
A127: NC_044370.1 | B127: 101726390 | C127: LOC115700534 | D127: XP_030483953.1 | E127: probable protein phosphatase 2C 55
A128: NC_044370.1 | B128: 102134961 | C128: LOC115700855 | D128: XP_030484383.1 | E128: sugar transporter ERD6-like 6
A129: NC_044370.1 | B129: 102993197 | C129: LOC115701243 | D129: XP_030484853.1 | E129: BEL1-like homeodomain protein 3
A130: NC_044370.1 | B130: 103047052 | C130: LOC115701263 | D130: XP_030484876.1 | E130: pentatricopeptide repeat-containing protein At1g19720
A131: NC_044370.1 | B131: 103380494 | C131: LOC115701503 | D131: XP_030485180.1 | E131: aldehyde oxidase GLOX
A132: NC_044370.1 | B132: 103947734 | C132: LOC115702037 | D132: XP_030485359.1 | E132: acetyl-CoA carboxylase 1
A133: NC_044370.1 | B133: 103947749 | C133: LOC115702037 | D133: XP_030485359.1 | E133: acetyl-CoA carboxylase 1
A134: NC_044370.1 | B134: 103958591 | C134: LOC115702037 | D134: XP_030485359.1 | E134: acetyl-CoA carboxylase 1
A135: NC_044370.1 | B135: 103958844 | C135: LOC115702037 | D135: XP_030485359.1 | E135: acetyl-CoA carboxylase 1
A136: NC_044370.1 | B136: 103958864 | C136: LOC115702037 | D136: XP_030485359.1 | E136: acetyl-CoA carboxylase 1
A137: NC_044370.1 | B137: 104263979 | C137: LOC115702276 | D137: XP_030485585.1 | E137: transcriptional corepressor LEUNIG isoform X1
A138: NC_044370.1 | B138: 104499466 | C138: LOC115702326 | D138: XP_030485639.1 | E138: receptor protein-tyrosine kinase CEPR2 isoform X2
A139: NC_044370.1 | B139: 104499577 | C139: LOC115702326 | D139: XP_030485639.1 | E139: receptor protein-tyrosine kinase CEPR2 isoform X2
A140: NC_044370.1 | B140: 104604498 | C140: LOC115702340 | D140: XP_030485661.1 | E140: protein NRT1/ PTR FAMILY 5.10 isoform X2
A141: NC_044370.1 | B141: 104685598 | C141: LOC115702346 | D141: XP_030485669.1 | E141: uncharacterized protein LOC115702346
A142: NC_044371.1 | B142: 198882 | C142: LOC115703642 | D142: XP_030486740.1 | E142: probable LRR receptor-like serine/threonine-protein kinase IRK
A143: NC_044371.1 | B143: 964511 | C143: LOC115708099 | D143: XP_030492146.1 | E143: superoxide dismutase [Fe]%2C chloroplastic
A144: NC_044371.1 | B144: 3712365 | C144: LOC115704795 | D144: XP_030487863.1 | E144: NAC domain-containing protein 7
A145: NC_044371.1 | B145: 5990538 | C145: LOC115705433 | D145: XP_030488630.1 | E145: casein kinase 1-like protein HD16 isoform X2
A146: NC_044371.1 | B146: 6625996 | C146: LOC115705089 | D146: XP_030488186.1 | E146: polyol transporter 5
A147: NC_044371.1 | B147: 8477485 | C147: LOC115704726 | D147: XP_030487792.1 | E147: mannose-1-phosphate guanylyltransferase 1
A148: NC_044371.1 | B148: 8765515 | C148: LOC115706491 | D148: XP_030490013.1 | E148: cucumisin
A149: NC_044371.1 | B149: 9387799 | C149: LOC115705029 | D149: XP_030488123.1 | E149: clathrin heavy chain 1 isoform X1
A150: NC_044371.1 | B150: 10183451 | C150: LOC115706248 | D150: XP_030489696.1 | E150: serine/threonine-protein phosphatase PP1 isozyme 4
A151: NC_044371.1 | B151: 11708680 | C151: LOC115704658 | D151: XP_030487718.1 | E151: ARF guanine-nucleotide exchange factor GNOM isoform X1
A152: NC_044371.1 | B152: 12058342 | C152: LOC115706937 | D152: XP_030490575.1 | E152: pumilio homolog 1
A153: NC_044371.1 | B153: 12853286 | C153: LOC115705436 | D153: XP_030488632.1 | E153: DYRK-family kinase pom1
A154: NC_044371.1 | B154: 13361206 | C154: LOC115707081 | D154: XP_030490778.1 | E154: omega-hydroxypalmitate O-feruloyl transferase
A155: NC_044371.1 | B155: 13562378 | C155: LOC115705633 | D155: XP_030488885.1 | E155: GBF-interacting protein 1-like isoform X1
A156: NC_044371.1 | B156: 14167578 | C156: LOC115705025 | D156: XP_030488119.1 | E156: UDP-glycosyltransferase 76F1
A157: NC_044371.1 | B157: 14839380 | C157: LOC115705126 | D157: XP_030488227.1 | E157: 60S acidic ribosomal protein P0
A158: NC_044371.1 | B158: 16503981 | C158: LOC115705537 | D158: XP_030488751.1 | E158: LOW QUALITY PROTEIN: elongator complex protein 1
A159: NC_044371.1 | B159: 17596012 | C159: LOC115704806 | D159: XP_030487873.1 | E159: CASP-like protein 4C1
A160: NC_044371.1 | B160: 17809606 | C160: LOC115704794 | D160: XP_030487862.1 | E160: LOW QUALITY PROTEIN: aquaporin PIP1-2-like
A161: NC_044371.1 | B161: 19134748 | C161: LOC115704021 | D161: XP_030487104.1 | E161: protein ALP1-like
A162: NC_044371.1 | B162: 19230541 | C162: LOC115707264 | D162: XP_030491032.1 | E162: spliceosome-associated protein 130 A
A163: NC_044371.1 | B163: 19232287 | C163: LOC115707264 | D163: XP_030491032.1 | E163: spliceosome-associated protein 130 A
A164: NC_044371.1 | B164: 19264598 | C164: LOC115706075 | D164: XP_030489451.1 | E164: LOW QUALITY PROTEIN: protein-tyrosine-phosphatase MKP1-like
A165: NC_044371.1 | B165: 19414308 | C165: LOC115707985 | D165: XP_030491968.1 | E165: ankyrin repeat-containing protein ITN1
A166: NC_044371.1 | B166: 20034587 | C166: LOC115705441 | D166: XP_030488637.1 | E166: CDP-diacylglycerol--glycerol-3-phosphate 3-phosphatidyltransferase 2
A167: NC_044371.1 | B167: 22297822 | C167: LOC115706223 | D167: XP_030489661.1 | E167: cell division control protein 48 homolog C-like
A168: NC_044371.1 | B168: 23336681 | C168: LOC115708259 | D168: XP_030492341.1 | E168: probable lysine-specific demethylase ELF6
A169: NC_044371.1 | B169: 23364747 | C169: LOC115708161 | D169: XP_030492229.1 | E169: DNL-type zinc finger protein
A170: NC_044371.1 | B170: 23547086 | C170: LOC115705228 | D170: XP_030488356.1 | E170: LOW QUALITY PROTEIN: protein ELC-like
A171: NC_044371.1 | B171: 23661363 | C171: LOC115707685 | D171: XP_030491573.1 | E171: SAC3 family protein A
A172: NC_044371.1 | B172: 24875188 | C172: LOC115705205 | D172: XP_030488330.1 | E172: nuclear transport factor 2 isoform X2
A173: NC_044371.1 | B173: 25853126 | C173: LOC115707308 | D173: XP_030491082.1 | E173: SNW/SKI-interacting protein A
A174: NC_044371.1 | B174: 26733046 | C174: LOC115705162 | D174: XP_030488269.1 | E174: metacaspase-4
A175: NC_044371.1 | B175: 26958703 | C175: LOC115706029 | D175: XP_030489389.1 | E175: inositol phosphorylceramide glucuronosyltransferase 1
A176: NC_044371.1 | B176: 27125591 | C176: LOC115705657 | D176: XP_030488916.1 | E176: protein Iojap-related%2C mitochondrial
A177: NC_044371.1 | B177: 27638962 | C177: LOC115705649 | D177: XP_030488910.1 | E177: receptor-like protein kinase 5
A178: NC_044371.1 | B178: 28439648 | C178: LOC115708224 | D178: XP_030492303.1 | E178: abscisic acid receptor PYL4
A179: NC_044371.1 | B179: 30180191 | C179: LOC115707656 | D179: XP_030491541.1 | E179: pollen receptor-like kinase 3 isoform X2
A180: NC_044371.1 | B180: 30915444 | C180: LOC115707056 | D180: XP_030490741.1 | E180: mediator of RNA polymerase II transcription subunit 22b
A181: NC_044371.1 | B181: 30984823 | C181: LOC115705197 | D181: XP_030488314.1 | E181: YTH domain-containing protein ECT1
A182: NC_044371.1 | B182: 31707122 | C182: LOC115705231 | D182: XP_030488360.1 | E182: inactive protein kinase SELMODRAFT_444075
A183: NC_044371.1 | B183: 32535856 | C183: LOC115707522 | D183: XP_030491384.1 | E183: GSH-induced LITAF domain protein
A184: NC_044371.1 | B184: 34905635 | C184: LOC115706128 | D184: XP_030489524.1 | E184: zinc finger CCCH domain-containing protein 20
A185: NC_044371.1 | B185: 34905858 | C185: LOC115706128 | D185: XP_030489524.1 | E185: zinc finger CCCH domain-containing protein 20
A186: NC_044371.1 | B186: 35166292 | C186: LOC115706132 | D186: XP_030489530.1 | E186: LOW QUALITY PROTEIN: meiotic nuclear division protein 1 homolog
A187: NC_044371.1 | B187: 37454481 | C187: LOC115704979 | D187: XP_030488057.1 | E187: ATP-dependent DNA helicase Q-like 3
A188: NC_044371.1 | B188: 37848973 | C188: LOC115705187 | D188: XP_030488298.1 | E188: protein PLASTID MOVEMENT IMPAIRED 1-RELATED 1
A189: NC_044371.1 | B189: 38424791 | C189: LOC115706235 | D189: XP_030489673.1 | E189: BTB/POZ domain-containing protein At3g56230
A190: NC_044371.1 | B190: 38803524 | C190: LOC115707475 | D190: XP_030491314.1 | E190: S-norcoclaurine synthase 2
A191: NC_044371.1 | B191: 40667008 | C191: LOC115706064 | D191: XP_030489440.1 | E191: LOW QUALITY PROTEIN: uncharacterized protein LOC115706064
A192: NC_044371.1 | B192: 40683853 | C192: LOC115705827 | D192: XP_030489131.1 | E192: uncharacterized protein LOC115705827
A193: NC_044371.1 | B193: 41652123 | C193: LOC115708110 | D193: XP_030492163.1 | E193: uncharacterized protein LOC115708110 isoform X1
A194: NC_044371.1 | B194: 43145305 | C194: LOC115705133 | D194: XP_030488232.1 | E194: tubulin--tyrosine ligase-like protein 12
A195: NC_044371.1 | B195: 45044891 | C195: LOC115705864 | D195: XP_030489170.1 | E195: trihelix transcription factor ASIL2
A196: NC_044371.1 | B196: 46005776 | C196: LOC115705634 | D196: XP_030488888.1 | E196: CRS2-associated factor 1%2C chloroplastic
A197: NC_044371.1 | B197: 46729328 | C197: LOC115703574 | D197: XP_030486661.1 | E197: mitochondrial carrier protein CoAc2
A198: NC_044371.1 | B198: 47185549 | C198: LOC115705191 | D198: XP_030488307.1 | E198: uncharacterized protein LOC115705191 isoform X1
A199: NC_044371.1 | B199: 48212642 | C199: LOC115704707 | D199: XP_030487767.1 | E199: ninja-family protein mc410
A200: NC_044371.1 | B200: 48933695 | C200: LOC115706469 | D200: XP_030489986.1 | E200: oligouridylate-binding protein 1
... 871 more rows

Sheet 10 hasch_validation_SNP_calls
A1: Supplementary file 10. Allles are in IUPAC nucleotide codes
A2: scu accession | B2: name | C2: NC_044370.1_396958 | D2: NC_044370.1_446991 | E2: NC_044370.1_519926 | F2: NC_044370.1_1074464 | G2: NC_044370.1_2295410 | H2: NC_044370.1_2797486 | I2: NC_044370.1_3438403 | J2: NC_044370.1_3615418 | K2: NC_044370.1_5273823 | L2: NC_044370.1_5413812 | M2: NC_044370.1_5998317 | N2: NC_044370.1_6452596 | O2: NC_044370.1_7092586 | P2: NC_044370.1_7509972 | Q2: NC_044370.1_8248319 | R2: NC_044370.1_8709171 | S2: NC_044370.1_8903288 | T2: NC_044370.1_9369004 | U2: NC_044370.1_9433300 | V2: NC_044370.1_10371709 | W2: NC_044370.1_10571541 | X2: NC_044370.1_10991908 | Y2: NC_044370.1_11034246 | Z2: NC_044370.1_11451945 | AA2: NC_044370.1_11539163 | AB2: NC_044370.1_12553907 | AC2: NC_044370.1_13472981 | AD2: NC_044370.1_13473147 | AE2: NC_044370.1_13649304 | AF2: NC_044370.1_13923101 | AG2: NC_044370.1_14180551 | AH2: NC_044370.1_14313710 | AI2: NC_044370.1_14769857 | AJ2: NC_044370.1_15485580 | AK2: NC_044370.1_15519124 | AL2: NC_044370.1_15898527 | AM2: NC_044370.1_16122357 | AN2: NC_044370.1_16568936 | AO2: NC_044370.1_17492595 | AP2: NC_044370.1_17549222 | AQ2: NC_044370.1_18371550 | AR2: NC_044370.1_19457210 | AS2: NC_044370.1_20251937 | AT2: NC_044370.1_20855747 | AU2: NC_044370.1_21312134 | AV2: NC_044370.1_21686290 | AW2: NC_044370.1_22130955 | AX2: NC_044370.1_22322770 | AY2: NC_044370.1_22322878 | AZ2: NC_044370.1_22323046 | BA2: NC_044370.1_22999568 | BB2: NC_044370.1_24002032 | BC2: NC_044370.1_25084277 | BD2: NC_044370.1_25087578 | BE2: NC_044370.1_25087668 | BF2: NC_044370.1_25087794 | BG2: NC_044370.1_25089600 | BH2: NC_044370.1_25718237 | BI2: NC_044370.1_26403328 | BJ2: NC_044370.1_26732616 | BK2: NC_044370.1_27534643 | BL2: NC_044370.1_27545967 | BM2: NC_044370.1_27549456 | BN2: NC_044370.1_28226830 | BO2: NC_044370.1_28845210 | BP2: NC_044370.1_29556216 | BQ2: NC_044370.1_30234828 | BR2: NC_044370.1_30873923 | BS2: NC_044370.1_31417764 | BT2: NC_044370.1_31701701 | BU2: NC_044370.1_32490896 | BV2: NC_044370.1_32763516 | BW2: NC_044370.1_33135782 | BX2: NC_044370.1_34165458 | BY2: NC_044370.1_34503697 | BZ2: NC_044370.1_35127419 | CA2: NC_044370.1_35129158 | CB2: NC_044370.1_35929113 | CC2: NC_044370.1_37238787 | CD2: NC_044370.1_40235348 | CE2: NC_044370.1_40595221 | CF2: NC_044370.1_42251700 | CG2: NC_044370.1_43240569 | CH2: NC_044370.1_44455539 | CI2: NC_044370.1_44641382 | CJ2: NC_044370.1_45164193 | CK2: NC_044370.1_48454358 | CL2: NC_044370.1_49675760 | CM2: NC_044370.1_50722753 | CN2: NC_044370.1_51077011 | CO2: NC_044370.1_52533765 | CP2: NC_044370.1_52534186 | CQ2: NC_044370.1_52619653 | CR2: NC_044370.1_52619674 | CS2: NC_044370.1_53661678 | CT2: NC_044370.1_54331412 | CU2: NC_044370.1_55411275 | CV2: NC_044370.1_55696083 | CW2: NC_044370.1_56904236 | CX2: NC_044370.1_57027645 | CY2: NC_044370.1_57851871 | CZ2: NC_044370.1_58250453 | DA2: NC_044370.1_58924383 | DB2: NC_044370.1_59203675 | DC2: NC_044370.1_59580781 | DD2: NC_044370.1_62016761 | DE2: NC_044370.1_62608915 | DF2: NC_044370.1_64267402 | DG2: NC_044370.1_64452613 | DH2: NC_044370.1_64999455 | DI2: NC_044370.1_65341531 | DJ2: NC_044370.1_65733987 | DK2: NC_044370.1_66415691 | DL2: NC_044370.1_66617923 | DM2: NC_044370.1_67087009 | DN2: NC_044370.1_67902724 | DO2: NC_044370.1_68254471 | DP2: NC_044370.1_69264299 | DQ2: NC_044370.1_69809587 | DR2: NC_044370.1_70407686 | DS2: NC_044370.1_70534574 | DT2: NC_044370.1_71240747 | DU2: NC_044370.1_71563833 | DV2: NC_044370.1_72275333 | DW2: NC_044370.1_73457402 | DX2: NC_044370.1_73514260 | DY2: NC_044370.1_74520345 | DZ2: NC_044370.1_75046096 | EA2: NC_044370.1_75985318 | EB2: NC_044370.1_76057514 | EC2: NC_044370.1_76852799 | ED2: NC_044370.1_77425052 | EE2: NC_044370.1_77916383 | EF2: NC_044370.1_78306407 | EG2: NC_044370.1_78658719 | EH2: NC_044370.1_79324998 | EI2: NC_044370.1_80571380 | EJ2: NC_044370.1_81622846 | EK2: NC_044370.1_81879501 | EL2: NC_044370.1_82666079 | EM2: NC_044370.1_84635508 | EN2: NC_044370.1_85258291 | EO2: NC_044370.1_86187266 | EP2: NC_044370.1_86666193 | EQ2: NC_044370.1_87349039 | ER2: NC_044370.1_87545890 | ES2: NC_044370.1_89380780 | ET2: NC_044370.1_89476855 | EU2: NC_044370.1_89565597 | EV2: NC_044370.1_89565678 | EW2: NC_044370.1_89566903 | EX2: NC_044370.1_89807221 | EY2: NC_044370.1_90441772 | EZ2: NC_044370.1_90895040 | FA2: NC_044370.1_91158997 | FB2: NC_044370.1_91991778 | FC2: NC_044370.1_92219695 | FD2: NC_044370.1_92651639 | FE2: NC_044370.1_93947554 | FF2: NC_044370.1_94422496 | FG2: NC_044370.1_94523557 | FH2: NC_044370.1_95075888 | FI2: NC_044370.1_95476032 | FJ2: NC_044370.1_96335127 | FK2: NC_044370.1_96985693 | FL2: NC_044370.1_97251951 | FM2: NC_044370.1_97999260 | FN2: NC_044370.1_98288328 | FO2: NC_044370.1_98535918 | FP2: NC_044370.1_99197475 | FQ2: NC_044370.1_99509794 | FR2: NC_044370.1_99562132 | FS2: NC_044370.1_99759104 | FT2: NC_044370.1_99769315 | FU2: NC_044370.1_100090743 | FV2: NC_044370.1_100322157 | FW2: NC_044370.1_100619575 | FX2: NC_044370.1_100736342 | FY2: NC_044370.1_100779559 | FZ2: NC_044370.1_100910696 | GA2: NC_044370.1_100912182 | GB2: NC_044370.1_100988859 | GC2: NC_044370.1_101243420 | GD2: NC_044370.1_101322485 | GE2: NC_044370.1_101322627 | GF2: NC_044370.1_101426997 | GG2: NC_044370.1_101726390 | GH2: NC_044370.1_102134961 | GI2: NC_044370.1_102993197 | GJ2: NC_044370.1_103047052 | GK2: NC_044370.1_103380494 | GL2: NC_044370.1_103947734 | GM2: NC_044370.1_103947749 | GN2: NC_044370.1_103958591 | GO2: NC_044370.1_103958844 | GP2: NC_044370.1_103958864 | GQ2: NC_044370.1_104263834 | GR2: NC_044370.1_104263979 | GS2: NC_044370.1_104398332 | GT2: NC_044370.1_104499466 | GU2: NC_044370.1_104499577 | GV2: NC_044370.1_104604498 | GW2: NC_044370.1_104685598 | GX2: NC_044371.1_198882 | GY2: NC_044371.1_964511 | GZ2: NC_044371.1_2919347 | HA2: NC_044371.1_3484321 | HB2: NC_044371.1_3712365 | HC2: NC_044371.1_5990538 | HD2: NC_044371.1_6056584 | HE2: NC_044371.1_6625996 | HF2: NC_044371.1_7498230 | HG2: NC_044371.1_7584372 | HH2: NC_044371.1_8477485 | HI2: NC_044371.1_8765515 | HJ2: NC_044371.1_9387799 | HK2: NC_044371.1_10183451 | HL2: NC_044371.1_11486695 | HM2: NC_044371.1_11486797 | HN2: NC_044371.1_11708680 | HO2: NC_044371.1_12058342 | HP2: NC_044371.1_12853286 | HQ2: NC_044371.1_13361206 | HR2: NC_044371.1_13562378 | HS2: NC_044371.1_14167578 | HT2: NC_044371.1_14839380 | HU2: NC_044371.1_15225994 | HV2: NC_044371.1_16436636 | HW2: NC_044371.1_16503981 | HX2: NC_044371.1_17596012 | HY2: NC_044371.1_17809606 | HZ2: NC_044371.1_18580572 | IA2: NC_044371.1_19134748 | IB2: NC_044371.1_19230541 | IC2: NC_044371.1_19232287 | ID2: NC_044371.1_19264598 | IE2: NC_044371.1_19414308 | IF2: NC_044371.1_19802860 | IG2: NC_044371.1_20034587 | IH2: NC_044371.1_21010762 | II2: NC_044371.1_21550258 | IJ2: NC_044371.1_22297822 | IK2: NC_044371.1_23336681 | IL2: NC_044371.1_23364747 | IM2: NC_044371.1_23547086 | IN2: NC_044371.1_23660032 | IO2: NC_044371.1_23661363 | IP2: NC_044371.1_24875188 | IQ2: NC_044371.1_25853126 | IR2: NC_044371.1_26094226 | IS2: NC_044371.1_26733046 | IT2: NC_044371.1_26958703 | IU2: NC_044371.1_27125591 | IV2: NC_044371.1_27638962 | IW2: NC_044371.1_28439648 | IX2: NC_044371.1_30180191 | IY2: NC_044371.1_30915444 | IZ2: NC_044371.1_30984823 | JA2: NC_044371.1_31012006 | JB2: NC_044371.1_31707122 | JC2: NC_044371.1_32535856 | JD2: NC_044371.1_33716683 | JE2: NC_044371.1_34905635 | JF2: NC_044371.1_34905858 | JG2: NC_044371.1_35166292 | JH2: NC_044371.1_37454481 | JI2: NC_044371.1_37848973 | JJ2: NC_044371.1_38424791 | JK2: NC_044371.1_38803524 | JL2: NC_044371.1_39292645 | JM2: NC_044371.1_40017537 | JN2: NC_044371.1_40667008 | JO2: NC_044371.1_40683853 | JP2: NC_044371.1_41652123 | JQ2: NC_044371.1_42797561 | JR2: NC_044371.1_43145305 | JS2: NC_044371.1_45044891 | JT2: NC_044371.1_46005776 | JU2: NC_044371.1_46729328 | JV2: NC_044371.1_47185549 | JW2: NC_044371.1_48212642 | JX2: NC_044371.1_48933695 | JY2: NC_044371.1_49010291 | JZ2: NC_044371.1_53166757 | KA2: NC_044371.1_53196775 | KB2: NC_044371.1_54185717 | KC2: NC_044371.1_54924903 | KD2: NC_044371.1_57332470 | KE2: NC_044371.1_58337542 | KF2: NC_044371.1_58676880 | KG2: NC_044371.1_59331794 | KH2: NC_044371.1_59898263 | KI2: NC_044371.1_59899539 | KJ2: NC_044371.1_59914756 | KK2: NC_044371.1_60495361 | KL2: NC_044371.1_61740157 | KM2: NC_044371.1_62005470 | KN2: NC_044371.1_62831825 | KO2: NC_044371.1_63650368 | KP2: NC_044371.1_65122680 | KQ2: NC_044371.1_65860347 | KR2: NC_044371.1_66369170 | KS2: NC_044371.1_67079990 | KT2: NC_044371.1_67761579 | KU2: NC_044371.1_68144078 | KV2: NC_044371.1_68580442 | KW2: NC_044371.1_70348029 | KX2: NC_044371.1_70764954 | KY2: NC_044371.1_70890538 | KZ2: NC_044371.1_71302857 | LA2: NC_044371.1_71311921 | LB2: NC_044371.1_72895798 | LC2: NC_044371.1_74131321 | LD2: NC_044371.1_74255677 | LE2: NC_044371.1_74735505 | LF2: NC_044371.1_74738186 | LG2: NC_044371.1_76074726 | LH2: NC_044371.1_77425552 | LI2: NC_044371.1_77610898 | LJ2: NC_044371.1_78286558 | LK2: NC_044371.1_79583820 | LL2: NC_044371.1_79589292 | LM2: NC_044371.1_79637892 | LN2: NC_044371.1_80069931 | LO2: NC_044371.1_80937586 | LP2: NC_044371.1_81051644 | LQ2: NC_044371.1_81058368 | LR2: NC_044371.1_81714367 | LS2: NC_044371.1_82489715 | LT2: NC_044371.1_82489742 | LU2: NC_044371.1_82584421 | LV2: NC_044371.1_82600194 | LW2: NC_044371.1_83311565 | LX2: NC_044371.1_83885709 | LY2: NC_044371.1_84183734 | LZ2: NC_044371.1_84675345 | MA2: NC_044371.1_85157726 | MB2: NC_044371.1_85157882 | MC2: NC_044371.1_85180354 | MD2: NC_044371.1_85362075 | ME2: NC_044371.1_85438018 | MF2: NC_044371.1_85683366 | MG2: NC_044371.1_86240723 | MH2: NC_044371.1_87455900 | MI2: NC_044371.1_87613815 | MJ2: NC_044371.1_88071954 | MK2: NC_044371.1_88189782 | ML2: NC_044371.1_88526409 | MM2: NC_044371.1_89060883 | MN2: NC_044371.1_89081398 | MO2: NC_044371.1_89178720 | MP2: NC_044371.1_89270341 | MQ2: NC_044371.1_89661830 | MR2: NC_044371.1_89697920 | MS2: NC_044371.1_89742751 | MT2: NC_044371.1_89879106 | MU2: NC_044371.1_90238604 | MV2: NC_044371.1_90493770 | MW2: NC_044371.1_90544385 | MX2: NC_044371.1_90646248 | MY2: NC_044371.1_90646289 | MZ2: NC_044371.1_90647755 | NA2: NC_044371.1_90862497 | NB2: NC_044371.1_91470788 | NC2: NC_044371.1_91685049 | ND2: NC_044371.1_91842742 | NE2: NC_044371.1_93161302 | NF2: NC_044371.1_93460525 | NG2: NC_044371.1_93726177 | NH2: NC_044371.1_93841120 | NI2: NC_044371.1_93982942 | NJ2: NC_044371.1_94080231 | NK2: NC_044371.1_94164835 | NL2: NC_044371.1_94755916 | NM2: NC_044371.1_95369109 | NN2: NC_044371.1_95625960 | NO2: NC_044371.1_96814404 | NP2: NC_044371.1_96990647 | NQ2: NC_044371.1_97250215 | NR2: NC_044371.1_97341081 | NS2: NC_044371.1_98356062 | NT2: NC_044371.1_98444613 | NU2: NC_044371.1_98523670 | NV2: NC_044371.1_98560005 | NW2: NC_044371.1_98607924 | NX2: NC_044371.1_98777692 | NY2: NC_044371.1_99167508 | NZ2: NC_044371.1_99791003 | OA2: NC_044371.1_99792122 | OB2: NC_044371.1_99792551 | OC2: NC_044371.1_99929463 | OD2: NC_044371.1_100054116 | OE2: NC_044371.1_100552951 | OF2: NC_044371.1_100553156 | OG2: NC_044371.1_100590383 | OH2: NC_044371.1_100889452 | OI2: NC_044371.1_101000470 | OJ2: NC_044372.1_12881 | OK2: NC_044372.1_80232 | OL2: NC_044372.1_546111 | OM2: NC_044372.1_1032812 | ON2: NC_044372.1_1794264 | OO2: NC_044372.1_1798633 | OP2: NC_044372.1_1993167 | OQ2: NC_044372.1_2241649 | OR2: NC_044372.1_2710609 | OS2: NC_044372.1_3398225 | OT2: NC_044372.1_3594331 | OU2: NC_044372.1_4030905 | OV2: NC_044372.1_4031901 | OW2: NC_044372.1_4033286 | OX2: NC_044372.1_4810780 | OY2: NC_044372.1_5614884 | OZ2: NC_044372.1_6021183 | PA2: NC_044372.1_7391446 | PB2: NC_044372.1_7696620 | PC2: NC_044372.1_8239756 | PD2: NC_044372.1_8501142 | PE2: NC_044372.1_9540259 | PF2: NC_044372.1_10421083 | PG2: NC_044372.1_10699113 | PH2: NC_044372.1_10706076 | PI2: NC_044372.1_10708680 | PJ2: NC_044372.1_11363137 | PK2: NC_044372.1_11957861 | PL2: NC_044372.1_12745523 | PM2: NC_044372.1_13108616 | PN2: NC_044372.1_13594211 | PO2: NC_044372.1_14416050 | PP2: NC_044372.1_14506648 | PQ2: NC_044372.1_14649646 | PR2: NC_044372.1_14988792 | PS2: NC_044372.1_17374385 | PT2: NC_044372.1_17909416 | PU2: NC_044372.1_18685512 | PV2: NC_044372.1_19325789 | PW2: NC_044372.1_19966735 | PX2: NC_044372.1_20334748 | PY2: NC_044372.1_20839407 | PZ2: NC_044372.1_21756988 | QA2: NC_044372.1_22950999 | QB2: NC_044372.1_23213606 | QC2: NC_044372.1_24227233 | QD2: NC_044372.1_25154543 | QE2: NC_044372.1_25789252 | QF2: NC_044372.1_26452138 | QG2: NC_044372.1_27589601 | QH2: NC_044372.1_28460411 | QI2: NC_044372.1_28818515 | QJ2: NC_044372.1_29430279 | QK2: NC_044372.1_29611561 | QL2: NC_044372.1_29611874 | QM2: NC_044372.1_30097660 | QN2: NC_044372.1_30097770 | QO2: NC_044372.1_31092793 | QP2: NC_044372.1_32255208 | QQ2: NC_044372.1_32671644 | QR2: NC_044372.1_33086570 | QS2: NC_044372.1_33543972 | QT2: NC_044372.1_34978168 | QU2: NC_044372.1_35435498 | QV2: NC_044372.1_35455417 | QW2: NC_044372.1_35507981 | QX2: NC_044372.1_36556344 | QY2: NC_044372.1_37402320 | QZ2: NC_044372.1_38039512 | RA2: NC_044372.1_38879643 | RB2: NC_044372.1_39021275 | RC2: NC_044372.1_39979431 | RD2: NC_044372.1_40112403 | RE2: NC_044372.1_40635014 | RF2: NC_044372.1_41481982 | RG2: NC_044372.1_42612068 | RH2: NC_044372.1_44372936 | RI2: NC_044372.1_44654149 | RJ2: NC_044372.1_45368892 | RK2: NC_044372.1_45639203 | RL2: NC_044372.1_46072643 | RM2: NC_044372.1_46596287 | RN2: NC_044372.1_47007817 | RO2: NC_044372.1_47792349 | RP2: NC_044372.1_48010205 | RQ2: NC_044372.1_48961272 | RR2: NC_044372.1_50673884 | RS2: NC_044372.1_51292362 | RT2: NC_044372.1_51839282 | RU2: NC_044372.1_52839334 | RV2: NC_044372.1_53139616 | RW2: NC_044372.1_53682073 | RX2: NC_044372.1_54059974 | RY2: NC_044372.1_55111093 | RZ2: NC_044372.1_56199113 | SA2: NC_044372.1_56654439 | SB2: NC_044372.1_56983504 | SC2: NC_044372.1_57112657 | SD2: NC_044372.1_57657937 | SE2: NC_044372.1_58133266 | SF2: NC_044372.1_59050549 | SG2: NC_044372.1_60226932 | SH2: NC_044372.1_60702976 | SI2: NC_044372.1_61783885 | SJ2: NC_044372.1_62489970 | SK2: NC_044372.1_62772811 | SL2: NC_044372.1_63866451 | SM2: NC_044372.1_64336770 | SN2: NC_044372.1_64595069 | SO2: NC_044372.1_65316185 | SP2: NC_044372.1_65622925 | SQ2: NC_044372.1_67217217 | SR2: NC_044372.1_67675773 | SS2: NC_044372.1_68215615 | ST2: NC_044372.1_68556981 | SU2: NC_044372.1_69077817 | SV2: NC_044372.1_69586791 | SW2: NC_044372.1_70311826 | SX2: NC_044372.1_70637167 | SY2: NC_044372.1_71140697 | SZ2: NC_044372.1_71880456 | TA2: NC_044372.1_72563765 | TB2: NC_044372.1_74028194 | TC2: NC_044372.1_75968870 | TD2: NC_044372.1_76022628 | TE2: NC_044372.1_77226935 | TF2: NC_044372.1_78125131 | TG2: NC_044372.1_78839609 | TH2: NC_044372.1_80313147 | TI2: NC_044372.1_80668264 | TJ2: NC_044372.1_81077832 | TK2: NC_044372.1_82513768 | TL2: NC_044372.1_82513770 | TM2: NC_044372.1_82855928 | TN2: NC_044372.1_83377309 | TO2: NC_044372.1_83587197 | TP2: NC_044372.1_84101304 | TQ2: NC_044372.1_84857704 | TR2: NC_044372.1_84974916 | TS2: NC_044372.1_85077204 | TT2: NC_044372.1_85642080 | TU2: NC_044372.1_86921615 | TV2: NC_044372.1_87475358 | TW2: NC_044372.1_87923072 | TX2: NC_044372.1_88008755 | TY2: NC_044372.1_89747597 | TZ2: NC_044372.1_91261032 | UA2: NC_044372.1_92084602 | UB2: NC_044372.1_93090916 | UC2: NC_044372.1_93550513 | UD2: NC_044372.1_94274155 | UE2: NC_044372.1_94587517 | UF2: NC_044373.1_284541 | UG2: NC_044373.1_571833 | UH2: NC_044373.1_572010 | UI2: NC_044373.1_738712 | UJ2: NC_044373.1_1060641 | UK2: NC_044373.1_1606139 | UL2: NC_044373.1_2324594 | UM2: NC_044373.1_2802125 | UN2: NC_044373.1_3419190 | UO2: NC_044373.1_3829198 | UP2: NC_044373.1_4488667 | UQ2: NC_044373.1_5174682 | UR2: NC_044373.1_5285013 | US2: NC_044373.1_5334470 | UT2: NC_044373.1_5398858 | UU2: NC_044373.1_5641665 | UV2: NC_044373.1_6107166 | UW2: NC_044373.1_6878540 | UX2: NC_044373.1_7484101 | UY2: NC_044373.1_7704296 | UZ2: NC_044373.1_8039847 | VA2: NC_044373.1_8734595 | VB2: NC_044373.1_9981641 | VC2: NC_044373.1_10439369 | VD2: NC_044373.1_10567168 | VE2: NC_044373.1_11589910 | VF2: NC_044373.1_11698424 | VG2: NC_044373.1_12688161 | VH2: NC_044373.1_13641505 | VI2: NC_044373.1_13641598 | VJ2: NC_044373.1_14662632 | VK2: NC_044373.1_15373871 | VL2: NC_044373.1_15383708 | VM2: NC_044373.1_15383729 | VN2: NC_044373.1_15729254 | VO2: NC_044373.1_16699194 | VP2: NC_044373.1_18830079 | VQ2: NC_044373.1_19487402 | VR2: NC_044373.1_19551525 | VS2: NC_044373.1_19597734 | VT2: NC_044373.1_19644492 | VU2: NC_044373.1_19722018 | VV2: NC_044373.1_20430466 | VW2: NC_044373.1_20709239 | VX2: NC_044373.1_21339728 | VY2: NC_044373.1_21719879 | VZ2: NC_044373.1_22036426 | WA2: NC_044373.1_22036602 | WB2: NC_044373.1_22074824 | WC2: NC_044373.1_22633592 | WD2: NC_044373.1_23162656 | WE2: NC_044373.1_23990520 | WF2: NC_044373.1_24834414 | WG2: NC_044373.1_25664599 | WH2: NC_044373.1_26273391 | WI2: NC_044373.1_26921193 | WJ2: NC_044373.1_27328393 | WK2: NC_044373.1_27904722 | WL2: NC_044373.1_28317959 | WM2: NC_044373.1_28584728 | WN2: NC_044373.1_29339973 | WO2: NC_044373.1_29553992 | WP2: NC_044373.1_30468386 | WQ2: NC_044373.1_30542505 | WR2: NC_044373.1_31243459 | WS2: NC_044373.1_32286006 | WT2: NC_044373.1_32332872 | WU2: NC_044373.1_32669143 | WV2: NC_044373.1_33048557 | WW2: NC_044373.1_33534539 | WX2: NC_044373.1_33618364 | WY2: NC_044373.1_34298954 | WZ2: NC_044373.1_34636138 | XA2: NC_044373.1_35413534 | XB2: NC_044373.1_35727818 | XC2: NC_044373.1_35727956 | XD2: NC_044373.1_35727995 | XE2: NC_044373.1_35735463 | XF2: NC_044373.1_35737807 | XG2: NC_044373.1_36982846 | XH2: NC_044373.1_37411489 | XI2: NC_044373.1_37945987 | XJ2: NC_044373.1_38345528 | XK2: NC_044373.1_38580863 | XL2: NC_044373.1_39458330 | XM2: NC_044373.1_39952976 | XN2: NC_044373.1_40336002 | XO2: NC_044373.1_40796476 | XP2: NC_044373.1_41209420 | XQ2: NC_044373.1_42454866 | XR2: NC_044373.1_44368060 | XS2: NC_044373.1_45359227 | XT2: NC_044373.1_45849247 | XU2: NC_044373.1_46224111 | XV2: NC_044373.1_46737289 | XW2: NC_044373.1_46737970 | XX2: NC_044373.1_46738180 | XY2: NC_044373.1_46738638 | XZ2: NC_044373.1_47276339 | YA2: NC_044373.1_48215113 | YB2: NC_044373.1_48215317 | YC2: NC_044373.1_49236525 | YD2: NC_044373.1_49988607 | YE2: NC_044373.1_50146161 | YF2: NC_044373.1_53048752 | YG2: NC_044373.1_53911581 | YH2: NC_044373.1_54055329 | YI2: NC_044373.1_54760762 | YJ2: NC_044373.1_55445205 | YK2: NC_044373.1_55613730 | YL2: NC_044373.1_56084778 | YM2: NC_044373.1_56424158 | YN2: NC_044373.1_56647202 | YO2: NC_044373.1_57953646 | YP2: NC_044373.1_58324189 | YQ2: NC_044373.1_59833768 | YR2: NC_044373.1_60699372 | YS2: NC_044373.1_61626072 | YT2: NC_044373.1_62472006 | YU2: NC_044373.1_62472018 | YV2: NC_044373.1_62537331 | YW2: NC_044373.1_62537433 | YX2: NC_044373.1_63069757 | YY2: NC_044373.1_63812876 | YZ2: NC_044373.1_64017639 | ZA2: NC_044373.1_65441054 | ZB2: NC_044373.1_65594576 | ZC2: NC_044373.1_66460136 | ZD2: NC_044373.1_66695439 | ZE2: NC_044373.1_67550685 | ZF2: NC_044373.1_67890639 | ZG2: NC_044373.1_67890681 | ZH2: NC_044373.1_67890945 | ZI2: NC_044373.1_68107975 | ZJ2: NC_044373.1_68841867 | ZK2: NC_044373.1_69535534 | ZL2: NC_044373.1_70009611 | ZM2: NC_044373.1_70511674 | ZN2: NC_044373.1_71465800 | ZO2: NC_044373.1_71963818 | ZP2: NC_044373.1_72336993 | ZQ2: NC_044373.1_72887271 | ZR2: NC_044373.1_73014113 | ZS2: NC_044373.1_73504536 | ZT2: NC_044373.1_74694493 | ZU2: NC_044373.1_75269195 | ZV2: NC_044373.1_75977786 | ZW2: NC_044373.1_76023619 | ZX2: NC_044373.1_76629371 | ZY2: NC_044373.1_77015247 | ZZ2: NC_044373.1_77745874 | AAA2: NC_044373.1_77848324 | AAB2: NC_044373.1_78305642 | AAC2: NC_044373.1_78565480 | AAD2: NC_044373.1_79493485 | AAE2: NC_044373.1_80063338 | AAF2: NC_044373.1_80525670 | AAG2: NC_044373.1_81078574 | AAH2: NC_044373.1_81533818 | AAI2: NC_044373.1_82172653 | AAJ2: NC_044373.1_82447259 | AAK2: NC_044373.1_82453283 | AAL2: NC_044373.1_82788153 | AAM2: NC_044373.1_84272954 | AAN2: NC_044373.1_84988024 | AAO2: NC_044373.1_85163804 | AAP2: NC_044373.1_85999006 | AAQ2: NC_044373.1_86321149 | AAR2: NC_044373.1_87386611 | AAS2: NC_044373.1_88408852 | AAT2: NC_044373.1_88643782 | AAU2: NC_044373.1_88850992 | AAV2: NC_044373.1_88928952 | AAW2: NC_044373.1_89139945 | AAX2: NC_044373.1_89813214 | AAY2: NC_044373.1_90356293 | AAZ2: NC_044373.1_90549974 | ABA2: NC_044373.1_90936647 | ABB2: NC_044373.1_91046258 | ABC2: NC_044373.1_91206346 | ABD2: NC_044373.1_91282780 | ABE2: NC_044373.1_91358247 | ABF2: NC_044373.1_91675377 | ABG2: NC_044374.1_1250 | ABH2: NC_044374.1_147547 | ABI2: NC_044374.1_364024 | ABJ2: NC_044374.1_528107 | ABK2: NC_044374.1_1371756 | ABL2: NC_044374.1_1994767 | ABM2: NC_044374.1_2380832 | ABN2: NC_044374.1_2790785 | ABO2: NC_044374.1_3037253 | ABP2: NC_044374.1_3201204 | ABQ2: NC_044374.1_3752935 | ABR2: NC_044374.1_3853959 | ABS2: NC_044374.1_4359036 | ABT2: NC_044374.1_4533076 | ABU2: NC_044374.1_5447546 | ABV2: NC_044374.1_6946887 | ABW2: NC_044374.1_7123311 | ABX2: NC_044374.1_7843935 | ABY2: NC_044374.1_8212245 | ABZ2: NC_044374.1_9058654 | ACA2: NC_044374.1_9698871 | ACB2: NC_044374.1_10107422 | ACC2: NC_044374.1_10520086 | ACD2: NC_044374.1_11431950 | ACE2: NC_044374.1_11998093 | ACF2: NC_044374.1_12216508 | ACG2: NC_044374.1_12833870 | ACH2: NC_044374.1_13312547 | ACI2: NC_044374.1_13937244 | ACJ2: NC_044374.1_14037907 | ACK2: NC_044374.1_15008846 | ACL2: NC_044374.1_15796875 | ACM2: NC_044374.1_16032117 | ACN2: NC_044374.1_16722057 | ACO2: NC_044374.1_17975526 | ACP2: NC_044374.1_18464873 | ACQ2: NC_044374.1_19251569 | ACR2: NC_044374.1_20444953 | ACS2: NC_044374.1_20934717 | ACT2: NC_044374.1_21220094 | ACU2: NC_044374.1_21982935 | ACV2: NC_044374.1_22109508 | ACW2: NC_044374.1_22999531 | ACX2: NC_044374.1_23460288 | ACY2: NC_044374.1_24693414 | ACZ2: NC_044374.1_25154492 | ADA2: NC_044374.1_26125189 | ADB2: NC_044374.1_27989578 | ADC2: NC_044374.1_28027364 | ADD2: NC_044374.1_29304616 | ADE2: NC_044374.1_30191978 | ADF2: NC_044374.1_30634667 | ADG2: NC_044374.1_31921254 | ADH2: NC_044374.1_32676809 | ADI2: NC_044374.1_33198979 | ADJ2: NC_044374.1_33857442 | ADK2: NC_044374.1_34623405 | ADL2: NC_044374.1_35913744 | ADM2: NC_044374.1_36404777 | ADN2: NC_044374.1_37207802 | ADO2: NC_044374.1_38079179 | ADP2: NC_044374.1_38554841 | ADQ2: NC_044374.1_38618242 | ADR2: NC_044374.1_39325586 | ADS2: NC_044374.1_40882542 | ADT2: NC_044374.1_41404253 | ADU2: NC_044374.1_41571598 | ADV2: NC_044374.1_42878548 | ADW2: NC_044374.1_43707084 | ADX2: NC_044374.1_44537712 | ADY2: NC_044374.1_45543422 | ADZ2: NC_044374.1_46313976 | AEA2: NC_044374.1_46886660 | AEB2: NC_044374.1_47879147 | AEC2: NC_044374.1_49262999 | AED2: NC_044374.1_49784874 | AEE2: NC_044374.1_50528033 | AEF2: NC_044374.1_50650067 | AEG2: NC_044374.1_51029216 | AEH2: NC_044374.1_51813672 | AEI2: NC_044374.1_51815506 | AEJ2: NC_044374.1_52198756 | AEK2: NC_044374.1_52585034 | AEL2: NC_044374.1_53041602 | AEM2: NC_044374.1_54360352 | AEN2: NC_044374.1_55404476 | AEO2: NC_044374.1_57293370 | AEP2: NC_044374.1_59928824 | AEQ2: NC_044374.1_60870916 | AER2: NC_044374.1_61494230 | AES2: NC_044374.1_61877208 | AET2: NC_044374.1_62136631 | AEU2: NC_044374.1_62754453 | AEV2: NC_044374.1_63096461 | AEW2: NC_044374.1_63976072 | AEX2: NC_044374.1_64031880 | AEY2: NC_044374.1_65311376 | AEZ2: NC_044374.1_67748660 | AFA2: NC_044374.1_68330236 | AFB2: NC_044374.1_68638513 | AFC2: NC_044374.1_69354964 | AFD2: NC_044374.1_69714570 | AFE2: NC_044374.1_70430694 | AFF2: NC_044374.1_70714247 | AFG2: NC_044374.1_70926048 | AFH2: NC_044374.1_71986982 | AFI2: NC_044374.1_72956465 | AFJ2: NC_044374.1_73139787 | AFK2: NC_044374.1_73139962 | AFL2: NC_044374.1_73685728 | AFM2: NC_044374.1_73685770 | AFN2: NC_044374.1_73760815 | AFO2: NC_044374.1_74160426 | AFP2: NC_044374.1_74726674 | AFQ2: NC_044374.1_75224890 | AFR2: NC_044374.1_75825142 | AFS2: NC_044374.1_76418440 | AFT2: NC_044374.1_78090730 | AFU2: NC_044374.1_78985405 | AFV2: NC_044374.1_79103957 | AFW2: NC_044374.1_80032965 | AFX2: NC_044374.1_80697007 | AFY2: NC_044374.1_81259952 | AFZ2: NC_044374.1_81560122 | AGA2: NC_044374.1_82097851 | AGB2: NC_044374.1_82601373 | AGC2: NC_044374.1_83366446 | AGD2: NC_044374.1_83538144 | AGE2: NC_044374.1_84250190 | AGF2: NC_044374.1_84298259 | AGG2: NC_044374.1_84686075 | AGH2: NC_044374.1_85851025 | AGI2: NC_044374.1_86003251 | AGJ2: NC_044374.1_86371409 | AGK2: NC_044374.1_86371457 | AGL2: NC_044374.1_86816896 | AGM2: NC_044374.1_86850172 | AGN2: NC_044374.1_87025921 | AGO2: NC_044375.1_92103 | AGP2: NC_044375.1_917507 | AGQ2: NC_044375.1_1191464 | AGR2: NC_044375.1_1987780 | AGS2: NC_044375.1_2134751 | AGT2: NC_044375.1_2364656 | AGU2: NC_044375.1_3938786 | AGV2: NC_044375.1_4596639 | AGW2: NC_044375.1_4638822 | AGX2: NC_044375.1_5055891 | AGY2: NC_044375.1_5056020 | AGZ2: NC_044375.1_6469635 | AHA2: NC_044375.1_6968489 | AHB2: NC_044375.1_7619203 | AHC2: NC_044375.1_8447440 | AHD2: NC_044375.1_8513008 | AHE2: NC_044375.1_9025323 | AHF2: NC_044375.1_9794169 | AHG2: NC_044375.1_10070168 | AHH2: NC_044375.1_11539865 | AHI2: NC_044375.1_11540147 | AHJ2: NC_044375.1_11671217 | AHK2: NC_044375.1_12071747 | AHL2: NC_044375.1_12773193 | AHM2: NC_044375.1_13471173 | AHN2: NC_044375.1_13829172 | AHO2: NC_044375.1_14759049 | AHP2: NC_044375.1_15075435 | AHQ2: NC_044375.1_15764274 | AHR2: NC_044375.1_17312780 | AHS2: NC_044375.1_17510704 | AHT2: NC_044375.1_18136515 | AHU2: NC_044375.1_18772540 | AHV2: NC_044375.1_19896235 | AHW2: NC_044375.1_19993001 | AHX2: NC_044375.1_20441065 | AHY2: NC_044375.1_20998088 | AHZ2: NC_044375.1_21339742 | AIA2: NC_044375.1_21563615 | AIB2: NC_044375.1_22546095 | AIC2: NC_044375.1_23061222 | AID2: NC_044375.1_24501812 | AIE2: NC_044375.1_24950181 | AIF2: NC_044375.1_25910661 | AIG2: NC_044375.1_26231542 | AIH2: NC_044375.1_26642913 | AII2: NC_044375.1_26654317 | AIJ2: NC_044375.1_27194005 | AIK2: NC_044375.1_27967304 | AIL2: NC_044375.1_28467841 | AIM2: NC_044375.1_28923958 | AIN2: NC_044375.1_29341292 | AIO2: NC_044375.1_29556667 | AIP2: NC_044375.1_29558063 | AIQ2: NC_044375.1_30414838 | AIR2: NC_044375.1_30757629 | AIS2: NC_044375.1_31160056 | AIT2: NC_044375.1_31890345 | AIU2: NC_044375.1_32043434 | AIV2: NC_044375.1_32927389 | AIW2: NC_044375.1_32927521 | AIX2: NC_044375.1_33025879 | AIY2: NC_044375.1_33626418 | AIZ2: NC_044375.1_34695362 | AJA2: NC_044375.1_35038903 | AJB2: NC_044375.1_35966456 | AJC2: NC_044375.1_36030074 | AJD2: NC_044375.1_37892048 | AJE2: NC_044375.1_38549467 | AJF2: NC_044375.1_39155292 | AJG2: NC_044375.1_39885605 | AJH2: NC_044375.1_40457830 | AJI2: NC_044375.1_40514294 | AJJ2: NC_044375.1_41138567 | AJK2: NC_044375.1_41961646 | AJL2: NC_044375.1_45175176 | AJM2: NC_044375.1_45647162 | AJN2: NC_044375.1_46558899 | AJO2: NC_044375.1_47219499 | AJP2: NC_044375.1_47581909 | AJQ2: NC_044375.1_48355433 | AJR2: NC_044375.1_48636593 | AJS2: NC_044375.1_49005759 | AJT2: NC_044375.1_49711281 | AJU2: NC_044375.1_50123762 | AJV2: NC_044375.1_50836645 | AJW2: NC_044375.1_51936274 | AJX2: NC_044375.1_52301699 | AJY2: NC_044375.1_53000258 | AJZ2: NC_044375.1_53075919 | AKA2: NC_044375.1_53625700 | AKB2: NC_044375.1_57075473 | AKC2: NC_044375.1_57697100 | AKD2: NC_044375.1_58931152 | AKE2: NC_044375.1_59220412 | AKF2: NC_044375.1_60263053 | AKG2: NC_044375.1_60940883 | AKH2: NC_044375.1_61040255 | AKI2: NC_044375.1_61552011 | AKJ2: NC_044375.1_62381424 | AKK2: NC_044375.1_62664727 | AKL2: NC_044375.1_63191445 | AKM2: NC_044375.1_63520152 | AKN2: NC_044375.1_64382791 | AKO2: NC_044375.1_64531877 | AKP2: NC_044375.1_65114201 | AKQ2: NC_044375.1_66783738 | AKR2: NC_044375.1_67483512 | AKS2: NC_044375.1_67759237 | AKT2: NC_044375.1_68412076 | AKU2: NC_044375.1_68629702 | AKV2: NC_044375.1_69810148 | AKW2: NC_044375.1_70935275 | AKX2: NC_044375.1_71414496 | AKY2: NC_044375.1_71774904 | AKZ2: NC_044375.1_72690032 | ALA2: NC_044375.1_73404020 | ALB2: NC_044375.1_73606316 | ALC2: NC_044375.1_74061285 | ALD2: NC_044375.1_75094717 | ALE2: NC_044375.1_77965765 | ALF2: NC_044375.1_78035002 | ALG2: NC_044375.1_78738447 | ALH2: NC_044375.1_79087514 | ALI2: NC_044375.1_79822397 | ALJ2: NC_044375.1_80616488 | ALK2: NC_044375.1_81060561 | ALL2: NC_044375.1_81876957 | ALM2: NC_044375.1_82189903 | ALN2: NC_044375.1_82219376 | ALO2: NC_044375.1_82334505 | ALP2: NC_044375.1_82763804 | ALQ2: NC_044375.1_83237061 | ALR2: NC_044375.1_83997061 | ALS2: NC_044375.1_84288141 | ALT2: NC_044375.1_84822476 | ALU2: NC_044375.1_85315646 | ALV2: NC_044375.1_85782385 | ALW2: NC_044375.1_87326098 | ALX2: NC_044375.1_87531189 | ALY2: NC_044375.1_88456700 | ALZ2: NC_044375.1_89235736 | AMA2: NC_044375.1_89778745 | AMB2: NC_044375.1_90075775 | AMC2: NC_044375.1_90448485 | AMD2: NC_044375.1_90658714 | AME2: NC_044375.1_91494776 | AMF2: NC_044375.1_91543701 | AMG2: NC_044375.1_93571244 | AMH2: NC_044375.1_94004784 | AMI2: NC_044375.1_95428413 | AMJ2: NC_044375.1_95521883 | AMK2: NC_044375.1_96041905 | AML2: NC_044375.1_96102624 | AMM2: NC_044375.1_96130285 | AMN2: NC_044375.1_96145779 | AMO2: NC_044375.1_96205887 | AMP2: NC_044376.1_383215 | AMQ2: NC_044376.1_558376 | AMR2: NC_044376.1_999092 | AMS2: NC_044376.1_1324309 | AMT2: NC_044376.1_1328392 | AMU2: NC_044376.1_1738361 | AMV2: NC_044376.1_1745479 | AMW2: NC_044376.1_2990370 | AMX2: NC_044376.1_3071688 | AMY2: NC_044376.1_3190123 | AMZ2: NC_044376.1_3283149 | ANA2: NC_044376.1_3667976 | ANB2: NC_044376.1_3822153 | ANC2: NC_044376.1_3916350 | AND2: NC_044376.1_4038984 | ANE2: NC_044376.1_4058908 | ANF2: NC_044376.1_4815123 | ANG2: NC_044376.1_5104381 | ANH2: NC_044376.1_5283833 | ANI2: NC_044376.1_5286081 | ANJ2: NC_044376.1_5946006 | ANK2: NC_044376.1_7005697 | ANL2: NC_044376.1_7017434 | ANM2: NC_044376.1_7922809 | ANN2: NC_044376.1_7922834 | ANO2: NC_044376.1_8037107 | ANP2: NC_044376.1_8986270 | ANQ2: NC_044376.1_9067183 | ANR2: NC_044376.1_9211379 | ANS2: NC_044376.1_9280401 | ANT2: NC_044376.1_9690700 | ANU2: NC_044376.1_9694476 | ANV2: NC_044376.1_10753595 | ANW2: NC_044376.1_10923315 | ANX2: NC_044376.1_11942721 | ANY2: NC_044376.1_13854974 | ANZ2: NC_044376.1_14478037 | AOA2: NC_044376.1_14863707 | AOB2: NC_044376.1_15177452 | AOC2: NC_044376.1_15925508 | AOD2: NC_044376.1_16173350 | AOE2: NC_044376.1_18364722 | AOF2: NC_044376.1_20094683 | AOG2: NC_044376.1_20844680 | AOH2: NC_044376.1_21354241 | AOI2: NC_044376.1_21658784 | AOJ2: NC_044376.1_22378875 | AOK2: NC_044376.1_22656897 | AOL2: NC_044376.1_23044005 | AOM2: NC_044376.1_23487072 | AON2: NC_044376.1_23993155 | AOO2: NC_044376.1_24678688 | AOP2: NC_044376.1_25032526 | AOQ2: NC_044376.1_26158316 | AOR2: NC_044376.1_27362198 | AOS2: NC_044376.1_27854623 | AOT2: NC_044376.1_28388660 | AOU2: NC_044376.1_29494555 | AOV2: NC_044376.1_29945540 | AOW2: NC_044376.1_30151888 | AOX2: NC_044376.1_30705986 | AOY2: NC_044376.1_31481427 | AOZ2: NC_044376.1_31769837 | APA2: NC_044376.1_32216752 | APB2: NC_044376.1_32887092 | APC2: NC_044376.1_33382323 | APD2: NC_044376.1_33384749 | APE2: NC_044376.1_33714635 | APF2: NC_044376.1_34177055 | APG2: NC_044376.1_34901651 | APH2: NC_044376.1_35136595 | API2: NC_044376.1_35501335 | APJ2: NC_044376.1_36709982 | APK2: NC_044376.1_37063923 | APL2: NC_044376.1_37988201 | APM2: NC_044376.1_38199411 | APN2: NC_044376.1_39374580 | APO2: NC_044376.1_40070095 | APP2: NC_044376.1_41120173 | APQ2: NC_044376.1_41121076 | APR2: NC_044376.1_41950566 | APS2: NC_044376.1_42094326 | APT2: NC_044376.1_43839141 | APU2: NC_044376.1_44158499 | APV2: NC_044376.1_45628941 | APW2: NC_044376.1_46397621 | APX2: NC_044376.1_46397762 | APY2: NC_044376.1_46832092 | APZ2: NC_044376.1_47011945 | AQA2: NC_044376.1_47269032 | AQB2: NC_044376.1_48981963 | AQC2: NC_044376.1_49699970 | AQD2: NC_044376.1_50204403 | AQE2: NC_044376.1_50814157 | AQF2: NC_044376.1_51021285 | AQG2: NC_044376.1_52482951 | AQH2: NC_044376.1_53878512 | AQI2: NC_044376.1_54428358 | AQJ2: NC_044376.1_54869694 | AQK2: NC_044376.1_55109407 | AQL2: NC_044376.1_55904434 | AQM2: NC_044376.1_56439717 | AQN2: NC_044376.1_56709618 | AQO2: NC_044376.1_57207236 | AQP2: NC_044376.1_57741760 | AQQ2: NC_044376.1_58357974 | AQR2: NC_044376.1_59766839 | AQS2: NC_044376.1_60148310 | AQT2: NC_044376.1_61096875 | AQU2: NC_044376.1_61284982 | AQV2: NC_044376.1_61285107 | AQW2: NC_044376.1_61502555 | AQX2: NC_044377.1_141160 | AQY2: NC_044377.1_148628 | AQZ2: NC_044377.1_598607 | ARA2: NC_044377.1_1380406 | ARB2: NC_044377.1_1387449 | ARC2: NC_044377.1_1861643 | ARD2: NC_044377.1_2813426 | ARE2: NC_044377.1_3833579 | ARF2: NC_044377.1_5160877 | ARG2: NC_044377.1_5948321 | ARH2: NC_044377.1_6015815 | ARI2: NC_044377.1_6597563 | ARJ2: NC_044377.1_7016977 | ARK2: NC_044377.1_7265978 | ARL2: NC_044377.1_7445862 | ARM2: NC_044377.1_7892809 | ARN2: NC_044377.1_8319708 | ARO2: NC_044377.1_8783020 | ARP2: NC_044377.1_8783140 | ARQ2: NC_044377.1_8784550 | ARR2: NC_044377.1_9717813 | ARS2: NC_044377.1_10384838 | ART2: NC_044377.1_11094938 | ARU2: NC_044377.1_11954417 | ARV2: NC_044377.1_13309325 | ARW2: NC_044377.1_13671799 | ARX2: NC_044377.1_13671949 | ARY2: NC_044377.1_14021577 | ARZ2: NC_044377.1_16467501 | ASA2: NC_044377.1_16679385 | ASB2: NC_044377.1_17889001 | ASC2: NC_044377.1_18427599 | ASD2: NC_044377.1_19082593 | ASE2: NC_044377.1_19869332 | ASF2: NC_044377.1_20035178 | ASG2: NC_044377.1_21235242 | ASH2: NC_044377.1_21709283 | ASI2: NC_044377.1_22415826 | ASJ2: NC_044377.1_22533118 | ASK2: NC_044377.1_23550774 | ASL2: NC_044377.1_23621604 | ASM2: NC_044377.1_25825713 | ASN2: NC_044377.1_26464869 | ASO2: NC_044377.1_26653326 | ASP2: NC_044377.1_27107853 | ASQ2: NC_044377.1_27529724 | ASR2: NC_044377.1_28852468 | ASS2: NC_044377.1_29275904 | AST2: NC_044377.1_29683532 | ASU2: NC_044377.1_30581670 | ASV2: NC_044377.1_31228199 | ASW2: NC_044377.1_31526137 | ASX2: NC_044377.1_31660356 | ASY2: NC_044377.1_32409608 | ASZ2: NC_044377.1_33843039 | ATA2: NC_044377.1_34362257 | ATB2: NC_044377.1_34855178 | ATC2: NC_044377.1_35458352 | ATD2: NC_044377.1_35734106 | ATE2: NC_044377.1_36153082 | ATF2: NC_044377.1_36696248 | ATG2: NC_044377.1_37113605 | ATH2: NC_044377.1_37958845 | ATI2: NC_044377.1_38423568 | ATJ2: NC_044377.1_38767274 | ATK2: NC_044377.1_39884516 | ATL2: NC_044377.1_40077082 | ATM2: NC_044377.1_41228994 | ATN2: NC_044377.1_42184826 | ATO2: NC_044377.1_44377480 | ATP2: NC_044377.1_44844759 | ATQ2: NC_044377.1_45163803 | ATR2: NC_044377.1_46334007 | ATS2: NC_044377.1_46581478 | ATT2: NC_044377.1_47395414 | ATU2: NC_044377.1_49064090 | ATV2: NC_044377.1_49948370 | ATW2: NC_044377.1_50314022 | ATX2: NC_044377.1_50806791 | ATY2: NC_044377.1_51291250 | ATZ2: NC_044377.1_51820552 | AUA2: NC_044377.1_52971935 | AUB2: NC_044377.1_53006444 | AUC2: NC_044377.1_53869927 | AUD2: NC_044377.1_54082317 | AUE2: NC_044377.1_55410487 | AUF2: NC_044377.1_55886097 | AUG2: NC_044377.1_57464615 | AUH2: NC_044377.1_57583392 | AUI2: NC_044377.1_58548648 | AUJ2: NC_044377.1_59750789 | AUK2: NC_044377.1_60124370 | AUL2: NC_044377.1_60975321 | AUM2: NC_044377.1_61051509 | AUN2: NC_044377.1_61982999 | AUO2: NC_044377.1_62294166 | AUP2: NC_044377.1_62678819 | AUQ2: NC_044377.1_63047199 | AUR2: NC_044377.1_64398557 | AUS2: NC_044377.1_64990389 | AUT2: NC_044377.1_65885906 | AUU2: NC_044377.1_66083743 | AUV2: NC_044377.1_68059236 | AUW2: NC_044377.1_68326587 | AUX2: NC_044377.1_68717485 | AUY2: NC_044377.1_69138934 | AUZ2: NC_044377.1_69917219 | AVA2: NC_044377.1_70220896 | AVB2: NC_044377.1_70522354 | AVC2: NC_044377.1_71021046 | AVD2: NC_044377.1_71653106 | AVE2: NC_044377.1_72110586 | AVF2: NC_044377.1_72777266 | AVG2: NC_044377.1_72949314 | AVH2: NC_044377.1_73385586 | AVI2: NC_044377.1_74180197 | AVJ2: NC_044377.1_74539099 | AVK2: NC_044377.1_75860183 | AVL2: NC_044377.1_76467085 | AVM2: NC_044377.1_76614069 | AVN2: NC_044377.1_77687128 | AVO2: NC_044377.1_78288367 | AVP2: NC_044377.1_79009833 | AVQ2: NC_044378.1_98123 | AVR2: NC_044378.1_1166627 | AVS2: NC_044378.1_1552578 | AVT2: NC_044378.1_2146498 | AVU2: NC_044378.1_2769706 | AVV2: NC_044378.1_3434313 | AVW2: NC_044378.1_3669904 | AVX2: NC_044378.1_4400100 | AVY2: NC_044378.1_4549250 | AVZ2: NC_044378.1_5899041 | AWA2: NC_044378.1_5921994 | AWB2: NC_044378.1_6402083 | AWC2: NC_044378.1_6906845 | AWD2: NC_044378.1_7891748 | AWE2: NC_044378.1_8464653 | AWF2: NC_044378.1_8693064 | AWG2: NC_044378.1_9021786 | AWH2: NC_044378.1_9868187 | AWI2: NC_044378.1_10332880 | AWJ2: NC_044378.1_10570082 | AWK2: NC_044378.1_11615953 | AWL2: NC_044378.1_12465588 | AWM2: NC_044378.1_13448870 | AWN2: NC_044378.1_14817330 | AWO2: NC_044378.1_16396689 | AWP2: NC_044378.1_16928148 | AWQ2: NC_044378.1_17273820 | AWR2: NC_044378.1_17657090 | AWS2: NC_044378.1_18355064 | AWT2: NC_044378.1_18803215 | AWU2: NC_044378.1_19893244 | AWV2: NC_044378.1_21733896 | AWW2: NC_044378.1_22001349 | AWX2: NC_044378.1_22668230 | AWY2: NC_044378.1_23011629 | AWZ2: NC_044378.1_24271984 | AXA2: NC_044378.1_25696363 | AXB2: NC_044378.1_26824434 | AXC2: NC_044378.1_27117006 | AXD2: NC_044378.1_27764544 | AXE2: NC_044378.1_28024124 | AXF2: NC_044378.1_29000880 | AXG2: NC_044378.1_29196469 | AXH2: NC_044378.1_30234288 | AXI2: NC_044378.1_30897011 | AXJ2: NC_044378.1_31769236 | AXK2: NC_044378.1_33334561 | AXL2: NC_044378.1_33335250 | AXM2: NC_044378.1_33970048 | AXN2: NC_044378.1_34591674 | AXO2: NC_044378.1_35392274 | AXP2: NC_044378.1_35868662 | AXQ2: NC_044378.1_36111761 | AXR2: NC_044378.1_36111872 | AXS2: NC_044378.1_36614735 | AXT2: NC_044378.1_37131664 | AXU2: NC_044378.1_37830480 | AXV2: NC_044378.1_38414814 | AXW2: NC_044378.1_38711748 | AXX2: NC_044378.1_39358991 | AXY2: NC_044378.1_39946506 | AXZ2: NC_044378.1_40411288 | AYA2: NC_044378.1_40937044 | AYB2: NC_044378.1_41472293 | AYC2: NC_044378.1_41864300 | AYD2: NC_044378.1_42197806 | AYE2: NC_044378.1_42513822 | AYF2: NC_044378.1_43316238 | AYG2: NC_044378.1_43921976 | AYH2: NC_044378.1_44306440 | AYI2: NC_044378.1_45543446 | AYJ2: NC_044378.1_45543608 | AYK2: NC_044378.1_46896940 | AYL2: NC_044378.1_49641930 | AYM2: NC_044378.1_50740013 | AYN2: NC_044378.1_51350059 | AYO2: NC_044378.1_52852322 | AYP2: NC_044378.1_53469090 | AYQ2: NC_044378.1_53938995 | AYR2: NC_044378.1_55489090 | AYS2: NC_044378.1_55702192 | AYT2: NC_044378.1_56858990 | AYU2: NC_044378.1_57896239 | AYV2: NC_044378.1_58429712 | AYW2: NC_044378.1_58576672 | AYX2: NC_044378.1_59940658 | AYY2: NC_044378.1_60021699 | AYZ2: NC_044378.1_60852813 | AZA2: NC_044378.1_61146666 | AZB2: NC_044378.1_61425810 | AZC2: NC_044378.1_61755125 | AZD2: NC_044378.1_62964907 | AZE2: NC_044378.1_63326767 | AZF2: NC_044378.1_63936358 | AZG2: NC_044378.1_64316199 | AZH2: NC_044378.1_64532959 | AZI2: NC_044378.1_65338385 | AZJ2: NC_044378.1_66060537 | AZK2: NC_044378.1_66070803 | AZL2: NC_044378.1_66915971 | AZM2: NC_044378.1_67120559 | AZN2: NC_044378.1_67549500 | AZO2: NC_044378.1_67692739 | AZP2: NC_044378.1_68480444 | AZQ2: NC_044378.1_68870921 | AZR2: NC_044378.1_68871239 | AZS2: NC_044378.1_69118173 | AZT2: NC_044378.1_69952868 | AZU2: NC_044378.1_70032611 | AZV2: NC_044378.1_70942836 | AZW2: NC_044379.1_373403 | AZX2: NC_044379.1_2846965 | AZY2: NC_044379.1_4650491 | AZZ2: NC_044379.1_5070922 | BAA2: NC_044379.1_5967061 | BAB2: NC_044379.1_6232106 | BAC2: NC_044379.1_7529726 | BAD2: NC_044379.1_9666195 | BAE2: NC_044379.1_10295655 | BAF2: NC_044379.1_10752831 | BAG2: NC_044379.1_11028292 | BAH2: NC_044379.1_11554055 | BAI2: NC_044379.1_12255714 | BAJ2: NC_044379.1_12407247 | BAK2: NC_044379.1_12494968 | BAL2: NC_044379.1_12763750 | BAM2: NC_044379.1_13373774 | BAN2: NC_044379.1_13844580 | BAO2: NC_044379.1_14119141 | BAP2: NC_044379.1_14381836 | BAQ2: NC_044379.1_15053425 | BAR2: NC_044379.1_15443949 | BAS2: NC_044379.1_15886361 | BAT2: NC_044379.1_16598138 | BAU2: NC_044379.1_16904781 | BAV2: NC_044379.1_17011654 | BAW2: NC_044379.1_17583712 | BAX2: NC_044379.1_18343472 | BAY2: NC_044379.1_18793136 | BAZ2: NC_044379.1_19402902 | BBA2: NC_044379.1_19870107 | BBB2: NC_044379.1_20200015 | BBC2: NC_044379.1_20904713 | BBD2: NC_044379.1_21456122 | BBE2: NC_044379.1_21792532 | BBF2: NC_044379.1_23624274 | BBG2: NC_044379.1_24166492 | BBH2: NC_044379.1_24968229 | BBI2: NC_044379.1_25750256 | BBJ2: NC_044379.1_26044600 | BBK2: NC_044379.1_26771704 | BBL2: NC_044379.1_27329375 | BBM2: NC_044379.1_27649384 | BBN2: NC_044379.1_28055582 | BBO2: NC_044379.1_28482914 | BBP2: NC_044379.1_28613124 | BBQ2: NC_044379.1_29621855 | BBR2: NC_044379.1_30944293 | BBS2: NC_044379.1_31134399 | BBT2: NC_044379.1_32045881 | BBU2: NC_044379.1_32710003 | BBV2: NC_044379.1_33011993 | BBW2: NC_044379.1_34207006 | BBX2: NC_044379.1_34997868 | BBY2: NC_044379.1_35433325 | BBZ2: NC_044379.1_35820718 | BCA2: NC_044379.1_36279926 | BCB2: NC_044379.1_36552696 | BCC2: NC_044379.1_38176716 | BCD2: NC_044379.1_38842832 | BCE2: NC_044379.1_39139608 | BCF2: NC_044379.1_39989244 | BCG2: NC_044379.1_40278665 | BCH2: NC_044379.1_40560594 | BCI2: NC_044379.1_40560954 | BCJ2: NC_044379.1_40602141 | BCK2: NC_044379.1_40641107 | BCL2: NC_044379.1_41025620 | BCM2: NC_044379.1_41878588 | BCN2: NC_044379.1_41970617 | BCO2: NC_044379.1_42220989 | BCP2: NC_044379.1_42766329 | BCQ2: NC_044379.1_43011840 | BCR2: NC_044379.1_43867890 | BCS2: NC_044379.1_44224598 | BCT2: NC_044379.1_45109685 | BCU2: NC_044379.1_45154921 | BCV2: NC_044379.1_45968234 | BCW2: NC_044379.1_46248493 | BCX2: NC_044379.1_46859159 | BCY2: NC_044379.1_47062543 | BCZ2: NC_044379.1_47702906 | BDA2: NC_044379.1_47713086 | BDB2: NC_044379.1_48078217 | BDC2: NC_044379.1_48796746 | BDD2: NC_044379.1_49936061 | BDE2: NC_044379.1_50110264 | BDF2: NC_044379.1_50667629 | BDG2: NC_044379.1_51137037 | BDH2: NC_044379.1_51171447 | BDI2: NC_044379.1_51554826 | BDJ2: NC_044379.1_52132522 | BDK2: NC_044379.1_52662316 | BDL2: NC_044379.1_53280766 | BDM2: NC_044379.1_53785084 | BDN2: NC_044379.1_54115727 | BDO2: NC_044379.1_54522367 | BDP2: NC_044379.1_54701188 | BDQ2: NC_044379.1_54802845 | BDR2: NC_044379.1_55386954 | BDS2: NC_044379.1_55606167 | BDT2: NC_044379.1_55614533 | BDU2: NC_044379.1_56371583 | BDV2: NC_044379.1_56604266 | BDW2: NC_044379.1_56963780 | BDX2: NC_044379.1_57007338 | BDY2: NC_044379.1_57195942 | BDZ2: NC_044379.1_57573994 | BEA2: NC_044379.1_57830694 | BEB2: NC_044379.1_57870370 | BEC2: NC_044379.1_57952992 | BED2: NC_044379.1_57964900 | BEE2: NC_044379.1_58191816 | BEF2: NC_044379.1_58561311 | BEG2: NC_044379.1_58561626 | BEH2: NC_044379.1_58562955 | BEI2: NC_044379.1_58660677 | BEJ2: NC_044379.1_59471217 | BEK2: NC_044379.1_59893411 | BEL2: NC_044379.1_60030194 | BEM2: NC_044379.1_60591818 | BEN2: NC_044379.1_61007716 | BEO2: NC_044379.1_61854993 | BEP2: NC_044379.1_62448072 | BEQ2: NC_044379.1_62582676 | BER2: NC_044379.1_63446011 | BES2: NC_044379.1_63548019 | BET2: NC_044379.1_64372480 | BEU2: NC_044379.1_64621018 | BEV2: NW_022060437.1_99764 | BEW2: NW_022060465.1_555513 | BEX2: NW_022060498.1_691608
A3: SC2000002_R1 | B3: IPK_CAN_16 IPK16 | C3: G | D3: G | E3: M | F3: T | G3: R | H3: G | I3: A | J3: C | K3: A | L3: G | M3: C | N3: C | O3: T | P3: Y | Q3: G | R3: Y | S3: A | T3: T | U3: C | V3: A | W3: Y | X3: K | Y3: R | Z3: C | AA3: R | AB3: Y | AC3: A | AD3: A | AE3: A | AF3: C | AG3: G | AH3: M | AI3: A | AJ3: G | AK3: C | AL3: R | AM3: R | AN3: C | AO3: T | AP3: T | AQ3: S | AR3: C | AS3: S | AT3: C | AU3: A | AV3: Y | AW3: R | AX3: A | AY3: W | AZ3: G | BA3: R | BB3: C | BC3: W | BD3: W | BE3: W | BF3: W | BG3: R | BH3: A | BI3: A | BJ3: R | BK3: K | BL3: T | BM3: G | BN3: G | BO3: A | BP3: T | BQ3: C | BR3: K | BS3: C | BT3: G | BU3: G | BV3: G | BW3: C | BX3: A | BY3: W | BZ3: A | CA3: C | CB3: T | CC3: T | CD3: T | CE3: C | CF3: R | CG3: G | CH3: A | CI3: T | CJ3: K | CK3: R | CL3: A | CM3: R | CN3: G | CO3: G | CP3: A | CQ3: T | CR3: A | CS3: Y | CT3: A | CU3: T | CV3: C | CW3: T | CX3: C | CY3: R | CZ3: R | DA3: Y | DB3: T | DC3: C | DD3: T | DE3: T | DF3: A | DG3: G | DH3: T | DI3: - | DJ3: A | DK3: C | DL3: G | DM3: G | DN3: A | DO3: C | DP3: G | DQ3: T | DR3: Y | DS3: R | DT3: Y | DU3: R | DV3: C | DW3: C | DX3: T | DY3: T | DZ3: C | EA3: T | EB3: A | EC3: G | ED3: M | EE3: K | EF3: M | EG3: T | EH3: G | EI3: R | EJ3: C | EK3: W | EL3: A | EM3: A | EN3: R | EO3: A | EP3: Y | EQ3: T | ER3: Y | ES3: C | ET3: T | EU3: T | EV3: T | EW3: G | EX3: G | EY3: T | EZ3: A | FA3: Y | FB3: A | FC3: C | FD3: A | FE3: A | FF3: C | FG3: A | FH3: G | FI3: C | FJ3: T | FK3: A | FL3: C | FM3: C | FN3: R | FO3: R | FP3: G | FQ3: T | FR3: C | FS3: A | FT3: G | FU3: C | FV3: G | FW3: G | FX3: G | FY3: T | FZ3: G | GA3: A | GB3: G | GC3: T | GD3: T | GE3: C | GF3: C | GG3: A | GH3: G | GI3: G | GJ3: C | GK3: T | GL3: W | GM3: R | GN3: G | GO3: C | GP3: R | GQ3: C | GR3: C | GS3: G | GT3: R | GU3: K | GV3: C | GW3: Y | GX3: C | GY3: W | GZ3: A | HA3: G | HB3: A | HC3: A | HD3: Y | HE3: G | HF3: T | HG3: C | HH3: A | HI3: S | HJ3: T | HK3: G | HL3: - | HM3: - | HN3: C | HO3: C | HP3: A | HQ3: A | HR3: C | HS3: T | HT3: G | HU3: A | HV3: C | HW3: A | HX3: G | HY3: T | HZ3: C | IA3: T | IB3: G | IC3: C | ID3: G | IE3: C | IF3: C | IG3: T | IH3: C | II3: A | IJ3: C | IK3: T | IL3: A | IM3: G | IN3: G | IO3: A | IP3: T | IQ3: G | IR3: A | IS3: T | IT3: A | IU3: T | IV3: T | IW3: T | IX3: A | IY3: A | IZ3: T | JA3: C | JB3: T | JC3: C | JD3: - | JE3: C | JF3: G | JG3: G | JH3: C | JI3: T | JJ3: C | JK3: C | JL3: A | JM3: A | JN3: T | JO3: T | JP3: A | JQ3: - | JR3: T | JS3: T | JT3: T | JU3: A | JV3: T | JW3: C | JX3: T | JY3: G | JZ3: A | KA3: - | KB3: T | KC3: A | KD3: - | KE3: T | KF3: T | KG3: G | KH3: G | KI3: A | KJ3: T | KK3: A | KL3: A | KM3: C | KN3: T | KO3: - | KP3: C | KQ3: T | KR3: A | KS3: G | KT3: C | KU3: C | KV3: G | KW3: G | KX3: A | KY3: A | KZ3: C | LA3: A | LB3: A | LC3: G | LD3: G | LE3: G | LF3: T | LG3: T | LH3: C | LI3: C | LJ3: A | LK3: C | LL3: R | LM3: A | LN3: C | LO3: C | LP3: T | LQ3: G | LR3: T | LS3: T | LT3: C | LU3: A | LV3: C | LW3: C | LX3: C | LY3: T | LZ3: G | MA3: T | MB3: A | MC3: C | MD3: A | ME3: T | MF3: G | MG3: A | MH3: T | MI3: C | MJ3: C | MK3: A | ML3: G | MM3: A | MN3: G | MO3: T | MP3: A | MQ3: T | MR3: A | MS3: A | MT3: T | MU3: A | MV3: G | MW3: C | MX3: G | MY3: G | MZ3: A | NA3: C | NB3: G | NC3: R | ND3: C | NE3: C | NF3: C | NG3: C | NH3: G | NI3: A | NJ3: G | NK3: T | NL3: T | NM3: T | NN3: A | NO3: C | NP3: T | NQ3: T | NR3: T | NS3: - | NT3: A | NU3: A | NV3: C | NW3: C | NX3: T | NY3: A | NZ3: G | OA3: T | OB3: T | OC3: C | OD3: A | OE3: G | OF3: G | OG3: C | OH3: R | OI3: Y | OJ3: Y | OK3: Y | OL3: T | OM3: C | ON3: S | OO3: R | OP3: Y | OQ3: W | OR3: R | OS3: R | OT3: S | OU3: R | OV3: A | OW3: Y | OX3: C | OY3: T | OZ3: R | PA3: Y | PB3: G | PC3: Y | PD3: T | PE3: G | PF3: S | PG3: C | PH3: G | PI3: R | PJ3: C | PK3: G | PL3: R | PM3: A | PN3: K | PO3: Y | PP3: C | PQ3: W | PR3: A | PS3: G | PT3: G | PU3: G | PV3: G | PW3: M | PX3: A | PY3: W | PZ3: T | QA3: C | QB3: A | QC3: C | QD3: C | QE3: S | QF3: S | QG3: G | QH3: C | QI3: G | QJ3: Y | QK3: G | QL3: C | QM3: G | QN3: T | QO3: T | QP3: T | QQ3: G | QR3: R | QS3: W | QT3: C | QU3: A | QV3: A | QW3: T | QX3: C | QY3: C | QZ3: T | RA3: M | RB3: C | RC3: R | RD3: R | RE3: T | RF3: W | RG3: A | RH3: C | RI3: T | RJ3: - | RK3: - | RL3: A | RM3: G | RN3: T | RO3: A | RP3: A | RQ3: A | RR3: - | RS3: C | RT3: A | RU3: R | RV3: R | RW3: C | RX3: G | RY3: Y | RZ3: G | SA3: C | SB3: A | SC3: G | SD3: A | SE3: A | SF3: C | SG3: R | SH3: G | SI3: R | SJ3: A | SK3: A | SL3: Y | SM3: C | SN3: Y | SO3: C | SP3: G | SQ3: G | SR3: T | SS3: K | ST3: R | SU3: W | SV3: G | SW3: W | SX3: R | SY3: A | SZ3: T | TA3: - | TB3: C | TC3: G | TD3: A | TE3: G | TF3: T | TG3: M | TH3: G | TI3: W | TJ3: G | TK3: - | TL3: - | TM3: G | TN3: T | TO3: T | TP3: T | TQ3: G | TR3: C | TS3: Y | TT3: C | TU3: G | TV3: G | TW3: C | TX3: A | TY3: C | TZ3: R | UA3: A | UB3: C | UC3: A | UD3: G | UE3: A | UF3: G | UG3: W | UH3: M | UI3: R | UJ3: Y | UK3: Y | UL3: G | UM3: R | UN3: G | UO3: G | UP3: G | UQ3: W | UR3: C | US3: C | UT3: G | UU3: R | UV3: R | UW3: G | UX3: T | UY3: R | UZ3: T | VA3: T | VB3: T | VC3: T | VD3: A | VE3: - | VF3: G | VG3: T | VH3: G | VI3: G | VJ3: T | VK3: Y | VL3: G | VM3: W | VN3: A | VO3: Y | VP3: Y | VQ3: A | VR3: T | VS3: Y | VT3: R | VU3: Y | VV3: A | VW3: C | VX3: C | VY3: C | VZ3: A | WA3: C | WB3: A | WC3: R | WD3: G | WE3: A | WF3: A | WG3: C | WH3: T | WI3: T | WJ3: G | WK3: G | WL3: - | WM3: T | WN3: G | WO3: T | WP3: A | WQ3: Y | WR3: K | WS3: Y | WT3: C | WU3: S | WV3: G | WW3: C | WX3: T | WY3: C | WZ3: Y | XA3: G | XB3: T | XC3: G | XD3: A | XE3: A | XF3: C | XG3: G | XH3: C | XI3: A | XJ3: S | XK3: W | XL3: C | XM3: S | XN3: T | XO3: R | XP3: A | XQ3: C | XR3: G | XS3: G | XT3: T | XU3: G | XV3: C | XW3: G | XX3: A | XY3: A | XZ3: Y | YA3: Y | YB3: C | YC3: T | YD3: K | YE3: Y | YF3: C | YG3: C | YH3: A | YI3: G | YJ3: W | YK3: C | YL3: C | YM3: R | YN3: C | YO3: R | YP3: G | YQ3: T | YR3: T | YS3: - | YT3: T | YU3: T | YV3: T | YW3: C | YX3: C | YY3: G | YZ3: T | ZA3: A | ZB3: G | ZC3: M | ZD3: A | ZE3: C | ZF3: Y | ZG3: S | ZH3: R | ZI3: C | ZJ3: G | ZK3: T | ZL3: T | ZM3: T | ZN3: T | ZO3: C | ZP3: M | ZQ3: A | ZR3: K | ZS3: G | ZT3: - | ZU3: T | ZV3: T | ZW3: R | ZX3: A | ZY3: S | ZZ3: T | AAA3: W | AAB3: R | AAC3: C | AAD3: Y | AAE3: T | AAF3: T | AAG3: R | AAH3: A | AAI3: G | AAJ3: R | AAK3: G | AAL3: R | AAM3: T | AAN3: Y | AAO3: C | AAP3: T | AAQ3: R | AAR3: C | AAS3: C | AAT3: A | AAU3: T | AAV3: A | AAW3: G | AAX3: R | AAY3: Y | AAZ3: T | ABA3: G | ABB3: R | ABC3: T | ABD3: A | ABE3: R | ABF3: T | ABG3: Y | ABH3: A | ABI3: Y | ABJ3: R | ABK3: Y | ABL3: T | ABM3: C | ABN3: A | ABO3: T | ABP3: G | ABQ3: T | ABR3: T | ABS3: - | ABT3: C | ABU3: T | ABV3: C | ABW3: T | ABX3: C | ABY3: C | ABZ3: G | ACA3: C | ACB3: A | ACC3: T | ACD3: A | ACE3: G | ACF3: T | ACG3: C | ACH3: Y | ACI3: C | ACJ3: T | ACK3: G | ACL3: A | ACM3: C | ACN3: G | ACO3: - | ACP3: A | ACQ3: G | ACR3: T | ACS3: A | ACT3: C | ACU3: G | ACV3: A | ACW3: C | ACX3: A | ACY3: T | ACZ3: T | ADA3: G | ADB3: S | ADC3: G | ADD3: G | ADE3: G | ADF3: G | ADG3: G | ADH3: T | ADI3: - | ADJ3: A | ADK3: G | ADL3: G | ADM3: A | ADN3: G | ADO3: T | ADP3: C | ADQ3: T | ADR3: G | ADS3: G | ADT3: G | ADU3: T | ADV3: C | ADW3: G | ADX3: C | ADY3: A | ADZ3: C | AEA3: G | AEB3: G | AEC3: G | AED3: G | AEE3: A | AEF3: A | AEG3: A | AEH3: C | AEI3: A | AEJ3: A | AEK3: G | AEL3: G | AEM3: - | AEN3: T | AEO3: M | AEP3: - | AEQ3: G | AER3: G | AES3: A | AET3: A | AEU3: T | AEV3: A | AEW3: A | AEX3: C | AEY3: T | AEZ3: C | AFA3: C | AFB3: T | AFC3: G | AFD3: T | AFE3: A | AFF3: G | AFG3: G | AFH3: A | AFI3: A | AFJ3: T | AFK3: C | AFL3: C | AFM3: G | AFN3: A | AFO3: C | AFP3: T | AFQ3: A | AFR3: A | AFS3: - | AFT3: G | AFU3: C | AFV3: A | AFW3: T | AFX3: A | AFY3: T | AFZ3: C | AGA3: C | AGB3: T | AGC3: G | AGD3: A | AGE3: Y | AGF3: Y | AGG3: G | AGH3: Y | AGI3: G | AGJ3: A | AGK3: C | AGL3: R | AGM3: R | AGN3: T | AGO3: R | AGP3: A | AGQ3: C | AGR3: G | AGS3: T | AGT3: G | AGU3: T | AGV3: R | AGW3: A | AGX3: A | AGY3: T | AGZ3: A | AHA3: T | AHB3: R | AHC3: G | AHD3: T | AHE3: G | AHF3: Y | AHG3: A | AHH3: Y | AHI3: G | AHJ3: R | AHK3: R | AHL3: R | AHM3: A | AHN3: A | AHO3: W | AHP3: C | AHQ3: C | AHR3: T | AHS3: - | AHT3: C | AHU3: W | AHV3: T | AHW3: C | AHX3: G | AHY3: T | AHZ3: Y | AIA3: A | AIB3: C | AIC3: W | AID3: A | AIE3: M | AIF3: M | AIG3: G | AIH3: A | AII3: G | AIJ3: Y | AIK3: G | AIL3: C | AIM3: T | AIN3: R | AIO3: A | AIP3: T | AIQ3: T | AIR3: R | AIS3: Y | AIT3: T | AIU3: A | AIV3: M | AIW3: K | AIX3: W | AIY3: C | AIZ3: G | AJA3: R | AJB3: M | AJC3: Y | AJD3: Y | AJE3: T | AJF3: C | AJG3: A | AJH3: Y | AJI3: T | AJJ3: Y | AJK3: K | AJL3: C | AJM3: K | AJN3: T | AJO3: C | AJP3: Y | AJQ3: T | AJR3: G | AJS3: G | AJT3: C | AJU3: A | AJV3: A | AJW3: A | AJX3: T | AJY3: G | AJZ3: G | AKA3: A | AKB3: K | AKC3: G | AKD3: G | AKE3: T | AKF3: W | AKG3: G | AKH3: G | AKI3: T | AKJ3: G | AKK3: A | AKL3: W | AKM3: C | AKN3: R | AKO3: R | AKP3: C | AKQ3: R | AKR3: A | AKS3: C | AKT3: Y | AKU3: G | AKV3: T | AKW3: M | AKX3: C | AKY3: K | AKZ3: R | ALA3: R | ALB3: A | ALC3: R | ALD3: A | ALE3: T | ALF3: Y | ALG3: A | ALH3: T | ALI3: G | ALJ3: Y | ALK3: R | ALL3: Y | ALM3: W | ALN3: S | ALO3: R | ALP3: A | ALQ3: T | ALR3: T | ALS3: A | ALT3: W | ALU3: G | ALV3: G | ALW3: A | ALX3: M | ALY3: C | ALZ3: R | AMA3: C | AMB3: C | AMC3: T | AMD3: W | AME3: C | AMF3: T | AMG3: C | AMH3: Y | AMI3: W | AMJ3: W | AMK3: S | AML3: K | AMM3: M | AMN3: T | AMO3: G | AMP3: T | AMQ3: T | AMR3: Y | AMS3: A | AMT3: C | AMU3: R | AMV3: C | AMW3: R | AMX3: T | AMY3: R | AMZ3: R | ANA3: A | ANB3: C | ANC3: A | AND3: A | ANE3: T | ANF3: A | ANG3: G | ANH3: W | ANI3: C | ANJ3: Y | ANK3: T | ANL3: G | ANM3: A | ANN3: G | ANO3: G | ANP3: T | ANQ3: G | ANR3: C | ANS3: C | ANT3: Y | ANU3: R | ANV3: R | ANW3: R | ANX3: C | ANY3: W | ANZ3: Y | AOA3: G | AOB3: T | AOC3: C | AOD3: T | AOE3: Y | AOF3: C | AOG3: A | AOH3: T | AOI3: G | AOJ3: R | AOK3: R | AOL3: R | AOM3: R | AON3: C | AOO3: Y | AOP3: M | AOQ3: Y | AOR3: G | AOS3: T | AOT3: A | AOU3: C | AOV3: A | AOW3: G | AOX3: Y | AOY3: Y | AOZ3: R | APA3: A | APB3: Y | APC3: T | APD3: T | APE3: C | APF3: A | APG3: C | APH3: A | API3: G | APJ3: T | APK3: W | APL3: M | APM3: C | APN3: W | APO3: C | APP3: C | APQ3: T | APR3: W | APS3: A | APT3: Y | APU3: Y | APV3: Y | APW3: A | APX3: G | APY3: R | APZ3: T | AQA3: K | AQB3: A | AQC3: C | AQD3: C | AQE3: T | AQF3: G | AQG3: R | AQH3: C | AQI3: S | AQJ3: G | AQK3: R | AQL3: K | AQM3: R | AQN3: G | AQO3: T | AQP3: S | AQQ3: K | AQR3: W | AQS3: A | AQT3: A | AQU3: C | AQV3: T | AQW3: A | AQX3: G | AQY3: G | AQZ3: A | ARA3: M | ARB3: Y | ARC3: A | ARD3: W | ARE3: R | ARF3: T | ARG3: C | ARH3: T | ARI3: T | ARJ3: A | ARK3: T | ARL3: T | ARM3: A | ARN3: - | ARO3: T | ARP3: A | ARQ3: C | ARR3: T | ARS3: G | ART3: G | ARU3: A | ARV3: G | ARW3: W | ARX3: W | ARY3: A | ARZ3: G | ASA3: T | ASB3: T | ASC3: G | ASD3: T | ASE3: T | ASF3: G | ASG3: T | ASH3: C | ASI3: G | ASJ3: A | ASK3: A | ASL3: G | ASM3: C | ASN3: G | ASO3: G | ASP3: R | ASQ3: C | ASR3: A | ASS3: T | AST3: T | ASU3: C | ASV3: C | ASW3: A | ASX3: T | ASY3: G | ASZ3: G | ATA3: T | ATB3: G | ATC3: T | ATD3: T | ATE3: - | ATF3: G | ATG3: A | ATH3: G | ATI3: C | ATJ3: A | ATK3: - | ATL3: C | ATM3: G | ATN3: G | ATO3: C | ATP3: G | ATQ3: C | ATR3: G | ATS3: A | ATT3: A | ATU3: G | ATV3: C | ATW3: T | ATX3: G | ATY3: A | ATZ3: A | AUA3: C | AUB3: A | AUC3: G | AUD3: T | AUE3: T | AUF3: T | AUG3: A | AUH3: G | AUI3: A | AUJ3: C | AUK3: C | AUL3: G | AUM3: C | AUN3: G | AUO3: T | AUP3: C | AUQ3: A | AUR3: A | AUS3: K | AUT3: C | AUU3: W | AUV3: R | AUW3: R | AUX3: T | AUY3: C | AUZ3: G | AVA3: C | AVB3: Y | AVC3: Y | AVD3: M | AVE3: T | AVF3: Y | AVG3: M | AVH3: T | AVI3: Y | AVJ3: W | AVK3: Y | AVL3: W | AVM3: R | AVN3: C | AVO3: - | AVP3: T | AVQ3: M | AVR3: T | AVS3: T | AVT3: A | AVU3: T | AVV3: G | AVW3: T | AVX3: R | AVY3: M | AVZ3: T | AWA3: Y | AWB3: R | AWC3: A | AWD3: T | AWE3: R | AWF3: T | AWG3: C | AWH3: C | AWI3: C | AWJ3: W | AWK3: Y | AWL3: A | AWM3: G | AWN3: - | AWO3: C | AWP3: K | AWQ3: A | AWR3: G | AWS3: R | AWT3: T | AWU3: R | AWV3: A | AWW3: W | AWX3: R | AWY3: W | AWZ3: G | AXA3: W | AXB3: G | AXC3: G | AXD3: Y | AXE3: R | AXF3: R | AXG3: T | AXH3: A | AXI3: A | AXJ3: A | AXK3: A | AXL3: A | AXM3: R | AXN3: Y | AXO3: R | AXP3: A | AXQ3: C | AXR3: A | AXS3: C | AXT3: - | AXU3: C | AXV3: W | AXW3: G | AXX3: W | AXY3: A | AXZ3: Y | AYA3: C | AYB3: R | AYC3: A | AYD3: M | AYE3: T | AYF3: T | AYG3: A | AYH3: M | AYI3: R | AYJ3: Y | AYK3: G | AYL3: A | AYM3: T | AYN3: R | AYO3: G | AYP3: C | AYQ3: A | AYR3: A | AYS3: - | AYT3: C | AYU3: C | AYV3: Y | AYW3: R | AYX3: A | AYY3: T | AYZ3: R | AZA3: C | AZB3: R | AZC3: K | AZD3: G | AZE3: C | AZF3: G | AZG3: G | AZH3: A | AZI3: T | AZJ3: W | AZK3: W | AZL3: G | AZM3: A | AZN3: T | AZO3: T | AZP3: G | AZQ3: T | AZR3: T | AZS3: C | AZT3: A | AZU3: R | AZV3: A | AZW3: A | AZX3: C | AZY3: C | AZZ3: A | BAA3: - | BAB3: T | BAC3: Y | BAD3: T | BAE3: M | BAF3: G | BAG3: R | BAH3: G | BAI3: R | BAJ3: G | BAK3: Y | BAL3: W | BAM3: A | BAN3: Y | BAO3: R | BAP3: R | BAQ3: - | BAR3: C | BAS3: A | BAT3: W | BAU3: M | BAV3: A | BAW3: A | BAX3: A | BAY3: T | BAZ3: T | BBA3: C | BBB3: Y | BBC3: - | BBD3: C | BBE3: T | BBF3: M | BBG3: S | BBH3: A | BBI3: M | BBJ3: A | BBK3: C | BBL3: Y | BBM3: T | BBN3: R | BBO3: C | BBP3: A | BBQ3: Y | BBR3: Y | BBS3: W | BBT3: Y | BBU3: S | BBV3: Y | BBW3: R | BBX3: T | BBY3: T | BBZ3: A | BCA3: A | BCB3: T | BCC3: M | BCD3: T | BCE3: R | BCF3: A | BCG3: C | BCH3: T | BCI3: T | BCJ3: C | BCK3: K | BCL3: W | BCM3: A | BCN3: R | BCO3: R | BCP3: T | BCQ3: A | BCR3: R | BCS3: T | BCT3: C | BCU3: R | BCV3: Y | BCW3: C | BCX3: Y | BCY3: T | BCZ3: G | BDA3: C | BDB3: G | BDC3: S | BDD3: R | BDE3: Y | BDF3: T | BDG3: A | BDH3: A | BDI3: C | BDJ3: R | BDK3: T | BDL3: R | BDM3: W | BDN3: Y | BDO3: A | BDP3: T | BDQ3: Y | BDR3: Y | BDS3: G | BDT3: R | BDU3: R | BDV3: T | BDW3: Y | BDX3: T | BDY3: W | BDZ3: W | BEA3: R | BEB3: G | BEC3: C | BED3: Y | BEE3: T | BEF3: G | BEG3: C | BEH3: T | BEI3: C | BEJ3: Y | BEK3: T | BEL3: C | BEM3: C | BEN3: T | BEO3: C | BEP3: W | BEQ3: - | BER3: Y | BES3: A | BET3: R | BEU3: S | BEV3: T | BEW3: C | BEX3: G
A4: SC1900028_R3 | B4: IPK_CAN_44 Fibrimon | C4: C | D4: G | E4: A | F4: T | G4: A | H4: G | I4: A | J4: T | K4: C | L4: - | M4: T | N4: T | O4: T | P4: - | Q4: G | R4: C | S4: A | T4: T | U4: C | V4: A | W4: C | X4: T | Y4: G | Z4: T | AA4: A | AB4: C | AC4: T | AD4: G | AE4: G | AF4: C | AG4: G | AH4: A | AI4: G | AJ4: G | AK4: C | AL4: A | AM4: G | AN4: C | AO4: T | AP4: T | AQ4: C | AR4: C | AS4: S | AT4: C | AU4: T | AV4: T | AW4: G | AX4: - | AY4: T | AZ4: A | BA4: A | BB4: T | BC4: A | BD4: T | BE4: - | BF4: T | BG4: G | BH4: A | BI4: A | BJ4: A | BK4: T | BL4: T | BM4: G | BN4: G | BO4: G | BP4: Y | BQ4: C | BR4: T | BS4: C | BT4: G | BU4: R | BV4: R | BW4: Y | BX4: W | BY4: W | BZ4: A | CA4: C | CB4: T | CC4: T | CD4: Y | CE4: Y | CF4: A | CG4: G | CH4: A | CI4: T | CJ4: T | CK4: R | CL4: A | CM4: A | CN4: A | CO4: G | CP4: A | CQ4: T | CR4: A | CS4: Y | CT4: A | CU4: T | CV4: Y | CW4: T | CX4: C | CY4: G | CZ4: G | DA4: T | DB4: Y | DC4: A | DD4: A | DE4: T | DF4: - | DG4: G | DH4: W | DI4: - | DJ4: A | DK4: C | DL4: G | DM4: G | DN4: A | DO4: C | DP4: G | DQ4: T | DR4: T | DS4: G | DT4: C | DU4: A | DV4: T | DW4: C | DX4: T | DY4: T | DZ4: C | EA4: T | EB4: A | EC4: - | ED4: C | EE4: G | EF4: C | EG4: T | EH4: G | EI4: G | EJ4: S | EK4: T | EL4: G | EM4: G | EN4: G | EO4: G | EP4: T | EQ4: T | ER4: T | ES4: C | ET4: T | EU4: T | EV4: T | EW4: G | EX4: G | EY4: T | EZ4: A | FA4: C | FB4: G | FC4: C | FD4: A | FE4: G | FF4: C | FG4: G | FH4: G | FI4: C | FJ4: T | FK4: A | FL4: C | FM4: M | FN4: G | FO4: G | FP4: G | FQ4: T | FR4: C | FS4: A | FT4: G | FU4: C | FV4: G | FW4: G | FX4: G | FY4: T | FZ4: G | GA4: A | GB4: G | GC4: T | GD4: T | GE4: C | GF4: C | GG4: A | GH4: G | GI4: G | GJ4: C | GK4: T | GL4: W | GM4: R | GN4: G | GO4: C | GP4: R | GQ4: C | GR4: C | GS4: G | GT4: A | GU4: G | GV4: C | GW4: Y | GX4: C | GY4: T | GZ4: G | HA4: A | HB4: G | HC4: A | HD4: - | HE4: A | HF4: C | HG4: T | HH4: G | HI4: C | HJ4: T | HK4: A | HL4: - | HM4: - | HN4: T | HO4: C | HP4: T | HQ4: G | HR4: T | HS4: A | HT4: T | HU4: G | HV4: C | HW4: G | HX4: G | HY4: T | HZ4: Y | IA4: T | IB4: A | IC4: M | ID4: T | IE4: C | IF4: T | IG4: A | IH4: T | II4: R | IJ4: A | IK4: T | IL4: A | IM4: R | IN4: A | IO4: G | IP4: T | IQ4: G | IR4: M | IS4: Y | IT4: R | IU4: A | IV4: G | IW4: Y | IX4: A | IY4: R | IZ4: T | JA4: T | JB4: T | JC4: S | JD4: - | JE4: S | JF4: K | JG4: K | JH4: T | JI4: T | JJ4: Y | JK4: G | JL4: A | JM4: A | JN4: T | JO4: A | JP4: A | JQ4: Y | JR4: T | JS4: T | JT4: Y | JU4: A | JV4: T | JW4: C | JX4: C | JY4: G | JZ4: R | KA4: - | KB4: C | KC4: A | KD4: A | KE4: T | KF4: C | KG4: S | KH4: G | KI4: A | KJ4: Y | KK4: A | KL4: G | KM4: G | KN4: Y | KO4: Y | KP4: M | KQ4: Y | KR4: - | KS4: A | KT4: T | KU4: C | KV4: A | KW4: C | KX4: A | KY4: A | KZ4: C | LA4: C | LB4: A | LC4: G | LD4: T | LE4: G | LF4: T | LG4: C | LH4: C | LI4: T | LJ4: M | LK4: Y | LL4: R | LM4: A | LN4: T | LO4: C | LP4: C | LQ4: A | LR4: T | LS4: T | LT4: C | LU4: G | LV4: T | LW4: C | LX4: Y | LY4: T | LZ4: G | MA4: C | MB4: G | MC4: Y | MD4: R | ME4: T | MF4: G | MG4: R | MH4: A | MI4: C | MJ4: Y | MK4: G | ML4: C | MM4: R | MN4: R | MO4: T | MP4: A | MQ4: Y | MR4: A | MS4: A | MT4: Y | MU4: A | MV4: R | MW4: C | MX4: A | MY4: A | MZ4: C | NA4: M | NB4: R | NC4: G | ND4: Y | NE4: M | NF4: C | NG4: T | NH4: T | NI4: A | NJ4: G | NK4: T | NL4: G | NM4: C | NN4: R | NO4: G | NP4: W | NQ4: G | NR4: Y | NS4: - | NT4: W | NU4: R | NV4: Y | NW4: T | NX4: Y | NY4: G | NZ4: A | OA4: C | OB4: T | OC4: T | OD4: C | OE4: G | OF4: G | OG4: C | OH4: A | OI4: T | OJ4: T | OK4: C | OL4: - | OM4: C | ON4: G | OO4: G | OP4: T | OQ4: T | OR4: G | OS4: A | OT4: C | OU4: G | OV4: R | OW4: C | OX4: Y | OY4: Y | OZ4: R | PA4: Y | PB4: G | PC4: T | PD4: T | PE4: G | PF4: C | PG4: Y | PH4: G | PI4: R | PJ4: Y | PK4: G | PL4: R | PM4: R | PN4: G | PO4: C | PP4: Y | PQ4: T | PR4: T | PS4: G | PT4: A | PU4: S | PV4: R | PW4: C | PX4: R | PY4: W | PZ4: - | QA4: T | QB4: R | QC4: Y | QD4: C | QE4: S | QF4: G | QG4: R | QH4: Y | QI4: S | QJ4: Y | QK4: G | QL4: C | QM4: G | QN4: T | QO4: T | QP4: G | QQ4: R | QR4: G | QS4: W | QT4: C | QU4: A | QV4: A | QW4: T | QX4: Y | QY4: Y | QZ4: Y | RA4: A | RB4: C | RC4: R | RD4: R | RE4: T | RF4: A | RG4: A | RH4: Y | RI4: T | RJ4: A | RK4: A | RL4: R | RM4: R | RN4: T | RO4: M | RP4: A | RQ4: R | RR4: T | RS4: Y | RT4: W | RU4: R | RV4: A | RW4: C | RX4: G | RY4: Y | RZ4: S | SA4: C | SB4: A | SC4: G | SD4: A | SE4: A | SF4: S | SG4: R | SH4: G | SI4: R | SJ4: T | SK4: A | SL4: C | SM4: Y | SN4: Y | SO4: C | SP4: G | SQ4: S | SR4: Y | SS4: G | ST4: A | SU4: T | SV4: R | SW4: W | SX4: G | SY4: C | SZ4: T | TA4: A | TB4: M | TC4: S | TD4: - | TE4: S | TF4: T | TG4: M | TH4: G | TI4: A | TJ4: G | TK4: C | TL4: C | TM4: S | TN4: Y | TO4: C | TP4: K | TQ4: G | TR4: Y | TS4: Y | TT4: C | TU4: G | TV4: K | TW4: Y | TX4: R | TY4: T | TZ4: A | UA4: M | UB4: Y | UC4: A | UD4: R | UE4: A | UF4: G | UG4: A | UH4: C | UI4: G | UJ4: T | UK4: C | UL4: A | UM4: R | UN4: G | UO4: G | UP4: G | UQ4: T | UR4: M | US4: T | UT4: G | UU4: G | UV4: G | UW4: R | UX4: T | UY4: R | UZ4: T | VA4: T | VB4: T | VC4: T | VD4: A | VE4: T | VF4: G | VG4: T | VH4: G | VI4: G | VJ4: W | VK4: C | VL4: G | VM4: W | VN4: W | VO4: Y | VP4: T | VQ4: - | VR4: Y | VS4: Y | VT4: G | VU4: T | VV4: G | VW4: S | VX4: C | VY4: M | VZ4: A | WA4: C | WB4: A | WC4: A | WD4: G | WE4: R | WF4: A | WG4: T | WH4: T | WI4: T | WJ4: G | WK4: S | WL4: C | WM4: Y | WN4: G | WO4: T | WP4: R | WQ4: C | WR4: K | WS4: T | WT4: C | WU4: C | WV4: G | WW4: C | WX4: T | WY4: C | WZ4: Y | XA4: A | XB4: Y | XC4: R | XD4: A | XE4: W | XF4: Y | XG4: G | XH4: C | XI4: M | XJ4: C | XK4: W | XL4: Y | XM4: S | XN4: T | XO4: R | XP4: A | XQ4: T | XR4: G | XS4: G | XT4: T | XU4: G | XV4: C | XW4: G | XX4: A | XY4: A | XZ4: Y | YA4: C | YB4: C | YC4: T | YD4: G | YE4: C | YF4: C | YG4: C | YH4: A | YI4: G | YJ4: W | YK4: Y | YL4: Y | YM4: R | YN4: C | YO4: G | YP4: R | YQ4: T | YR4: C | YS4: A | YT4: G | YU4: T | YV4: T | YW4: C | YX4: C | YY4: G | YZ4: T | ZA4: A | ZB4: G | ZC4: M | ZD4: A | ZE4: Y | ZF4: Y | ZG4: S | ZH4: R | ZI4: Y | ZJ4: S | ZK4: W | ZL4: - | ZM4: T | ZN4: T | ZO4: C | ZP4: C | ZQ4: W | ZR4: G | ZS4: G | ZT4: C | ZU4: Y | ZV4: T | ZW4: A | ZX4: M | ZY4: C | ZZ4: T | AAA4: W | AAB4: R | AAC4: C | AAD4: T | AAE4: Y | AAF4: K | AAG4: A | AAH4: R | AAI4: G | AAJ4: A | AAK4: R | AAL4: R | AAM4: T | AAN4: C | AAO4: C | AAP4: T | AAQ4: R | AAR4: Y | AAS4: C | AAT4: A | AAU4: T | AAV4: A | AAW4: G | AAX4: A | AAY4: C | AAZ4: T | ABA4: G | ABB4: A | ABC4: G | ABD4: T | ABE4: A | ABF4: T | ABG4: C | ABH4: A | ABI4: C | ABJ4: A | ABK4: C | ABL4: K | ABM4: Y | ABN4: W | ABO4: Y | ABP4: G | ABQ4: T | ABR4: G | ABS4: - | ABT4: Y | ABU4: W | ABV4: C | ABW4: T | ABX4: T | ABY4: C | ABZ4: G | ACA4: G | ACB4: T | ACC4: A | ACD4: R | ACE4: A | ACF4: A | ACG4: C | ACH4: T | ACI4: A | ACJ4: T | ACK4: G | ACL4: R | ACM4: T | ACN4: G | ACO4: - | ACP4: G | ACQ4: G | ACR4: T | ACS4: A | ACT4: C | ACU4: A | ACV4: G | ACW4: A | ACX4: G | ACY4: A | ACZ4: T | ADA4: G | ADB4: S | ADC4: K | ADD4: G | ADE4: A | ADF4: R | ADG4: A | ADH4: T | ADI4: - | ADJ4: A | ADK4: R | ADL4: G | ADM4: G | ADN4: G | ADO4: T | ADP4: A | ADQ4: C | ADR4: G | ADS4: R | ADT4: R | ADU4: T | ADV4: G | ADW4: G | ADX4: G | ADY4: A | ADZ4: T | AEA4: T | AEB4: A | AEC4: A | AED4: A | AEE4: A | AEF4: T | AEG4: A | AEH4: G | AEI4: C | AEJ4: G | AEK4: G | AEL4: S | AEM4: C | AEN4: C | AEO4: M | AEP4: - | AEQ4: G | AER4: G | AES4: A | AET4: A | AEU4: T | AEV4: R | AEW4: A | AEX4: C | AEY4: A | AEZ4: C | AFA4: A | AFB4: A | AFC4: A | AFD4: C | AFE4: A | AFF4: G | AFG4: A | AFH4: A | AFI4: W | AFJ4: C | AFK4: T | AFL4: C | AFM4: G | AFN4: A | AFO4: Y | AFP4: T | AFQ4: T | AFR4: G | AFS4: C | AFT4: A | AFU4: Y | AFV4: A | AFW4: Y | AFX4: R | AFY4: C | AFZ4: Y | AGA4: Y | AGB4: T | AGC4: G | AGD4: A | AGE4: T | AGF4: C | AGG4: G | AGH4: C | AGI4: G | AGJ4: A | AGK4: C | AGL4: A | AGM4: G | AGN4: T | AGO4: G | AGP4: A | AGQ4: T | AGR4: G | AGS4: G | AGT4: G | AGU4: T | AGV4: G | AGW4: R | AGX4: A | AGY4: T | AGZ4: R | AHA4: Y | AHB4: A | AHC4: T | AHD4: T | AHE4: G | AHF4: Y | AHG4: A | AHH4: C | AHI4: G | AHJ4: R | AHK4: A | AHL4: G | AHM4: A | AHN4: A | AHO4: A | AHP4: M | AHQ4: C | AHR4: T | AHS4: C | AHT4: C | AHU4: T | AHV4: A | AHW4: C | AHX4: G | AHY4: C | AHZ4: C | AIA4: A | AIB4: C | AIC4: T | AID4: T | AIE4: A | AIF4: C | AIG4: G | AIH4: A | AII4: G | AIJ4: C | AIK4: G | AIL4: T | AIM4: T | AIN4: G | AIO4: T | AIP4: C | AIQ4: C | AIR4: G | AIS4: C | AIT4: C | AIU4: A | AIV4: C | AIW4: T | AIX4: W | AIY4: C | AIZ4: C | AJA4: G | AJB4: A | AJC4: T | AJD4: C | AJE4: A | AJF4: C | AJG4: A | AJH4: C | AJI4: T | AJJ4: T | AJK4: K | AJL4: C | AJM4: G | AJN4: C | AJO4: C | AJP4: T | AJQ4: T | AJR4: G | AJS4: G | AJT4: C | AJU4: A | AJV4: A | AJW4: A | AJX4: T | AJY4: G | AJZ4: A | AKA4: G | AKB4: T | AKC4: G | AKD4: G | AKE4: T | AKF4: W | AKG4: G | AKH4: G | AKI4: T | AKJ4: G | AKK4: A | AKL4: T | AKM4: C | AKN4: A | AKO4: A | AKP4: T | AKQ4: A | AKR4: A | AKS4: C | AKT4: C | AKU4: G | AKV4: T | AKW4: A | AKX4: A | AKY4: T | AKZ4: G | ALA4: A | ALB4: A | ALC4: A | ALD4: A | ALE4: T | ALF4: Y | ALG4: A | ALH4: W | ALI4: K | ALJ4: Y | ALK4: G | ALL4: T | ALM4: T | ALN4: G | ALO4: G | ALP4: A | ALQ4: Y | ALR4: T | ALS4: A | ALT4: T | ALU4: G | ALV4: G | ALW4: G | ALX4: A | ALY4: C | ALZ4: A | AMA4: C | AMB4: A | AMC4: T | AMD4: T | AME4: C | AMF4: T | AMG4: A | AMH4: C | AMI4: A | AMJ4: A | AMK4: G | AML4: G | AMM4: C | AMN4: T | AMO4: G | AMP4: A | AMQ4: - | AMR4: C | AMS4: T | AMT4: T | AMU4: G | AMV4: C | AMW4: G | AMX4: G | AMY4: G | AMZ4: A | ANA4: G | ANB4: C | ANC4: A | AND4: A | ANE4: T | ANF4: G | ANG4: G | ANH4: A | ANI4: C | ANJ4: T | ANK4: T | ANL4: G | ANM4: C | ANN4: A | ANO4: G | ANP4: T | ANQ4: G | ANR4: C | ANS4: C | ANT4: T | ANU4: A | ANV4: R | ANW4: G | ANX4: C | ANY4: T | ANZ4: C | AOA4: A | AOB4: C | AOC4: C | AOD4: T | AOE4: C | AOF4: T | AOG4: A | AOH4: T | AOI4: G | AOJ4: G | AOK4: A | AOL4: G | AOM4: G | AON4: - | AOO4: C | AOP4: C | AOQ4: C | AOR4: G | AOS4: A | AOT4: T | AOU4: C | AOV4: A | AOW4: T | AOX4: T | AOY4: C | AOZ4: G | APA4: A | APB4: T | APC4: T | APD4: T | APE4: C | APF4: A | APG4: C | APH4: A | API4: G | APJ4: T | APK4: T | APL4: A | APM4: C | APN4: T | APO4: C | APP4: C | APQ4: T | APR4: A | APS4: A | APT4: C | APU4: C | APV4: C | APW4: G | APX4: A | APY4: G | APZ4: T | AQA4: T | AQB4: A | AQC4: T | AQD4: - | AQE4: - | AQF4: G | AQG4: A | AQH4: C | AQI4: S | AQJ4: G | AQK4: A | AQL4: G | AQM4: G | AQN4: G | AQO4: A | AQP4: C | AQQ4: T | AQR4: T | AQS4: A | AQT4: A | AQU4: C | AQV4: T | AQW4: A | AQX4: A | AQY4: S | AQZ4: R | ARA4: M | ARB4: C | ARC4: A | ARD4: A | ARE4: G | ARF4: T | ARG4: T | ARH4: T | ARI4: T | ARJ4: T | ARK4: T | ARL4: T | ARM4: G | ARN4: - | ARO4: T | ARP4: A | ARQ4: C | ARR4: G | ARS4: G | ART4: G | ARU4: A | ARV4: G | ARW4: A | ARX4: T | ARY4: G | ARZ4: G | ASA4: C | ASB4: A | ASC4: G | ASD4: T | ASE4: T | ASF4: C | ASG4: T | ASH4: C | ASI4: G | ASJ4: A | ASK4: G | ASL4: A | ASM4: T | ASN4: A | ASO4: G | ASP4: A | ASQ4: C | ASR4: A | ASS4: T | AST4: C | ASU4: C | ASV4: C | ASW4: A | ASX4: T | ASY4: G | ASZ4: G | ATA4: T | ATB4: A | ATC4: A | ATD4: T | ATE4: G | ATF4: G | ATG4: G | ATH4: G | ATI4: A | ATJ4: A | ATK4: - | ATL4: C | ATM4: R | ATN4: A | ATO4: A | ATP4: A | ATQ4: A | ATR4: C | ATS4: G | ATT4: C | ATU4: A | ATV4: C | ATW4: T | ATX4: G | ATY4: G | ATZ4: A | AUA4: G | AUB4: G | AUC4: C | AUD4: C | AUE4: T | AUF4: T | AUG4: T | AUH4: G | AUI4: A | AUJ4: C | AUK4: A | AUL4: T | AUM4: C | AUN4: A | AUO4: T | AUP4: T | AUQ4: A | AUR4: A | AUS4: G | AUT4: C | AUU4: T | AUV4: A | AUW4: A | AUX4: T | AUY4: T | AUZ4: A | AVA4: C | AVB4: C | AVC4: T | AVD4: A | AVE4: T | AVF4: T | AVG4: A | AVH4: T | AVI4: C | AVJ4: A | AVK4: C | AVL4: T | AVM4: R | AVN4: Y | AVO4: W | AVP4: T | AVQ4: C | AVR4: T | AVS4: - | AVT4: A | AVU4: - | AVV4: G | AVW4: T | AVX4: G | AVY4: - | AVZ4: T | AWA4: - | AWB4: G | AWC4: A | AWD4: C | AWE4: G | AWF4: C | AWG4: T | AWH4: T | AWI4: T | AWJ4: A | AWK4: T | AWL4: - | AWM4: G | AWN4: - | AWO4: C | AWP4: G | AWQ4: A | AWR4: G | AWS4: A | AWT4: A | AWU4: A | AWV4: G | AWW4: A | AWX4: A | AWY4: A | AWZ4: G | AXA4: A | AXB4: C | AXC4: G | AXD4: C | AXE4: A | AXF4: G | AXG4: T | AXH4: - | AXI4: A | AXJ4: G | AXK4: A | AXL4: A | AXM4: A | AXN4: T | AXO4: A | AXP4: R | AXQ4: T | AXR4: A | AXS4: C | AXT4: - | AXU4: C | AXV4: A | AXW4: G | AXX4: T | AXY4: G | AXZ4: C | AYA4: C | AYB4: A | AYC4: T | AYD4: A | AYE4: C | AYF4: T | AYG4: A | AYH4: C | AYI4: G | AYJ4: T | AYK4: A | AYL4: A | AYM4: C | AYN4: A | AYO4: T | AYP4: C | AYQ4: G | AYR4: A | AYS4: - | AYT4: T | AYU4: C | AYV4: C | AYW4: A | AYX4: A | AYY4: T | AYZ4: G | AZA4: C | AZB4: G | AZC4: T | AZD4: G | AZE4: C | AZF4: A | AZG4: A | AZH4: A | AZI4: T | AZJ4: T | AZK4: T | AZL4: C | AZM4: A | AZN4: A | AZO4: T | AZP4: A | AZQ4: T | AZR4: T | AZS4: C | AZT4: A | AZU4: G | AZV4: A | AZW4: G | AZX4: T | AZY4: G | AZZ4: A | BAA4: G | BAB4: T | BAC4: C | BAD4: T | BAE4: A | BAF4: G | BAG4: A | BAH4: A | BAI4: A | BAJ4: G | BAK4: T | BAL4: A | BAM4: A | BAN4: T | BAO4: A | BAP4: G | BAQ4: - | BAR4: C | BAS4: G | BAT4: T | BAU4: A | BAV4: T | BAW4: A | BAX4: A | BAY4: T | BAZ4: T | BBA4: C | BBB4: T | BBC4: - | BBD4: C | BBE4: C | BBF4: A | BBG4: G | BBH4: A | BBI4: C | BBJ4: A | BBK4: C | BBL4: T | BBM4: T | BBN4: G | BBO4: C | BBP4: A | BBQ4: T | BBR4: C | BBS4: T | BBT4: T | BBU4: C | BBV4: - | BBW4: G | BBX4: C | BBY4: T | BBZ4: A | BCA4: A | BCB4: T | BCC4: C | BCD4: - | BCE4: A | BCF4: G | BCG4: C | BCH4: C | BCI4: G | BCJ4: C | BCK4: T | BCL4: A | BCM4: A | BCN4: G | BCO4: A | BCP4: C | BCQ4: G | BCR4: A | BCS4: G | BCT4: T | BCU4: A | BCV4: C | BCW4: - | BCX4: C | BCY4: T | BCZ4: C | BDA4: T | BDB4: T | BDC4: G | BDD4: A | BDE4: C | BDF4: C | BDG4: A | BDH4: A | BDI4: T | BDJ4: G | BDK4: T | BDL4: A | BDM4: T | BDN4: C | BDO4: A | BDP4: G | BDQ4: T | BDR4: T | BDS4: T | BDT4: G | BDU4: A | BDV4: A | BDW4: T | BDX4: T | BDY4: A | BDZ4: T | BEA4: G | BEB4: G | BEC4: T | BED4: T | BEE4: A | BEF4: A | BEG4: T | BEH4: T | BEI4: T | BEJ4: C | BEK4: T | BEL4: C | BEM4: G | BEN4: T | BEO4: G | BEP4: T | BEQ4: T | BER4: T | BES4: A | BET4: G | BEU4: C | BEV4: Y | BEW4: G | BEX4: R
A5: SC1900061_R2 | B5: IPK_CAN_47 IPK47 | C5: G | D5: R | E5: A | F5: C | G5: G | H5: C | I5: A | J5: C | K5: C | L5: A | M5: T | N5: Y | O5: T | P5: Y | Q5: G | R5: Y | S5: R | T5: K | U5: Y | V5: A | W5: Y | X5: K | Y5: A | Z5: C | AA5: G | AB5: C | AC5: W | AD5: R | AE5: A | AF5: C | AG5: R | AH5: M | AI5: G | AJ5: C | AK5: C | AL5: R | AM5: A | AN5: Y | AO5: C | AP5: T | AQ5: C | AR5: C | AS5: G | AT5: C | AU5: T | AV5: T | AW5: A | AX5: A | AY5: W | AZ5: R | BA5: A | BB5: T | BC5: A | BD5: T | BE5: T | BF5: T | BG5: G | BH5: A | BI5: R | BJ5: R | BK5: T | BL5: T | BM5: G | BN5: G | BO5: R | BP5: T | BQ5: T | BR5: T | BS5: C | BT5: G | BU5: G | BV5: A | BW5: T | BX5: T | BY5: T | BZ5: A | CA5: C | CB5: T | CC5: T | CD5: C | CE5: T | CF5: G | CG5: A | CH5: A | CI5: G | CJ5: G | CK5: A | CL5: R | CM5: G | CN5: G | CO5: G | CP5: A | CQ5: T | CR5: A | CS5: C | CT5: A | CU5: T | CV5: Y | CW5: A | CX5: C | CY5: A | CZ5: A | DA5: C | DB5: T | DC5: M | DD5: A | DE5: Y | DF5: A | DG5: G | DH5: A | DI5: - | DJ5: A | DK5: C | DL5: G | DM5: G | DN5: C | DO5: T | DP5: G | DQ5: T | DR5: C | DS5: A | DT5: T | DU5: A | DV5: T | DW5: C | DX5: T | DY5: T | DZ5: C | EA5: T | EB5: G | EC5: T | ED5: A | EE5: T | EF5: A | EG5: T | EH5: C | EI5: R | EJ5: C | EK5: A | EL5: G | EM5: A | EN5: A | EO5: G | EP5: C | EQ5: - | ER5: C | ES5: T | ET5: T | EU5: T | EV5: T | EW5: G | EX5: T | EY5: C | EZ5: A | FA5: C | FB5: G | FC5: T | FD5: G | FE5: A | FF5: T | FG5: A | FH5: A | FI5: C | FJ5: A | FK5: A | FL5: T | FM5: C | FN5: A | FO5: A | FP5: G | FQ5: T | FR5: C | FS5: G | FT5: A | FU5: A | FV5: A | FW5: A | FX5: A | FY5: C | FZ5: G | GA5: A | GB5: G | GC5: T | GD5: C | GE5: T | GF5: C | GG5: C | GH5: A | GI5: G | GJ5: A | GK5: T | GL5: T | GM5: G | GN5: G | GO5: C | GP5: A | GQ5: C | GR5: C | GS5: G | GT5: G | GU5: T | GV5: C | GW5: C | GX5: C | GY5: A | GZ5: A | HA5: G | HB5: G | HC5: G | HD5: Y | HE5: G | HF5: Y | HG5: C | HH5: A | HI5: G | HJ5: K | HK5: R | HL5: G | HM5: C | HN5: T | HO5: C | HP5: T | HQ5: A | HR5: Y | HS5: A | HT5: T | HU5: G | HV5: C | HW5: A | HX5: K | HY5: Y | HZ5: Y | IA5: A | IB5: G | IC5: C | ID5: G | IE5: T | IF5: C | IG5: T | IH5: C | II5: G | IJ5: C | IK5: C | IL5: T | IM5: R | IN5: G | IO5: A | IP5: T | IQ5: A | IR5: A | IS5: C | IT5: A | IU5: T | IV5: T | IW5: T | IX5: W | IY5: A | IZ5: T | JA5: C | JB5: T | JC5: C | JD5: - | JE5: C | JF5: G | JG5: G | JH5: C | JI5: T | JJ5: Y | JK5: C | JL5: R | JM5: A | JN5: C | JO5: W | JP5: A | JQ5: T | JR5: T | JS5: W | JT5: C | JU5: A | JV5: T | JW5: C | JX5: C | JY5: A | JZ5: A | KA5: - | KB5: T | KC5: G | KD5: - | KE5: A | KF5: Y | KG5: G | KH5: R | KI5: R | KJ5: Y | KK5: A | KL5: A | KM5: C | KN5: C | KO5: C | KP5: A | KQ5: Y | KR5: A | KS5: G | KT5: C | KU5: C | KV5: G | KW5: S | KX5: G | KY5: G | KZ5: A | LA5: M | LB5: A | LC5: R | LD5: T | LE5: G | LF5: Y | LG5: Y | LH5: C | LI5: T | LJ5: A | LK5: Y | LL5: G | LM5: R | LN5: C | LO5: C | LP5: T | LQ5: A | LR5: C | LS5: T | LT5: C | LU5: R | LV5: Y | LW5: S | LX5: T | LY5: A | LZ5: G | MA5: T | MB5: A | MC5: C | MD5: G | ME5: A | MF5: G | MG5: G | MH5: A | MI5: C | MJ5: Y | MK5: R | ML5: G | MM5: R | MN5: G | MO5: C | MP5: A | MQ5: Y | MR5: G | MS5: R | MT5: Y | MU5: G | MV5: R | MW5: T | MX5: R | MY5: R | MZ5: M | NA5: C | NB5: R | NC5: A | ND5: C | NE5: A | NF5: G | NG5: C | NH5: K | NI5: A | NJ5: A | NK5: T | NL5: K | NM5: C | NN5: G | NO5: G | NP5: T | NQ5: K | NR5: C | NS5: R | NT5: W | NU5: R | NV5: Y | NW5: C | NX5: Y | NY5: R | NZ5: R | OA5: Y | OB5: T | OC5: T | OD5: A | OE5: T | OF5: A | OG5: C | OH5: G | OI5: T | OJ5: T | OK5: Y | OL5: T | OM5: C | ON5: S | OO5: A | OP5: Y | OQ5: W | OR5: G | OS5: R | OT5: G | OU5: A | OV5: G | OW5: C | OX5: T | OY5: C | OZ5: R | PA5: C | PB5: G | PC5: Y | PD5: T | PE5: G | PF5: S | PG5: C | PH5: G | PI5: G | PJ5: C | PK5: G | PL5: R | PM5: G | PN5: T | PO5: C | PP5: C | PQ5: A | PR5: A | PS5: G | PT5: G | PU5: C | PV5: - | PW5: A | PX5: A | PY5: T | PZ5: - | QA5: C | QB5: G | QC5: C | QD5: C | QE5: G | QF5: C | QG5: G | QH5: C | QI5: G | QJ5: Y | QK5: C | QL5: T | QM5: A | QN5: A | QO5: T | QP5: T | QQ5: G | QR5: G | QS5: W | QT5: C | QU5: A | QV5: C | QW5: C | QX5: C | QY5: - | QZ5: C | RA5: C | RB5: T | RC5: G | RD5: G | RE5: T | RF5: A | RG5: A | RH5: C | RI5: T | RJ5: - | RK5: - | RL5: G | RM5: G | RN5: T | RO5: C | RP5: A | RQ5: A | RR5: - | RS5: C | RT5: A | RU5: A | RV5: A | RW5: C | RX5: G | RY5: C | RZ5: G | SA5: C | SB5: C | SC5: G | SD5: A | SE5: A | SF5: G | SG5: G | SH5: A | SI5: A | SJ5: T | SK5: T | SL5: C | SM5: C | SN5: C | SO5: A | SP5: A | SQ5: C | SR5: C | SS5: G | ST5: A | SU5: T | SV5: A | SW5: A | SX5: A | SY5: C | SZ5: T | TA5: A | TB5: C | TC5: C | TD5: - | TE5: G | TF5: A | TG5: C | TH5: G | TI5: A | TJ5: R | TK5: C | TL5: C | TM5: C | TN5: T | TO5: T | TP5: G | TQ5: G | TR5: C | TS5: C | TT5: T | TU5: A | TV5: T | TW5: T | TX5: A | TY5: T | TZ5: A | UA5: C | UB5: T | UC5: A | UD5: A | UE5: A | UF5: A | UG5: A | UH5: C | UI5: A | UJ5: T | UK5: C | UL5: A | UM5: G | UN5: R | UO5: A | UP5: K | UQ5: T | UR5: C | US5: Y | UT5: G | UU5: G | UV5: A | UW5: A | UX5: Y | UY5: A | UZ5: W | VA5: Y | VB5: Y | VC5: T | VD5: M | VE5: T | VF5: S | VG5: W | VH5: G | VI5: R | VJ5: W | VK5: T | VL5: A | VM5: W | VN5: A | VO5: Y | VP5: Y | VQ5: T | VR5: Y | VS5: C | VT5: R | VU5: Y | VV5: R | VW5: G | VX5: T | VY5: A | VZ5: G | WA5: T | WB5: R | WC5: R | WD5: R | WE5: R | WF5: A | WG5: Y | WH5: T | WI5: T | WJ5: T | WK5: S | WL5: Y | WM5: Y | WN5: A | WO5: Y | WP5: A | WQ5: Y | WR5: T | WS5: Y | WT5: C | WU5: S | WV5: A | WW5: C | WX5: T | WY5: T | WZ5: T | XA5: R | XB5: C | XC5: A | XD5: G | XE5: T | XF5: T | XG5: A | XH5: C | XI5: M | XJ5: G | XK5: T | XL5: T | XM5: S | XN5: T | XO5: A | XP5: A | XQ5: Y | XR5: A | XS5: G | XT5: A | XU5: A | XV5: A | XW5: T | XX5: T | XY5: G | XZ5: Y | YA5: Y | YB5: T | YC5: A | YD5: G | YE5: Y | YF5: Y | YG5: Y | YH5: A | YI5: G | YJ5: T | YK5: T | YL5: T | YM5: A | YN5: Y | YO5: G | YP5: G | YQ5: Y | YR5: T | YS5: A | YT5: G | YU5: A | YV5: C | YW5: T | YX5: S | YY5: R | YZ5: W | ZA5: A | ZB5: G | ZC5: C | ZD5: T | ZE5: C | ZF5: T | ZG5: G | ZH5: G | ZI5: T | ZJ5: C | ZK5: W | ZL5: T | ZM5: T | ZN5: C | ZO5: C | ZP5: A | ZQ5: W | ZR5: K | ZS5: T | ZT5: Y | ZU5: C | ZV5: K | ZW5: A | ZX5: C | ZY5: G | ZZ5: T | AAA5: W | AAB5: G | AAC5: C | AAD5: T | AAE5: T | AAF5: T | AAG5: A | AAH5: A | AAI5: A | AAJ5: G | AAK5: R | AAL5: R | AAM5: K | AAN5: Y | AAO5: Y | AAP5: T | AAQ5: G | AAR5: T | AAS5: T | AAT5: G | AAU5: Y | AAV5: G | AAW5: K | AAX5: G | AAY5: C | AAZ5: T | ABA5: G | ABB5: A | ABC5: K | ABD5: W | ABE5: G | ABF5: T | ABG5: T | ABH5: G | ABI5: T | ABJ5: A | ABK5: Y | ABL5: T | ABM5: Y | ABN5: W | ABO5: Y | ABP5: G | ABQ5: A | ABR5: G | ABS5: T | ABT5: Y | ABU5: W | ABV5: C | ABW5: Y | ABX5: C | ABY5: C | ABZ5: G | ACA5: S | ACB5: A | ACC5: W | ACD5: A | ACE5: R | ACF5: T | ACG5: C | ACH5: T | ACI5: M | ACJ5: C | ACK5: G | ACL5: R | ACM5: T | ACN5: G | ACO5: - | ACP5: R | ACQ5: C | ACR5: T | ACS5: A | ACT5: C | ACU5: A | ACV5: A | ACW5: M | ACX5: R | ACY5: T | ACZ5: W | ADA5: G | ADB5: G | ADC5: T | ADD5: C | ADE5: G | ADF5: G | ADG5: G | ADH5: T | ADI5: - | ADJ5: A | ADK5: G | ADL5: G | ADM5: A | ADN5: G | ADO5: T | ADP5: M | ADQ5: T | ADR5: A | ADS5: A | ADT5: G | ADU5: T | ADV5: C | ADW5: G | ADX5: C | ADY5: T | ADZ5: C | AEA5: G | AEB5: G | AEC5: G | AED5: G | AEE5: G | AEF5: T | AEG5: A | AEH5: C | AEI5: A | AEJ5: G | AEK5: G | AEL5: G | AEM5: - | AEN5: Y | AEO5: M | AEP5: A | AEQ5: C | AER5: G | AES5: G | AET5: G | AEU5: T | AEV5: A | AEW5: A | AEX5: C | AEY5: T | AEZ5: C | AFA5: C | AFB5: T | AFC5: A | AFD5: C | AFE5: W | AFF5: G | AFG5: G | AFH5: A | AFI5: W | AFJ5: T | AFK5: C | AFL5: Y | AFM5: A | AFN5: A | AFO5: C | AFP5: K | AFQ5: T | AFR5: A | AFS5: - | AFT5: G | AFU5: C | AFV5: T | AFW5: C | AFX5: A | AFY5: C | AFZ5: T | AGA5: Y | AGB5: T | AGC5: C | AGD5: R | AGE5: Y | AGF5: C | AGG5: G | AGH5: C | AGI5: G | AGJ5: R | AGK5: Y | AGL5: G | AGM5: R | AGN5: Y | AGO5: R | AGP5: A | AGQ5: T | AGR5: R | AGS5: T | AGT5: A | AGU5: T | AGV5: - | AGW5: G | AGX5: A | AGY5: T | AGZ5: G | AHA5: Y | AHB5: G | AHC5: K | AHD5: G | AHE5: G | AHF5: C | AHG5: A | AHH5: C | AHI5: T | AHJ5: A | AHK5: A | AHL5: A | AHM5: A | AHN5: M | AHO5: T | AHP5: A | AHQ5: C | AHR5: C | AHS5: T | AHT5: T | AHU5: A | AHV5: T | AHW5: G | AHX5: A | AHY5: Y | AHZ5: C | AIA5: W | AIB5: A | AIC5: T | AID5: A | AIE5: M | AIF5: M | AIG5: G | AIH5: A | AII5: G | AIJ5: Y | AIK5: R | AIL5: C | AIM5: T | AIN5: A | AIO5: A | AIP5: T | AIQ5: Y | AIR5: R | AIS5: Y | AIT5: T | AIU5: A | AIV5: C | AIW5: T | AIX5: W | AIY5: C | AIZ5: S | AJA5: G | AJB5: A | AJC5: T | AJD5: C | AJE5: T | AJF5: T | AJG5: A | AJH5: T | AJI5: Y | AJJ5: T | AJK5: K | AJL5: Y | AJM5: G | AJN5: T | AJO5: C | AJP5: Y | AJQ5: Y | AJR5: T | AJS5: R | AJT5: C | AJU5: A | AJV5: A | AJW5: A | AJX5: W | AJY5: G | AJZ5: A | AKA5: A | AKB5: K | AKC5: G | AKD5: C | AKE5: W | AKF5: T | AKG5: S | AKH5: G | AKI5: G | AKJ5: R | AKK5: W | AKL5: W | AKM5: S | AKN5: R | AKO5: R | AKP5: Y | AKQ5: R | AKR5: M | AKS5: Y | AKT5: Y | AKU5: T | AKV5: T | AKW5: A | AKX5: C | AKY5: K | AKZ5: G | ALA5: A | ALB5: R | ALC5: A | ALD5: A | ALE5: T | ALF5: T | ALG5: C | ALH5: T | ALI5: K | ALJ5: T | ALK5: A | ALL5: C | ALM5: W | ALN5: S | ALO5: G | ALP5: R | ALQ5: C | ALR5: T | ALS5: A | ALT5: A | ALU5: G | ALV5: G | ALW5: A | ALX5: A | ALY5: - | ALZ5: A | AMA5: T | AMB5: C | AMC5: G | AMD5: A | AME5: T | AMF5: T | AMG5: C | AMH5: T | AMI5: A | AMJ5: A | AMK5: C | AML5: T | AMM5: A | AMN5: T | AMO5: G | AMP5: T | AMQ5: T | AMR5: Y | AMS5: T | AMT5: Y | AMU5: R | AMV5: S | AMW5: R | AMX5: G | AMY5: A | AMZ5: A | ANA5: G | ANB5: Y | ANC5: A | AND5: T | ANE5: C | ANF5: R | ANG5: G | ANH5: A | ANI5: C | ANJ5: T | ANK5: G | ANL5: G | ANM5: C | ANN5: A | ANO5: A | ANP5: A | ANQ5: K | ANR5: T | ANS5: G | ANT5: Y | ANU5: R | ANV5: G | ANW5: G | ANX5: C | ANY5: T | ANZ5: T | AOA5: G | AOB5: Y | AOC5: Y | AOD5: Y | AOE5: Y | AOF5: T | AOG5: W | AOH5: W | AOI5: G | AOJ5: R | AOK5: R | AOL5: A | AOM5: R | AON5: C | AOO5: C | AOP5: C | AOQ5: C | AOR5: G | AOS5: T | AOT5: A | AOU5: C | AOV5: M | AOW5: K | AOX5: Y | AOY5: C | AOZ5: A | APA5: T | APB5: Y | APC5: C | APD5: T | APE5: T | APF5: M | APG5: C | APH5: G | API5: R | APJ5: T | APK5: W | APL5: C | APM5: C | APN5: A | APO5: T | APP5: T | APQ5: C | APR5: T | APS5: A | APT5: Y | APU5: T | APV5: T | APW5: R | APX5: R | APY5: A | APZ5: C | AQA5: G | AQB5: W | AQC5: Y | AQD5: C | AQE5: C | AQF5: A | AQG5: R | AQH5: S | AQI5: S | AQJ5: G | AQK5: G | AQL5: G | AQM5: G | AQN5: R | AQO5: A | AQP5: S | AQQ5: G | AQR5: W | AQS5: M | AQT5: A | AQU5: T | AQV5: Y | AQW5: A | AQX5: A | AQY5: G | AQZ5: G | ARA5: M | ARB5: T | ARC5: R | ARD5: W | ARE5: R | ARF5: C | ARG5: C | ARH5: Y | ARI5: G | ARJ5: W | ARK5: T | ARL5: G | ARM5: R | ARN5: - | ARO5: T | ARP5: R | ARQ5: C | ARR5: T | ARS5: G | ART5: A | ARU5: A | ARV5: R | ARW5: T | ARX5: A | ARY5: A | ARZ5: A | ASA5: T | ASB5: A | ASC5: G | ASD5: T | ASE5: G | ASF5: C | ASG5: C | ASH5: T | ASI5: G | ASJ5: W | ASK5: G | ASL5: A | ASM5: C | ASN5: G | ASO5: G | ASP5: R | ASQ5: - | ASR5: - | ASS5: T | AST5: C | ASU5: C | ASV5: C | ASW5: A | ASX5: T | ASY5: A | ASZ5: A | ATA5: - | ATB5: G | ATC5: W | ATD5: C | ATE5: G | ATF5: S | ATG5: R | ATH5: R | ATI5: A | ATJ5: A | ATK5: C | ATL5: G | ATM5: - | ATN5: G | ATO5: C | ATP5: A | ATQ5: C | ATR5: C | ATS5: A | ATT5: A | ATU5: A | ATV5: C | ATW5: Y | ATX5: G | ATY5: A | ATZ5: G | AUA5: G | AUB5: G | AUC5: C | AUD5: C | AUE5: T | AUF5: T | AUG5: T | AUH5: G | AUI5: A | AUJ5: C | AUK5: C | AUL5: T | AUM5: Y | AUN5: R | AUO5: Y | AUP5: T | AUQ5: A | AUR5: M | AUS5: G | AUT5: C | AUU5: W | AUV5: G | AUW5: R | AUX5: T | AUY5: T | AUZ5: G | AVA5: C | AVB5: T | AVC5: T | AVD5: A | AVE5: C | AVF5: Y | AVG5: A | AVH5: Y | AVI5: C | AVJ5: W | AVK5: Y | AVL5: T | AVM5: G | AVN5: C | AVO5: A | AVP5: T | AVQ5: C | AVR5: C | AVS5: C | AVT5: G | AVU5: T | AVV5: T | AVW5: C | AVX5: A | AVY5: C | AVZ5: C | AWA5: - | AWB5: G | AWC5: A | AWD5: Y | AWE5: G | AWF5: C | AWG5: C | AWH5: C | AWI5: T | AWJ5: W | AWK5: T | AWL5: - | AWM5: G | AWN5: - | AWO5: C | AWP5: G | AWQ5: A | AWR5: G | AWS5: R | AWT5: - | AWU5: R | AWV5: A | AWW5: W | AWX5: A | AWY5: A | AWZ5: G | AXA5: T | AXB5: C | AXC5: G | AXD5: T | AXE5: A | AXF5: G | AXG5: T | AXH5: T | AXI5: A | AXJ5: A | AXK5: M | AXL5: W | AXM5: R | AXN5: Y | AXO5: A | AXP5: A | AXQ5: C | AXR5: G | AXS5: T | AXT5: C | AXU5: T | AXV5: - | AXW5: G | AXX5: T | AXY5: A | AXZ5: T | AYA5: C | AYB5: G | AYC5: A | AYD5: C | AYE5: C | AYF5: Y | AYG5: R | AYH5: A | AYI5: G | AYJ5: T | AYK5: G | AYL5: T | AYM5: Y | AYN5: G | AYO5: G | AYP5: T | AYQ5: A | AYR5: A | AYS5: C | AYT5: C | AYU5: S | AYV5: C | AYW5: R | AYX5: G | AYY5: C | AYZ5: A | AZA5: G | AZB5: G | AZC5: G | AZD5: K | AZE5: C | AZF5: A | AZG5: R | AZH5: A | AZI5: Y | AZJ5: A | AZK5: A | AZL5: C | AZM5: T | AZN5: W | AZO5: C | AZP5: R | AZQ5: C | AZR5: C | AZS5: S | AZT5: R | AZU5: A | AZV5: W | AZW5: R | AZX5: C | AZY5: S | AZZ5: - | BAA5: - | BAB5: Y | BAC5: T | BAD5: Y | BAE5: C | BAF5: G | BAG5: G | BAH5: G | BAI5: A | BAJ5: G | BAK5: Y | BAL5: A | BAM5: R | BAN5: C | BAO5: G | BAP5: A | BAQ5: C | BAR5: C | BAS5: R | BAT5: W | BAU5: M | BAV5: T | BAW5: T | BAX5: R | BAY5: Y | BAZ5: T | BBA5: C | BBB5: Y | BBC5: - | BBD5: C | BBE5: Y | BBF5: M | BBG5: S | BBH5: A | BBI5: M | BBJ5: R | BBK5: Y | BBL5: T | BBM5: C | BBN5: R | BBO5: T | BBP5: T | BBQ5: T | BBR5: T | BBS5: W | BBT5: C | BBU5: G | BBV5: C | BBW5: R | BBX5: C | BBY5: Y | BBZ5: R | BCA5: R | BCB5: Y | BCC5: A | BCD5: - | BCE5: R | BCF5: A | BCG5: M | BCH5: Y | BCI5: K | BCJ5: C | BCK5: K | BCL5: A | BCM5: W | BCN5: R | BCO5: G | BCP5: T | BCQ5: A | BCR5: R | BCS5: K | BCT5: C | BCU5: G | BCV5: Y | BCW5: Y | BCX5: C | BCY5: T | BCZ5: S | BDA5: Y | BDB5: K | BDC5: C | BDD5: G | BDE5: C | BDF5: C | BDG5: A | BDH5: A | BDI5: T | BDJ5: G | BDK5: W | BDL5: R | BDM5: A | BDN5: Y | BDO5: T | BDP5: K | BDQ5: T | BDR5: Y | BDS5: G | BDT5: A | BDU5: A | BDV5: W | BDW5: T | BDX5: Y | BDY5: W | BDZ5: W | BEA5: G | BEB5: R | BEC5: Y | BED5: Y | BEE5: A | BEF5: A | BEG5: T | BEH5: T | BEI5: Y | BEJ5: Y | BEK5: T | BEL5: Y | BEM5: S | BEN5: T | BEO5: C | BEP5: A | BEQ5: G | BER5: C | BES5: W | BET5: G | BEU5: S | BEV5: Y | BEW5: G | BEX5: R
A6: SC1900034_R2 | B6: IPK_CAN_50 FIBRIMON | C6: C | D6: G | E6: A | F6: T | G6: R | H6: G | I6: A | J6: T | K6: A | L6: R | M6: T | N6: Y | O6: Y | P6: C | Q6: S | R6: C | S6: R | T6: T | U6: Y | V6: A | W6: C | X6: K | Y6: R | Z6: T | AA6: A | AB6: C | AC6: W | AD6: R | AE6: R | AF6: Y | AG6: R | AH6: M | AI6: R | AJ6: G | AK6: Y | AL6: G | AM6: R | AN6: Y | AO6: Y | AP6: T | AQ6: S | AR6: C | AS6: G | AT6: C | AU6: W | AV6: T | AW6: A | AX6: A | AY6: W | AZ6: R | BA6: A | BB6: T | BC6: A | BD6: T | BE6: T | BF6: T | BG6: G | BH6: A | BI6: A | BJ6: R | BK6: T | BL6: T | BM6: G | BN6: G | BO6: R | BP6: T | BQ6: Y | BR6: T | BS6: C | BT6: G | BU6: G | BV6: R | BW6: C | BX6: W | BY6: W | BZ6: A | CA6: C | CB6: T | CC6: T | CD6: Y | CE6: Y | CF6: A | CG6: G | CH6: A | CI6: T | CJ6: G | CK6: A | CL6: R | CM6: R | CN6: R | CO6: G | CP6: A | CQ6: T | CR6: A | CS6: Y | CT6: A | CU6: T | CV6: C | CW6: W | CX6: C | CY6: G | CZ6: G | DA6: T | DB6: C | DC6: M | DD6: A | DE6: Y | DF6: A | DG6: K | DH6: A | DI6: - | DJ6: A | DK6: C | DL6: G | DM6: G | DN6: A | DO6: C | DP6: G | DQ6: T | DR6: T | DS6: G | DT6: Y | DU6: R | DV6: Y | DW6: C | DX6: T | DY6: T | DZ6: C | EA6: T | EB6: R | EC6: K | ED6: A | EE6: T | EF6: A | EG6: T | EH6: G | EI6: R | EJ6: C | EK6: T | EL6: R | EM6: R | EN6: A | EO6: G | EP6: Y | EQ6: T | ER6: Y | ES6: C | ET6: T | EU6: T | EV6: T | EW6: G | EX6: K | EY6: Y | EZ6: W | FA6: C | FB6: G | FC6: C | FD6: A | FE6: G | FF6: Y | FG6: R | FH6: R | FI6: C | FJ6: W | FK6: A | FL6: C | FM6: C | FN6: G | FO6: R | FP6: G | FQ6: W | FR6: Y | FS6: R | FT6: G | FU6: C | FV6: R | FW6: R | FX6: R | FY6: T | FZ6: G | GA6: A | GB6: G | GC6: T | GD6: T | GE6: C | GF6: C | GG6: A | GH6: R | GI6: R | GJ6: C | GK6: W | GL6: W | GM6: R | GN6: G | GO6: C | GP6: R | GQ6: C | GR6: Y | GS6: S | GT6: R | GU6: K | GV6: Y | GW6: T | GX6: C | GY6: T | GZ6: R | HA6: R | HB6: G | HC6: A | HD6: - | HE6: A | HF6: C | HG6: T | HH6: G | HI6: C | HJ6: T | HK6: A | HL6: G | HM6: T | HN6: T | HO6: C | HP6: T | HQ6: G | HR6: T | HS6: A | HT6: T | HU6: G | HV6: C | HW6: G | HX6: - | HY6: T | HZ6: C | IA6: T | IB6: G | IC6: C | ID6: T | IE6: C | IF6: T | IG6: A | IH6: T | II6: G | IJ6: A | IK6: T | IL6: W | IM6: R | IN6: A | IO6: G | IP6: Y | IQ6: G | IR6: C | IS6: Y | IT6: G | IU6: A | IV6: G | IW6: C | IX6: A | IY6: G | IZ6: Y | JA6: T | JB6: C | JC6: G | JD6: - | JE6: G | JF6: G | JG6: T | JH6: T | JI6: T | JJ6: C | JK6: G | JL6: A | JM6: A | JN6: C | JO6: A | JP6: M | JQ6: Y | JR6: T | JS6: T | JT6: T | JU6: A | JV6: Y | JW6: C | JX6: C | JY6: G | JZ6: G | KA6: - | KB6: T | KC6: A | KD6: - | KE6: A | KF6: T | KG6: C | KH6: G | KI6: A | KJ6: C | KK6: A | KL6: G | KM6: G | KN6: C | KO6: T | KP6: C | KQ6: C | KR6: - | KS6: R | KT6: T | KU6: C | KV6: R | KW6: S | KX6: R | KY6: A | KZ6: C | LA6: M | LB6: A | LC6: G | LD6: T | LE6: G | LF6: Y | LG6: C | LH6: C | LI6: T | LJ6: C | LK6: Y | LL6: R | LM6: - | LN6: T | LO6: C | LP6: C | LQ6: A | LR6: T | LS6: T | LT6: C | LU6: G | LV6: T | LW6: C | LX6: C | LY6: T | LZ6: G | MA6: C | MB6: G | MC6: C | MD6: G | ME6: T | MF6: G | MG6: A | MH6: A | MI6: C | MJ6: Y | MK6: G | ML6: C | MM6: G | MN6: A | MO6: T | MP6: A | MQ6: T | MR6: - | MS6: A | MT6: - | MU6: A | MV6: G | MW6: C | MX6: A | MY6: A | MZ6: C | NA6: A | NB6: A | NC6: G | ND6: C | NE6: A | NF6: C | NG6: T | NH6: T | NI6: A | NJ6: G | NK6: T | NL6: G | NM6: - | NN6: G | NO6: S | NP6: A | NQ6: K | NR6: T | NS6: - | NT6: W | NU6: R | NV6: Y | NW6: T | NX6: C | NY6: G | NZ6: A | OA6: Y | OB6: K | OC6: Y | OD6: M | OE6: G | OF6: G | OG6: C | OH6: R | OI6: T | OJ6: Y | OK6: C | OL6: T | OM6: Y | ON6: G | OO6: G | OP6: T | OQ6: T | OR6: R | OS6: A | OT6: C | OU6: R | OV6: G | OW6: C | OX6: C | OY6: Y | OZ6: G | PA6: Y | PB6: T | PC6: C | PD6: W | PE6: A | PF6: S | PG6: C | PH6: G | PI6: A | PJ6: C | PK6: G | PL6: R | PM6: A | PN6: K | PO6: C | PP6: C | PQ6: W | PR6: A | PS6: G | PT6: R | PU6: S | PV6: G | PW6: C | PX6: R | PY6: W | PZ6: T | QA6: Y | QB6: R | QC6: C | QD6: Y | QE6: S | QF6: S | QG6: R | QH6: Y | QI6: S | QJ6: Y | QK6: G | QL6: C | QM6: G | QN6: T | QO6: T | QP6: K | QQ6: G | QR6: G | QS6: W | QT6: A | QU6: A | QV6: A | QW6: T | QX6: Y | QY6: Y | QZ6: C | RA6: C | RB6: C | RC6: G | RD6: G | RE6: Y | RF6: A | RG6: R | RH6: Y | RI6: K | RJ6: T | RK6: A | RL6: G | RM6: R | RN6: T | RO6: M | RP6: R | RQ6: R | RR6: C | RS6: Y | RT6: W | RU6: R | RV6: A | RW6: T | RX6: S | RY6: C | RZ6: G | SA6: S | SB6: M | SC6: G | SD6: R | SE6: R | SF6: S | SG6: R | SH6: G | SI6: A | SJ6: W | SK6: A | SL6: Y | SM6: Y | SN6: Y | SO6: C | SP6: G | SQ6: S | SR6: C | SS6: K | ST6: G | SU6: W | SV6: G | SW6: W | SX6: R | SY6: A | SZ6: T | TA6: A | TB6: A | TC6: S | TD6: A | TE6: S | TF6: W | TG6: M | TH6: G | TI6: W | TJ6: A | TK6: - | TL6: - | TM6: G | TN6: T | TO6: Y | TP6: G | TQ6: G | TR6: Y | TS6: Y | TT6: C | TU6: R | TV6: G | TW6: C | TX6: A | TY6: T | TZ6: A | UA6: M | UB6: Y | UC6: A | UD6: G | UE6: R | UF6: G | UG6: A | UH6: C | UI6: G | UJ6: T | UK6: Y | UL6: R | UM6: G | UN6: G | UO6: G | UP6: G | UQ6: T | UR6: C | US6: Y | UT6: G | UU6: G | UV6: G | UW6: R | UX6: Y | UY6: G | UZ6: T | VA6: Y | VB6: T | VC6: Y | VD6: A | VE6: - | VF6: G | VG6: T | VH6: G | VI6: G | VJ6: T | VK6: C | VL6: G | VM6: W | VN6: W | VO6: T | VP6: T | VQ6: - | VR6: Y | VS6: C | VT6: G | VU6: Y | VV6: G | VW6: C | VX6: C | VY6: C | VZ6: A | WA6: C | WB6: A | WC6: A | WD6: G | WE6: R | WF6: A | WG6: Y | WH6: T | WI6: K | WJ6: K | WK6: G | WL6: C | WM6: T | WN6: G | WO6: Y | WP6: A | WQ6: Y | WR6: K | WS6: Y | WT6: C | WU6: C | WV6: A | WW6: S | WX6: W | WY6: C | WZ6: Y | XA6: R | XB6: Y | XC6: R | XD6: R | XE6: A | XF6: C | XG6: G | XH6: C | XI6: A | XJ6: C | XK6: A | XL6: Y | XM6: S | XN6: T | XO6: A | XP6: A | XQ6: Y | XR6: G | XS6: T | XT6: T | XU6: G | XV6: C | XW6: G | XX6: A | XY6: A | XZ6: Y | YA6: C | YB6: C | YC6: T | YD6: T | YE6: C | YF6: C | YG6: C | YH6: A | YI6: G | YJ6: W | YK6: Y | YL6: C | YM6: R | YN6: C | YO6: R | YP6: R | YQ6: T | YR6: Y | YS6: - | YT6: K | YU6: W | YV6: Y | YW6: - | YX6: C | YY6: G | YZ6: T | ZA6: T | ZB6: T | ZC6: M | ZD6: W | ZE6: T | ZF6: T | ZG6: G | ZH6: G | ZI6: T | ZJ6: G | ZK6: T | ZL6: T | ZM6: K | ZN6: T | ZO6: T | ZP6: C | ZQ6: W | ZR6: G | ZS6: T | ZT6: C | ZU6: C | ZV6: T | ZW6: G | ZX6: A | ZY6: G | ZZ6: Y | AAA6: W | AAB6: R | AAC6: Y | AAD6: T | AAE6: C | AAF6: K | AAG6: A | AAH6: R | AAI6: G | AAJ6: A | AAK6: A | AAL6: G | AAM6: T | AAN6: Y | AAO6: C | AAP6: T | AAQ6: A | AAR6: T | AAS6: C | AAT6: A | AAU6: T | AAV6: A | AAW6: G | AAX6: A | AAY6: T | AAZ6: T | ABA6: A | ABB6: A | ABC6: T | ABD6: A | ABE6: A | ABF6: T | ABG6: C | ABH6: A | ABI6: C | ABJ6: R | ABK6: C | ABL6: K | ABM6: C | ABN6: W | ABO6: Y | ABP6: T | ABQ6: A | ABR6: K | ABS6: - | ABT6: T | ABU6: W | ABV6: C | ABW6: T | ABX6: T | ABY6: C | ABZ6: G | ACA6: S | ACB6: W | ACC6: A | ACD6: R | ACE6: R | ACF6: A | ACG6: C | ACH6: C | ACI6: A | ACJ6: T | ACK6: S | ACL6: A | ACM6: Y | ACN6: G | ACO6: - | ACP6: R | ACQ6: G | ACR6: Y | ACS6: R | ACT6: C | ACU6: A | ACV6: G | ACW6: M | ACX6: G | ACY6: W | ACZ6: W | ADA6: G | ADB6: C | ADC6: G | ADD6: G | ADE6: A | ADF6: R | ADG6: R | ADH6: T | ADI6: A | ADJ6: A | ADK6: R | ADL6: G | ADM6: R | ADN6: G | ADO6: T | ADP6: M | ADQ6: T | ADR6: G | ADS6: A | ADT6: G | ADU6: Y | ADV6: G | ADW6: G | ADX6: G | ADY6: A | ADZ6: T | AEA6: T | AEB6: R | AEC6: A | AED6: A | AEE6: A | AEF6: T | AEG6: A | AEH6: G | AEI6: C | AEJ6: G | AEK6: G | AEL6: S | AEM6: C | AEN6: Y | AEO6: A | AEP6: - | AEQ6: G | AER6: G | AES6: A | AET6: A | AEU6: T | AEV6: G | AEW6: A | AEX6: C | AEY6: A | AEZ6: C | AFA6: A | AFB6: W | AFC6: R | AFD6: C | AFE6: A | AFF6: R | AFG6: A | AFH6: A | AFI6: W | AFJ6: C | AFK6: T | AFL6: C | AFM6: G | AFN6: R | AFO6: C | AFP6: T | AFQ6: T | AFR6: G | AFS6: C | AFT6: A | AFU6: Y | AFV6: A | AFW6: Y | AFX6: G | AFY6: C | AFZ6: Y | AGA6: C | AGB6: C | AGC6: S | AGD6: R | AGE6: T | AGF6: T | AGG6: G | AGH6: C | AGI6: A | AGJ6: A | AGK6: C | AGL6: R | AGM6: G | AGN6: T | AGO6: A | AGP6: A | AGQ6: Y | AGR6: G | AGS6: T | AGT6: G | AGU6: A | AGV6: G | AGW6: A | AGX6: R | AGY6: Y | AGZ6: G | AHA6: T | AHB6: R | AHC6: K | AHD6: T | AHE6: G | AHF6: Y | AHG6: A | AHH6: C | AHI6: G | AHJ6: G | AHK6: A | AHL6: R | AHM6: M | AHN6: M | AHO6: A | AHP6: M | AHQ6: C | AHR6: T | AHS6: T | AHT6: Y | AHU6: W | AHV6: W | AHW6: C | AHX6: G | AHY6: C | AHZ6: C | AIA6: W | AIB6: C | AIC6: W | AID6: W | AIE6: M | AIF6: C | AIG6: G | AIH6: R | AII6: R | AIJ6: C | AIK6: G | AIL6: T | AIM6: T | AIN6: R | AIO6: T | AIP6: C | AIQ6: C | AIR6: G | AIS6: Y | AIT6: Y | AIU6: A | AIV6: C | AIW6: T | AIX6: T | AIY6: C | AIZ6: S | AJA6: R | AJB6: A | AJC6: T | AJD6: Y | AJE6: T | AJF6: Y | AJG6: A | AJH6: Y | AJI6: T | AJJ6: T | AJK6: K | AJL6: T | AJM6: G | AJN6: Y | AJO6: Y | AJP6: Y | AJQ6: Y | AJR6: T | AJS6: A | AJT6: Y | AJU6: A | AJV6: A | AJW6: A | AJX6: T | AJY6: G | AJZ6: R | AKA6: R | AKB6: K | AKC6: R | AKD6: G | AKE6: T | AKF6: T | AKG6: G | AKH6: G | AKI6: K | AKJ6: R | AKK6: A | AKL6: W | AKM6: C | AKN6: A | AKO6: A | AKP6: T | AKQ6: A | AKR6: A | AKS6: Y | AKT6: Y | AKU6: K | AKV6: W | AKW6: A | AKX6: C | AKY6: T | AKZ6: G | ALA6: R | ALB6: R | ALC6: A | ALD6: A | ALE6: T | ALF6: Y | ALG6: A | ALH6: T | ALI6: G | ALJ6: Y | ALK6: G | ALL6: Y | ALM6: W | ALN6: S | ALO6: R | ALP6: A | ALQ6: Y | ALR6: T | ALS6: A | ALT6: T | ALU6: G | ALV6: S | ALW6: R | ALX6: M | ALY6: C | ALZ6: A | AMA6: C | AMB6: A | AMC6: T | AMD6: W | AME6: Y | AMF6: T | AMG6: C | AMH6: T | AMI6: W | AMJ6: W | AMK6: G | AML6: G | AMM6: M | AMN6: T | AMO6: G | AMP6: T | AMQ6: A | AMR6: T | AMS6: A | AMT6: Y | AMU6: R | AMV6: S | AMW6: A | AMX6: K | AMY6: R | AMZ6: R | ANA6: A | ANB6: C | ANC6: A | AND6: A | ANE6: T | ANF6: R | ANG6: G | ANH6: A | ANI6: C | ANJ6: T | ANK6: T | ANL6: G | ANM6: C | ANN6: A | ANO6: G | ANP6: T | ANQ6: G | ANR6: C | ANS6: C | ANT6: T | ANU6: G | ANV6: R | ANW6: R | ANX6: C | ANY6: T | ANZ6: C | AOA6: R | AOB6: Y | AOC6: Y | AOD6: Y | AOE6: T | AOF6: T | AOG6: A | AOH6: T | AOI6: S | AOJ6: G | AOK6: R | AOL6: G | AOM6: R | AON6: C | AOO6: T | AOP6: M | AOQ6: T | AOR6: G | AOS6: W | AOT6: W | AOU6: M | AOV6: A | AOW6: K | AOX6: T | AOY6: C | AOZ6: R | APA6: A | APB6: C | APC6: T | APD6: T | APE6: Y | APF6: M | APG6: Y | APH6: G | API6: G | APJ6: T | APK6: T | APL6: M | APM6: C | APN6: W | APO6: C | APP6: C | APQ6: T | APR6: T | APS6: W | APT6: T | APU6: C | APV6: Y | APW6: R | APX6: G | APY6: G | APZ6: T | AQA6: T | AQB6: A | AQC6: Y | AQD6: G | AQE6: T | AQF6: G | AQG6: R | AQH6: C | AQI6: S | AQJ6: G | AQK6: R | AQL6: G | AQM6: G | AQN6: R | AQO6: T | AQP6: S | AQQ6: K | AQR6: T | AQS6: C | AQT6: A | AQU6: C | AQV6: T | AQW6: W | AQX6: G | AQY6: G | AQZ6: R | ARA6: C | ARB6: C | ARC6: R | ARD6: T | ARE6: G | ARF6: T | ARG6: T | ARH6: T | ARI6: G | ARJ6: W | ARK6: W | ARL6: K | ARM6: A | ARN6: C | ARO6: T | ARP6: R | ARQ6: C | ARR6: K | ARS6: G | ART6: A | ARU6: A | ARV6: A | ARW6: W | ARX6: W | ARY6: R | ARZ6: R | ASA6: T | ASB6: T | ASC6: G | ASD6: A | ASE6: G | ASF6: G | ASG6: T | ASH6: Y | ASI6: R | ASJ6: A | ASK6: R | ASL6: R | ASM6: C | ASN6: G | ASO6: G | ASP6: R | ASQ6: T | ASR6: G | ASS6: T | AST6: C | ASU6: C | ASV6: C | ASW6: R | ASX6: T | ASY6: R | ASZ6: G | ATA6: T | ATB6: G | ATC6: W | ATD6: Y | ATE6: K | ATF6: S | ATG6: R | ATH6: G | ATI6: A | ATJ6: A | ATK6: C | ATL6: S | ATM6: G | ATN6: R | ATO6: M | ATP6: R | ATQ6: A | ATR6: S | ATS6: R | ATT6: M | ATU6: R | ATV6: C | ATW6: Y | ATX6: G | ATY6: A | ATZ6: A | AUA6: S | AUB6: R | AUC6: S | AUD6: Y | AUE6: K | AUF6: T | AUG6: W | AUH6: G | AUI6: R | AUJ6: C | AUK6: M | AUL6: G | AUM6: Y | AUN6: G | AUO6: Y | AUP6: T | AUQ6: A | AUR6: A | AUS6: K | AUT6: Y | AUU6: T | AUV6: A | AUW6: A | AUX6: T | AUY6: T | AUZ6: G | AVA6: C | AVB6: C | AVC6: T | AVD6: M | AVE6: C | AVF6: T | AVG6: M | AVH6: C | AVI6: Y | AVJ6: A | AVK6: C | AVL6: W | AVM6: R | AVN6: Y | AVO6: A | AVP6: Y | AVQ6: A | AVR6: T | AVS6: T | AVT6: A | AVU6: T | AVV6: T | AVW6: T | AVX6: A | AVY6: C | AVZ6: T | AWA6: T | AWB6: R | AWC6: A | AWD6: Y | AWE6: R | AWF6: T | AWG6: C | AWH6: Y | AWI6: T | AWJ6: T | AWK6: Y | AWL6: A | AWM6: G | AWN6: - | AWO6: T | AWP6: T | AWQ6: A | AWR6: S | AWS6: R | AWT6: T | AWU6: G | AWV6: A | AWW6: W | AWX6: R | AWY6: W | AWZ6: G | AXA6: T | AXB6: S | AXC6: R | AXD6: Y | AXE6: R | AXF6: G | AXG6: T | AXH6: A | AXI6: A | AXJ6: G | AXK6: A | AXL6: A | AXM6: A | AXN6: T | AXO6: A | AXP6: A | AXQ6: C | AXR6: R | AXS6: Y | AXT6: C | AXU6: Y | AXV6: A | AXW6: R | AXX6: T | AXY6: G | AXZ6: C | AYA6: C | AYB6: A | AYC6: A | AYD6: A | AYE6: Y | AYF6: C | AYG6: A | AYH6: A | AYI6: A | AYJ6: C | AYK6: G | AYL6: A | AYM6: T | AYN6: G | AYO6: G | AYP6: Y | AYQ6: A | AYR6: A | AYS6: C | AYT6: C | AYU6: G | AYV6: T | AYW6: A | AYX6: A | AYY6: T | AYZ6: G | AZA6: C | AZB6: R | AZC6: G | AZD6: G | AZE6: C | AZF6: A | AZG6: A | AZH6: M | AZI6: T | AZJ6: T | AZK6: W | AZL6: C | AZM6: A | AZN6: A | AZO6: Y | AZP6: G | AZQ6: T | AZR6: T | AZS6: G | AZT6: A | AZU6: G | AZV6: A | AZW6: G | AZX6: C | AZY6: G | AZZ6: A | BAA6: G | BAB6: T | BAC6: C | BAD6: T | BAE6: A | BAF6: R | BAG6: G | BAH6: A | BAI6: R | BAJ6: R | BAK6: T | BAL6: W | BAM6: A | BAN6: T | BAO6: R | BAP6: R | BAQ6: - | BAR6: C | BAS6: R | BAT6: W | BAU6: M | BAV6: W | BAW6: W | BAX6: A | BAY6: T | BAZ6: T | BBA6: C | BBB6: Y | BBC6: - | BBD6: T | BBE6: C | BBF6: M | BBG6: S | BBH6: A | BBI6: C | BBJ6: A | BBK6: Y | BBL6: Y | BBM6: Y | BBN6: G | BBO6: Y | BBP6: A | BBQ6: Y | BBR6: C | BBS6: T | BBT6: Y | BBU6: S | BBV6: - | BBW6: R | BBX6: Y | BBY6: C | BBZ6: R | BCA6: R | BCB6: T | BCC6: A | BCD6: - | BCE6: R | BCF6: A | BCG6: C | BCH6: Y | BCI6: T | BCJ6: C | BCK6: K | BCL6: W | BCM6: A | BCN6: G | BCO6: R | BCP6: Y | BCQ6: R | BCR6: R | BCS6: G | BCT6: T | BCU6: G | BCV6: C | BCW6: C | BCX6: Y | BCY6: T | BCZ6: G | BDA6: Y | BDB6: G | BDC6: C | BDD6: A | BDE6: Y | BDF6: Y | BDG6: M | BDH6: M | BDI6: Y | BDJ6: R | BDK6: W | BDL6: R | BDM6: T | BDN6: C | BDO6: W | BDP6: G | BDQ6: Y | BDR6: T | BDS6: T | BDT6: G | BDU6: A | BDV6: A | BDW6: T | BDX6: T | BDY6: A | BDZ6: T | BEA6: R | BEB6: G | BEC6: T | BED6: Y | BEE6: T | BEF6: R | BEG6: Y | BEH6: Y | BEI6: T | BEJ6: C | BEK6: T | BEL6: Y | BEM6: G | BEN6: T | BEO6: G | BEP6: T | BEQ6: T | BER6: T | BES6: A | BET6: G | BEU6: C | BEV6: Y | BEW6: C | BEX6: G
A7: SC1900004_R2 | B7: IPK_CAN_19 | C7: C | D7: R | E7: M | F7: Y | G7: R | H7: S | I7: R | J7: Y | K7: A | L7: G | M7: T | N7: Y | O7: Y | P7: Y | Q7: G | R7: T | S7: R | T7: G | U7: C | V7: R | W7: C | X7: G | Y7: R | Z7: Y | AA7: A | AB7: C | AC7: A | AD7: A | AE7: A | AF7: Y | AG7: A | AH7: C | AI7: R | AJ7: G | AK7: C | AL7: G | AM7: R | AN7: Y | AO7: T | AP7: T | AQ7: S | AR7: C | AS7: G | AT7: C | AU7: W | AV7: T | AW7: A | AX7: A | AY7: A | AZ7: G | BA7: A | BB7: Y | BC7: A | BD7: T | BE7: T | BF7: T | BG7: G | BH7: R | BI7: A | BJ7: R | BK7: T | BL7: T | BM7: G | BN7: G | BO7: G | BP7: T | BQ7: C | BR7: T | BS7: C | BT7: G | BU7: G | BV7: A | BW7: C | BX7: T | BY7: T | BZ7: R | CA7: C | CB7: T | CC7: T | CD7: Y | CE7: Y | CF7: G | CG7: A | CH7: A | CI7: T | CJ7: K | CK7: A | CL7: R | CM7: G | CN7: G | CO7: G | CP7: A | CQ7: T | CR7: A | CS7: C | CT7: A | CU7: T | CV7: C | CW7: A | CX7: Y | CY7: R | CZ7: R | DA7: T | DB7: T | DC7: A | DD7: A | DE7: T | DF7: A | DG7: G | DH7: A | DI7: - | DJ7: A | DK7: C | DL7: G | DM7: G | DN7: A | DO7: C | DP7: G | DQ7: T | DR7: C | DS7: A | DT7: T | DU7: G | DV7: C | DW7: C | DX7: - | DY7: T | DZ7: T | EA7: T | EB7: A | EC7: T | ED7: A | EE7: T | EF7: A | EG7: T | EH7: C | EI7: A | EJ7: C | EK7: A | EL7: A | EM7: A | EN7: R | EO7: R | EP7: C | EQ7: C | ER7: C | ES7: T | ET7: T | EU7: T | EV7: T | EW7: G | EX7: T | EY7: C | EZ7: W | FA7: Y | FB7: R | FC7: T | FD7: G | FE7: R | FF7: C | FG7: A | FH7: G | FI7: C | FJ7: T | FK7: A | FL7: Y | FM7: C | FN7: G | FO7: R | FP7: G | FQ7: W | FR7: C | FS7: A | FT7: G | FU7: C | FV7: G | FW7: G | FX7: G | FY7: T | FZ7: R | GA7: A | GB7: G | GC7: T | GD7: T | GE7: C | GF7: C | GG7: A | GH7: G | GI7: G | GJ7: A | GK7: T | GL7: A | GM7: A | GN7: A | GO7: T | GP7: G | GQ7: C | GR7: C | GS7: G | GT7: A | GU7: G | GV7: C | GW7: T | GX7: C | GY7: T | GZ7: R | HA7: A | HB7: G | HC7: R | HD7: T | HE7: A | HF7: C | HG7: Y | HH7: G | HI7: C | HJ7: G | HK7: A | HL7: - | HM7: - | HN7: T | HO7: C | HP7: T | HQ7: R | HR7: C | HS7: W | HT7: K | HU7: G | HV7: C | HW7: G | HX7: - | HY7: T | HZ7: T | IA7: T | IB7: R | IC7: M | ID7: K | IE7: C | IF7: T | IG7: A | IH7: T | II7: G | IJ7: - | IK7: T | IL7: A | IM7: A | IN7: A | IO7: G | IP7: Y | IQ7: G | IR7: C | IS7: C | IT7: G | IU7: A | IV7: G | IW7: C | IX7: A | IY7: G | IZ7: Y | JA7: T | JB7: C | JC7: S | JD7: - | JE7: G | JF7: K | JG7: T | JH7: T | JI7: T | JJ7: C | JK7: G | JL7: A | JM7: G | JN7: C | JO7: A | JP7: A | JQ7: Y | JR7: K | JS7: T | JT7: T | JU7: A | JV7: C | JW7: C | JX7: C | JY7: A | JZ7: G | KA7: - | KB7: C | KC7: R | KD7: A | KE7: A | KF7: T | KG7: C | KH7: G | KI7: A | KJ7: C | KK7: A | KL7: A | KM7: S | KN7: Y | KO7: T | KP7: C | KQ7: C | KR7: - | KS7: A | KT7: C | KU7: C | KV7: G | KW7: G | KX7: R | KY7: A | KZ7: M | LA7: A | LB7: R | LC7: G | LD7: T | LE7: R | LF7: Y | LG7: Y | LH7: T | LI7: T | LJ7: M | LK7: T | LL7: A | LM7: G | LN7: Y | LO7: C | LP7: Y | LQ7: A | LR7: T | LS7: T | LT7: C | LU7: G | LV7: Y | LW7: S | LX7: Y | LY7: T | LZ7: G | MA7: C | MB7: G | MC7: C | MD7: G | ME7: A | MF7: G | MG7: R | MH7: A | MI7: C | MJ7: Y | MK7: G | ML7: S | MM7: R | MN7: G | MO7: C | MP7: A | MQ7: T | MR7: R | MS7: A | MT7: Y | MU7: R | MV7: G | MW7: C | MX7: A | MY7: A | MZ7: C | NA7: A | NB7: R | NC7: R | ND7: C | NE7: A | NF7: S | NG7: Y | NH7: K | NI7: A | NJ7: G | NK7: T | NL7: G | NM7: C | NN7: R | NO7: C | NP7: T | NQ7: G | NR7: T | NS7: A | NT7: W | NU7: G | NV7: C | NW7: C | NX7: Y | NY7: G | NZ7: R | OA7: C | OB7: T | OC7: T | OD7: C | OE7: G | OF7: G | OG7: C | OH7: R | OI7: T | OJ7: C | OK7: Y | OL7: - | OM7: Y | ON7: G | OO7: G | OP7: C | OQ7: T | OR7: R | OS7: G | OT7: G | OU7: G | OV7: R | OW7: C | OX7: Y | OY7: Y | OZ7: R | PA7: Y | PB7: T | PC7: C | PD7: T | PE7: G | PF7: S | PG7: Y | PH7: G | PI7: R | PJ7: C | PK7: G | PL7: R | PM7: A | PN7: K | PO7: Y | PP7: C | PQ7: T | PR7: T | PS7: R | PT7: R | PU7: S | PV7: G | PW7: M | PX7: R | PY7: W | PZ7: - | QA7: C | QB7: R | QC7: C | QD7: Y | QE7: G | QF7: S | QG7: R | QH7: Y | QI7: G | QJ7: T | QK7: G | QL7: C | QM7: G | QN7: T | QO7: T | QP7: K | QQ7: G | QR7: R | QS7: W | QT7: C | QU7: G | QV7: C | QW7: C | QX7: C | QY7: Y | QZ7: C | RA7: M | RB7: C | RC7: R | RD7: R | RE7: T | RF7: W | RG7: R | RH7: Y | RI7: K | RJ7: T | RK7: C | RL7: R | RM7: G | RN7: G | RO7: A | RP7: A | RQ7: A | RR7: C | RS7: Y | RT7: W | RU7: R | RV7: A | RW7: C | RX7: G | RY7: T | RZ7: G | SA7: C | SB7: A | SC7: G | SD7: A | SE7: A | SF7: C | SG7: R | SH7: R | SI7: A | SJ7: W | SK7: W | SL7: Y | SM7: C | SN7: Y | SO7: C | SP7: G | SQ7: G | SR7: T | SS7: K | ST7: G | SU7: T | SV7: G | SW7: A | SX7: G | SY7: A | SZ7: W | TA7: A | TB7: M | TC7: C | TD7: - | TE7: G | TF7: A | TG7: A | TH7: - | TI7: A | TJ7: R | TK7: - | TL7: - | TM7: G | TN7: Y | TO7: Y | TP7: K | TQ7: C | TR7: T | TS7: C | TT7: T | TU7: A | TV7: T | TW7: T | TX7: R | TY7: T | TZ7: G | UA7: C | UB7: C | UC7: A | UD7: A | UE7: A | UF7: G | UG7: A | UH7: C | UI7: G | UJ7: C | UK7: Y | UL7: A | UM7: A | UN7: G | UO7: G | UP7: G | UQ7: T | UR7: A | US7: T | UT7: G | UU7: G | UV7: G | UW7: G | UX7: Y | UY7: G | UZ7: T | VA7: Y | VB7: T | VC7: T | VD7: M | VE7: T | VF7: G | VG7: W | VH7: G | VI7: R | VJ7: T | VK7: Y | VL7: R | VM7: W | VN7: W | VO7: Y | VP7: T | VQ7: A | VR7: Y | VS7: Y | VT7: R | VU7: T | VV7: G | VW7: C | VX7: Y | VY7: C | VZ7: A | WA7: C | WB7: R | WC7: A | WD7: R | WE7: R | WF7: A | WG7: Y | WH7: T | WI7: G | WJ7: K | WK7: G | WL7: C | WM7: T | WN7: A | WO7: C | WP7: A | WQ7: Y | WR7: T | WS7: Y | WT7: C | WU7: C | WV7: A | WW7: S | WX7: W | WY7: C | WZ7: T | XA7: A | XB7: Y | XC7: R | XD7: R | XE7: W | XF7: Y | XG7: R | XH7: M | XI7: A | XJ7: C | XK7: A | XL7: C | XM7: S | XN7: Y | XO7: A | XP7: A | XQ7: Y | XR7: G | XS7: K | XT7: T | XU7: R | XV7: M | XW7: K | XX7: W | XY7: R | XZ7: Y | YA7: Y | YB7: Y | YC7: T | YD7: K | YE7: C | YF7: Y | YG7: C | YH7: R | YI7: G | YJ7: W | YK7: Y | YL7: C | YM7: R | YN7: C | YO7: G | YP7: G | YQ7: Y | YR7: T | YS7: - | YT7: K | YU7: W | YV7: C | YW7: T | YX7: C | YY7: G | YZ7: T | ZA7: W | ZB7: T | ZC7: M | ZD7: A | ZE7: T | ZF7: Y | ZG7: S | ZH7: R | ZI7: T | ZJ7: S | ZK7: T | ZL7: T | ZM7: K | ZN7: Y | ZO7: Y | ZP7: M | ZQ7: W | ZR7: K | ZS7: K | ZT7: T | ZU7: C | ZV7: K | ZW7: R | ZX7: C | ZY7: S | ZZ7: C | AAA7: A | AAB7: R | AAC7: Y | AAD7: T | AAE7: T | AAF7: T | AAG7: A | AAH7: R | AAI7: R | AAJ7: R | AAK7: R | AAL7: G | AAM7: K | AAN7: Y | AAO7: C | AAP7: T | AAQ7: A | AAR7: C | AAS7: C | AAT7: A | AAU7: T | AAV7: R | AAW7: G | AAX7: G | AAY7: T | AAZ7: K | ABA7: R | ABB7: G | ABC7: T | ABD7: W | ABE7: R | ABF7: T | ABG7: C | ABH7: R | ABI7: Y | ABJ7: R | ABK7: Y | ABL7: T | ABM7: Y | ABN7: T | ABO7: T | ABP7: K | ABQ7: A | ABR7: K | ABS7: T | ABT7: C | ABU7: W | ABV7: C | ABW7: T | ABX7: Y | ABY7: M | ABZ7: G | ACA7: S | ACB7: A | ACC7: W | ACD7: R | ACE7: R | ACF7: T | ACG7: C | ACH7: Y | ACI7: C | ACJ7: T | ACK7: G | ACL7: R | ACM7: Y | ACN7: G | ACO7: - | ACP7: R | ACQ7: S | ACR7: T | ACS7: A | ACT7: C | ACU7: A | ACV7: R | ACW7: M | ACX7: R | ACY7: W | ACZ7: T | ADA7: G | ADB7: C | ADC7: K | ADD7: G | ADE7: R | ADF7: A | ADG7: R | ADH7: T | ADI7: - | ADJ7: A | ADK7: R | ADL7: G | ADM7: R | ADN7: K | ADO7: T | ADP7: M | ADQ7: Y | ADR7: R | ADS7: A | ADT7: G | ADU7: Y | ADV7: S | ADW7: G | ADX7: S | ADY7: A | ADZ7: Y | AEA7: G | AEB7: A | AEC7: R | AED7: R | AEE7: R | AEF7: T | AEG7: A | AEH7: G | AEI7: C | AEJ7: R | AEK7: G | AEL7: S | AEM7: C | AEN7: Y | AEO7: C | AEP7: A | AEQ7: G | AER7: A | AES7: R | AET7: R | AEU7: T | AEV7: A | AEW7: A | AEX7: C | AEY7: W | AEZ7: C | AFA7: M | AFB7: W | AFC7: R | AFD7: Y | AFE7: A | AFF7: G | AFG7: R | AFH7: G | AFI7: W | AFJ7: Y | AFK7: Y | AFL7: C | AFM7: R | AFN7: A | AFO7: C | AFP7: T | AFQ7: W | AFR7: R | AFS7: - | AFT7: R | AFU7: Y | AFV7: W | AFW7: Y | AFX7: R | AFY7: C | AFZ7: Y | AGA7: C | AGB7: T | AGC7: S | AGD7: A | AGE7: T | AGF7: C | AGG7: A | AGH7: C | AGI7: A | AGJ7: A | AGK7: Y | AGL7: G | AGM7: A | AGN7: C | AGO7: R | AGP7: A | AGQ7: T | AGR7: G | AGS7: T | AGT7: A | AGU7: T | AGV7: G | AGW7: A | AGX7: A | AGY7: Y | AGZ7: R | AHA7: C | AHB7: G | AHC7: K | AHD7: T | AHE7: G | AHF7: Y | AHG7: G | AHH7: C | AHI7: K | AHJ7: G | AHK7: R | AHL7: A | AHM7: A | AHN7: M | AHO7: W | AHP7: A | AHQ7: C | AHR7: T | AHS7: T | AHT7: C | AHU7: A | AHV7: W | AHW7: C | AHX7: G | AHY7: T | AHZ7: Y | AIA7: A | AIB7: C | AIC7: W | AID7: W | AIE7: M | AIF7: M | AIG7: A | AIH7: A | AII7: R | AIJ7: C | AIK7: R | AIL7: C | AIM7: T | AIN7: A | AIO7: W | AIP7: Y | AIQ7: T | AIR7: R | AIS7: C | AIT7: Y | AIU7: A | AIV7: A | AIW7: G | AIX7: W | AIY7: T | AIZ7: C | AJA7: R | AJB7: A | AJC7: T | AJD7: Y | AJE7: W | AJF7: C | AJG7: T | AJH7: Y | AJI7: T | AJJ7: Y | AJK7: G | AJL7: Y | AJM7: G | AJN7: Y | AJO7: Y | AJP7: Y | AJQ7: Y | AJR7: K | AJS7: R | AJT7: C | AJU7: R | AJV7: W | AJW7: A | AJX7: T | AJY7: G | AJZ7: A | AKA7: G | AKB7: K | AKC7: R | AKD7: G | AKE7: T | AKF7: W | AKG7: G | AKH7: G | AKI7: K | AKJ7: A | AKK7: T | AKL7: W | AKM7: G | AKN7: R | AKO7: G | AKP7: T | AKQ7: A | AKR7: M | AKS7: T | AKT7: T | AKU7: G | AKV7: W | AKW7: A | AKX7: A | AKY7: K | AKZ7: R | ALA7: R | ALB7: A | ALC7: A | ALD7: A | ALE7: T | ALF7: T | ALG7: M | ALH7: A | ALI7: T | ALJ7: C | ALK7: G | ALL7: T | ALM7: W | ALN7: G | ALO7: R | ALP7: A | ALQ7: T | ALR7: T | ALS7: M | ALT7: W | ALU7: G | ALV7: G | ALW7: A | ALX7: M | ALY7: S | ALZ7: A | AMA7: T | AMB7: C | AMC7: K | AMD7: A | AME7: T | AMF7: T | AMG7: A | AMH7: C | AMI7: A | AMJ7: W | AMK7: C | AML7: T | AMM7: A | AMN7: C | AMO7: A | AMP7: T | AMQ7: T | AMR7: T | AMS7: W | AMT7: Y | AMU7: R | AMV7: S | AMW7: R | AMX7: T | AMY7: R | AMZ7: R | ANA7: R | ANB7: C | ANC7: R | AND7: T | ANE7: C | ANF7: R | ANG7: G | ANH7: A | ANI7: C | ANJ7: Y | ANK7: T | ANL7: G | ANM7: M | ANN7: R | ANO7: G | ANP7: T | ANQ7: G | ANR7: C | ANS7: C | ANT7: T | ANU7: R | ANV7: R | ANW7: A | ANX7: C | ANY7: T | ANZ7: T | AOA7: G | AOB7: T | AOC7: Y | AOD7: Y | AOE7: Y | AOF7: T | AOG7: W | AOH7: W | AOI7: C | AOJ7: A | AOK7: A | AOL7: G | AOM7: R | AON7: C | AOO7: Y | AOP7: A | AOQ7: Y | AOR7: G | AOS7: W | AOT7: T | AOU7: C | AOV7: A | AOW7: T | AOX7: C | AOY7: C | AOZ7: G | APA7: A | APB7: T | APC7: T | APD7: T | APE7: C | APF7: A | APG7: Y | APH7: A | API7: G | APJ7: T | APK7: A | APL7: M | APM7: C | APN7: W | APO7: C | APP7: C | APQ7: T | APR7: T | APS7: A | APT7: C | APU7: Y | APV7: Y | APW7: G | APX7: A | APY7: R | APZ7: T | AQA7: T | AQB7: W | AQC7: T | AQD7: - | AQE7: T | AQF7: G | AQG7: G | AQH7: S | AQI7: G | AQJ7: G | AQK7: R | AQL7: G | AQM7: A | AQN7: R | AQO7: T | AQP7: C | AQQ7: K | AQR7: W | AQS7: M | AQT7: A | AQU7: Y | AQV7: Y | AQW7: W | AQX7: R | AQY7: C | AQZ7: A | ARA7: M | ARB7: T | ARC7: R | ARD7: A | ARE7: - | ARF7: T | ARG7: C | ARH7: C | ARI7: K | ARJ7: T | ARK7: T | ARL7: G | ARM7: R | ARN7: C | ARO7: C | ARP7: A | ARQ7: C | ARR7: G | ARS7: C | ART7: R | ARU7: A | ARV7: G | ARW7: W | ARX7: W | ARY7: R | ARZ7: G | ASA7: T | ASB7: W | ASC7: G | ASD7: W | ASE7: K | ASF7: G | ASG7: T | ASH7: T | ASI7: A | ASJ7: T | ASK7: A | ASL7: G | ASM7: C | ASN7: G | ASO7: G | ASP7: R | ASQ7: Y | ASR7: - | ASS7: W | AST7: C | ASU7: C | ASV7: C | ASW7: G | ASX7: W | ASY7: A | ASZ7: R | ATA7: - | ATB7: G | ATC7: A | ATD7: C | ATE7: G | ATF7: G | ATG7: G | ATH7: R | ATI7: C | ATJ7: R | ATK7: Y | ATL7: G | ATM7: G | ATN7: G | ATO7: M | ATP7: A | ATQ7: A | ATR7: C | ATS7: R | ATT7: C | ATU7: A | ATV7: M | ATW7: T | ATX7: R | ATY7: A | ATZ7: G | AUA7: G | AUB7: A | AUC7: S | AUD7: T | AUE7: K | AUF7: W | AUG7: T | AUH7: R | AUI7: A | AUJ7: T | AUK7: C | AUL7: G | AUM7: Y | AUN7: R | AUO7: Y | AUP7: T | AUQ7: G | AUR7: A | AUS7: G | AUT7: T | AUU7: W | AUV7: G | AUW7: R | AUX7: T | AUY7: T | AUZ7: G | AVA7: A | AVB7: - | AVC7: T | AVD7: M | AVE7: C | AVF7: C | AVG7: C | AVH7: C | AVI7: C | AVJ7: T | AVK7: C | AVL7: A | AVM7: G | AVN7: Y | AVO7: W | AVP7: Y | AVQ7: M | AVR7: T | AVS7: T | AVT7: A | AVU7: W | AVV7: G | AVW7: T | AVX7: R | AVY7: A | AVZ7: T | AWA7: Y | AWB7: R | AWC7: A | AWD7: Y | AWE7: R | AWF7: Y | AWG7: T | AWH7: T | AWI7: T | AWJ7: T | AWK7: Y | AWL7: - | AWM7: R | AWN7: - | AWO7: Y | AWP7: T | AWQ7: A | AWR7: C | AWS7: A | AWT7: T | AWU7: R | AWV7: A | AWW7: T | AWX7: R | AWY7: T | AWZ7: R | AXA7: W | AXB7: S | AXC7: A | AXD7: C | AXE7: R | AXF7: R | AXG7: K | AXH7: - | AXI7: A | AXJ7: R | AXK7: A | AXL7: A | AXM7: R | AXN7: Y | AXO7: A | AXP7: G | AXQ7: Y | AXR7: R | AXS7: Y | AXT7: T | AXU7: C | AXV7: W | AXW7: G | AXX7: A | AXY7: R | AXZ7: C | AYA7: C | AYB7: A | AYC7: A | AYD7: C | AYE7: T | AYF7: C | AYG7: - | AYH7: C | AYI7: R | AYJ7: Y | AYK7: R | AYL7: A | AYM7: T | AYN7: G | AYO7: G | AYP7: C | AYQ7: A | AYR7: R | AYS7: C | AYT7: C | AYU7: C | AYV7: C | AYW7: A | AYX7: R | AYY7: T | AYZ7: G | AZA7: C | AZB7: R | AZC7: T | AZD7: T | AZE7: T | AZF7: R | AZG7: G | AZH7: M | AZI7: Y | AZJ7: T | AZK7: A | AZL7: S | AZM7: W | AZN7: W | AZO7: T | AZP7: G | AZQ7: T | AZR7: Y | AZS7: C | AZT7: R | AZU7: G | AZV7: T | AZW7: G | AZX7: C | AZY7: G | AZZ7: A | BAA7: G | BAB7: Y | BAC7: T | BAD7: T | BAE7: C | BAF7: A | BAG7: G | BAH7: A | BAI7: A | BAJ7: A | BAK7: C | BAL7: T | BAM7: R | BAN7: Y | BAO7: R | BAP7: G | BAQ7: - | BAR7: Y | BAS7: A | BAT7: A | BAU7: M | BAV7: T | BAW7: A | BAX7: R | BAY7: T | BAZ7: W | BBA7: C | BBB7: C | BBC7: - | BBD7: C | BBE7: Y | BBF7: M | BBG7: C | BBH7: C | BBI7: A | BBJ7: G | BBK7: C | BBL7: T | BBM7: Y | BBN7: R | BBO7: T | BBP7: T | BBQ7: Y | BBR7: Y | BBS7: T | BBT7: Y | BBU7: G | BBV7: - | BBW7: G | BBX7: T | BBY7: Y | BBZ7: A | BCA7: R | BCB7: T | BCC7: M | BCD7: - | BCE7: G | BCF7: A | BCG7: C | BCH7: Y | BCI7: G | BCJ7: C | BCK7: T | BCL7: W | BCM7: W | BCN7: R | BCO7: R | BCP7: T | BCQ7: R | BCR7: A | BCS7: T | BCT7: Y | BCU7: A | BCV7: C | BCW7: C | BCX7: Y | BCY7: T | BCZ7: G | BDA7: C | BDB7: G | BDC7: C | BDD7: A | BDE7: T | BDF7: T | BDG7: M | BDH7: C | BDI7: Y | BDJ7: A | BDK7: T | BDL7: G | BDM7: T | BDN7: T | BDO7: W | BDP7: K | BDQ7: Y | BDR7: C | BDS7: T | BDT7: G | BDU7: G | BDV7: T | BDW7: C | BDX7: T | BDY7: T | BDZ7: A | BEA7: A | BEB7: G | BEC7: T | BED7: T | BEE7: - | BEF7: G | BEG7: T | BEH7: T | BEI7: T | BEJ7: C | BEK7: T | BEL7: T | BEM7: C | BEN7: T | BEO7: C | BEP7: W | BEQ7: T | BER7: T | BES7: W | BET7: G | BEU7: C | BEV7: T | BEW7: C | BEX7: G
A8: SC1900059_R3 | B8: IPK_CAN_23 IPK23 | C8: G | D8: G | E8: C | F8: C | G8: G | H8: S | I8: G | J8: C | K8: A | L8: G | M8: T | N8: T | O8: T | P8: T | Q8: C | R8: T | S8: A | T8: G | U8: Y | V8: A | W8: T | X8: G | Y8: G | Z8: Y | AA8: G | AB8: T | AC8: A | AD8: A | AE8: A | AF8: Y | AG8: A | AH8: M | AI8: A | AJ8: G | AK8: Y | AL8: G | AM8: A | AN8: T | AO8: C | AP8: C | AQ8: C | AR8: C | AS8: C | AT8: C | AU8: A | AV8: C | AW8: G | AX8: A | AY8: A | AZ8: G | BA8: A | BB8: T | BC8: A | BD8: T | BE8: T | BF8: T | BG8: G | BH8: A | BI8: A | BJ8: - | BK8: G | BL8: T | BM8: G | BN8: G | BO8: G | BP8: T | BQ8: T | BR8: T | BS8: G | BT8: A | BU8: G | BV8: G | BW8: - | BX8: A | BY8: W | BZ8: A | CA8: G | CB8: Y | CC8: T | CD8: C | CE8: T | CF8: G | CG8: G | CH8: - | CI8: T | CJ8: T | CK8: R | CL8: R | CM8: G | CN8: A | CO8: A | CP8: T | CQ8: G | CR8: G | CS8: C | CT8: T | CU8: - | CV8: T | CW8: A | CX8: C | CY8: G | CZ8: G | DA8: T | DB8: T | DC8: M | DD8: T | DE8: C | DF8: A | DG8: - | DH8: A | DI8: G | DJ8: G | DK8: C | DL8: A | DM8: G | DN8: C | DO8: C | DP8: A | DQ8: T | DR8: C | DS8: A | DT8: T | DU8: G | DV8: C | DW8: T | DX8: C | DY8: C | DZ8: T | EA8: T | EB8: G | EC8: T | ED8: A | EE8: T | EF8: C | EG8: T | EH8: G | EI8: G | EJ8: C | EK8: A | EL8: A | EM8: A | EN8: G | EO8: A | EP8: C | EQ8: T | ER8: C | ES8: C | ET8: T | EU8: C | EV8: C | EW8: A | EX8: G | EY8: C | EZ8: A | FA8: T | FB8: A | FC8: C | FD8: G | FE8: G | FF8: T | FG8: A | FH8: G | FI8: A | FJ8: T | FK8: A | FL8: C | FM8: - | FN8: G | FO8: A | FP8: G | FQ8: T | FR8: C | FS8: G | FT8: G | FU8: A | FV8: G | FW8: A | FX8: G | FY8: T | FZ8: G | GA8: A | GB8: G | GC8: T | GD8: T | GE8: C | GF8: C | GG8: A | GH8: A | GI8: A | GJ8: A | GK8: A | GL8: T | GM8: G | GN8: G | GO8: C | GP8: A | GQ8: M | GR8: T | GS8: C | GT8: G | GU8: T | GV8: T | GW8: C | GX8: C | GY8: - | GZ8: G | HA8: A | HB8: G | HC8: A | HD8: C | HE8: G | HF8: C | HG8: C | HH8: G | HI8: C | HJ8: G | HK8: A | HL8: - | HM8: - | HN8: C | HO8: C | HP8: - | HQ8: A | HR8: T | HS8: T | HT8: G | HU8: A | HV8: T | HW8: A | HX8: - | HY8: C | HZ8: C | IA8: T | IB8: G | IC8: C | ID8: G | IE8: C | IF8: C | IG8: T | IH8: T | II8: G | IJ8: A | IK8: C | IL8: T | IM8: A | IN8: - | IO8: A | IP8: Y | IQ8: G | IR8: C | IS8: T | IT8: A | IU8: - | IV8: G | IW8: C | IX8: A | IY8: A | IZ8: T | JA8: T | JB8: - | JC8: C | JD8: - | JE8: C | JF8: G | JG8: G | JH8: T | JI8: T | JJ8: T | JK8: G | JL8: G | JM8: G | JN8: C | JO8: T | JP8: A | JQ8: T | JR8: T | JS8: T | JT8: C | JU8: C | JV8: C | JW8: T | JX8: C | JY8: G | JZ8: A | KA8: - | KB8: Y | KC8: G | KD8: - | KE8: T | KF8: C | KG8: C | KH8: G | KI8: A | KJ8: C | KK8: C | KL8: - | KM8: C | KN8: C | KO8: - | KP8: - | KQ8: T | KR8: - | KS8: A | KT8: C | KU8: C | KV8: A | KW8: C | KX8: G | KY8: G | KZ8: A | LA8: A | LB8: A | LC8: A | LD8: T | LE8: G | LF8: T | LG8: C | LH8: C | LI8: T | LJ8: A | LK8: T | LL8: G | LM8: G | LN8: T | LO8: C | LP8: C | LQ8: G | LR8: C | LS8: C | LT8: T | LU8: G | LV8: - | LW8: G | LX8: T | LY8: A | LZ8: G | MA8: C | MB8: G | MC8: T | MD8: G | ME8: T | MF8: G | MG8: G | MH8: T | MI8: C | MJ8: T | MK8: G | ML8: S | MM8: A | MN8: G | MO8: C | MP8: M | MQ8: C | MR8: R | MS8: G | MT8: C | MU8: A | MV8: R | MW8: Y | MX8: A | MY8: R | MZ8: M | NA8: C | NB8: G | NC8: A | ND8: C | NE8: M | NF8: G | NG8: Y | NH8: T | NI8: R | NJ8: G | NK8: C | NL8: K | NM8: C | NN8: G | NO8: G | NP8: T | NQ8: T | NR8: T | NS8: A | NT8: A | NU8: G | NV8: - | NW8: C | NX8: T | NY8: R | NZ8: R | OA8: C | OB8: T | OC8: C | OD8: C | OE8: G | OF8: A | OG8: C | OH8: A | OI8: T | OJ8: Y | OK8: Y | OL8: C | OM8: C | ON8: G | OO8: R | OP8: T | OQ8: T | OR8: R | OS8: A | OT8: C | OU8: R | OV8: A | OW8: C | OX8: Y | OY8: Y | OZ8: A | PA8: Y | PB8: G | PC8: T | PD8: A | PE8: G | PF8: C | PG8: T | PH8: A | PI8: A | PJ8: C | PK8: G | PL8: G | PM8: G | PN8: T | PO8: C | PP8: Y | PQ8: T | PR8: W | PS8: G | PT8: A | PU8: C | PV8: - | PW8: M | PX8: G | PY8: A | PZ8: - | QA8: C | QB8: R | QC8: C | QD8: C | QE8: G | QF8: C | QG8: G | QH8: T | QI8: S | QJ8: T | QK8: S | QL8: Y | QM8: R | QN8: W | QO8: K | QP8: T | QQ8: R | QR8: A | QS8: T | QT8: M | QU8: R | QV8: M | QW8: C | QX8: C | QY8: Y | QZ8: C | RA8: C | RB8: T | RC8: R | RD8: R | RE8: T | RF8: A | RG8: A | RH8: C | RI8: T | RJ8: - | RK8: C | RL8: A | RM8: G | RN8: T | RO8: A | RP8: G | RQ8: A | RR8: C | RS8: C | RT8: A | RU8: G | RV8: A | RW8: C | RX8: G | RY8: Y | RZ8: G | SA8: S | SB8: A | SC8: G | SD8: A | SE8: A | SF8: C | SG8: R | SH8: A | SI8: G | SJ8: T | SK8: W | SL8: C | SM8: C | SN8: Y | SO8: C | SP8: R | SQ8: C | SR8: T | SS8: G | ST8: A | SU8: T | SV8: A | SW8: A | SX8: - | SY8: - | SZ8: T | TA8: A | TB8: C | TC8: S | TD8: - | TE8: S | TF8: A | TG8: M | TH8: C | TI8: A | TJ8: A | TK8: C | TL8: C | TM8: G | TN8: T | TO8: T | TP8: K | TQ8: S | TR8: Y | TS8: C | TT8: T | TU8: - | TV8: K | TW8: T | TX8: G | TY8: Y | TZ8: G | UA8: A | UB8: C | UC8: - | UD8: A | UE8: G | UF8: G | UG8: W | UH8: M | UI8: R | UJ8: C | UK8: C | UL8: A | UM8: G | UN8: R | UO8: G | UP8: G | UQ8: W | UR8: A | US8: T | UT8: C | UU8: G | UV8: R | UW8: G | UX8: Y | UY8: G | UZ8: T | VA8: Y | VB8: Y | VC8: Y | VD8: A | VE8: T | VF8: S | VG8: W | VH8: G | VI8: R | VJ8: W | VK8: T | VL8: G | VM8: W | VN8: A | VO8: Y | VP8: C | VQ8: - | VR8: T | VS8: Y | VT8: G | VU8: C | VV8: G | VW8: C | VX8: C | VY8: M | VZ8: A | WA8: C | WB8: G | WC8: G | WD8: G | WE8: G | WF8: A | WG8: Y | WH8: G | WI8: - | WJ8: G | WK8: S | WL8: T | WM8: Y | WN8: - | WO8: Y | WP8: R | WQ8: C | WR8: K | WS8: T | WT8: C | WU8: - | WV8: R | WW8: S | WX8: W | WY8: C | WZ8: C | XA8: G | XB8: Y | XC8: R | XD8: R | XE8: W | XF8: Y | XG8: G | XH8: C | XI8: M | XJ8: - | XK8: A | XL8: Y | XM8: G | XN8: C | XO8: R | XP8: R | XQ8: Y | XR8: G | XS8: T | XT8: T | XU8: R | XV8: C | XW8: G | XX8: A | XY8: A | XZ8: Y | YA8: T | YB8: C | YC8: W | YD8: G | YE8: C | YF8: C | YG8: Y | YH8: A | YI8: G | YJ8: W | YK8: C | YL8: Y | YM8: G | YN8: C | YO8: R | YP8: R | YQ8: Y | YR8: Y | YS8: A | YT8: G | YU8: W | YV8: Y | YW8: - | YX8: C | YY8: G | YZ8: T | ZA8: T | ZB8: T | ZC8: C | ZD8: A | ZE8: T | ZF8: Y | ZG8: S | ZH8: G | ZI8: C | ZJ8: - | ZK8: W | ZL8: T | ZM8: K | ZN8: T | ZO8: C | ZP8: C | ZQ8: W | ZR8: K | ZS8: - | ZT8: C | ZU8: T | ZV8: K | ZW8: R | ZX8: A | ZY8: S | ZZ8: T | AAA8: W | AAB8: A | AAC8: C | AAD8: T | AAE8: Y | AAF8: K | AAG8: A | AAH8: A | AAI8: G | AAJ8: A | AAK8: A | AAL8: A | AAM8: T | AAN8: Y | AAO8: C | AAP8: A | AAQ8: A | AAR8: C | AAS8: C | AAT8: R | AAU8: Y | AAV8: G | AAW8: - | AAX8: A | AAY8: Y | AAZ8: - | ABA8: R | ABB8: R | ABC8: K | ABD8: W | ABE8: G | ABF8: C | ABG8: C | ABH8: G | ABI8: C | ABJ8: G | ABK8: T | ABL8: G | ABM8: T | ABN8: A | ABO8: Y | ABP8: G | ABQ8: T | ABR8: G | ABS8: - | ABT8: Y | ABU8: A | ABV8: C | ABW8: T | ABX8: C | ABY8: C | ABZ8: G | ACA8: - | ACB8: A | ACC8: A | ACD8: A | ACE8: G | ACF8: T | ACG8: T | ACH8: Y | ACI8: C | ACJ8: T | ACK8: G | ACL8: A | ACM8: T | ACN8: G | ACO8: - | ACP8: - | ACQ8: C | ACR8: C | ACS8: A | ACT8: C | ACU8: G | ACV8: G | ACW8: C | ACX8: G | ACY8: T | ACZ8: A | ADA8: A | ADB8: G | ADC8: T | ADD8: G | ADE8: G | ADF8: G | ADG8: A | ADH8: - | ADI8: A | ADJ8: C | ADK8: G | ADL8: A | ADM8: A | ADN8: G | ADO8: T | ADP8: A | ADQ8: T | ADR8: G | ADS8: G | ADT8: G | ADU8: C | ADV8: G | ADW8: A | ADX8: - | ADY8: A | ADZ8: C | AEA8: T | AEB8: A | AEC8: A | AED8: - | AEE8: A | AEF8: T | AEG8: A | AEH8: C | AEI8: A | AEJ8: G | AEK8: G | AEL8: C | AEM8: - | AEN8: - | AEO8: C | AEP8: G | AEQ8: C | AER8: A | AES8: A | AET8: A | AEU8: - | AEV8: A | AEW8: G | AEX8: A | AEY8: A | AEZ8: T | AFA8: C | AFB8: A | AFC8: G | AFD8: C | AFE8: - | AFF8: A | AFG8: A | AFH8: A | AFI8: W | AFJ8: C | AFK8: T | AFL8: Y | AFM8: G | AFN8: A | AFO8: T | AFP8: T | AFQ8: T | AFR8: A | AFS8: - | AFT8: R | AFU8: T | AFV8: A | AFW8: Y | AFX8: R | AFY8: Y | AFZ8: T | AGA8: Y | AGB8: T | AGC8: G | AGD8: A | AGE8: T | AGF8: C | AGG8: A | AGH8: T | AGI8: A | AGJ8: A | AGK8: C | AGL8: G | AGM8: A | AGN8: T | AGO8: R | AGP8: W | AGQ8: Y | AGR8: A | AGS8: T | AGT8: G | AGU8: T | AGV8: R | AGW8: - | AGX8: G | AGY8: T | AGZ8: G | AHA8: T | AHB8: G | AHC8: G | AHD8: T | AHE8: C | AHF8: C | AHG8: G | AHH8: T | AHI8: G | AHJ8: A | AHK8: G | AHL8: A | AHM8: C | AHN8: C | AHO8: T | AHP8: A | AHQ8: C | AHR8: T | AHS8: T | AHT8: C | AHU8: T | AHV8: T | AHW8: G | AHX8: A | AHY8: C | AHZ8: T | AIA8: A | AIB8: - | AIC8: T | AID8: A | AIE8: C | AIF8: A | AIG8: A | AIH8: G | AII8: G | AIJ8: T | AIK8: G | AIL8: C | AIM8: T | AIN8: A | AIO8: T | AIP8: C | AIQ8: T | AIR8: A | AIS8: T | AIT8: C | AIU8: A | AIV8: A | AIW8: G | AIX8: T | AIY8: T | AIZ8: C | AJA8: G | AJB8: A | AJC8: T | AJD8: C | AJE8: T | AJF8: C | AJG8: A | AJH8: C | AJI8: T | AJJ8: T | AJK8: G | AJL8: T | AJM8: G | AJN8: T | AJO8: T | AJP8: C | AJQ8: C | AJR8: T | AJS8: G | AJT8: C | AJU8: G | AJV8: T | AJW8: A | AJX8: T | AJY8: G | AJZ8: G | AKA8: A | AKB8: G | AKC8: G | AKD8: G | AKE8: T | AKF8: T | AKG8: G | AKH8: G | AKI8: T | AKJ8: A | AKK8: T | AKL8: A | AKM8: G | AKN8: A | AKO8: G | AKP8: T | AKQ8: G | AKR8: C | AKS8: C | AKT8: T | AKU8: G | AKV8: A | AKW8: A | AKX8: A | AKY8: G | AKZ8: A | ALA8: G | ALB8: A | ALC8: G | ALD8: G | ALE8: T | ALF8: - | ALG8: C | ALH8: A | ALI8: T | ALJ8: C | ALK8: G | ALL8: - | ALM8: A | ALN8: C | ALO8: A | ALP8: G | ALQ8: C | ALR8: G | ALS8: C | ALT8: A | ALU8: C | ALV8: G | ALW8: G | ALX8: C | ALY8: - | ALZ8: G | AMA8: T | AMB8: A | AMC8: G | AMD8: A | AME8: C | AMF8: T | AMG8: A | AMH8: C | AMI8: A | AMJ8: A | AMK8: C | AML8: G | AMM8: C | AMN8: C | AMO8: R | AMP8: T | AMQ8: A | AMR8: - | AMS8: T | AMT8: C | AMU8: A | AMV8: - | AMW8: G | AMX8: T | AMY8: G | AMZ8: A | ANA8: G | ANB8: T | ANC8: A | AND8: A | ANE8: T | ANF8: G | ANG8: G | ANH8: A | ANI8: C | ANJ8: C | ANK8: G | ANL8: G | ANM8: A | ANN8: G | ANO8: G | ANP8: T | ANQ8: G | ANR8: Y | ANS8: C | ANT8: C | ANU8: G | ANV8: R | ANW8: G | ANX8: T | ANY8: A | ANZ8: Y | AOA8: G | AOB8: C | AOC8: C | AOD8: T | AOE8: C | AOF8: Y | AOG8: A | AOH8: T | AOI8: S | AOJ8: A | AOK8: G | AOL8: G | AOM8: A | AON8: C | AOO8: C | AOP8: C | AOQ8: Y | AOR8: R | AOS8: T | AOT8: T | AOU8: A | AOV8: M | AOW8: G | AOX8: T | AOY8: - | AOZ8: A | APA8: - | APB8: Y | APC8: C | APD8: W | APE8: T | APF8: C | APG8: Y | APH8: R | API8: G | APJ8: T | APK8: W | APL8: C | APM8: C | APN8: A | APO8: T | APP8: C | APQ8: C | APR8: W | APS8: A | APT8: Y | APU8: Y | APV8: T | APW8: R | APX8: G | APY8: A | APZ8: C | AQA8: T | AQB8: W | AQC8: T | AQD8: C | AQE8: C | AQF8: A | AQG8: A | AQH8: S | AQI8: S | AQJ8: G | AQK8: R | AQL8: K | AQM8: A | AQN8: R | AQO8: W | AQP8: G | AQQ8: K | AQR8: T | AQS8: C | AQT8: A | AQU8: T | AQV8: T | AQW8: W | AQX8: A | AQY8: S | AQZ8: A | ARA8: A | ARB8: C | ARC8: A | ARD8: A | ARE8: A | ARF8: C | ARG8: C | ARH8: C | ARI8: T | ARJ8: W | ARK8: W | ARL8: T | ARM8: G | ARN8: A | ARO8: T | ARP8: G | ARQ8: C | ARR8: G | ARS8: S | ART8: R | ARU8: G | ARV8: G | ARW8: A | ARX8: T | ARY8: A | ARZ8: R | ASA8: T | ASB8: T | ASC8: G | ASD8: T | ASE8: K | ASF8: G | ASG8: T | ASH8: T | ASI8: A | ASJ8: T | ASK8: A | ASL8: G | ASM8: Y | ASN8: A | ASO8: G | ASP8: R | ASQ8: T | ASR8: G | ASS8: W | AST8: Y | ASU8: T | ASV8: Y | ASW8: G | ASX8: T | ASY8: A | ASZ8: R | ATA8: - | ATB8: G | ATC8: A | ATD8: C | ATE8: G | ATF8: G | ATG8: R | ATH8: G | ATI8: M | ATJ8: A | ATK8: T | ATL8: S | ATM8: G | ATN8: G | ATO8: M | ATP8: A | ATQ8: A | ATR8: C | ATS8: R | ATT8: C | ATU8: G | ATV8: M | ATW8: C | ATX8: G | ATY8: A | ATZ8: R | AUA8: S | AUB8: G | AUC8: C | AUD8: T | AUE8: K | AUF8: W | AUG8: W | AUH8: R | AUI8: G | AUJ8: Y | AUK8: A | AUL8: G | AUM8: T | AUN8: A | AUO8: C | AUP8: T | AUQ8: G | AUR8: M | AUS8: - | AUT8: C | AUU8: T | AUV8: G | AUW8: - | AUX8: T | AUY8: T | AUZ8: A | AVA8: A | AVB8: - | AVC8: T | AVD8: C | AVE8: C | AVF8: C | AVG8: C | AVH8: C | AVI8: - | AVJ8: A | AVK8: T | AVL8: A | AVM8: G | AVN8: T | AVO8: A | AVP8: T | AVQ8: C | AVR8: T | AVS8: C | AVT8: A | AVU8: W | AVV8: G | AVW8: T | AVX8: R | AVY8: A | AVZ8: T | AWA8: - | AWB8: G | AWC8: A | AWD8: T | AWE8: G | AWF8: C | AWG8: T | AWH8: Y | AWI8: C | AWJ8: T | AWK8: Y | AWL8: - | AWM8: G | AWN8: - | AWO8: C | AWP8: T | AWQ8: A | AWR8: C | AWS8: R | AWT8: T | AWU8: R | AWV8: A | AWW8: T | AWX8: A | AWY8: T | AWZ8: G | AXA8: A | AXB8: C | AXC8: R | AXD8: Y | AXE8: A | AXF8: R | AXG8: T | AXH8: T | AXI8: T | AXJ8: A | AXK8: A | AXL8: A | AXM8: R | AXN8: Y | AXO8: A | AXP8: G | AXQ8: T | AXR8: G | AXS8: Y | AXT8: T | AXU8: Y | AXV8: T | AXW8: A | AXX8: W | AXY8: R | AXZ8: C | AYA8: C | AYB8: A | AYC8: A | AYD8: M | AYE8: Y | AYF8: Y | AYG8: R | AYH8: A | AYI8: G | AYJ8: T | AYK8: G | AYL8: W | AYM8: C | AYN8: R | AYO8: K | AYP8: T | AYQ8: G | AYR8: R | AYS8: C | AYT8: C | AYU8: C | AYV8: T | AYW8: G | AYX8: G | AYY8: Y | AYZ8: A | AZA8: C | AZB8: R | AZC8: T | AZD8: T | AZE8: T | AZF8: G | AZG8: G | AZH8: C | AZI8: C | AZJ8: T | AZK8: A | AZL8: G | AZM8: A | AZN8: A | AZO8: T | AZP8: G | AZQ8: T | AZR8: T | AZS8: C | AZT8: G | AZU8: G | AZV8: W | AZW8: G | AZX8: C | AZY8: G | AZZ8: A | BAA8: G | BAB8: T | BAC8: - | BAD8: T | BAE8: C | BAF8: A | BAG8: A | BAH8: A | BAI8: A | BAJ8: A | BAK8: C | BAL8: A | BAM8: A | BAN8: C | BAO8: A | BAP8: G | BAQ8: - | BAR8: C | BAS8: G | BAT8: T | BAU8: A | BAV8: T | BAW8: - | BAX8: A | BAY8: T | BAZ8: T | BBA8: C | BBB8: C | BBC8: C | BBD8: C | BBE8: T | BBF8: - | BBG8: G | BBH8: A | BBI8: C | BBJ8: G | BBK8: C | BBL8: T | BBM8: C | BBN8: A | BBO8: T | BBP8: A | BBQ8: C | BBR8: T | BBS8: T | BBT8: C | BBU8: G | BBV8: C | BBW8: G | BBX8: C | BBY8: C | BBZ8: A | BCA8: A | BCB8: T | BCC8: C | BCD8: T | BCE8: G | BCF8: A | BCG8: C | BCH8: T | BCI8: G | BCJ8: C | BCK8: T | BCL8: A | BCM8: T | BCN8: G | BCO8: A | BCP8: T | BCQ8: G | BCR8: A | BCS8: T | BCT8: C | BCU8: A | BCV8: C | BCW8: C | BCX8: T | BCY8: G | BCZ8: G | BDA8: - | BDB8: G | BDC8: C | BDD8: A | BDE8: - | BDF8: C | BDG8: C | BDH8: C | BDI8: C | BDJ8: A | BDK8: T | BDL8: G | BDM8: A | BDN8: C | BDO8: A | BDP8: G | BDQ8: T | BDR8: T | BDS8: T | BDT8: G | BDU8: A | BDV8: T | BDW8: C | BDX8: C | BDY8: A | BDZ8: T | BEA8: G | BEB8: - | BEC8: T | BED8: T | BEE8: T | BEF8: G | BEG8: C | BEH8: Y | BEI8: T | BEJ8: C | BEK8: T | BEL8: Y | BEM8: S | BEN8: T | BEO8: C | BEP8: W | BEQ8: - | BER8: T | BES8: T | BET8: R | BEU8: C | BEV8: T | BEW8: C | BEX8: G
A9: SC2000001_R1 | B9: IPK_CAN_27 IPK27 | C9: C | D9: G | E9: M | F9: T | G9: G | H9: G | I9: A | J9: Y | K9: M | L9: G | M9: T | N9: T | O9: T | P9: C | Q9: G | R9: C | S9: A | T9: T | U9: C | V9: A | W9: C | X9: G | Y9: A | Z9: T | AA9: A | AB9: C | AC9: A | AD9: A | AE9: G | AF9: C | AG9: G | AH9: C | AI9: A | AJ9: G | AK9: T | AL9: A | AM9: A | AN9: C | AO9: T | AP9: C | AQ9: G | AR9: C | AS9: G | AT9: C | AU9: A | AV9: T | AW9: G | AX9: A | AY9: A | AZ9: G | BA9: A | BB9: T | BC9: A | BD9: T | BE9: T | BF9: T | BG9: G | BH9: A | BI9: A | BJ9: A | BK9: G | BL9: A | BM9: A | BN9: G | BO9: A | BP9: T | BQ9: C | BR9: G | BS9: C | BT9: G | BU9: A | BV9: G | BW9: C | BX9: A | BY9: W | BZ9: A | CA9: C | CB9: T | CC9: T | CD9: T | CE9: C | CF9: A | CG9: G | CH9: A | CI9: T | CJ9: G | CK9: R | CL9: R | CM9: A | CN9: A | CO9: G | CP9: A | CQ9: T | CR9: A | CS9: C | CT9: A | CU9: T | CV9: C | CW9: T | CX9: C | CY9: G | CZ9: G | DA9: T | DB9: T | DC9: C | DD9: A | DE9: T | DF9: - | DG9: G | DH9: A | DI9: - | DJ9: A | DK9: C | DL9: G | DM9: G | DN9: A | DO9: C | DP9: G | DQ9: T | DR9: T | DS9: G | DT9: T | DU9: G | DV9: C | DW9: C | DX9: T | DY9: T | DZ9: C | EA9: T | EB9: A | EC9: G | ED9: A | EE9: T | EF9: A | EG9: T | EH9: G | EI9: G | EJ9: C | EK9: T | EL9: A | EM9: G | EN9: A | EO9: G | EP9: T | EQ9: T | ER9: Y | ES9: C | ET9: T | EU9: T | EV9: T | EW9: G | EX9: G | EY9: T | EZ9: A | FA9: T | FB9: A | FC9: C | FD9: A | FE9: G | FF9: C | FG9: A | FH9: G | FI9: C | FJ9: T | FK9: A | FL9: C | FM9: M | FN9: G | FO9: A | FP9: C | FQ9: T | FR9: C | FS9: A | FT9: G | FU9: C | FV9: G | FW9: A | FX9: A | FY9: C | FZ9: A | GA9: T | GB9: G | GC9: T | GD9: C | GE9: T | GF9: C | GG9: A | GH9: A | GI9: G | GJ9: A | GK9: T | GL9: W | GM9: R | GN9: G | GO9: C | GP9: A | GQ9: C | GR9: C | GS9: G | GT9: R | GU9: K | GV9: C | GW9: T | GX9: Y | GY9: W | GZ9: R | HA9: R | HB9: R | HC9: R | HD9: C | HE9: R | HF9: C | HG9: Y | HH9: R | HI9: S | HJ9: K | HK9: R | HL9: G | HM9: T | HN9: Y | HO9: Y | HP9: T | HQ9: R | HR9: Y | HS9: A | HT9: G | HU9: G | HV9: C | HW9: A | HX9: T | HY9: Y | HZ9: Y | IA9: T | IB9: R | IC9: M | ID9: T | IE9: C | IF9: T | IG9: A | IH9: Y | II9: G | IJ9: M | IK9: Y | IL9: W | IM9: A | IN9: A | IO9: G | IP9: Y | IQ9: R | IR9: M | IS9: Y | IT9: R | IU9: W | IV9: T | IW9: Y | IX9: W | IY9: A | IZ9: Y | JA9: Y | JB9: T | JC9: G | JD9: - | JE9: G | JF9: G | JG9: T | JH9: Y | JI9: K | JJ9: T | JK9: S | JL9: R | JM9: A | JN9: Y | JO9: W | JP9: M | JQ9: T | JR9: K | JS9: W | JT9: T | JU9: A | JV9: T | JW9: T | JX9: C | JY9: R | JZ9: R | KA9: - | KB9: Y | KC9: G | KD9: A | KE9: W | KF9: Y | KG9: S | KH9: G | KI9: A | KJ9: C | KK9: M | KL9: R | KM9: G | KN9: Y | KO9: T | KP9: C | KQ9: C | KR9: - | KS9: G | KT9: T | KU9: C | KV9: A | KW9: C | KX9: R | KY9: R | KZ9: C | LA9: A | LB9: R | LC9: G | LD9: K | LE9: G | LF9: T | LG9: C | LH9: C | LI9: C | LJ9: M | LK9: Y | LL9: R | LM9: A | LN9: T | LO9: C | LP9: C | LQ9: R | LR9: T | LS9: Y | LT9: Y | LU9: G | LV9: - | LW9: C | LX9: T | LY9: T | LZ9: R | MA9: C | MB9: G | MC9: Y | MD9: G | ME9: W | MF9: G | MG9: A | MH9: W | MI9: Y | MJ9: C | MK9: A | ML9: S | MM9: A | MN9: G | MO9: Y | MP9: M | MQ9: T | MR9: A | MS9: A | MT9: T | MU9: A | MV9: R | MW9: Y | MX9: R | MY9: R | MZ9: M | NA9: A | NB9: A | NC9: G | ND9: C | NE9: C | NF9: C | NG9: C | NH9: G | NI9: A | NJ9: A | NK9: T | NL9: K | NM9: - | NN9: G | NO9: S | NP9: T | NQ9: T | NR9: Y | NS9: A | NT9: W | NU9: G | NV9: Y | NW9: C | NX9: C | NY9: G | NZ9: A | OA9: T | OB9: G | OC9: T | OD9: M | OE9: G | OF9: G | OG9: C | OH9: R | OI9: Y | OJ9: T | OK9: C | OL9: T | OM9: Y | ON9: S | OO9: G | OP9: Y | OQ9: - | OR9: A | OS9: A | OT9: C | OU9: R | OV9: G | OW9: Y | OX9: C | OY9: T | OZ9: R | PA9: C | PB9: K | PC9: C | PD9: W | PE9: G | PF9: C | PG9: C | PH9: R | PI9: A | PJ9: Y | PK9: G | PL9: R | PM9: R | PN9: G | PO9: C | PP9: Y | PQ9: W | PR9: A | PS9: R | PT9: R | PU9: S | PV9: R | PW9: C | PX9: R | PY9: W | PZ9: - | QA9: C | QB9: R | QC9: C | QD9: C | QE9: S | QF9: S | QG9: G | QH9: Y | QI9: G | QJ9: C | QK9: S | QL9: Y | QM9: G | QN9: T | QO9: T | QP9: T | QQ9: G | QR9: A | QS9: W | QT9: A | QU9: A | QV9: M | QW9: C | QX9: C | QY9: Y | QZ9: Y | RA9: M | RB9: C | RC9: R | RD9: G | RE9: Y | RF9: A | RG9: A | RH9: Y | RI9: K | RJ9: T | RK9: A | RL9: R | RM9: G | RN9: K | RO9: M | RP9: R | RQ9: A | RR9: - | RS9: C | RT9: W | RU9: A | RV9: A | RW9: Y | RX9: G | RY9: Y | RZ9: G | SA9: G | SB9: M | SC9: G | SD9: R | SE9: R | SF9: S | SG9: A | SH9: R | SI9: R | SJ9: W | SK9: W | SL9: Y | SM9: C | SN9: Y | SO9: A | SP9: R | SQ9: C | SR9: C | SS9: K | ST9: R | SU9: T | SV9: G | SW9: A | SX9: A | SY9: M | SZ9: W | TA9: A | TB9: A | TC9: G | TD9: A | TE9: G | TF9: A | TG9: M | TH9: G | TI9: A | TJ9: R | TK9: - | TL9: - | TM9: G | TN9: T | TO9: T | TP9: K | TQ9: G | TR9: C | TS9: Y | TT9: Y | TU9: G | TV9: T | TW9: C | TX9: A | TY9: C | TZ9: G | UA9: A | UB9: Y | UC9: A | UD9: R | UE9: R | UF9: G | UG9: A | UH9: C | UI9: R | UJ9: Y | UK9: C | UL9: R | UM9: G | UN9: G | UO9: R | UP9: - | UQ9: T | UR9: C | US9: C | UT9: G | UU9: G | UV9: G | UW9: G | UX9: T | UY9: G | UZ9: T | VA9: T | VB9: T | VC9: C | VD9: C | VE9: - | VF9: G | VG9: T | VH9: G | VI9: G | VJ9: T | VK9: C | VL9: G | VM9: W | VN9: T | VO9: T | VP9: T | VQ9: - | VR9: C | VS9: C | VT9: G | VU9: C | VV9: G | VW9: - | VX9: C | VY9: C | VZ9: A | WA9: C | WB9: A | WC9: A | WD9: G | WE9: G | WF9: A | WG9: T | WH9: T | WI9: - | WJ9: T | WK9: G | WL9: - | WM9: T | WN9: G | WO9: T | WP9: A | WQ9: C | WR9: G | WS9: T | WT9: C | WU9: G | WV9: G | WW9: C | WX9: T | WY9: C | WZ9: C | XA9: G | XB9: C | XC9: A | XD9: G | XE9: T | XF9: T | XG9: G | XH9: C | XI9: A | XJ9: G | XK9: T | XL9: T | XM9: G | XN9: T | XO9: G | XP9: A | XQ9: C | XR9: G | XS9: G | XT9: T | XU9: G | XV9: A | XW9: T | XX9: T | XY9: G | XZ9: Y | YA9: C | YB9: C | YC9: T | YD9: G | YE9: C | YF9: C | YG9: T | YH9: A | YI9: G | YJ9: T | YK9: C | YL9: C | YM9: G | YN9: T | YO9: - | YP9: A | YQ9: C | YR9: C | YS9: - | YT9: K | YU9: W | YV9: C | YW9: - | YX9: C | YY9: A | YZ9: T | ZA9: A | ZB9: G | ZC9: A | ZD9: A | ZE9: T | ZF9: T | ZG9: G | ZH9: G | ZI9: T | ZJ9: C | ZK9: A | ZL9: - | ZM9: G | ZN9: T | ZO9: C | ZP9: C | ZQ9: T | ZR9: G | ZS9: - | ZT9: - | ZU9: C | ZV9: T | ZW9: G | ZX9: C | ZY9: G | ZZ9: C | AAA9: A | AAB9: A | AAC9: C | AAD9: T | AAE9: C | AAF9: G | AAG9: A | AAH9: A | AAI9: G | AAJ9: A | AAK9: A | AAL9: G | AAM9: T | AAN9: T | AAO9: T | AAP9: T | AAQ9: G | AAR9: T | AAS9: T | AAT9: G | AAU9: C | AAV9: G | AAW9: G | AAX9: A | AAY9: C | AAZ9: K | ABA9: R | ABB9: G | ABC9: T | ABD9: W | ABE9: R | ABF9: T | ABG9: Y | ABH9: R | ABI9: T | ABJ9: A | ABK9: Y | ABL9: K | ABM9: Y | ABN9: W | ABO9: T | ABP9: G | ABQ9: A | ABR9: T | ABS9: - | ABT9: C | ABU9: W | ABV9: C | ABW9: Y | ABX9: Y | ABY9: C | ABZ9: G | ACA9: S | ACB9: W | ACC9: A | ACD9: A | ACE9: G | ACF9: W | ACG9: Y | ACH9: C | ACI9: C | ACJ9: Y | ACK9: S | ACL9: G | ACM9: T | ACN9: G | ACO9: - | ACP9: A | ACQ9: C | ACR9: Y | ACS9: A | ACT9: C | ACU9: A | ACV9: R | ACW9: M | ACX9: R | ACY9: W | ACZ9: W | ADA9: R | ADB9: C | ADC9: G | ADD9: G | ADE9: A | ADF9: G | ADG9: G | ADH9: T | ADI9: A | ADJ9: A | ADK9: G | ADL9: G | ADM9: A | ADN9: K | ADO9: Y | ADP9: M | ADQ9: T | ADR9: A | ADS9: A | ADT9: G | ADU9: C | ADV9: S | ADW9: A | ADX9: G | ADY9: W | ADZ9: C | AEA9: K | AEB9: R | AEC9: A | AED9: A | AEE9: G | AEF9: T | AEG9: A | AEH9: S | AEI9: M | AEJ9: G | AEK9: G | AEL9: G | AEM9: C | AEN9: T | AEO9: A | AEP9: A | AEQ9: G | AER9: R | AES9: G | AET9: G | AEU9: T | AEV9: A | AEW9: A | AEX9: M | AEY9: T | AEZ9: C | AFA9: M | AFB9: W | AFC9: R | AFD9: C | AFE9: A | AFF9: G | AFG9: R | AFH9: G | AFI9: A | AFJ9: Y | AFK9: Y | AFL9: C | AFM9: G | AFN9: A | AFO9: Y | AFP9: K | AFQ9: T | AFR9: G | AFS9: - | AFT9: G | AFU9: Y | AFV9: W | AFW9: Y | AFX9: R | AFY9: C | AFZ9: T | AGA9: C | AGB9: C | AGC9: C | AGD9: A | AGE9: Y | AGF9: Y | AGG9: G | AGH9: Y | AGI9: G | AGJ9: A | AGK9: C | AGL9: R | AGM9: A | AGN9: Y | AGO9: A | AGP9: W | AGQ9: T | AGR9: A | AGS9: T | AGT9: R | AGU9: W | AGV9: G | AGW9: A | AGX9: R | AGY9: Y | AGZ9: G | AHA9: Y | AHB9: G | AHC9: T | AHD9: T | AHE9: G | AHF9: T | AHG9: A | AHH9: Y | AHI9: G | AHJ9: R | AHK9: - | AHL9: G | AHM9: A | AHN9: A | AHO9: T | AHP9: M | AHQ9: C | AHR9: Y | AHS9: T | AHT9: C | AHU9: A | AHV9: T | AHW9: C | AHX9: A | AHY9: T | AHZ9: C | AIA9: T | AIB9: A | AIC9: T | AID9: A | AIE9: C | AIF9: A | AIG9: A | AIH9: A | AII9: G | AIJ9: C | AIK9: A | AIL9: C | AIM9: T | AIN9: A | AIO9: A | AIP9: T | AIQ9: C | AIR9: G | AIS9: T | AIT9: T | AIU9: A | AIV9: C | AIW9: T | AIX9: T | AIY9: T | AIZ9: G | AJA9: G | AJB9: A | AJC9: T | AJD9: T | AJE9: T | AJF9: Y | AJG9: - | AJH9: Y | AJI9: T | AJJ9: T | AJK9: T | AJL9: C | AJM9: - | AJN9: T | AJO9: T | AJP9: T | AJQ9: T | AJR9: G | AJS9: G | AJT9: Y | AJU9: A | AJV9: A | AJW9: A | AJX9: A | AJY9: G | AJZ9: A | AKA9: A | AKB9: G | AKC9: G | AKD9: C | AKE9: T | AKF9: T | AKG9: G | AKH9: - | AKI9: G | AKJ9: A | AKK9: T | AKL9: A | AKM9: C | AKN9: A | AKO9: A | AKP9: C | AKQ9: A | AKR9: C | AKS9: T | AKT9: T | AKU9: T | AKV9: A | AKW9: C | AKX9: A | AKY9: T | AKZ9: G | ALA9: A | ALB9: G | ALC9: A | ALD9: A | ALE9: - | ALF9: T | ALG9: A | ALH9: T | ALI9: T | ALJ9: C | ALK9: A | ALL9: C | ALM9: A | ALN9: C | ALO9: A | ALP9: A | ALQ9: C | ALR9: T | ALS9: A | ALT9: T | ALU9: G | ALV9: G | ALW9: A | ALX9: A | ALY9: - | ALZ9: A | AMA9: C | AMB9: C | AMC9: T | AMD9: A | AME9: C | AMF9: T | AMG9: A | AMH9: T | AMI9: A | AMJ9: A | AMK9: G | AML9: G | AMM9: A | AMN9: C | AMO9: G | AMP9: W | AMQ9: W | AMR9: Y | AMS9: W | AMT9: Y | AMU9: A | AMV9: S | AMW9: R | AMX9: K | AMY9: R | AMZ9: A | ANA9: A | ANB9: C | ANC9: A | AND9: T | ANE9: T | ANF9: G | ANG9: R | ANH9: W | ANI9: Y | ANJ9: C | ANK9: T | ANL9: G | ANM9: A | ANN9: G | ANO9: R | ANP9: W | ANQ9: K | ANR9: C | ANS9: C | ANT9: Y | ANU9: R | ANV9: R | ANW9: A | ANX9: Y | ANY9: T | ANZ9: T | AOA9: G | AOB9: C | AOC9: T | AOD9: Y | AOE9: Y | AOF9: T | AOG9: A | AOH9: W | AOI9: G | AOJ9: R | AOK9: R | AOL9: R | AOM9: G | AON9: C | AOO9: Y | AOP9: M | AOQ9: Y | AOR9: G | AOS9: W | AOT9: A | AOU9: M | AOV9: A | AOW9: K | AOX9: T | AOY9: C | AOZ9: G | APA9: - | APB9: Y | APC9: C | APD9: W | APE9: T | APF9: M | APG9: C | APH9: R | API9: R | APJ9: T | APK9: W | APL9: M | APM9: M | APN9: T | APO9: T | APP9: C | APQ9: C | APR9: T | APS9: W | APT9: Y | APU9: C | APV9: Y | APW9: G | APX9: A | APY9: R | APZ9: C | AQA9: K | AQB9: A | AQC9: T | AQD9: - | AQE9: C | AQF9: R | AQG9: R | AQH9: C | AQI9: S | AQJ9: G | AQK9: R | AQL9: K | AQM9: R | AQN9: R | AQO9: T | AQP9: C | AQQ9: G | AQR9: W | AQS9: A | AQT9: R | AQU9: T | AQV9: C | AQW9: A | AQX9: R | AQY9: C | AQZ9: A | ARA9: M | ARB9: Y | ARC9: R | ARD9: A | ARE9: G | ARF9: T | ARG9: Y | ARH9: Y | ARI9: T | ARJ9: A | ARK9: W | ARL9: T | ARM9: R | ARN9: C | ARO9: Y | ARP9: A | ARQ9: C | ARR9: T | ARS9: G | ART9: G | ARU9: R | ARV9: R | ARW9: A | ARX9: T | ARY9: A | ARZ9: R | ASA9: T | ASB9: T | ASC9: G | ASD9: T | ASE9: G | ASF9: S | ASG9: T | ASH9: T | ASI9: R | ASJ9: A | ASK9: G | ASL9: A | ASM9: C | ASN9: G | ASO9: G | ASP9: R | ASQ9: C | ASR9: A | ASS9: T | AST9: Y | ASU9: Y | ASV9: C | ASW9: A | ASX9: T | ASY9: G | ASZ9: G | ATA9: Y | ATB9: G | ATC9: T | ATD9: C | ATE9: G | ATF9: S | ATG9: G | ATH9: R | ATI9: M | ATJ9: A | ATK9: C | ATL9: S | ATM9: R | ATN9: G | ATO9: C | ATP9: R | ATQ9: C | ATR9: G | ATS9: A | ATT9: A | ATU9: R | ATV9: C | ATW9: C | ATX9: G | ATY9: G | ATZ9: R | AUA9: S | AUB9: R | AUC9: S | AUD9: Y | AUE9: K | AUF9: T | AUG9: T | AUH9: A | AUI9: A | AUJ9: C | AUK9: M | AUL9: T | AUM9: C | AUN9: G | AUO9: Y | AUP9: T | AUQ9: R | AUR9: M | AUS9: G | AUT9: C | AUU9: W | AUV9: A | AUW9: R | AUX9: T | AUY9: Y | AUZ9: R | AVA9: C | AVB9: C | AVC9: Y | AVD9: A | AVE9: Y | AVF9: T | AVG9: A | AVH9: T | AVI9: Y | AVJ9: A | AVK9: C | AVL9: A | AVM9: R | AVN9: C | AVO9: A | AVP9: T | AVQ9: A | AVR9: Y | AVS9: T | AVT9: A | AVU9: W | AVV9: T | AVW9: T | AVX9: A | AVY9: C | AVZ9: - | AWA9: - | AWB9: G | AWC9: A | AWD9: T | AWE9: G | AWF9: T | AWG9: T | AWH9: C | AWI9: T | AWJ9: T | AWK9: T | AWL9: - | AWM9: A | AWN9: - | AWO9: C | AWP9: G | AWQ9: A | AWR9: C | AWS9: A | AWT9: - | AWU9: A | AWV9: A | AWW9: T | AWX9: A | AWY9: T | AWZ9: G | AXA9: A | AXB9: C | AXC9: G | AXD9: T | AXE9: R | AXF9: G | AXG9: T | AXH9: A | AXI9: A | AXJ9: G | AXK9: A | AXL9: A | AXM9: A | AXN9: C | AXO9: G | AXP9: R | AXQ9: C | AXR9: A | AXS9: C | AXT9: - | AXU9: T | AXV9: T | AXW9: A | AXX9: A | AXY9: - | AXZ9: C | AYA9: C | AYB9: A | AYC9: A | AYD9: A | AYE9: T | AYF9: T | AYG9: A | AYH9: A | AYI9: G | AYJ9: T | AYK9: G | AYL9: T | AYM9: C | AYN9: A | AYO9: G | AYP9: C | AYQ9: G | AYR9: A | AYS9: - | AYT9: C | AYU9: - | AYV9: T | AYW9: A | AYX9: G | AYY9: C | AYZ9: G | AZA9: C | AZB9: A | AZC9: G | AZD9: G | AZE9: C | AZF9: A | AZG9: A | AZH9: C | AZI9: C | AZJ9: T | AZK9: T | AZL9: C | AZM9: A | AZN9: A | AZO9: T | AZP9: A | AZQ9: C | AZR9: C | AZS9: G | AZT9: R | AZU9: R | AZV9: A | AZW9: A | AZX9: T | AZY9: G | AZZ9: - | BAA9: R | BAB9: T | BAC9: T | BAD9: C | BAE9: C | BAF9: G | BAG9: G | BAH9: R | BAI9: A | BAJ9: R | BAK9: C | BAL9: A | BAM9: G | BAN9: T | BAO9: R | BAP9: R | BAQ9: - | BAR9: Y | BAS9: R | BAT9: A | BAU9: A | BAV9: W | BAW9: - | BAX9: R | BAY9: C | BAZ9: T | BBA9: C | BBB9: Y | BBC9: - | BBD9: C | BBE9: Y | BBF9: M | BBG9: S | BBH9: M | BBI9: C | BBJ9: A | BBK9: C | BBL9: Y | BBM9: C | BBN9: R | BBO9: T | BBP9: A | BBQ9: Y | BBR9: C | BBS9: T | BBT9: C | BBU9: S | BBV9: T | BBW9: A | BBX9: Y | BBY9: Y | BBZ9: G | BCA9: R | BCB9: T | BCC9: A | BCD9: - | BCE9: G | BCF9: G | BCG9: C | BCH9: T | BCI9: G | BCJ9: G | BCK9: T | BCL9: W | BCM9: A | BCN9: R | BCO9: R | BCP9: C | BCQ9: G | BCR9: R | BCS9: T | BCT9: T | BCU9: G | BCV9: Y | BCW9: Y | BCX9: C | BCY9: T | BCZ9: C | BDA9: Y | BDB9: K | BDC9: G | BDD9: G | BDE9: C | BDF9: Y | BDG9: A | BDH9: M | BDI9: Y | BDJ9: G | BDK9: W | BDL9: R | BDM9: A | BDN9: Y | BDO9: W | BDP9: K | BDQ9: T | BDR9: C | BDS9: G | BDT9: A | BDU9: G | BDV9: T | BDW9: Y | BDX9: Y | BDY9: T | BDZ9: A | BEA9: A | BEB9: G | BEC9: C | BED9: Y | BEE9: - | BEF9: R | BEG9: Y | BEH9: Y | BEI9: Y | BEJ9: T | BEK9: Y | BEL9: T | BEM9: G | BEN9: T | BEO9: G | BEP9: A | BEQ9: K | BER9: T | BES9: T | BET9: A | BEU9: C | BEV9: C | BEW9: C | BEX9: G
